Workbook

Sheet Instructions
A1: General Instructions for Use of the Streamlined Savings Calculation Tool | R1: General Cell Color Designations
A2: The primary intended use of this tool is for energy savings and incentives analysis for buildings being considered through the NHSaves's New Construction incentive program. The tool is designed for use ONLY on New Construction/Major Renovation studies where baselines for energy saving calculations are defined by the local energy code and state-specific modifications for industry standard practice. It is NOT capable of analyzing retrofit measures with existing condition baselines. All baseline assumptions are automated by the tool based on State, Program Year, and selected energy code standard. Baseline values for individual measures cannot be revised by the user. DISCLAIMERS: · Only designated input cell values should be adjusted when completing this tool. All other cells are protected and should remain protected and unchanged. Altering the protected cell values and formulas could create unintended results. If there is a suspected error in the tool's protected values and formulas, the Program Administrator should be informed. · Results of this tool are not binding on any party. The PA is not obligated to provide an incentive for any measure at any time and may consider other factors outside of this tool when making decisions on how to proceed, or not proceed, with a project. Savings entered into the tool are not necessarily vetted, approved, or guaranteed by the PA. · Ultimately it is the prerogative of the PA to decide the amount of incentive that will be offered to the customer. STEP 1: Enter General Project Information General Project Information inputs must be entered in the "Project Info" sheet as the first step when starting any new project with this tool. Many of the inputs in this sheet are referenced and used in the savings calculations for individual measures, so the calculations will not work properly until the Project Info inputs are complete. STEP 2: Select ECMs and Enter Specific ECM Input Data Once the "Project Info" inputs are complete, ECM-specific data can be entered into the tool: · The tool includes 12 pre-set ECMs with automated savings calculations based on the applicable user inputs. · To open and access individual measure sheets/tabs for direct inputs, go to the "ECM Summary" sheet and select "Yes" next to the applicable measure. · Up to 4 User-Defined ECMs can also be added. Enabling a User-Defined ECM will open a blank sheet with pre-populated bin model and designated cells to enter the base and proposed case descriptions and calculated savings for the measure. The "Workspace" sheet is a blank, unprotected sheet that can be used to add any supplemental data, calculations, notes, etc. STEP 3: Print Report Once all ECM information has been entered and reviewed, a project summary report can be printed using the "Print Report" button on the "ECM Summary" sheet. The "Select Report Version" input cell should be set to either "Draft" or "Final" before generating the report. | S2: Protected Cell; information and/or formulas in these cells cannot be edited
S3: Input Cell; these cells can be edited
S4: Required Input Cell; denotes an input that is required for the tool to function properly. These cells should turn white once an input is entered.
S5: Input/Summary Table Cells; highlights the tables where User Inputs can be entered or summary information is provided
S6: Input Cell Not Required; denotes input cells that are not needed based on other input selections
S9: Tool Version: | T9: v2026.02.19

Sheet Updates Log (hidden)
A1: v02.2 Updates
A2: General
B3: · | C3: Calculation of custom incentive for each ECM revised so that ECM incentives are not limited by the ECM's incremental cost.
B4: · | C4: Revised % Peak savings distribution calculation for each ECM; rounded values to ensure 100% total for copying into screening tool.
A5: Project Info Sheet
B6: · | C6: Added user input to select Program Path (Path 3 or Path 4) and automation to set the default incentive rates based on the Path number.
B7: · | C7: Added Facility Description input section.
B8: · | C8: Added a cell to indicate that all required Project Info inputs have been entered.
B9: · | C9: Added Input for Design and Construction schedule/dates
A10: ECM Summary Sheet
B11: · | C11: Moved incentive rate overrides to the ECM Summary sheet.
B12: · | C12: Added columns to Summary Table showing separate electric and gas incentives.
B13: · | C13: Added optional column to select ECMs included in current design (for use with design assistance, charrettes, design reviews).
A14: PA Impacts Sheet
B15: · | C15: Formatting allowed to enable copying screening tool data.
B16: · | C16: Added Heat Pump Metrics Summary Table
A17: Bldg Envelope Sheet
B18: · | C18: Updated Default Incremental Cost calculation so that value can only be ≥ 0.
A19: Interior Lighting Sheet
B20: · | C20: Added input option for Certified Lighting Designer to override DLC/ES requirement.
B21: · | C21: Added "Notes" input section.
B22: · | C22: Added data validation check on Design Total Watts override cell to avoid values for LPD being entered (Input must be Total Watts).
A23: Exterior Lighting Sheet
B24: · | C24: Fixed Exterior Lighting baseline automation - baseline watts now set to equal proposed for non-eligible fixtures.
B25: · | C25: Added "Notes" input section.
B26: · | C26: Added input option for Certified Lighting Designer to override DLC/ES requirement.
A27: Unitary HVAC (RTU, AC, HP, VRF) Sheet
B28: · | C28: Added guidance to use AHRI performance ratings for inputs.
B29: · | C29: Added guidance for the heating performance COP inputs (high condensing and low condensing temperatures).
B30: · | C30: Revised calculations to only use the low condensing temp (i.e. COP 17) performance input value for air-source heat pumps.
B31: · | C31: Revised VRF Baseline performance values per ASHRAE 90.1-2013 addendum.
B32: · | C32: Changed default peak load % to 85% of entered capacity (was previously set to 90%).
B33: · | C33: Added table showing breakdown of measure savings by heating vs. cooling energy and HVAC vs. constant/IT loads.
B34: · | C34: Added a limit for the maximum IEER used in the savings calculations - max IEER in calculations is 25.0.
B35: · | C35: Added Calculation of Heat Pump Metrics for program records (Qty, Savings, Incr Cost, Incentive, Summer/Winter kW).
B36: · | C36: Reduced Avg % load for IT/Elec load cooling equipment to 25%.
A37: High Efficiency Chillers Sheet
B38: · | C38: No changes
A39: Variable Frequency Drives Sheet
B40: · | C40: Correct error with TRM savings rates for Chilled Water Pumps and Cooling Tower Pumps.
A41: Energy Recovery Sheet
B42: · | C42: Corrected error in baseline effectiveness automation.
B43: · | C43: Added guidance that the tool is not designed to analyze ISMRE performance ratings.
B44: · | C44: Revised the optional Effectiveness Calculator to simplify the inputs and add direction and guidance for the calculator's use.
A45: Demand Control Ventilation Sheet
B46: · | C46: No changes
A47: Variable Flow Kitchen Hood Sheet
B48: · | C48: Revised Incremental Cost calculation.
B49: · | C49: Revised calculations to use balanced infiltration for heating/cooling savings if no Make-up Air CFM is entered.
A50: Condensing Boilers Sheet
B51: · | C51: Added incentive calculation for boilers >2,000 MBH; incentive is the larger of the custom calculated incentive and $10,000 per boiler.
A52: DHW Heaters Sheet
B53: · | C53: Revised calculations to limit peak DHW load based on total capacity of the heaters,
B54: · | C54: Added guidance on the default gallons per day calculation (based on bldg type and area, not on operating hours).
B55: · | C55: Added guidance to show calculation of Optional Override gallons per day input in the Workspace sheet.
A56: Low Flow DHW Fixtures Sheet
B57: · | C57: No changes
B58: · | C58: Added guidance on the default gallons per day calculation (based on bldg type and area, not on operating hours).
B59: · | C59: Added guidance to show calculation of Optional Override gallons per day input in the Workspace sheet.
A60: User Defined Measures Sheet
B61: · | C61: Added incentive override input if the custom calculated incentive does not apply.
B62: · | C62: Formatting enabled in all cells.
A64: v02.3 Updates
B66: · | C66: Interior Lighting Sheet – For NH sites, added logic so that no incentive is calculated when < 50% of the proposed wattage is DLC/Energy Star listed.
B67: · | C67: Condensing Boiler Sheet – For NH sites, updated baseline boiler efficiency to be 85% for boilers ≤ 2,500 MBH (per the recent NH TRM updates)
B68: · | C68: PA Impacts Sheet – added calculation for equivalent kWh savings associated with the propane/oil MMBTU savings measures. (For NH)
B69: · | C69: DCV Sheet - corrected MBH to kW conversion error.
B70: · | C70: Revised ECM Summary to make "Included in Current Design" cells open for inputs.
A72: v02.3 Updates
B73: · | C73: Boilers - Revised RI prescriptive incentives
B74: · | C74: Boilers - Added two incentive tiers for boilers ≤ 300 MBH based on avg. efficiency
B75: · | C75: ECM Summary - corrected boiler gas PA incentive to be the total incentive value

Sheet TMYx (hidden)
J1: DRY BULB TEMPERATURE DATA
J2: =1*(J3=$V$4) -> 0 | K2: 0 | L2: 0 | M2: 0 | N2: 0 | O2: 0 | P2: 0 | Q2: 0 | R2: 0 | S2: 0 | T2: 0
J3: ='Project Info'!$C$102 -> Berlin | K3: ='Project Info'!$C$103 -> Concord | L3: ='Project Info'!$C$104 -> Keene | M3: ='Project Info'!$C$105 -> Laconia | N3: ='Project Info'!$C$106 -> Lebanon | O3: ='Project Info'!$C$107 -> Manchester | P3: ='Project Info'!$C$108 -> Mt. Washington | Q3: ='Project Info'!$C$109 -> Nashua | R3: ='Project Info'!$C$110 -> Plymouth | S3: ='Project Info'!$C$111 -> Portsmouth | T3: ='Project Info'!$C$112 -> Rochester | V3: Location:
V4: ='Project Info'!$C$16 -> 0 | Y4: Winter | Z4: Winter | AA4: Summer | AB4: Summer | AC4: Winter | AD4: Summer | AE4: Non-Holiday/Non-Break Hours | AJ4: Monthly/Seasonal | AK4: Occupied | AM4: Calculation Year | AO4: 2018 | AR4: Total Bin Hours Check | AX4: Occ Hours | AZ4: =SUM(AT15:AT38) -> 0
A5: Date (MM/DD/YYYY) | B5: Month | C5: Day | D5: Year | F5: Weekday | G5: Holiday | H5: Time (HH:MM) | I5: Hour | J5: DB (°F) | K5: DB (°F) | L5: DB (°F) | M5: DB (°F) | N5: DB (°F) | O5: DB (°F) | P5: DB (°F) | Q5: DB (°F) | R5: DB (°F) | S5: DB (°F) | T5: DB (°F) | V5: DB (°F) | Y5: On Peak | Z5: Off Peak | AA5: On Peak | AB5: Off Peak | AC5: Demand | AD5: Demand | AE5: 1-Standard US Holidays | AF5: 2-No Holidays | AG5: 3-School w/ Breaks | AH5: 4-Seasonal-Summer Peak | AI5: 5-Seasonal-Winter Peak | AJ5: Diversity | AK5: Hour | AM5: Hours of Operation | AR5: Annual Hours | AU5: =SUM(AU15:AX38,BE15:BH38) -> 8760 | AV5: 8760 | AX5: Unocc Hours | AZ5: =SUM(BD15:BD38) -> 8760
A6: 1976-01-01 | B6: 1 | C6: 1 | D6: =$AO$4 -> 2018 | E6: =DATE(D6,B6,C6) -> 2018-01-01 | F6: =WEEKDAY(E6,2) -> 1 | G6: =COUNTIF($AM$34:$AM$43,E6) -> 1 | H6: 01:00:00 | I6: =H6*24 -> 1 | J6: -11.02 | K6: 28.04 | L6: 23 | M6: 30.2 | N6: -14.08 | O6: 30.92 | P6: 8.6 | Q6: 21.2 | R6: 28.58 | S6: 31.46 | T6: 24.98 | V6: =SUMPRODUCT($J$2:$T$2,J6:T6) -> 0 | Y6: =OR(B6<=$AO$14,B6>=$AN$14)*(F6<6)*(I6>$AN$15)*(I6<=$AO$15)*(G6<>1) -> 0 | Z6: =OR(B6<=$AO$14,B6>=$AN$14)*(Y6=0) -> 1 | AA6: =AND(B6>=$AN$24,B6<=$AO$24)*(F6<6)*(I6>$AN$25)*(I6<=$AO$25)*(G6<>1) -> 0 | AB6: =AND(B6>=$AN$24,B6<=$AO$24)*(AA6=0) -> 0 | AC6: =OR(B6<=$AO$19,B6>=$AN$19)*(F6<6)*(I6>$AN$20)*(I6<=$AO$20) -> 0 | AD6: =AND(B6>=$AN$29,B6<=$AO$29)*(F6<6)*(I6>$AN$30)*(I6<=$AO$30) -> 0 | AE6: =IF(OR(E6=$AM$34,E6=$AM$35,E6=$AM$36,E6=$AM$37,E6=$AM$38,E6=$AM$39,E6=$AM$40,E6=$AM$41,E6=$AM$42,E6=$AM$43),0,1) -> 0 | AF6: 1 | AG6: =IF(OR(AND(E6>=$AM$47,E6<=$AN$47),AND(E6>=$AM$48,E6<=$AN$48),AND(E6>=$AM$49,E6<=$AN$49),AND(E6>=$AM$50,E6<=$AN$50),AND(E6>=$AM$51,E6<=$AN$51)),0,1)*AE6 -> 0 | AH6: =(B6>=5)*(B6<=10) -> 0 | AI6: =1*OR(B6<=4,B6>=11) -> 1 | AJ6: =LOOKUP(B6,$AM$57:$AM$68,$AN$57:$AN$68) -> 1 | AK6: =LOOKUP($AO$10,$AE$5:$AI$5,AE6:AI6)*((F6<6)*(I6>$AO$7)*(I6<=$AP$7)+(F6=6)*(I6>$AO$8)*(I6<=$AP$8)+(F6>=7)*(I6>$AO$9)*(I6<=$AP$9)) -> 0 | AO6: Start | AP6: End | AR6: On Peak Hours | AU6: =SUM(AU15:AU38,AW15:AW38,BE15:BE38,BG15:BG38) -> 4016 | AV6: 4016 | AX6: Total | AZ6: =AZ5+AZ4 -> 8760
A7: 1976-01-01 | B7: 1 | C7: 1 | D7: 2018 | E7: =DATE(D7,B7,C7) -> 2018-01-01 | F7: =WEEKDAY(E7,2) -> 1 | G7: 1 | H7: 02:00:00 | I7: =H7*24 -> 2 | J7: -9.94 | K7: 28.04 | L7: 19.4 | M7: 30.2 | N7: -14.98 | O7: 32 | P7: 8.6 | Q7: 19.04 | R7: 31.46 | S7: 32.18 | T7: 24.08 | V7: 0 | Y7: 0 | Z7: 1 | AA7: 0 | AB7: 0 | AC7: 0 | AD7: 0 | AE7: 0 | AF7: 1 | AG7: 0 | AH7: 0 | AI7: 1 | AJ7: 1 | AK7: 0 | AM7: Weekdays | AO7: ='Project Info'!I15 -> 0 | AP7: ='Project Info'!J15 -> 0 | AR7: Off Peak Hours | AU7: =SUM(AV15:AV38,AX15:AX38,BF15:BF38,BH15:BH38) -> 4744 | AV7: 4744
A8: 1976-01-01 | B8: 1 | C8: 1 | D8: 2018 | E8: 2018-01-01 | F8: 1 | G8: 1 | H8: 03:00:00 | I8: =H8*24 -> 3 | J8: -11.02 | K8: 30.92 | L8: 19.4 | M8: 30.2 | N8: -20.02 | O8: 32.18 | P8: 8.6 | Q8: 19.04 | R8: 31.1 | S8: 32.54 | T8: 21.02 | V8: 0 | Y8: 0 | Z8: 1 | AA8: 0 | AB8: 0 | AC8: 0 | AD8: 0 | AE8: 0 | AF8: 1 | AG8: 0 | AH8: 0 | AI8: 1 | AJ8: 1 | AK8: 0 | AM8: Saturday | AO8: ='Project Info'!I16 -> 0 | AP8: ='Project Info'!J16 -> 0 | AR8: Winter Demand Hours | AU8: =SUM(AY15:AY38,BI15:BI38) -> 88 | AV8: 88
A9: 1976-01-01 | B9: 1 | C9: 1 | D9: 2018 | E9: 2018-01-01 | F9: 1 | G9: 1 | H9: 04:00:00 | I9: 4 | J9: -11.02 | K9: 32 | L9: 17.6 | M9: 33.8 | N9: -18.94 | O9: 32.36 | P9: 8.6 | Q9: 18.14 | R9: 30.92 | S9: 32.9 | T9: 19.94 | V9: 0 | Y9: 0 | Z9: 1 | AA9: 0 | AB9: 0 | AC9: 0 | AD9: 0 | AE9: 0 | AF9: 1 | AG9: 0 | AH9: 0 | AI9: 1 | AJ9: 1 | AK9: 0 | AM9: Sunday | AO9: ='Project Info'!I17 -> 0 | AP9: ='Project Info'!J17 -> 0 | AR9: Summer Demand Hours | AU9: =SUM(AZ15:AZ38,BJ15:BJ38) -> 264 | AV9: 264
A10: 1976-01-01 | B10: 1 | C10: 1 | D10: 2018 | E10: 2018-01-01 | F10: 1 | G10: 1 | H10: 05:00:00 | I10: 5 | J10: -18.04 | K10: 32 | L10: 17.6 | M10: 32 | N10: -16.96 | O10: 33.08 | P10: 6.8 | Q10: 19.04 | R10: 31.1 | S10: 32.18 | T10: 19.4 | V10: 0 | Y10: 0 | Z10: 1 | AA10: 0 | AB10: 0 | AC10: 0 | AD10: 0 | AE10: 0 | AF10: 1 | AG10: 0 | AH10: 0 | AI10: 1 | AJ10: 1 | AK10: 0 | AM10: Annual Use Profile | AO10: ='Project Info'!I18 -> 1-Standard US Holidays
A11: 1976-01-01 | B11: 1 | C11: 1 | D11: 2018 | E11: 2018-01-01 | F11: 1 | G11: 1 | H11: 06:00:00 | I11: 6 | J11: -20.92 | K11: 32 | L11: 15.8 | M11: 32 | N11: -18.04 | O11: 33.08 | P11: 3.2 | Q11: 17.06 | R11: 32 | S11: 32.18 | T11: 17.6 | V11: 0 | Y11: 0 | Z11: 1 | AA11: 0 | AB11: 0 | AC11: 0 | AD11: 0 | AE11: 0 | AF11: 1 | AG11: 0 | AH11: 0 | AI11: 1 | AJ11: 1 | AK11: 0 | AR11: Occupied Hours Peak Period Distribution | BB11: Unoccupied Hours Peak Period Distribution | BL11: All Hours Peak Period Distribution | BZ11: (Table used for Binx in Calculations)
A12: 1976-01-01 | B12: 1 | C12: 1 | D12: 2018 | E12: 2018-01-01 | F12: 1 | G12: 1 | H12: 07:00:00 | I12: 7 | J12: -13 | K12: 32 | L12: 15.8 | M12: 33.8 | N12: -23.98 | O12: 33.98 | P12: -0.4 | Q12: 17.06 | R12: 31.1 | S12: 31.82 | T12: 19.04 | V12: 0 | Y12: 0 | Z12: 1 | AA12: 0 | AB12: 0 | AC12: 0 | AD12: 0 | AE12: 0 | AF12: 1 | AG12: 0 | AH12: 0 | AI12: 1 | AJ12: 1 | AK12: 0 | AM12: Winter OnPeak Period Hours | AR12: OA Drybulb | BB12: OA Drybulb | BL12: OA Drybulb | BV12: Default Fill-In Values | BZ12: Avg. Ambient Conditions for this Project
A13: 1976-01-01 | B13: 1 | C13: 1 | D13: 2018 | E13: 2018-01-01 | F13: 1 | G13: 1 | H13: 08:00:00 | I13: 8 | J13: -11.02 | K13: 32 | L13: 15.8 | M13: 30.2 | N13: -20.02 | O13: 35.06 | P13: -2.2 | Q13: 19.04 | R13: 28.4 | S13: 32.18 | T13: 19.04 | V13: 0 | Y13: 0 | Z13: 1 | AA13: 0 | AB13: 0 | AC13: 0 | AD13: 0 | AE13: 0 | AF13: 1 | AG13: 0 | AH13: 0 | AI13: 1 | AJ13: 1 | AK13: 0 | AN13: Start | AO13: End | AR13: Bin Range | AT13: Total | AU13: Winter | AV13: Winter | AW13: Summer | AX13: Summer | AY13: Winter | AZ13: Summer | BB13: Bin Range | BD13: Total | BE13: Winter | BF13: Winter | BG13: Summer | BH13: Summer | BI13: Winter | BJ13: Summer | BL13: Bin Range | BN13: Total | BO13: Winter | BP13: Winter | BQ13: Summer | BR13: Summer | BS13: Winter | BT13: Summer | BV13: OA db | BW13: OA wb | BX13: OA Enth | BY13: Row | BZ13: OA db | CA13: OA wb | CB13: OA Enth
A14: 1976-01-01 | B14: 1 | C14: 1 | D14: 2018 | E14: 2018-01-01 | F14: 1 | G14: 1 | H14: 09:00:00 | I14: 9 | J14: -9.94 | K14: 30.92 | L14: 17.6 | M14: 28.4 | N14: -18.94 | O14: 32 | P14: -5.8 | Q14: 22.1 | R14: 25.7 | S14: 33.08 | T14: 21.02 | V14: 0 | Y14: 0 | Z14: 1 | AA14: 0 | AB14: 0 | AC14: 0 | AD14: 0 | AE14: 0 | AF14: 1 | AG14: 0 | AH14: 0 | AI14: 1 | AJ14: 1 | AK14: 0 | AM14: Months | AN14: 10 | AO14: 5 | AR14: From | AS14: To | AT14: Hours | AU14: On Peak | AV14: Off Peak | AW14: On Peak | AX14: Off Peak | AY14: Demand | AZ14: Demand | BB14: From | BC14: To | BD14: Hours | BE14: On Peak | BF14: Off Peak | BG14: On Peak | BH14: Off Peak | BI14: Demand | BJ14: Demand | BL14: From | BM14: To | BN14: Hours | BO14: On Peak | BP14: Off Peak | BQ14: On Peak | BR14: Off Peak | BS14: Demand | BT14: Demand | BV14: °F | BW14: °F | BX14: Btu/lb | BY14: 1 | BZ14: °F | CA14: °F | CB14: Btu/lb
A15: 1976-01-01 | B15: 1 | C15: 1 | D15: 2018 | E15: 2018-01-01 | F15: 1 | G15: 1 | H15: 10:00:00 | I15: 10 | J15: -7.96 | K15: 26.96 | L15: 19.4 | M15: 24.8 | N15: -7.06 | O15: 32 | P15: -7.6 | Q15: 24.08 | R15: 24.8 | S15: 32.36 | T15: 24.08 | V15: 0 | Y15: 0 | Z15: 1 | AA15: 0 | AB15: 0 | AC15: 0 | AD15: 0 | AE15: 0 | AF15: 1 | AG15: 0 | AH15: 0 | AI15: 1 | AJ15: 1 | AK15: 0 | AM15: Peak Hrs | AN15: 7 | AO15: 23 | AR15: 100 | AS15: 105 | AT15: =SUM(AU15:AX15) -> 0 | AU15: =SUM(($V$6:$V$8765>=$AR15)*($V$6:$V$8765<$AS15)*(Y$6:Y$8765)*($AK$6:$AK$8765)*($AJ$6:$AJ$8765)) -> 0 | AV15: =SUM(($V$6:$V$8765>=$AR15)*($V$6:$V$8765<$AS15)*(Z$6:Z$8765)*($AK$6:$AK$8765)*($AJ$6:$AJ$8765)) -> 0 | AW15: =SUM(($V$6:$V$8765>=$AR15)*($V$6:$V$8765<$AS15)*(AA$6:AA$8765)*($AK$6:$AK$8765)*($AJ$6:$AJ$8765)) -> 0 | AX15: =SUM(($V$6:$V$8765>=$AR15)*($V$6:$V$8765<$AS15)*(AB$6:AB$8765)*($AK$6:$AK$8765)*($AJ$6:$AJ$8765)) -> 0 | AY15: =SUM(($V$6:$V$8765>=$AR15)*($V$6:$V$8765<$AS15)*(AC$6:AC$8765)*($AK$6:$AK$8765)*($AJ$6:$AJ$8765)) -> 0 | AZ15: =SUM(($V$6:$V$8765>=$AR15)*($V$6:$V$8765<$AS15)*(AD$6:AD$8765)*($AK$6:$AK$8765)*($AJ$6:$AJ$8765)) -> 0 | BB15: 100 | BC15: 105 | BD15: =SUM(BE15:BH15) -> 0 | BE15: =BO15-AU15 -> 0 | BF15: =BP15-AV15 -> 0 | BG15: =BQ15-AW15 -> 0 | BH15: =BR15-AX15 -> 0 | BI15: =BS15-AY15 -> 0 | BJ15: =BT15-AZ15 -> 0 | BL15: 100 | BM15: 105 | BN15: =SUM(BO15:BR15) -> 0 | BO15: =SUM(($V$6:$V$8765>=$BB15)*($V$6:$V$8765<$BC15)*(Y$6:Y$8765)) -> 0 | BP15: =SUM(($V$6:$V$8765>=$BB15)*($V$6:$V$8765<$BC15)*(Z$6:Z$8765)) -> 0 | BQ15: =SUM(($V$6:$V$8765>=$BB15)*($V$6:$V$8765<$BC15)*(AA$6:AA$8765)) -> 0 | BR15: =SUM(($V$6:$V$8765>=$BB15)*($V$6:$V$8765<$BC15)*(AB$6:AB$8765)) -> 0 | BS15: =SUM(($V$6:$V$8765>=$BB15)*($V$6:$V$8765<$BC15)*(AC$6:AC$8765)) -> 0 | BT15: =SUM(($V$6:$V$8765>=$BB15)*($V$6:$V$8765<$BC15)*(AD$6:AD$8765)) -> 0 | BV15: 102 | BW15: 76 | BX15: 40 | BY15: 2 | BZ15: =IFERROR(HLOOKUP($V$4,$AU$44:$BE$68,BY15),BV15) -> 102 | CA15: =IFERROR(HLOOKUP($V$4,$BI$44:$BS$68,BY15),BW15) -> 76 | CB15: =IFERROR(HLOOKUP($V$4,$BW$44:$CG$68,BY15),BX15) -> 40
A16: 1976-01-01 | B16: 1 | C16: 1 | D16: 2018 | E16: 2018-01-01 | F16: 1 | G16: 1 | H16: 11:00:00 | I16: 11 | J16: -7.06 | K16: 26.96 | L16: 23 | M16: 26.6 | N16: -5.98 | O16: 32 | P16: -7.6 | Q16: 27.14 | R16: 24.08 | S16: 31.28 | T16: 28.04 | V16: 0 | Y16: 0 | Z16: 1 | AA16: 0 | AB16: 0 | AC16: 0 | AD16: 0 | AE16: 0 | AF16: 1 | AG16: 0 | AH16: 0 | AI16: 1 | AJ16: 1 | AK16: 0 | AR16: 95 | AS16: 100 | AT16: 0 | AU16: =SUM(($V$6:$V$8765>=$AR16)*($V$6:$V$8765<$AS16)*(Y$6:Y$8765)*($AK$6:$AK$8765)*($AJ$6:$AJ$8765)) -> 0 | AV16: =SUM(($V$6:$V$8765>=$AR16)*($V$6:$V$8765<$AS16)*(Z$6:Z$8765)*($AK$6:$AK$8765)*($AJ$6:$AJ$8765)) -> 0 | AW16: =SUM(($V$6:$V$8765>=$AR16)*($V$6:$V$8765<$AS16)*(AA$6:AA$8765)*($AK$6:$AK$8765)*($AJ$6:$AJ$8765)) -> 0 | AX16: =SUM(($V$6:$V$8765>=$AR16)*($V$6:$V$8765<$AS16)*(AB$6:AB$8765)*($AK$6:$AK$8765)*($AJ$6:$AJ$8765)) -> 0 | AY16: =SUM(($V$6:$V$8765>=$AR16)*($V$6:$V$8765<$AS16)*(AC$6:AC$8765)*($AK$6:$AK$8765)*($AJ$6:$AJ$8765)) -> 0 | AZ16: =SUM(($V$6:$V$8765>=$AR16)*($V$6:$V$8765<$AS16)*(AD$6:AD$8765)*($AK$6:$AK$8765)*($AJ$6:$AJ$8765)) -> 0 | BB16: 95 | BC16: 100 | BD16: 0 | BE16: 0 | BF16: 0 | BG16: 0 | BH16: 0 | BI16: 0 | BJ16: 0 | BL16: 95 | BM16: 100 | BN16: 0 | BO16: =SUM(($V$6:$V$8765>=$BB16)*($V$6:$V$8765<$BC16)*(Y$6:Y$8765)) -> 0 | BP16: =SUM(($V$6:$V$8765>=$BB16)*($V$6:$V$8765<$BC16)*(Z$6:Z$8765)) -> 0 | BQ16: =SUM(($V$6:$V$8765>=$BB16)*($V$6:$V$8765<$BC16)*(AA$6:AA$8765)) -> 0 | BR16: =SUM(($V$6:$V$8765>=$BB16)*($V$6:$V$8765<$BC16)*(AB$6:AB$8765)) -> 0 | BS16: =SUM(($V$6:$V$8765>=$BB16)*($V$6:$V$8765<$BC16)*(AC$6:AC$8765)) -> 0 | BT16: =SUM(($V$6:$V$8765>=$BB16)*($V$6:$V$8765<$BC16)*(AD$6:AD$8765)) -> 0 | BV16: =_xlfn.AGGREGATE(1,6,AU46:BE46) -> 95.21927273 | BW16: =_xlfn.AGGREGATE(1,6,BI46:BS46) -> 74.53402527 | BX16: =_xlfn.AGGREGATE(1,6,BW46:CG46) -> 37.92329606 | BY16: 3 | BZ16: =IFERROR(HLOOKUP($V$4,$AU$44:$BE$68,BY16),BV16) -> 95.21927273 | CA16: =IFERROR(HLOOKUP($V$4,$BI$44:$BS$68,BY16),BW16) -> 74.53402527 | CB16: =IFERROR(HLOOKUP($V$4,$BW$44:$CG$68,BY16),BX16) -> 37.92329606
A17: 1976-01-01 | B17: 1 | C17: 1 | D17: 2018 | E17: 2018-01-01 | F17: 1 | G17: 1 | H17: 12:00:00 | I17: 12 | J17: -5.98 | K17: 26.96 | L17: 24.8 | M17: 24.8 | N17: 1.94 | O17: 30.92 | P17: -7.6 | Q17: 28.4 | R17: 24.62 | S17: 31.1 | T17: 30.02 | V17: 0 | Y17: 0 | Z17: 1 | AA17: 0 | AB17: 0 | AC17: 0 | AD17: 0 | AE17: 0 | AF17: 1 | AG17: 0 | AH17: 0 | AI17: 1 | AJ17: 1 | AK17: 0 | AM17: Winter Demand Period Hours | AR17: 90 | AS17: 95 | AT17: 0 | AU17: =SUM(($V$6:$V$8765>=$AR17)*($V$6:$V$8765<$AS17)*(Y$6:Y$8765)*($AK$6:$AK$8765)*($AJ$6:$AJ$8765)) -> 0 | AV17: =SUM(($V$6:$V$8765>=$AR17)*($V$6:$V$8765<$AS17)*(Z$6:Z$8765)*($AK$6:$AK$8765)*($AJ$6:$AJ$8765)) -> 0 | AW17: =SUM(($V$6:$V$8765>=$AR17)*($V$6:$V$8765<$AS17)*(AA$6:AA$8765)*($AK$6:$AK$8765)*($AJ$6:$AJ$8765)) -> 0 | AX17: =SUM(($V$6:$V$8765>=$AR17)*($V$6:$V$8765<$AS17)*(AB$6:AB$8765)*($AK$6:$AK$8765)*($AJ$6:$AJ$8765)) -> 0 | AY17: =SUM(($V$6:$V$8765>=$AR17)*($V$6:$V$8765<$AS17)*(AC$6:AC$8765)*($AK$6:$AK$8765)*($AJ$6:$AJ$8765)) -> 0 | AZ17: =SUM(($V$6:$V$8765>=$AR17)*($V$6:$V$8765<$AS17)*(AD$6:AD$8765)*($AK$6:$AK$8765)*($AJ$6:$AJ$8765)) -> 0 | BB17: 90 | BC17: 95 | BD17: 0 | BE17: 0 | BF17: 0 | BG17: 0 | BH17: 0 | BI17: 0 | BJ17: 0 | BL17: 90 | BM17: 95 | BN17: 0 | BO17: =SUM(($V$6:$V$8765>=$BB17)*($V$6:$V$8765<$BC17)*(Y$6:Y$8765)) -> 0 | BP17: =SUM(($V$6:$V$8765>=$BB17)*($V$6:$V$8765<$BC17)*(Z$6:Z$8765)) -> 0 | BQ17: =SUM(($V$6:$V$8765>=$BB17)*($V$6:$V$8765<$BC17)*(AA$6:AA$8765)) -> 0 | BR17: =SUM(($V$6:$V$8765>=$BB17)*($V$6:$V$8765<$BC17)*(AB$6:AB$8765)) -> 0 | BS17: =SUM(($V$6:$V$8765>=$BB17)*($V$6:$V$8765<$BC17)*(AC$6:AC$8765)) -> 0 | BT17: =SUM(($V$6:$V$8765>=$BB17)*($V$6:$V$8765<$BC17)*(AD$6:AD$8765)) -> 0 | BV17: =_xlfn.AGGREGATE(1,6,AU47:BE47) -> 92.01604916 | BW17: =_xlfn.AGGREGATE(1,6,BI47:BS47) -> 72.91156193 | BX17: =_xlfn.AGGREGATE(1,6,BW47:CG47) -> 36.46709544 | BY17: 4 | BZ17: 92.01604916 | CA17: 72.91156193 | CB17: 36.46709544
A18: 1976-01-01 | B18: 1 | C18: 1 | D18: 2018 | E18: 2018-01-01 | F18: 1 | G18: 1 | H18: 13:00:00 | I18: 13 | J18: -4 | K18: 26.96 | L18: 28.4 | M18: 23.9 | N18: 5 | O18: 30.92 | P18: -7.6 | Q18: 30.2 | R18: 23.72 | S18: 30.02 | T18: 30.2 | V18: 0 | Y18: 0 | Z18: 1 | AA18: 0 | AB18: 0 | AC18: 0 | AD18: 0 | AE18: 0 | AF18: 1 | AG18: 0 | AH18: 0 | AI18: 1 | AJ18: 1 | AK18: 0 | AN18: Start | AO18: End | AR18: 85 | AS18: 90 | AT18: 0 | AU18: =SUM(($V$6:$V$8765>=$AR18)*($V$6:$V$8765<$AS18)*(Y$6:Y$8765)*($AK$6:$AK$8765)*($AJ$6:$AJ$8765)) -> 0 | AV18: =SUM(($V$6:$V$8765>=$AR18)*($V$6:$V$8765<$AS18)*(Z$6:Z$8765)*($AK$6:$AK$8765)*($AJ$6:$AJ$8765)) -> 0 | AW18: =SUM(($V$6:$V$8765>=$AR18)*($V$6:$V$8765<$AS18)*(AA$6:AA$8765)*($AK$6:$AK$8765)*($AJ$6:$AJ$8765)) -> 0 | AX18: =SUM(($V$6:$V$8765>=$AR18)*($V$6:$V$8765<$AS18)*(AB$6:AB$8765)*($AK$6:$AK$8765)*($AJ$6:$AJ$8765)) -> 0 | AY18: =SUM(($V$6:$V$8765>=$AR18)*($V$6:$V$8765<$AS18)*(AC$6:AC$8765)*($AK$6:$AK$8765)*($AJ$6:$AJ$8765)) -> 0 | AZ18: =SUM(($V$6:$V$8765>=$AR18)*($V$6:$V$8765<$AS18)*(AD$6:AD$8765)*($AK$6:$AK$8765)*($AJ$6:$AJ$8765)) -> 0 | BB18: 85 | BC18: 90 | BD18: 0 | BE18: 0 | BF18: 0 | BG18: 0 | BH18: 0 | BI18: 0 | BJ18: 0 | BL18: 85 | BM18: 90 | BN18: 0 | BO18: =SUM(($V$6:$V$8765>=$BB18)*($V$6:$V$8765<$BC18)*(Y$6:Y$8765)) -> 0 | BP18: =SUM(($V$6:$V$8765>=$BB18)*($V$6:$V$8765<$BC18)*(Z$6:Z$8765)) -> 0 | BQ18: =SUM(($V$6:$V$8765>=$BB18)*($V$6:$V$8765<$BC18)*(AA$6:AA$8765)) -> 0 | BR18: =SUM(($V$6:$V$8765>=$BB18)*($V$6:$V$8765<$BC18)*(AB$6:AB$8765)) -> 0 | BS18: =SUM(($V$6:$V$8765>=$BB18)*($V$6:$V$8765<$BC18)*(AC$6:AC$8765)) -> 0 | BT18: =SUM(($V$6:$V$8765>=$BB18)*($V$6:$V$8765<$BC18)*(AD$6:AD$8765)) -> 0 | BV18: 87.45781136 | BW18: 70.80538329 | BX18: 34.67941321 | BY18: 5 | BZ18: 87.45781136 | CA18: 70.80538329 | CB18: 34.67941321
A19: 1976-01-01 | B19: 1 | C19: 1 | D19: 2018 | E19: 2018-01-01 | F19: 1 | G19: 1 | H19: 14:00:00 | I19: 14 | J19: -2.02 | K19: 26.96 | L19: 28.4 | M19: 23 | N19: 6.98 | O19: 30.92 | P19: -9.4 | Q19: 32 | R19: 22.82 | S19: 29.66 | T19: 30.2 | V19: 0 | Y19: 0 | Z19: 1 | AA19: 0 | AB19: 0 | AC19: 0 | AD19: 0 | AE19: 0 | AF19: 1 | AG19: 0 | AH19: 0 | AI19: 1 | AJ19: 1 | AK19: 0 | AM19: Months | AN19: 12 | AO19: 1 | AR19: 80 | AS19: 85 | AT19: 0 | AU19: =SUM(($V$6:$V$8765>=$AR19)*($V$6:$V$8765<$AS19)*(Y$6:Y$8765)*($AK$6:$AK$8765)*($AJ$6:$AJ$8765)) -> 0 | AV19: =SUM(($V$6:$V$8765>=$AR19)*($V$6:$V$8765<$AS19)*(Z$6:Z$8765)*($AK$6:$AK$8765)*($AJ$6:$AJ$8765)) -> 0 | AW19: =SUM(($V$6:$V$8765>=$AR19)*($V$6:$V$8765<$AS19)*(AA$6:AA$8765)*($AK$6:$AK$8765)*($AJ$6:$AJ$8765)) -> 0 | AX19: =SUM(($V$6:$V$8765>=$AR19)*($V$6:$V$8765<$AS19)*(AB$6:AB$8765)*($AK$6:$AK$8765)*($AJ$6:$AJ$8765)) -> 0 | AY19: =SUM(($V$6:$V$8765>=$AR19)*($V$6:$V$8765<$AS19)*(AC$6:AC$8765)*($AK$6:$AK$8765)*($AJ$6:$AJ$8765)) -> 0 | AZ19: =SUM(($V$6:$V$8765>=$AR19)*($V$6:$V$8765<$AS19)*(AD$6:AD$8765)*($AK$6:$AK$8765)*($AJ$6:$AJ$8765)) -> 0 | BB19: 80 | BC19: 85 | BD19: 0 | BE19: 0 | BF19: 0 | BG19: 0 | BH19: 0 | BI19: 0 | BJ19: 0 | BL19: 80 | BM19: 85 | BN19: 0 | BO19: =SUM(($V$6:$V$8765>=$BB19)*($V$6:$V$8765<$BC19)*(Y$6:Y$8765)) -> 0 | BP19: =SUM(($V$6:$V$8765>=$BB19)*($V$6:$V$8765<$BC19)*(Z$6:Z$8765)) -> 0 | BQ19: =SUM(($V$6:$V$8765>=$BB19)*($V$6:$V$8765<$BC19)*(AA$6:AA$8765)) -> 0 | BR19: =SUM(($V$6:$V$8765>=$BB19)*($V$6:$V$8765<$BC19)*(AB$6:AB$8765)) -> 0 | BS19: =SUM(($V$6:$V$8765>=$BB19)*($V$6:$V$8765<$BC19)*(AC$6:AC$8765)) -> 0 | BT19: =SUM(($V$6:$V$8765>=$BB19)*($V$6:$V$8765<$BC19)*(AD$6:AD$8765)) -> 0 | BV19: 82.13678883 | BW19: 67.87239362 | BX19: 32.29624822 | BY19: 6 | BZ19: 82.13678883 | CA19: 67.87239362 | CB19: 32.29624822
A20: 1976-01-01 | B20: 1 | C20: 1 | D20: 2018 | E20: 2018-01-01 | F20: 1 | G20: 1 | H20: 15:00:00 | I20: 15 | J20: -0.94 | K20: 26.96 | L20: 28.4 | M20: 23 | N20: 6.08 | O20: 30.02 | P20: -11.2 | Q20: 33.8 | R20: 21.74 | S20: 29.48 | T20: 30.02 | V20: 0 | Y20: 0 | Z20: 1 | AA20: 0 | AB20: 0 | AC20: 0 | AD20: 0 | AE20: 0 | AF20: 1 | AG20: 0 | AH20: 0 | AI20: 1 | AJ20: 1 | AK20: 0 | AM20: Peak Hrs | AN20: 17 | AO20: 19 | AR20: 75 | AS20: 80 | AT20: 0 | AU20: =SUM(($V$6:$V$8765>=$AR20)*($V$6:$V$8765<$AS20)*(Y$6:Y$8765)*($AK$6:$AK$8765)*($AJ$6:$AJ$8765)) -> 0 | AV20: =SUM(($V$6:$V$8765>=$AR20)*($V$6:$V$8765<$AS20)*(Z$6:Z$8765)*($AK$6:$AK$8765)*($AJ$6:$AJ$8765)) -> 0 | AW20: =SUM(($V$6:$V$8765>=$AR20)*($V$6:$V$8765<$AS20)*(AA$6:AA$8765)*($AK$6:$AK$8765)*($AJ$6:$AJ$8765)) -> 0 | AX20: =SUM(($V$6:$V$8765>=$AR20)*($V$6:$V$8765<$AS20)*(AB$6:AB$8765)*($AK$6:$AK$8765)*($AJ$6:$AJ$8765)) -> 0 | AY20: =SUM(($V$6:$V$8765>=$AR20)*($V$6:$V$8765<$AS20)*(AC$6:AC$8765)*($AK$6:$AK$8765)*($AJ$6:$AJ$8765)) -> 0 | AZ20: =SUM(($V$6:$V$8765>=$AR20)*($V$6:$V$8765<$AS20)*(AD$6:AD$8765)*($AK$6:$AK$8765)*($AJ$6:$AJ$8765)) -> 0 | BB20: 75 | BC20: 80 | BD20: 0 | BE20: 0 | BF20: 0 | BG20: 0 | BH20: 0 | BI20: 0 | BJ20: 0 | BL20: 75 | BM20: 80 | BN20: 0 | BO20: =SUM(($V$6:$V$8765>=$BB20)*($V$6:$V$8765<$BC20)*(Y$6:Y$8765)) -> 0 | BP20: =SUM(($V$6:$V$8765>=$BB20)*($V$6:$V$8765<$BC20)*(Z$6:Z$8765)) -> 0 | BQ20: =SUM(($V$6:$V$8765>=$BB20)*($V$6:$V$8765<$BC20)*(AA$6:AA$8765)) -> 0 | BR20: =SUM(($V$6:$V$8765>=$BB20)*($V$6:$V$8765<$BC20)*(AB$6:AB$8765)) -> 0 | BS20: =SUM(($V$6:$V$8765>=$BB20)*($V$6:$V$8765<$BC20)*(AC$6:AC$8765)) -> 0 | BT20: =SUM(($V$6:$V$8765>=$BB20)*($V$6:$V$8765<$BC20)*(AD$6:AD$8765)) -> 0 | BV20: 76.98840016 | BW20: 65.1292619 | BX20: 30.19047681 | BY20: 7 | BZ20: 76.98840016 | CA20: 65.1292619 | CB20: 30.19047681
A21: 1976-01-01 | B21: 1 | C21: 1 | D21: 2018 | E21: 2018-01-01 | F21: 1 | G21: 1 | H21: 16:00:00 | I21: 16 | J21: -2.02 | K21: 24.98 | L21: 28.4 | M21: 21.2 | N21: 5 | O21: 28.04 | P21: -11.2 | Q21: 32.36 | R21: 21.74 | S21: 27.86 | T21: 30.92 | V21: 0 | Y21: 0 | Z21: 1 | AA21: 0 | AB21: 0 | AC21: 0 | AD21: 0 | AE21: 0 | AF21: 1 | AG21: 0 | AH21: 0 | AI21: 1 | AJ21: 1 | AK21: 0 | AR21: 70 | AS21: 75 | AT21: 0 | AU21: =SUM(($V$6:$V$8765>=$AR21)*($V$6:$V$8765<$AS21)*(Y$6:Y$8765)*($AK$6:$AK$8765)*($AJ$6:$AJ$8765)) -> 0 | AV21: =SUM(($V$6:$V$8765>=$AR21)*($V$6:$V$8765<$AS21)*(Z$6:Z$8765)*($AK$6:$AK$8765)*($AJ$6:$AJ$8765)) -> 0 | AW21: =SUM(($V$6:$V$8765>=$AR21)*($V$6:$V$8765<$AS21)*(AA$6:AA$8765)*($AK$6:$AK$8765)*($AJ$6:$AJ$8765)) -> 0 | AX21: =SUM(($V$6:$V$8765>=$AR21)*($V$6:$V$8765<$AS21)*(AB$6:AB$8765)*($AK$6:$AK$8765)*($AJ$6:$AJ$8765)) -> 0 | AY21: =SUM(($V$6:$V$8765>=$AR21)*($V$6:$V$8765<$AS21)*(AC$6:AC$8765)*($AK$6:$AK$8765)*($AJ$6:$AJ$8765)) -> 0 | AZ21: =SUM(($V$6:$V$8765>=$AR21)*($V$6:$V$8765<$AS21)*(AD$6:AD$8765)*($AK$6:$AK$8765)*($AJ$6:$AJ$8765)) -> 0 | BB21: 70 | BC21: 75 | BD21: 0 | BE21: 0 | BF21: 0 | BG21: 0 | BH21: 0 | BI21: 0 | BJ21: 0 | BL21: 70 | BM21: 75 | BN21: 0 | BO21: =SUM(($V$6:$V$8765>=$BB21)*($V$6:$V$8765<$BC21)*(Y$6:Y$8765)) -> 0 | BP21: =SUM(($V$6:$V$8765>=$BB21)*($V$6:$V$8765<$BC21)*(Z$6:Z$8765)) -> 0 | BQ21: =SUM(($V$6:$V$8765>=$BB21)*($V$6:$V$8765<$BC21)*(AA$6:AA$8765)) -> 0 | BR21: =SUM(($V$6:$V$8765>=$BB21)*($V$6:$V$8765<$BC21)*(AB$6:AB$8765)) -> 0 | BS21: =SUM(($V$6:$V$8765>=$BB21)*($V$6:$V$8765<$BC21)*(AC$6:AC$8765)) -> 0 | BT21: =SUM(($V$6:$V$8765>=$BB21)*($V$6:$V$8765<$BC21)*(AD$6:AD$8765)) -> 0 | BV21: 72.45798205 | BW21: 63.60442501 | BX21: 29.0886831 | BY21: 8 | BZ21: 72.45798205 | CA21: 63.60442501 | CB21: 29.0886831
A22: 1976-01-01 | B22: 1 | C22: 1 | D22: 2018 | E22: 2018-01-01 | F22: 1 | G22: 1 | H22: 17:00:00 | I22: 17 | J22: -4 | K22: 24.98 | L22: 28.4 | M22: 21.2 | N22: -0.04 | O22: 26.06 | P22: -11.2 | Q22: 32.9 | R22: 19.4 | S22: 24.8 | T22: 30.2 | V22: 0 | Y22: 0 | Z22: 1 | AA22: 0 | AB22: 0 | AC22: 0 | AD22: 0 | AE22: 0 | AF22: 1 | AG22: 0 | AH22: 0 | AI22: 1 | AJ22: 1 | AK22: 0 | AM22: Summer OnPeak Period Hours | AR22: 65 | AS22: 70 | AT22: 0 | AU22: =SUM(($V$6:$V$8765>=$AR22)*($V$6:$V$8765<$AS22)*(Y$6:Y$8765)*($AK$6:$AK$8765)*($AJ$6:$AJ$8765)) -> 0 | AV22: =SUM(($V$6:$V$8765>=$AR22)*($V$6:$V$8765<$AS22)*(Z$6:Z$8765)*($AK$6:$AK$8765)*($AJ$6:$AJ$8765)) -> 0 | AW22: =SUM(($V$6:$V$8765>=$AR22)*($V$6:$V$8765<$AS22)*(AA$6:AA$8765)*($AK$6:$AK$8765)*($AJ$6:$AJ$8765)) -> 0 | AX22: =SUM(($V$6:$V$8765>=$AR22)*($V$6:$V$8765<$AS22)*(AB$6:AB$8765)*($AK$6:$AK$8765)*($AJ$6:$AJ$8765)) -> 0 | AY22: =SUM(($V$6:$V$8765>=$AR22)*($V$6:$V$8765<$AS22)*(AC$6:AC$8765)*($AK$6:$AK$8765)*($AJ$6:$AJ$8765)) -> 0 | AZ22: =SUM(($V$6:$V$8765>=$AR22)*($V$6:$V$8765<$AS22)*(AD$6:AD$8765)*($AK$6:$AK$8765)*($AJ$6:$AJ$8765)) -> 0 | BB22: 65 | BC22: 70 | BD22: 0 | BE22: 0 | BF22: 0 | BG22: 0 | BH22: 0 | BI22: 0 | BJ22: 0 | BL22: 65 | BM22: 70 | BN22: 0 | BO22: =SUM(($V$6:$V$8765>=$BB22)*($V$6:$V$8765<$BC22)*(Y$6:Y$8765)) -> 0 | BP22: =SUM(($V$6:$V$8765>=$BB22)*($V$6:$V$8765<$BC22)*(Z$6:Z$8765)) -> 0 | BQ22: =SUM(($V$6:$V$8765>=$BB22)*($V$6:$V$8765<$BC22)*(AA$6:AA$8765)) -> 0 | BR22: =SUM(($V$6:$V$8765>=$BB22)*($V$6:$V$8765<$BC22)*(AB$6:AB$8765)) -> 0 | BS22: =SUM(($V$6:$V$8765>=$BB22)*($V$6:$V$8765<$BC22)*(AC$6:AC$8765)) -> 0 | BT22: =SUM(($V$6:$V$8765>=$BB22)*($V$6:$V$8765<$BC22)*(AD$6:AD$8765)) -> 0 | BV22: 67.81583107 | BW22: 61.63133137 | BX22: 27.66151489 | BY22: 9 | BZ22: 67.81583107 | CA22: 61.63133137 | CB22: 27.66151489
A23: 1976-01-01 | B23: 1 | C23: 1 | D23: 2018 | E23: 2018-01-01 | F23: 1 | G23: 1 | H23: 18:00:00 | I23: 18 | J23: -5.08 | K23: 19.94 | L23: 28.4 | M23: 19.4 | N23: -7.96 | O23: 24.08 | P23: -13 | Q23: 32.9 | R23: 17.06 | S23: 23 | T23: 30.2 | V23: 0 | Y23: 0 | Z23: 1 | AA23: 0 | AB23: 0 | AC23: 1 | AD23: 0 | AE23: 0 | AF23: 1 | AG23: 0 | AH23: 0 | AI23: 1 | AJ23: 1 | AK23: 0 | AN23: Start | AO23: End | AR23: 60 | AS23: 65 | AT23: 0 | AU23: =SUM(($V$6:$V$8765>=$AR23)*($V$6:$V$8765<$AS23)*(Y$6:Y$8765)*($AK$6:$AK$8765)*($AJ$6:$AJ$8765)) -> 0 | AV23: =SUM(($V$6:$V$8765>=$AR23)*($V$6:$V$8765<$AS23)*(Z$6:Z$8765)*($AK$6:$AK$8765)*($AJ$6:$AJ$8765)) -> 0 | AW23: =SUM(($V$6:$V$8765>=$AR23)*($V$6:$V$8765<$AS23)*(AA$6:AA$8765)*($AK$6:$AK$8765)*($AJ$6:$AJ$8765)) -> 0 | AX23: =SUM(($V$6:$V$8765>=$AR23)*($V$6:$V$8765<$AS23)*(AB$6:AB$8765)*($AK$6:$AK$8765)*($AJ$6:$AJ$8765)) -> 0 | AY23: =SUM(($V$6:$V$8765>=$AR23)*($V$6:$V$8765<$AS23)*(AC$6:AC$8765)*($AK$6:$AK$8765)*($AJ$6:$AJ$8765)) -> 0 | AZ23: =SUM(($V$6:$V$8765>=$AR23)*($V$6:$V$8765<$AS23)*(AD$6:AD$8765)*($AK$6:$AK$8765)*($AJ$6:$AJ$8765)) -> 0 | BB23: 60 | BC23: 65 | BD23: 0 | BE23: 0 | BF23: 0 | BG23: 0 | BH23: 0 | BI23: 0 | BJ23: 0 | BL23: 60 | BM23: 65 | BN23: 0 | BO23: =SUM(($V$6:$V$8765>=$BB23)*($V$6:$V$8765<$BC23)*(Y$6:Y$8765)) -> 0 | BP23: =SUM(($V$6:$V$8765>=$BB23)*($V$6:$V$8765<$BC23)*(Z$6:Z$8765)) -> 0 | BQ23: =SUM(($V$6:$V$8765>=$BB23)*($V$6:$V$8765<$BC23)*(AA$6:AA$8765)) -> 0 | BR23: =SUM(($V$6:$V$8765>=$BB23)*($V$6:$V$8765<$BC23)*(AB$6:AB$8765)) -> 0 | BS23: =SUM(($V$6:$V$8765>=$BB23)*($V$6:$V$8765<$BC23)*(AC$6:AC$8765)) -> 0 | BT23: =SUM(($V$6:$V$8765>=$BB23)*($V$6:$V$8765<$BC23)*(AD$6:AD$8765)) -> 0 | BV23: 62.53596147 | BW23: 57.13547692 | BX23: 24.62303716 | BY23: 10 | BZ23: 62.53596147 | CA23: 57.13547692 | CB23: 24.62303716
A24: 1976-01-01 | B24: 1 | C24: 1 | D24: 2018 | E24: 2018-01-01 | F24: 1 | G24: 1 | H24: 19:00:00 | I24: 19 | J24: -5.98 | K24: 19.04 | L24: 28.4 | M24: 17.6 | N24: -14.98 | O24: 23 | P24: -14.8 | Q24: 33.8 | R24: 15.8 | S24: 21.2 | T24: 30.2 | V24: 0 | Y24: 0 | Z24: 1 | AA24: 0 | AB24: 0 | AC24: 1 | AD24: 0 | AE24: 0 | AF24: 1 | AG24: 0 | AH24: 0 | AI24: 1 | AJ24: 1 | AK24: 0 | AM24: Months | AN24: 6 | AO24: 9 | AR24: 55 | AS24: 60 | AT24: 0 | AU24: =SUM(($V$6:$V$8765>=$AR24)*($V$6:$V$8765<$AS24)*(Y$6:Y$8765)*($AK$6:$AK$8765)*($AJ$6:$AJ$8765)) -> 0 | AV24: =SUM(($V$6:$V$8765>=$AR24)*($V$6:$V$8765<$AS24)*(Z$6:Z$8765)*($AK$6:$AK$8765)*($AJ$6:$AJ$8765)) -> 0 | AW24: =SUM(($V$6:$V$8765>=$AR24)*($V$6:$V$8765<$AS24)*(AA$6:AA$8765)*($AK$6:$AK$8765)*($AJ$6:$AJ$8765)) -> 0 | AX24: =SUM(($V$6:$V$8765>=$AR24)*($V$6:$V$8765<$AS24)*(AB$6:AB$8765)*($AK$6:$AK$8765)*($AJ$6:$AJ$8765)) -> 0 | AY24: =SUM(($V$6:$V$8765>=$AR24)*($V$6:$V$8765<$AS24)*(AC$6:AC$8765)*($AK$6:$AK$8765)*($AJ$6:$AJ$8765)) -> 0 | AZ24: =SUM(($V$6:$V$8765>=$AR24)*($V$6:$V$8765<$AS24)*(AD$6:AD$8765)*($AK$6:$AK$8765)*($AJ$6:$AJ$8765)) -> 0 | BB24: 55 | BC24: 60 | BD24: 0 | BE24: 0 | BF24: 0 | BG24: 0 | BH24: 0 | BI24: 0 | BJ24: 0 | BL24: 55 | BM24: 60 | BN24: 0 | BO24: =SUM(($V$6:$V$8765>=$BB24)*($V$6:$V$8765<$BC24)*(Y$6:Y$8765)) -> 0 | BP24: =SUM(($V$6:$V$8765>=$BB24)*($V$6:$V$8765<$BC24)*(Z$6:Z$8765)) -> 0 | BQ24: =SUM(($V$6:$V$8765>=$BB24)*($V$6:$V$8765<$BC24)*(AA$6:AA$8765)) -> 0 | BR24: =SUM(($V$6:$V$8765>=$BB24)*($V$6:$V$8765<$BC24)*(AB$6:AB$8765)) -> 0 | BS24: =SUM(($V$6:$V$8765>=$BB24)*($V$6:$V$8765<$BC24)*(AC$6:AC$8765)) -> 0 | BT24: =SUM(($V$6:$V$8765>=$BB24)*($V$6:$V$8765<$BC24)*(AD$6:AD$8765)) -> 0 | BV24: 57.12579227 | BW24: 52.59697116 | BX24: 21.81800154 | BY24: 11 | BZ24: 57.12579227 | CA24: 52.59697116 | CB24: 21.81800154
A25: 1976-01-01 | B25: 1 | C25: 1 | D25: 2018 | E25: 2018-01-01 | F25: 1 | G25: 1 | H25: 20:00:00 | I25: 20 | J25: -7.96 | K25: 19.04 | L25: 26.6 | M25: 15.8 | N25: -14.98 | O25: 21.02 | P25: -14.8 | Q25: 31.1 | R25: 14.72 | S25: 19.76 | T25: 32 | V25: 0 | Y25: 0 | Z25: 1 | AA25: 0 | AB25: 0 | AC25: 0 | AD25: 0 | AE25: 0 | AF25: 1 | AG25: 0 | AH25: 0 | AI25: 1 | AJ25: 1 | AK25: 0 | AM25: Peak Hrs | AN25: 7 | AO25: 23 | AR25: 50 | AS25: 55 | AT25: 0 | AU25: =SUM(($V$6:$V$8765>=$AR25)*($V$6:$V$8765<$AS25)*(Y$6:Y$8765)*($AK$6:$AK$8765)*($AJ$6:$AJ$8765)) -> 0 | AV25: =SUM(($V$6:$V$8765>=$AR25)*($V$6:$V$8765<$AS25)*(Z$6:Z$8765)*($AK$6:$AK$8765)*($AJ$6:$AJ$8765)) -> 0 | AW25: =SUM(($V$6:$V$8765>=$AR25)*($V$6:$V$8765<$AS25)*(AA$6:AA$8765)*($AK$6:$AK$8765)*($AJ$6:$AJ$8765)) -> 0 | AX25: =SUM(($V$6:$V$8765>=$AR25)*($V$6:$V$8765<$AS25)*(AB$6:AB$8765)*($AK$6:$AK$8765)*($AJ$6:$AJ$8765)) -> 0 | AY25: =SUM(($V$6:$V$8765>=$AR25)*($V$6:$V$8765<$AS25)*(AC$6:AC$8765)*($AK$6:$AK$8765)*($AJ$6:$AJ$8765)) -> 0 | AZ25: =SUM(($V$6:$V$8765>=$AR25)*($V$6:$V$8765<$AS25)*(AD$6:AD$8765)*($AK$6:$AK$8765)*($AJ$6:$AJ$8765)) -> 0 | BB25: 50 | BC25: 55 | BD25: 0 | BE25: 0 | BF25: 0 | BG25: 0 | BH25: 0 | BI25: 0 | BJ25: 0 | BL25: 50 | BM25: 55 | BN25: 0 | BO25: =SUM(($V$6:$V$8765>=$BB25)*($V$6:$V$8765<$BC25)*(Y$6:Y$8765)) -> 0 | BP25: =SUM(($V$6:$V$8765>=$BB25)*($V$6:$V$8765<$BC25)*(Z$6:Z$8765)) -> 0 | BQ25: =SUM(($V$6:$V$8765>=$BB25)*($V$6:$V$8765<$BC25)*(AA$6:AA$8765)) -> 0 | BR25: =SUM(($V$6:$V$8765>=$BB25)*($V$6:$V$8765<$BC25)*(AB$6:AB$8765)) -> 0 | BS25: =SUM(($V$6:$V$8765>=$BB25)*($V$6:$V$8765<$BC25)*(AC$6:AC$8765)) -> 0 | BT25: =SUM(($V$6:$V$8765>=$BB25)*($V$6:$V$8765<$BC25)*(AD$6:AD$8765)) -> 0 | BV25: 52.23569885 | BW25: 48.02276809 | BX25: 19.24664019 | BY25: 12 | BZ25: 52.23569885 | CA25: 48.02276809 | CB25: 19.24664019
A26: 1976-01-01 | B26: 1 | C26: 1 | D26: 2018 | E26: 2018-01-01 | F26: 1 | G26: 1 | H26: 21:00:00 | I26: 21 | J26: -9.94 | K26: 15.98 | L26: 26.6 | M26: 14 | N26: -14.08 | O26: 19.94 | P26: -16.6 | Q26: 32.18 | R26: 13.64 | S26: 18.5 | T26: 32.18 | V26: 0 | Y26: 0 | Z26: 1 | AA26: 0 | AB26: 0 | AC26: 0 | AD26: 0 | AE26: 0 | AF26: 1 | AG26: 0 | AH26: 0 | AI26: 1 | AJ26: 1 | AK26: 0 | AR26: 45 | AS26: 50 | AT26: 0 | AU26: =SUM(($V$6:$V$8765>=$AR26)*($V$6:$V$8765<$AS26)*(Y$6:Y$8765)*($AK$6:$AK$8765)*($AJ$6:$AJ$8765)) -> 0 | AV26: =SUM(($V$6:$V$8765>=$AR26)*($V$6:$V$8765<$AS26)*(Z$6:Z$8765)*($AK$6:$AK$8765)*($AJ$6:$AJ$8765)) -> 0 | AW26: =SUM(($V$6:$V$8765>=$AR26)*($V$6:$V$8765<$AS26)*(AA$6:AA$8765)*($AK$6:$AK$8765)*($AJ$6:$AJ$8765)) -> 0 | AX26: =SUM(($V$6:$V$8765>=$AR26)*($V$6:$V$8765<$AS26)*(AB$6:AB$8765)*($AK$6:$AK$8765)*($AJ$6:$AJ$8765)) -> 0 | AY26: =SUM(($V$6:$V$8765>=$AR26)*($V$6:$V$8765<$AS26)*(AC$6:AC$8765)*($AK$6:$AK$8765)*($AJ$6:$AJ$8765)) -> 0 | AZ26: =SUM(($V$6:$V$8765>=$AR26)*($V$6:$V$8765<$AS26)*(AD$6:AD$8765)*($AK$6:$AK$8765)*($AJ$6:$AJ$8765)) -> 0 | BB26: 45 | BC26: 50 | BD26: 0 | BE26: 0 | BF26: 0 | BG26: 0 | BH26: 0 | BI26: 0 | BJ26: 0 | BL26: 45 | BM26: 50 | BN26: 0 | BO26: =SUM(($V$6:$V$8765>=$BB26)*($V$6:$V$8765<$BC26)*(Y$6:Y$8765)) -> 0 | BP26: =SUM(($V$6:$V$8765>=$BB26)*($V$6:$V$8765<$BC26)*(Z$6:Z$8765)) -> 0 | BQ26: =SUM(($V$6:$V$8765>=$BB26)*($V$6:$V$8765<$BC26)*(AA$6:AA$8765)) -> 0 | BR26: =SUM(($V$6:$V$8765>=$BB26)*($V$6:$V$8765<$BC26)*(AB$6:AB$8765)) -> 0 | BS26: =SUM(($V$6:$V$8765>=$BB26)*($V$6:$V$8765<$BC26)*(AC$6:AC$8765)) -> 0 | BT26: =SUM(($V$6:$V$8765>=$BB26)*($V$6:$V$8765<$BC26)*(AD$6:AD$8765)) -> 0 | BV26: 47.45917026 | BW26: 43.46539705 | BX26: 16.89418324 | BY26: 13 | BZ26: 47.45917026 | CA26: 43.46539705 | CB26: 16.89418324
A27: 1976-01-01 | B27: 1 | C27: 1 | D27: 2018 | E27: 2018-01-01 | F27: 1 | G27: 1 | H27: 22:00:00 | I27: 22 | J27: -14.98 | K27: 15.08 | L27: 26.6 | M27: 14 | N27: -14.08 | O27: 17.96 | P27: -16.6 | Q27: 30.2 | R27: 12.74 | S27: 17.06 | T27: 28.4 | V27: 0 | Y27: 0 | Z27: 1 | AA27: 0 | AB27: 0 | AC27: 0 | AD27: 0 | AE27: 0 | AF27: 1 | AG27: 0 | AH27: 0 | AI27: 1 | AJ27: 1 | AK27: 0 | AM27: Summer Demand Period Hours | AR27: 40 | AS27: 45 | AT27: 0 | AU27: =SUM(($V$6:$V$8765>=$AR27)*($V$6:$V$8765<$AS27)*(Y$6:Y$8765)*($AK$6:$AK$8765)*($AJ$6:$AJ$8765)) -> 0 | AV27: =SUM(($V$6:$V$8765>=$AR27)*($V$6:$V$8765<$AS27)*(Z$6:Z$8765)*($AK$6:$AK$8765)*($AJ$6:$AJ$8765)) -> 0 | AW27: =SUM(($V$6:$V$8765>=$AR27)*($V$6:$V$8765<$AS27)*(AA$6:AA$8765)*($AK$6:$AK$8765)*($AJ$6:$AJ$8765)) -> 0 | AX27: =SUM(($V$6:$V$8765>=$AR27)*($V$6:$V$8765<$AS27)*(AB$6:AB$8765)*($AK$6:$AK$8765)*($AJ$6:$AJ$8765)) -> 0 | AY27: =SUM(($V$6:$V$8765>=$AR27)*($V$6:$V$8765<$AS27)*(AC$6:AC$8765)*($AK$6:$AK$8765)*($AJ$6:$AJ$8765)) -> 0 | AZ27: =SUM(($V$6:$V$8765>=$AR27)*($V$6:$V$8765<$AS27)*(AD$6:AD$8765)*($AK$6:$AK$8765)*($AJ$6:$AJ$8765)) -> 0 | BB27: 40 | BC27: 45 | BD27: 0 | BE27: 0 | BF27: 0 | BG27: 0 | BH27: 0 | BI27: 0 | BJ27: 0 | BL27: 40 | BM27: 45 | BN27: 0 | BO27: =SUM(($V$6:$V$8765>=$BB27)*($V$6:$V$8765<$BC27)*(Y$6:Y$8765)) -> 0 | BP27: =SUM(($V$6:$V$8765>=$BB27)*($V$6:$V$8765<$BC27)*(Z$6:Z$8765)) -> 0 | BQ27: =SUM(($V$6:$V$8765>=$BB27)*($V$6:$V$8765<$BC27)*(AA$6:AA$8765)) -> 0 | BR27: =SUM(($V$6:$V$8765>=$BB27)*($V$6:$V$8765<$BC27)*(AB$6:AB$8765)) -> 0 | BS27: =SUM(($V$6:$V$8765>=$BB27)*($V$6:$V$8765<$BC27)*(AC$6:AC$8765)) -> 0 | BT27: =SUM(($V$6:$V$8765>=$BB27)*($V$6:$V$8765<$BC27)*(AD$6:AD$8765)) -> 0 | BV27: 42.6770304 | BW27: 38.8125445 | BX27: 14.69026565 | BY27: 14 | BZ27: 42.6770304 | CA27: 38.8125445 | CB27: 14.69026565
A28: 1976-01-01 | B28: 1 | C28: 1 | D28: 2018 | E28: 2018-01-01 | F28: 1 | G28: 1 | H28: 23:00:00 | I28: 23 | J28: -16.06 | K28: 15.08 | L28: 21.2 | M28: 12.2 | N28: -20.02 | O28: 17.06 | P28: -16.6 | Q28: 23 | R28: 12.2 | S28: 15.8 | T28: 28.4 | V28: 0 | Y28: 0 | Z28: 1 | AA28: 0 | AB28: 0 | AC28: 0 | AD28: 0 | AE28: 0 | AF28: 1 | AG28: 0 | AH28: 0 | AI28: 1 | AJ28: 1 | AK28: 0 | AN28: Start | AO28: End | AR28: 35 | AS28: 40 | AT28: 0 | AU28: =SUM(($V$6:$V$8765>=$AR28)*($V$6:$V$8765<$AS28)*(Y$6:Y$8765)*($AK$6:$AK$8765)*($AJ$6:$AJ$8765)) -> 0 | AV28: =SUM(($V$6:$V$8765>=$AR28)*($V$6:$V$8765<$AS28)*(Z$6:Z$8765)*($AK$6:$AK$8765)*($AJ$6:$AJ$8765)) -> 0 | AW28: =SUM(($V$6:$V$8765>=$AR28)*($V$6:$V$8765<$AS28)*(AA$6:AA$8765)*($AK$6:$AK$8765)*($AJ$6:$AJ$8765)) -> 0 | AX28: =SUM(($V$6:$V$8765>=$AR28)*($V$6:$V$8765<$AS28)*(AB$6:AB$8765)*($AK$6:$AK$8765)*($AJ$6:$AJ$8765)) -> 0 | AY28: =SUM(($V$6:$V$8765>=$AR28)*($V$6:$V$8765<$AS28)*(AC$6:AC$8765)*($AK$6:$AK$8765)*($AJ$6:$AJ$8765)) -> 0 | AZ28: =SUM(($V$6:$V$8765>=$AR28)*($V$6:$V$8765<$AS28)*(AD$6:AD$8765)*($AK$6:$AK$8765)*($AJ$6:$AJ$8765)) -> 0 | BB28: 35 | BC28: 40 | BD28: 0 | BE28: 0 | BF28: 0 | BG28: 0 | BH28: 0 | BI28: 0 | BJ28: 0 | BL28: 35 | BM28: 40 | BN28: 0 | BO28: =SUM(($V$6:$V$8765>=$BB28)*($V$6:$V$8765<$BC28)*(Y$6:Y$8765)) -> 0 | BP28: =SUM(($V$6:$V$8765>=$BB28)*($V$6:$V$8765<$BC28)*(Z$6:Z$8765)) -> 0 | BQ28: =SUM(($V$6:$V$8765>=$BB28)*($V$6:$V$8765<$BC28)*(AA$6:AA$8765)) -> 0 | BR28: =SUM(($V$6:$V$8765>=$BB28)*($V$6:$V$8765<$BC28)*(AB$6:AB$8765)) -> 0 | BS28: =SUM(($V$6:$V$8765>=$BB28)*($V$6:$V$8765<$BC28)*(AC$6:AC$8765)) -> 0 | BT28: =SUM(($V$6:$V$8765>=$BB28)*($V$6:$V$8765<$BC28)*(AD$6:AD$8765)) -> 0 | BV28: 37.33304677 | BW28: 33.90470692 | BX28: 12.53841602 | BY28: 15 | BZ28: 37.33304677 | CA28: 33.90470692 | CB28: 12.53841602
A29: 1976-01-01 | B29: 1 | C29: 1 | D29: 2018 | E29: 2018-01-01 | F29: 1 | G29: 1 | H29: 1 | I29: 24 | J29: -18.94 | K29: 10.04 | L29: 23 | M29: 12.2 | N29: -20.02 | O29: 15.08 | P29: -16.6 | Q29: 23 | R29: 11.84 | S29: 15.08 | T29: 28.4 | V29: 0 | Y29: 0 | Z29: 1 | AA29: 0 | AB29: 0 | AC29: 0 | AD29: 0 | AE29: 0 | AF29: 1 | AG29: 0 | AH29: 0 | AI29: 1 | AJ29: 1 | AK29: 0 | AM29: Months | AN29: 6 | AO29: 8 | AR29: 30 | AS29: 35 | AT29: 0 | AU29: =SUM(($V$6:$V$8765>=$AR29)*($V$6:$V$8765<$AS29)*(Y$6:Y$8765)*($AK$6:$AK$8765)*($AJ$6:$AJ$8765)) -> 0 | AV29: =SUM(($V$6:$V$8765>=$AR29)*($V$6:$V$8765<$AS29)*(Z$6:Z$8765)*($AK$6:$AK$8765)*($AJ$6:$AJ$8765)) -> 0 | AW29: =SUM(($V$6:$V$8765>=$AR29)*($V$6:$V$8765<$AS29)*(AA$6:AA$8765)*($AK$6:$AK$8765)*($AJ$6:$AJ$8765)) -> 0 | AX29: =SUM(($V$6:$V$8765>=$AR29)*($V$6:$V$8765<$AS29)*(AB$6:AB$8765)*($AK$6:$AK$8765)*($AJ$6:$AJ$8765)) -> 0 | AY29: =SUM(($V$6:$V$8765>=$AR29)*($V$6:$V$8765<$AS29)*(AC$6:AC$8765)*($AK$6:$AK$8765)*($AJ$6:$AJ$8765)) -> 0 | AZ29: =SUM(($V$6:$V$8765>=$AR29)*($V$6:$V$8765<$AS29)*(AD$6:AD$8765)*($AK$6:$AK$8765)*($AJ$6:$AJ$8765)) -> 0 | BB29: 30 | BC29: 35 | BD29: 0 | BE29: 0 | BF29: 0 | BG29: 0 | BH29: 0 | BI29: 0 | BJ29: 0 | BL29: 30 | BM29: 35 | BN29: 0 | BO29: =SUM(($V$6:$V$8765>=$BB29)*($V$6:$V$8765<$BC29)*(Y$6:Y$8765)) -> 0 | BP29: =SUM(($V$6:$V$8765>=$BB29)*($V$6:$V$8765<$BC29)*(Z$6:Z$8765)) -> 0 | BQ29: =SUM(($V$6:$V$8765>=$BB29)*($V$6:$V$8765<$BC29)*(AA$6:AA$8765)) -> 0 | BR29: =SUM(($V$6:$V$8765>=$BB29)*($V$6:$V$8765<$BC29)*(AB$6:AB$8765)) -> 0 | BS29: =SUM(($V$6:$V$8765>=$BB29)*($V$6:$V$8765<$BC29)*(AC$6:AC$8765)) -> 0 | BT29: =SUM(($V$6:$V$8765>=$BB29)*($V$6:$V$8765<$BC29)*(AD$6:AD$8765)) -> 0 | BV29: 32.63817985 | BW29: 29.54717093 | BX29: 10.72897282 | BY29: 16 | BZ29: 32.63817985 | CA29: 29.54717093 | CB29: 10.72897282
A30: 1976-01-02 | B30: 1 | C30: 2 | D30: 2018 | E30: 2018-01-02 | F30: 2 | G30: 0 | H30: 01:00:00 | I30: 1 | J30: -20.92 | K30: 8.96 | L30: 24.8 | M30: 12.2 | N30: -16.96 | O30: 14 | P30: -14.8 | Q30: 19.4 | R30: 11.3 | S30: 14 | T30: 30.02 | V30: 0 | Y30: 0 | Z30: 1 | AA30: 0 | AB30: 0 | AC30: 0 | AD30: 0 | AE30: 1 | AF30: 1 | AG30: 1 | AH30: 0 | AI30: 1 | AJ30: 1 | AK30: 0 | AM30: Peak Hrs | AN30: 13 | AO30: 17 | AR30: 25 | AS30: 30 | AT30: 0 | AU30: =SUM(($V$6:$V$8765>=$AR30)*($V$6:$V$8765<$AS30)*(Y$6:Y$8765)*($AK$6:$AK$8765)*($AJ$6:$AJ$8765)) -> 0 | AV30: =SUM(($V$6:$V$8765>=$AR30)*($V$6:$V$8765<$AS30)*(Z$6:Z$8765)*($AK$6:$AK$8765)*($AJ$6:$AJ$8765)) -> 0 | AW30: =SUM(($V$6:$V$8765>=$AR30)*($V$6:$V$8765<$AS30)*(AA$6:AA$8765)*($AK$6:$AK$8765)*($AJ$6:$AJ$8765)) -> 0 | AX30: =SUM(($V$6:$V$8765>=$AR30)*($V$6:$V$8765<$AS30)*(AB$6:AB$8765)*($AK$6:$AK$8765)*($AJ$6:$AJ$8765)) -> 0 | AY30: =SUM(($V$6:$V$8765>=$AR30)*($V$6:$V$8765<$AS30)*(AC$6:AC$8765)*($AK$6:$AK$8765)*($AJ$6:$AJ$8765)) -> 0 | AZ30: =SUM(($V$6:$V$8765>=$AR30)*($V$6:$V$8765<$AS30)*(AD$6:AD$8765)*($AK$6:$AK$8765)*($AJ$6:$AJ$8765)) -> 0 | BB30: 25 | BC30: 30 | BD30: 0 | BE30: 0 | BF30: 0 | BG30: 0 | BH30: 0 | BI30: 0 | BJ30: 0 | BL30: 25 | BM30: 30 | BN30: 0 | BO30: =SUM(($V$6:$V$8765>=$BB30)*($V$6:$V$8765<$BC30)*(Y$6:Y$8765)) -> 0 | BP30: =SUM(($V$6:$V$8765>=$BB30)*($V$6:$V$8765<$BC30)*(Z$6:Z$8765)) -> 0 | BQ30: =SUM(($V$6:$V$8765>=$BB30)*($V$6:$V$8765<$BC30)*(AA$6:AA$8765)) -> 0 | BR30: =SUM(($V$6:$V$8765>=$BB30)*($V$6:$V$8765<$BC30)*(AB$6:AB$8765)) -> 0 | BS30: =SUM(($V$6:$V$8765>=$BB30)*($V$6:$V$8765<$BC30)*(AC$6:AC$8765)) -> 0 | BT30: =SUM(($V$6:$V$8765>=$BB30)*($V$6:$V$8765<$BC30)*(AD$6:AD$8765)) -> 0 | BV30: 27.52926465 | BW30: 24.65271739 | BX30: 8.804130548 | BY30: 17 | BZ30: 27.52926465 | CA30: 24.65271739 | CB30: 8.804130548
A31: 1976-01-02 | B31: 1 | C31: 2 | D31: 2018 | E31: 2018-01-02 | F31: 2 | G31: 0 | H31: 02:00:00 | I31: 2 | J31: -23.98 | K31: 8.96 | L31: 24.8 | M31: 11.3 | N31: -13 | O31: 14 | P31: -14.8 | Q31: 17.6 | R31: 10.4 | S31: 12.92 | T31: 30.02 | V31: 0 | Y31: 0 | Z31: 1 | AA31: 0 | AB31: 0 | AC31: 0 | AD31: 0 | AE31: 1 | AF31: 1 | AG31: 1 | AH31: 0 | AI31: 1 | AJ31: 1 | AK31: 0 | AR31: 20 | AS31: 25 | AT31: 0 | AU31: =SUM(($V$6:$V$8765>=$AR31)*($V$6:$V$8765<$AS31)*(Y$6:Y$8765)*($AK$6:$AK$8765)*($AJ$6:$AJ$8765)) -> 0 | AV31: =SUM(($V$6:$V$8765>=$AR31)*($V$6:$V$8765<$AS31)*(Z$6:Z$8765)*($AK$6:$AK$8765)*($AJ$6:$AJ$8765)) -> 0 | AW31: =SUM(($V$6:$V$8765>=$AR31)*($V$6:$V$8765<$AS31)*(AA$6:AA$8765)*($AK$6:$AK$8765)*($AJ$6:$AJ$8765)) -> 0 | AX31: =SUM(($V$6:$V$8765>=$AR31)*($V$6:$V$8765<$AS31)*(AB$6:AB$8765)*($AK$6:$AK$8765)*($AJ$6:$AJ$8765)) -> 0 | AY31: =SUM(($V$6:$V$8765>=$AR31)*($V$6:$V$8765<$AS31)*(AC$6:AC$8765)*($AK$6:$AK$8765)*($AJ$6:$AJ$8765)) -> 0 | AZ31: =SUM(($V$6:$V$8765>=$AR31)*($V$6:$V$8765<$AS31)*(AD$6:AD$8765)*($AK$6:$AK$8765)*($AJ$6:$AJ$8765)) -> 0 | BB31: 20 | BC31: 25 | BD31: 0 | BE31: 0 | BF31: 0 | BG31: 0 | BH31: 0 | BI31: 0 | BJ31: 0 | BL31: 20 | BM31: 25 | BN31: 0 | BO31: =SUM(($V$6:$V$8765>=$BB31)*($V$6:$V$8765<$BC31)*(Y$6:Y$8765)) -> 0 | BP31: =SUM(($V$6:$V$8765>=$BB31)*($V$6:$V$8765<$BC31)*(Z$6:Z$8765)) -> 0 | BQ31: =SUM(($V$6:$V$8765>=$BB31)*($V$6:$V$8765<$BC31)*(AA$6:AA$8765)) -> 0 | BR31: =SUM(($V$6:$V$8765>=$BB31)*($V$6:$V$8765<$BC31)*(AB$6:AB$8765)) -> 0 | BS31: =SUM(($V$6:$V$8765>=$BB31)*($V$6:$V$8765<$BC31)*(AC$6:AC$8765)) -> 0 | BT31: =SUM(($V$6:$V$8765>=$BB31)*($V$6:$V$8765<$BC31)*(AD$6:AD$8765)) -> 0 | BV31: 22.99811148 | BW31: 20.38330666 | BX31: 7.246164548 | BY31: 18 | BZ31: 22.99811148 | CA31: 20.38330666 | CB31: 7.246164548
A32: 1976-01-02 | B32: 1 | C32: 2 | D32: 2018 | E32: 2018-01-02 | F32: 2 | G32: 0 | H32: 03:00:00 | I32: 3 | J32: -27.04 | K32: 8.96 | L32: 24.8 | M32: 10.4 | N32: -16.06 | O32: 14 | P32: -14.8 | Q32: 19.4 | R32: 10.22 | S32: 12.2 | T32: 30.02 | V32: 0 | Y32: 0 | Z32: 1 | AA32: 0 | AB32: 0 | AC32: 0 | AD32: 0 | AE32: 1 | AF32: 1 | AG32: 1 | AH32: 0 | AI32: 1 | AJ32: 1 | AK32: 0 | AM32: Standard US Holidays 2018 | AR32: 15 | AS32: 20 | AT32: 0 | AU32: =SUM(($V$6:$V$8765>=$AR32)*($V$6:$V$8765<$AS32)*(Y$6:Y$8765)*($AK$6:$AK$8765)*($AJ$6:$AJ$8765)) -> 0 | AV32: =SUM(($V$6:$V$8765>=$AR32)*($V$6:$V$8765<$AS32)*(Z$6:Z$8765)*($AK$6:$AK$8765)*($AJ$6:$AJ$8765)) -> 0 | AW32: =SUM(($V$6:$V$8765>=$AR32)*($V$6:$V$8765<$AS32)*(AA$6:AA$8765)*($AK$6:$AK$8765)*($AJ$6:$AJ$8765)) -> 0 | AX32: =SUM(($V$6:$V$8765>=$AR32)*($V$6:$V$8765<$AS32)*(AB$6:AB$8765)*($AK$6:$AK$8765)*($AJ$6:$AJ$8765)) -> 0 | AY32: =SUM(($V$6:$V$8765>=$AR32)*($V$6:$V$8765<$AS32)*(AC$6:AC$8765)*($AK$6:$AK$8765)*($AJ$6:$AJ$8765)) -> 0 | AZ32: =SUM(($V$6:$V$8765>=$AR32)*($V$6:$V$8765<$AS32)*(AD$6:AD$8765)*($AK$6:$AK$8765)*($AJ$6:$AJ$8765)) -> 0 | BB32: 15 | BC32: 20 | BD32: 0 | BE32: 0 | BF32: 0 | BG32: 0 | BH32: 0 | BI32: 0 | BJ32: 0 | BL32: 15 | BM32: 20 | BN32: 0 | BO32: =SUM(($V$6:$V$8765>=$BB32)*($V$6:$V$8765<$BC32)*(Y$6:Y$8765)) -> 0 | BP32: =SUM(($V$6:$V$8765>=$BB32)*($V$6:$V$8765<$BC32)*(Z$6:Z$8765)) -> 0 | BQ32: =SUM(($V$6:$V$8765>=$BB32)*($V$6:$V$8765<$BC32)*(AA$6:AA$8765)) -> 0 | BR32: =SUM(($V$6:$V$8765>=$BB32)*($V$6:$V$8765<$BC32)*(AB$6:AB$8765)) -> 0 | BS32: =SUM(($V$6:$V$8765>=$BB32)*($V$6:$V$8765<$BC32)*(AC$6:AC$8765)) -> 0 | BT32: =SUM(($V$6:$V$8765>=$BB32)*($V$6:$V$8765<$BC32)*(AD$6:AD$8765)) -> 0 | BV32: 17.80851033 | BW32: 15.4208658 | BX32: 5.549048413 | BY32: 19 | BZ32: 17.80851033 | CA32: 15.4208658 | CB32: 5.549048413
A33: 1976-01-02 | B33: 1 | C33: 2 | D33: 2018 | E33: 2018-01-02 | F33: 2 | G33: 0 | H33: 04:00:00 | I33: 4 | J33: -25.06 | K33: 3.92 | L33: 26.6 | M33: 8.6 | N33: -23.08 | O33: 12.92 | P33: -14.8 | Q33: 24.8 | R33: 8.96 | S33: 12.2 | T33: 30.02 | V33: 0 | Y33: 0 | Z33: 1 | AA33: 0 | AB33: 0 | AC33: 0 | AD33: 0 | AE33: 1 | AF33: 1 | AG33: 1 | AH33: 0 | AI33: 1 | AJ33: 1 | AK33: 0 | AM33: Date | AN33: Holiday | AR33: 10 | AS33: 15 | AT33: 0 | AU33: =SUM(($V$6:$V$8765>=$AR33)*($V$6:$V$8765<$AS33)*(Y$6:Y$8765)*($AK$6:$AK$8765)*($AJ$6:$AJ$8765)) -> 0 | AV33: =SUM(($V$6:$V$8765>=$AR33)*($V$6:$V$8765<$AS33)*(Z$6:Z$8765)*($AK$6:$AK$8765)*($AJ$6:$AJ$8765)) -> 0 | AW33: =SUM(($V$6:$V$8765>=$AR33)*($V$6:$V$8765<$AS33)*(AA$6:AA$8765)*($AK$6:$AK$8765)*($AJ$6:$AJ$8765)) -> 0 | AX33: =SUM(($V$6:$V$8765>=$AR33)*($V$6:$V$8765<$AS33)*(AB$6:AB$8765)*($AK$6:$AK$8765)*($AJ$6:$AJ$8765)) -> 0 | AY33: =SUM(($V$6:$V$8765>=$AR33)*($V$6:$V$8765<$AS33)*(AC$6:AC$8765)*($AK$6:$AK$8765)*($AJ$6:$AJ$8765)) -> 0 | AZ33: =SUM(($V$6:$V$8765>=$AR33)*($V$6:$V$8765<$AS33)*(AD$6:AD$8765)*($AK$6:$AK$8765)*($AJ$6:$AJ$8765)) -> 0 | BB33: 10 | BC33: 15 | BD33: 0 | BE33: 0 | BF33: 0 | BG33: 0 | BH33: 0 | BI33: 0 | BJ33: 0 | BL33: 10 | BM33: 15 | BN33: 0 | BO33: =SUM(($V$6:$V$8765>=$BB33)*($V$6:$V$8765<$BC33)*(Y$6:Y$8765)) -> 0 | BP33: =SUM(($V$6:$V$8765>=$BB33)*($V$6:$V$8765<$BC33)*(Z$6:Z$8765)) -> 0 | BQ33: =SUM(($V$6:$V$8765>=$BB33)*($V$6:$V$8765<$BC33)*(AA$6:AA$8765)) -> 0 | BR33: =SUM(($V$6:$V$8765>=$BB33)*($V$6:$V$8765<$BC33)*(AB$6:AB$8765)) -> 0 | BS33: =SUM(($V$6:$V$8765>=$BB33)*($V$6:$V$8765<$BC33)*(AC$6:AC$8765)) -> 0 | BT33: =SUM(($V$6:$V$8765>=$BB33)*($V$6:$V$8765<$BC33)*(AD$6:AD$8765)) -> 0 | BV33: 12.26993113 | BW33: 10.31826491 | BX33: 3.908282492 | BY33: 20 | BZ33: 12.26993113 | CA33: 10.31826491 | CB33: 3.908282492
A34: 1976-01-02 | B34: 1 | C34: 2 | D34: 2018 | E34: 2018-01-02 | F34: 2 | G34: 0 | H34: 05:00:00 | I34: 5 | J34: -16.06 | K34: 3.92 | L34: 24.8 | M34: 8.6 | N34: -23.08 | O34: 12.92 | P34: -14.8 | Q34: 23 | R34: 1.94 | S34: 11.48 | T34: 28.4 | V34: 0 | Y34: 0 | Z34: 1 | AA34: 0 | AB34: 0 | AC34: 0 | AD34: 0 | AE34: 1 | AF34: 1 | AG34: 1 | AH34: 0 | AI34: 1 | AJ34: 1 | AK34: 0 | AM34: 2018-01-01 | AN34: New Years Day | AR34: 5 | AS34: 10 | AT34: 0 | AU34: =SUM(($V$6:$V$8765>=$AR34)*($V$6:$V$8765<$AS34)*(Y$6:Y$8765)*($AK$6:$AK$8765)*($AJ$6:$AJ$8765)) -> 0 | AV34: =SUM(($V$6:$V$8765>=$AR34)*($V$6:$V$8765<$AS34)*(Z$6:Z$8765)*($AK$6:$AK$8765)*($AJ$6:$AJ$8765)) -> 0 | AW34: =SUM(($V$6:$V$8765>=$AR34)*($V$6:$V$8765<$AS34)*(AA$6:AA$8765)*($AK$6:$AK$8765)*($AJ$6:$AJ$8765)) -> 0 | AX34: =SUM(($V$6:$V$8765>=$AR34)*($V$6:$V$8765<$AS34)*(AB$6:AB$8765)*($AK$6:$AK$8765)*($AJ$6:$AJ$8765)) -> 0 | AY34: =SUM(($V$6:$V$8765>=$AR34)*($V$6:$V$8765<$AS34)*(AC$6:AC$8765)*($AK$6:$AK$8765)*($AJ$6:$AJ$8765)) -> 0 | AZ34: =SUM(($V$6:$V$8765>=$AR34)*($V$6:$V$8765<$AS34)*(AD$6:AD$8765)*($AK$6:$AK$8765)*($AJ$6:$AJ$8765)) -> 0 | BB34: 5 | BC34: 10 | BD34: 0 | BE34: 0 | BF34: 0 | BG34: 0 | BH34: 0 | BI34: 0 | BJ34: 0 | BL34: 5 | BM34: 10 | BN34: 0 | BO34: =SUM(($V$6:$V$8765>=$BB34)*($V$6:$V$8765<$BC34)*(Y$6:Y$8765)) -> 0 | BP34: =SUM(($V$6:$V$8765>=$BB34)*($V$6:$V$8765<$BC34)*(Z$6:Z$8765)) -> 0 | BQ34: =SUM(($V$6:$V$8765>=$BB34)*($V$6:$V$8765<$BC34)*(AA$6:AA$8765)) -> 0 | BR34: =SUM(($V$6:$V$8765>=$BB34)*($V$6:$V$8765<$BC34)*(AB$6:AB$8765)) -> 0 | BS34: =SUM(($V$6:$V$8765>=$BB34)*($V$6:$V$8765<$BC34)*(AC$6:AC$8765)) -> 0 | BT34: =SUM(($V$6:$V$8765>=$BB34)*($V$6:$V$8765<$BC34)*(AD$6:AD$8765)) -> 0 | BV34: 7.313758137 | BW34: 5.705238245 | BX34: 2.501941842 | BY34: 21 | BZ34: 7.313758137 | CA34: 5.705238245 | CB34: 2.501941842
A35: 1976-01-02 | B35: 1 | C35: 2 | D35: 2018 | E35: 2018-01-02 | F35: 2 | G35: 0 | H35: 06:00:00 | I35: 6 | J35: -20.92 | K35: -2.02 | L35: 24.8 | M35: 8.6 | N35: -20.02 | O35: 12.02 | P35: -14.8 | Q35: 19.04 | R35: -0.94 | S35: 12.38 | T35: 26.96 | V35: 0 | Y35: 0 | Z35: 1 | AA35: 0 | AB35: 0 | AC35: 0 | AD35: 0 | AE35: 1 | AF35: 1 | AG35: 1 | AH35: 0 | AI35: 1 | AJ35: 1 | AK35: 0 | AM35: 2018-01-15 | AN35: MLK Day | AR35: 0 | AS35: 5 | AT35: 0 | AU35: =SUM(($V$6:$V$8765>=$AR35)*($V$6:$V$8765<$AS35)*(Y$6:Y$8765)*($AK$6:$AK$8765)*($AJ$6:$AJ$8765)) -> 0 | AV35: =SUM(($V$6:$V$8765>=$AR35)*($V$6:$V$8765<$AS35)*(Z$6:Z$8765)*($AK$6:$AK$8765)*($AJ$6:$AJ$8765)) -> 0 | AW35: =SUM(($V$6:$V$8765>=$AR35)*($V$6:$V$8765<$AS35)*(AA$6:AA$8765)*($AK$6:$AK$8765)*($AJ$6:$AJ$8765)) -> 0 | AX35: =SUM(($V$6:$V$8765>=$AR35)*($V$6:$V$8765<$AS35)*(AB$6:AB$8765)*($AK$6:$AK$8765)*($AJ$6:$AJ$8765)) -> 0 | AY35: =SUM(($V$6:$V$8765>=$AR35)*($V$6:$V$8765<$AS35)*(AC$6:AC$8765)*($AK$6:$AK$8765)*($AJ$6:$AJ$8765)) -> 0 | AZ35: =SUM(($V$6:$V$8765>=$AR35)*($V$6:$V$8765<$AS35)*(AD$6:AD$8765)*($AK$6:$AK$8765)*($AJ$6:$AJ$8765)) -> 0 | BB35: 0 | BC35: 5 | BD35: 8760 | BE35: 2672 | BF35: 3160 | BG35: 1344 | BH35: 1584 | BI35: 88 | BJ35: 264 | BL35: 0 | BM35: 5 | BN35: 8760 | BO35: =SUM(($V$6:$V$8765>=$BB35)*($V$6:$V$8765<$BC35)*(Y$6:Y$8765)) -> 2672 | BP35: =SUM(($V$6:$V$8765>=$BB35)*($V$6:$V$8765<$BC35)*(Z$6:Z$8765)) -> 3160 | BQ35: =SUM(($V$6:$V$8765>=$BB35)*($V$6:$V$8765<$BC35)*(AA$6:AA$8765)) -> 1344 | BR35: =SUM(($V$6:$V$8765>=$BB35)*($V$6:$V$8765<$BC35)*(AB$6:AB$8765)) -> 1584 | BS35: =SUM(($V$6:$V$8765>=$BB35)*($V$6:$V$8765<$BC35)*(AC$6:AC$8765)) -> 88 | BT35: =SUM(($V$6:$V$8765>=$BB35)*($V$6:$V$8765<$BC35)*(AD$6:AD$8765)) -> 264 | BV35: 2.611946184 | BW35: 1.269977006 | BX35: 1.20464779 | BY35: 22 | BZ35: 2.611946184 | CA35: 1.269977006 | CB35: 1.20464779
A36: 1976-01-02 | B36: 1 | C36: 2 | D36: 2018 | E36: 2018-01-02 | F36: 2 | G36: 0 | H36: 07:00:00 | I36: 7 | J36: -20.02 | K36: 1.94 | L36: 24.8 | M36: 10.4 | N36: -23.08 | O36: 10.04 | P36: -14.8 | Q36: 19.4 | R36: 1.04 | S36: 12.2 | T36: 24.98 | V36: 0 | Y36: 0 | Z36: 1 | AA36: 0 | AB36: 0 | AC36: 0 | AD36: 0 | AE36: 1 | AF36: 1 | AG36: 1 | AH36: 0 | AI36: 1 | AJ36: 1 | AK36: 0 | AM36: 2018-02-19 | AN36: Presidents Day | AR36: -5 | AS36: 0 | AT36: 0 | AU36: =SUM(($V$6:$V$8765>=$AR36)*($V$6:$V$8765<$AS36)*(Y$6:Y$8765)*($AK$6:$AK$8765)*($AJ$6:$AJ$8765)) -> 0 | AV36: =SUM(($V$6:$V$8765>=$AR36)*($V$6:$V$8765<$AS36)*(Z$6:Z$8765)*($AK$6:$AK$8765)*($AJ$6:$AJ$8765)) -> 0 | AW36: =SUM(($V$6:$V$8765>=$AR36)*($V$6:$V$8765<$AS36)*(AA$6:AA$8765)*($AK$6:$AK$8765)*($AJ$6:$AJ$8765)) -> 0 | AX36: =SUM(($V$6:$V$8765>=$AR36)*($V$6:$V$8765<$AS36)*(AB$6:AB$8765)*($AK$6:$AK$8765)*($AJ$6:$AJ$8765)) -> 0 | AY36: =SUM(($V$6:$V$8765>=$AR36)*($V$6:$V$8765<$AS36)*(AC$6:AC$8765)*($AK$6:$AK$8765)*($AJ$6:$AJ$8765)) -> 0 | AZ36: =SUM(($V$6:$V$8765>=$AR36)*($V$6:$V$8765<$AS36)*(AD$6:AD$8765)*($AK$6:$AK$8765)*($AJ$6:$AJ$8765)) -> 0 | BB36: -5 | BC36: 0 | BD36: 0 | BE36: 0 | BF36: 0 | BG36: 0 | BH36: 0 | BI36: 0 | BJ36: 0 | BL36: -5 | BM36: 0 | BN36: 0 | BO36: =SUM(($V$6:$V$8765>=$BB36)*($V$6:$V$8765<$BC36)*(Y$6:Y$8765)) -> 0 | BP36: =SUM(($V$6:$V$8765>=$BB36)*($V$6:$V$8765<$BC36)*(Z$6:Z$8765)) -> 0 | BQ36: =SUM(($V$6:$V$8765>=$BB36)*($V$6:$V$8765<$BC36)*(AA$6:AA$8765)) -> 0 | BR36: =SUM(($V$6:$V$8765>=$BB36)*($V$6:$V$8765<$BC36)*(AB$6:AB$8765)) -> 0 | BS36: =SUM(($V$6:$V$8765>=$BB36)*($V$6:$V$8765<$BC36)*(AC$6:AC$8765)) -> 0 | BT36: =SUM(($V$6:$V$8765>=$BB36)*($V$6:$V$8765<$BC36)*(AD$6:AD$8765)) -> 0 | BV36: -1.673139852 | BW36: -2.708331877 | BX36: 0.07939183282 | BY36: 23 | BZ36: -1.673139852 | CA36: -2.708331877 | CB36: 0.07939183282
A37: 1976-01-02 | B37: 1 | C37: 2 | D37: 2018 | E37: 2018-01-02 | F37: 2 | G37: 0 | H37: 08:00:00 | I37: 8 | J37: -20.92 | K37: 1.94 | L37: 23 | M37: 12.2 | N37: -23.98 | O37: 12.02 | P37: -11.2 | Q37: 24.08 | R37: 3.92 | S37: 13.28 | T37: 24.98 | V37: 0 | Y37: 1 | Z37: 0 | AA37: 0 | AB37: 0 | AC37: 0 | AD37: 0 | AE37: 1 | AF37: 1 | AG37: 1 | AH37: 0 | AI37: 1 | AJ37: 1 | AK37: 0 | AM37: 2018-05-28 | AN37: Memorial Day | AR37: -10 | AS37: -5 | AT37: 0 | AU37: =SUM(($V$6:$V$8765>=$AR37)*($V$6:$V$8765<$AS37)*(Y$6:Y$8765)*($AK$6:$AK$8765)*($AJ$6:$AJ$8765)) -> 0 | AV37: =SUM(($V$6:$V$8765>=$AR37)*($V$6:$V$8765<$AS37)*(Z$6:Z$8765)*($AK$6:$AK$8765)*($AJ$6:$AJ$8765)) -> 0 | AW37: =SUM(($V$6:$V$8765>=$AR37)*($V$6:$V$8765<$AS37)*(AA$6:AA$8765)*($AK$6:$AK$8765)*($AJ$6:$AJ$8765)) -> 0 | AX37: =SUM(($V$6:$V$8765>=$AR37)*($V$6:$V$8765<$AS37)*(AB$6:AB$8765)*($AK$6:$AK$8765)*($AJ$6:$AJ$8765)) -> 0 | AY37: =SUM(($V$6:$V$8765>=$AR37)*($V$6:$V$8765<$AS37)*(AC$6:AC$8765)*($AK$6:$AK$8765)*($AJ$6:$AJ$8765)) -> 0 | AZ37: =SUM(($V$6:$V$8765>=$AR37)*($V$6:$V$8765<$AS37)*(AD$6:AD$8765)*($AK$6:$AK$8765)*($AJ$6:$AJ$8765)) -> 0 | BB37: -10 | BC37: -5 | BD37: 0 | BE37: 0 | BF37: 0 | BG37: 0 | BH37: 0 | BI37: 0 | BJ37: 0 | BL37: -10 | BM37: -5 | BN37: 0 | BO37: =SUM(($V$6:$V$8765>=$BB37)*($V$6:$V$8765<$BC37)*(Y$6:Y$8765)) -> 0 | BP37: =SUM(($V$6:$V$8765>=$BB37)*($V$6:$V$8765<$BC37)*(Z$6:Z$8765)) -> 0 | BQ37: =SUM(($V$6:$V$8765>=$BB37)*($V$6:$V$8765<$BC37)*(AA$6:AA$8765)) -> 0 | BR37: =SUM(($V$6:$V$8765>=$BB37)*($V$6:$V$8765<$BC37)*(AB$6:AB$8765)) -> 0 | BS37: =SUM(($V$6:$V$8765>=$BB37)*($V$6:$V$8765<$BC37)*(AC$6:AC$8765)) -> 0 | BT37: =SUM(($V$6:$V$8765>=$BB37)*($V$6:$V$8765<$BC37)*(AD$6:AD$8765)) -> 0 | BV37: -6.572986509 | BW37: -7.2465936 | BX37: -1.168423365 | BY37: 24 | BZ37: -6.572986509 | CA37: -7.2465936 | CB37: -1.168423365
A38: 1976-01-02 | B38: 1 | C38: 2 | D38: 2018 | E38: 2018-01-02 | F38: 2 | G38: 0 | H38: 09:00:00 | I38: 9 | J38: -18.04 | K38: 10.94 | L38: 21.2 | M38: 12.2 | N38: -20.92 | O38: 14 | P38: -11.2 | Q38: 27.14 | R38: 6.26 | S38: 15.44 | T38: 24.98 | V38: 0 | Y38: 1 | Z38: 0 | AA38: 0 | AB38: 0 | AC38: 0 | AD38: 0 | AE38: 1 | AF38: 1 | AG38: 1 | AH38: 0 | AI38: 1 | AJ38: 1 | AK38: 0 | AM38: 2018-07-04 | AN38: Independence Day | AR38: -30 | AS38: -10 | AT38: 0 | AU38: =SUM(($V$6:$V$8765>=$AR38)*($V$6:$V$8765<$AS38)*(Y$6:Y$8765)*($AK$6:$AK$8765)*($AJ$6:$AJ$8765)) -> 0 | AV38: =SUM(($V$6:$V$8765>=$AR38)*($V$6:$V$8765<$AS38)*(Z$6:Z$8765)*($AK$6:$AK$8765)*($AJ$6:$AJ$8765)) -> 0 | AW38: =SUM(($V$6:$V$8765>=$AR38)*($V$6:$V$8765<$AS38)*(AA$6:AA$8765)*($AK$6:$AK$8765)*($AJ$6:$AJ$8765)) -> 0 | AX38: =SUM(($V$6:$V$8765>=$AR38)*($V$6:$V$8765<$AS38)*(AB$6:AB$8765)*($AK$6:$AK$8765)*($AJ$6:$AJ$8765)) -> 0 | AY38: =SUM(($V$6:$V$8765>=$AR38)*($V$6:$V$8765<$AS38)*(AC$6:AC$8765)*($AK$6:$AK$8765)*($AJ$6:$AJ$8765)) -> 0 | AZ38: =SUM(($V$6:$V$8765>=$AR38)*($V$6:$V$8765<$AS38)*(AD$6:AD$8765)*($AK$6:$AK$8765)*($AJ$6:$AJ$8765)) -> 0 | BB38: -30 | BC38: -10 | BD38: 0 | BE38: 0 | BF38: 0 | BG38: 0 | BH38: 0 | BI38: 0 | BJ38: 0 | BL38: -30 | BM38: -10 | BN38: 0 | BO38: =SUM(($V$6:$V$8765>=$BB38)*($V$6:$V$8765<$BC38)*(Y$6:Y$8765)) -> 0 | BP38: =SUM(($V$6:$V$8765>=$BB38)*($V$6:$V$8765<$BC38)*(Z$6:Z$8765)) -> 0 | BQ38: =SUM(($V$6:$V$8765>=$BB38)*($V$6:$V$8765<$BC38)*(AA$6:AA$8765)) -> 0 | BR38: =SUM(($V$6:$V$8765>=$BB38)*($V$6:$V$8765<$BC38)*(AB$6:AB$8765)) -> 0 | BS38: =SUM(($V$6:$V$8765>=$BB38)*($V$6:$V$8765<$BC38)*(AC$6:AC$8765)) -> 0 | BT38: =SUM(($V$6:$V$8765>=$BB38)*($V$6:$V$8765<$BC38)*(AD$6:AD$8765)) -> 0 | BV38: -15.32570353 | BW38: -15.70783821 | BX38: -3.405131816 | BY38: 25 | BZ38: -15.32570353 | CA38: -15.70783821 | CB38: -3.405131816
A39: 1976-01-02 | B39: 1 | C39: 2 | D39: 2018 | E39: 2018-01-02 | F39: 2 | G39: 0 | H39: 10:00:00 | I39: 10 | J39: -5.98 | K39: 17.96 | L39: 21.2 | M39: 14 | N39: -13 | O39: 19.04 | P39: -11.2 | Q39: 26.6 | R39: 10.04 | S39: 17.78 | T39: 26.6 | V39: 0 | Y39: 1 | Z39: 0 | AA39: 0 | AB39: 0 | AC39: 0 | AD39: 0 | AE39: 1 | AF39: 1 | AG39: 1 | AH39: 0 | AI39: 1 | AJ39: 1 | AK39: 0 | AM39: 2018-09-03 | AN39: Labor Day
A40: 1976-01-02 | B40: 1 | C40: 2 | D40: 2018 | E40: 2018-01-02 | F40: 2 | G40: 0 | H40: 11:00:00 | I40: 11 | J40: -0.04 | K40: 17.96 | L40: 21.2 | M40: 15.8 | N40: -7.96 | O40: 21.92 | P40: -11.2 | Q40: 28.04 | R40: 16.16 | S40: 22.28 | T40: 28.4 | V40: 0 | Y40: 1 | Z40: 0 | AA40: 0 | AB40: 0 | AC40: 0 | AD40: 0 | AE40: 1 | AF40: 1 | AG40: 1 | AH40: 0 | AI40: 1 | AJ40: 1 | AK40: 0 | AM40: 2018-10-08 | AN40: Columbus Day
A41: 1976-01-02 | B41: 1 | C41: 2 | D41: 2018 | E41: 2018-01-02 | F41: 2 | G41: 0 | H41: 12:00:00 | I41: 12 | J41: 1.04 | K41: 21.92 | L41: 21.2 | M41: 19.4 | N41: -2.02 | O41: 24.98 | P41: -11.2 | Q41: 27.14 | R41: 19.94 | S41: 25.34 | T41: 28.04 | V41: 0 | Y41: 1 | Z41: 0 | AA41: 0 | AB41: 0 | AC41: 0 | AD41: 0 | AE41: 1 | AF41: 1 | AG41: 1 | AH41: 0 | AI41: 1 | AJ41: 1 | AK41: 0 | AM41: 2018-11-12 | AN41: Veterans Day
A42: 1976-01-02 | B42: 1 | C42: 2 | D42: 2018 | E42: 2018-01-02 | F42: 2 | G42: 0 | H42: 13:00:00 | I42: 13 | J42: 3.02 | K42: 23 | L42: 21.2 | M42: 23 | N42: 3.92 | O42: 24.08 | P42: -13 | Q42: 26.06 | R42: 20.12 | S42: 24.26 | T42: 28.04 | V42: 0 | Y42: 1 | Z42: 0 | AA42: 0 | AB42: 0 | AC42: 0 | AD42: 0 | AE42: 1 | AF42: 1 | AG42: 1 | AH42: 0 | AI42: 1 | AJ42: 1 | AK42: 0 | AM42: 2018-11-22 | AN42: Thanksgiving | AS42: OA Drybulb | BG42: OA Drybulb | BU42: OA Drybulb
A43: 1976-01-02 | B43: 1 | C43: 2 | D43: 2018 | E43: 2018-01-02 | F43: 2 | G43: 0 | H43: 14:00:00 | I43: 14 | J43: 5 | K43: 23 | L43: 21.2 | M43: 21.2 | N43: 3.92 | O43: 24.08 | P43: -13 | Q43: 26.06 | R43: 20.12 | S43: 23.9 | T43: 24.98 | V43: 0 | Y43: 1 | Z43: 0 | AA43: 0 | AB43: 0 | AC43: 0 | AD43: 0 | AE43: 1 | AF43: 1 | AG43: 1 | AH43: 0 | AI43: 1 | AJ43: 1 | AK43: 0 | AM43: 2018-12-25 | AN43: Christmas | AS43: Bin Range | AU43: AVERAGE DRYBULB | BG43: Bin Range | BI43: AVERAGE WETBULB | BU43: Bin Range | BW43: AVERAGE BTU/LB
A44: 1976-01-02 | B44: 1 | C44: 2 | D44: 2018 | E44: 2018-01-02 | F44: 2 | G44: 0 | H44: 15:00:00 | I44: 15 | J44: 3.92 | K44: 21.02 | L44: 19.4 | M44: 21.2 | N44: 5 | O44: 24.98 | P44: -16.6 | Q44: 24.08 | R44: 18.86 | S44: 24.44 | T44: 23 | V44: 0 | Y44: 1 | Z44: 0 | AA44: 0 | AB44: 0 | AC44: 0 | AD44: 0 | AE44: 1 | AF44: 1 | AG44: 1 | AH44: 0 | AI44: 1 | AJ44: 1 | AK44: 0 | AS44: From | AT44: To | AU44: =J3 -> Berlin | AV44: Concord | AW44: Keene | AX44: Laconia | AY44: Lebanon | AZ44: Manchester | BA44: Mt. Washington | BB44: Nashua | BC44: Plymouth | BD44: Portsmouth | BE44: Rochester | BG44: From | BH44: To | BI44: =J3 -> Berlin | BJ44: Concord | BK44: Keene | BL44: Laconia | BM44: Lebanon | BN44: Manchester | BO44: Mt. Washington | BP44: Nashua | BQ44: Plymouth | BR44: Portsmouth | BS44: Rochester | BU44: From | BV44: To | BW44: =J3 -> Berlin | BX44: Concord | BY44: Keene | BZ44: Laconia | CA44: Lebanon | CB44: Manchester | CC44: Mt. Washington | CD44: Nashua | CE44: Plymouth | CF44: Portsmouth | CG44: Rochester
A45: 1976-01-02 | B45: 1 | C45: 2 | D45: 2018 | E45: 2018-01-02 | F45: 2 | G45: 0 | H45: 16:00:00 | I45: 16 | J45: 3.02 | K45: 19.94 | L45: 19.4 | M45: 17.6 | N45: 3.92 | O45: 23 | P45: -16.6 | Q45: 22.1 | R45: 17.42 | S45: 22.64 | T45: 21.02 | V45: 0 | Y45: 1 | Z45: 0 | AA45: 0 | AB45: 0 | AC45: 0 | AD45: 0 | AE45: 1 | AF45: 1 | AG45: 1 | AH45: 0 | AI45: 1 | AJ45: 1 | AK45: 0 | AM45: MA School Vacations 2018 | AS45: 100 | AT45: 105 | BG45: 100 | BH45: 105 | BU45: 100 | BV45: 105
A46: 1976-01-02 | B46: 1 | C46: 2 | D46: 2018 | E46: 2018-01-02 | F46: 2 | G46: 0 | H46: 17:00:00 | I46: 17 | J46: -2.02 | K46: 19.94 | L46: 15.8 | M46: 17.6 | N46: -0.94 | O46: 19.94 | P46: -18.4 | Q46: 19.04 | R46: 13.82 | S46: 20.48 | T46: 17.06 | V46: 0 | Y46: 1 | Z46: 0 | AA46: 0 | AB46: 0 | AC46: 0 | AD46: 0 | AE46: 1 | AF46: 1 | AG46: 1 | AH46: 0 | AI46: 1 | AJ46: 1 | AK46: 0 | AM46: Start | AN46: End | AS46: 95 | AT46: 100 | AV46: 95.216 | AZ46: 95.36 | BB46: 95.08181818 | BG46: 95 | BH46: 100 | BJ46: 75.59624949 | BN46: 74.62372835 | BP46: 73.38209798 | BU46: 95 | BV46: 100 | BX46: 38.96152703 | CB46: 37.9939947 | CD46: 36.81436645
A47: 1976-01-02 | B47: 1 | C47: 2 | D47: 2018 | E47: 2018-01-02 | F47: 2 | G47: 0 | H47: 18:00:00 | I47: 18 | J47: -5.98 | K47: 15.98 | L47: 14 | M47: 14 | N47: -2.92 | O47: 19.04 | P47: -13 | Q47: 16.16 | R47: 11.12 | S47: 18.5 | T47: 14 | V47: 0 | Y47: 1 | Z47: 0 | AA47: 0 | AB47: 0 | AC47: 1 | AD47: 0 | AE47: 1 | AF47: 1 | AG47: 1 | AH47: 0 | AI47: 1 | AJ47: 1 | AK47: 0 | AM47: 2018-02-19 | AN47: 2018-02-23 | AO47: Feb Vacation | AS47: 90 | AT47: 95 | AV47: 92.31674419 | AW47: 91.94 | AY47: 92.21529412 | AZ47: 92.34714286 | BB47: 92.10666667 | BC47: 91.28 | BD47: 91.868 | BE47: 92.05454545 | BG47: 90 | BH47: 95 | BJ47: 71.97122338 | BK47: 71.72949351 | BM47: 73.14939321 | BN47: 72.06282764 | BP47: 71.39263674 | BQ47: 73.92626973 | BR47: 75.3298964 | BS47: 73.73075484 | BU47: 90 | BV47: 95 | BX47: 35.56629804 | BY47: 35.35804312 | CA47: 36.67756925 | CB47: 35.68260312 | CD47: 35.11437514 | CE47: 37.37783681 | CF47: 38.75226504 | CG47: 37.20777299
A48: 1976-01-02 | B48: 1 | C48: 2 | D48: 2018 | E48: 2018-01-02 | F48: 2 | G48: 0 | H48: 19:00:00 | I48: 19 | J48: -5.08 | K48: 12.02 | L48: 12.2 | M48: 10.4 | N48: -0.94 | O48: 17.06 | P48: -2.2 | Q48: 12.02 | R48: 8.06 | S48: 15.98 | T48: 10.94 | V48: 0 | Y48: 1 | Z48: 0 | AA48: 0 | AB48: 0 | AC48: 1 | AD48: 0 | AE48: 1 | AF48: 1 | AG48: 1 | AH48: 0 | AI48: 1 | AJ48: 1 | AK48: 0 | AM48: 2018-04-16 | AN48: 2018-04-20 | AO48: April Vacation | AS48: 85 | AT48: 90 | AU48: 87.15276596 | AV48: 88.12946429 | AW48: 87.85842105 | AX48: 87.59 | AY48: 88.011875 | AZ48: 87.89722628 | BA48: 85.28 | BB48: 87.782 | BC48: 87.24888889 | BD48: 87.1925 | BE48: 87.89278351 | BG48: 85 | BH48: 90 | BI48: 71.36260999 | BJ48: 69.74954775 | BK48: 70.27203542 | BL48: 69.91530171 | BM48: 71.26484681 | BN48: 70.7488765 | BO48: 69.82992348 | BP48: 70.20850827 | BQ48: 69.26882442 | BR48: 73.76803014 | BS48: 72.47071175 | BU48: 85 | BV48: 90 | BW48: 35.12260477 | BX48: 33.7400453 | BY48: 34.17065308 | BZ48: 33.91398491 | CA48: 35.04814884 | CB48: 34.65422853 | CC48: 33.73066442 | CD48: 34.23724736 | CE48: 33.32394067 | CF48: 37.37818348 | CG48: 36.15384398
A49: 1976-01-02 | B49: 1 | C49: 2 | D49: 2018 | E49: 2018-01-02 | F49: 2 | G49: 0 | H49: 20:00:00 | I49: 20 | J49: -2.2 | K49: 12.02 | L49: 10.4 | M49: 8.6 | N49: -0.04 | O49: 12.92 | P49: -13 | Q49: 10.04 | R49: 5 | S49: 13.46 | T49: 8.06 | V49: 0 | Y49: 1 | Z49: 0 | AA49: 0 | AB49: 0 | AC49: 0 | AD49: 0 | AE49: 1 | AF49: 1 | AG49: 1 | AH49: 0 | AI49: 1 | AJ49: 1 | AK49: 0 | AM49: 2018-06-25 | AN49: 2018-09-05 | AO49: Summer Vacation | AS49: 80 | AT49: 85 | AU49: 82.06793103 | AV49: 82.29036364 | AW49: 82.19168539 | AX49: 82.02289593 | AY49: 82.12960699 | AZ49: 82.18891365 | BA49: 81.863 | BB49: 82.47421053 | BC49: 82.088 | BD49: 82.16972973 | BE49: 82.01834025 | BG49: 80 | BH49: 85 | BI49: 67.65346697 | BJ49: 67.1920646 | BK49: 67.59219907 | BL49: 67.74456575 | BM49: 67.99269318 | BN49: 67.07365984 | BO49: 68.56636334 | BP49: 67.56724503 | BQ49: 66.70414889 | BR49: 69.608053 | BS49: 68.90187018 | BU49: 80 | BV49: 85 | BW49: 32.10186768 | BX49: 31.75692295 | BY49: 32.05281377 | BZ49: 32.19380395 | CA49: 32.41152073 | CB49: 31.66651323 | CC49: 32.73392698 | CD49: 32.10379533 | CE49: 31.34728621 | CF49: 33.74739163 | CG49: 33.14288801
A50: 1976-01-02 | B50: 1 | C50: 2 | D50: 2018 | E50: 2018-01-02 | F50: 2 | G50: 0 | H50: 21:00:00 | I50: 21 | J50: -0.94 | K50: 6.08 | L50: 8.6 | M50: 5 | N50: -2.02 | O50: 10.04 | P50: -9.4 | Q50: 8.06 | R50: 3.2 | S50: 10.94 | T50: 6.08 | V50: 0 | Y50: 1 | Z50: 0 | AA50: 0 | AB50: 0 | AC50: 0 | AD50: 0 | AE50: 1 | AF50: 1 | AG50: 1 | AH50: 0 | AI50: 1 | AJ50: 1 | AK50: 0 | AM50: 2018-11-21 | AN50: 2018-11-23 | AO50: Thanksgiving Break | AS50: 75 | AT50: 80 | AU50: 77.09288462 | AV50: 76.93816471 | AW50: 76.84408451 | AX50: 76.81604396 | AY50: 76.76980769 | AZ50: 76.79109489 | BA50: 77.124 | BB50: 77.24687747 | BC50: 77.39908257 | BD50: 77.10864143 | BE50: 76.7417199 | BG50: 75 | BH50: 80 | BI50: 64.54980197 | BJ50: 64.20036358 | BK50: 64.37399943 | BL50: 64.14964754 | BM50: 65.13168267 | BN50: 65.03447119 | BO50: 66.26930131 | BP50: 65.16000542 | BQ50: 64.51452259 | BR50: 67.61502043 | BS50: 65.42306473 | BU50: 75 | BV50: 80 | BW50: 29.73555308 | BX50: 29.50950754 | BY50: 29.63409792 | BZ50: 29.42089722 | CA50: 30.18884469 | CB50: 30.14883654 | CC50: 31.02795019 | CD50: 30.25239949 | CE50: 29.66168369 | CF50: 32.10658156 | CG50: 30.40889302
A51: 1976-01-02 | B51: 1 | C51: 2 | D51: 2018 | E51: 2018-01-02 | F51: 2 | G51: 0 | H51: 22:00:00 | I51: 22 | J51: -0.04 | K51: 3.92 | L51: 6.8 | M51: 3.2 | N51: 1.04 | O51: 8.06 | P51: -9.4 | Q51: 7.16 | R51: 1.76 | S51: 7.88 | T51: 5 | V51: 0 | Y51: 1 | Z51: 0 | AA51: 0 | AB51: 0 | AC51: 0 | AD51: 0 | AE51: 1 | AF51: 1 | AG51: 1 | AH51: 0 | AI51: 1 | AJ51: 1 | AK51: 0 | AM51: 2018-12-24 | AN51: 2018-12-31 | AO51: Winter Break | AS51: 70 | AT51: 75 | AU51: 72.50136882 | AV51: 72.39296117 | AW51: 72.48632353 | AX51: 72.5039759 | AY51: 72.44040816 | AZ51: 72.41083179 | BA51: 72.39218045 | BB51: 72.50757515 | BC51: 72.55 | BD51: 72.3534334 | BE51: 72.49874419 | BG51: 70 | BH51: 75 | BI51: 62.65105596 | BJ51: 63.33744583 | BK51: 62.58932815 | BL51: 63.19650526 | BM51: 63.41971351 | BN51: 63.9160298 | BO51: 63.89699738 | BP51: 63.94665557 | BQ51: 62.4336531 | BR51: 65.72318277 | BS51: 64.53810781 | BU51: 70 | BV51: 75 | BW51: 28.35722706 | BX51: 28.93841771 | BY51: 28.36997181 | BZ51: 28.75074802 | CA51: 28.98320219 | CB51: 29.3178354 | CC51: 29.28022963 | CD51: 29.37506979 | CE51: 28.21772751 | CF51: 30.63424037 | CG51: 29.75084457
A52: 1976-01-02 | B52: 1 | C52: 2 | D52: 2018 | E52: 2018-01-02 | F52: 2 | G52: 0 | H52: 23:00:00 | I52: 23 | J52: 1.04 | K52: 3.92 | L52: 3.2 | M52: 3.2 | N52: -2.02 | O52: 6.08 | P52: -5.8 | Q52: 7.16 | R52: 0.5 | S52: 6.26 | T52: 5 | V52: 0 | Y52: 1 | Z52: 0 | AA52: 0 | AB52: 0 | AC52: 0 | AD52: 0 | AE52: 1 | AF52: 1 | AG52: 1 | AH52: 0 | AI52: 1 | AJ52: 1 | AK52: 0 | AS52: 65 | AT52: 70 | AU52: 67.8357047 | AV52: 68.00468886 | AW52: 67.91306667 | AX52: 67.94299606 | AY52: 67.83878505 | AZ52: 67.97704871 | BA52: 67.51840607 | BB52: 68.02450704 | BC52: 67.34047771 | BD52: 67.63130742 | BE52: 67.9471535 | BG52: 65 | BH52: 70 | BI52: 61.45766797 | BJ52: 61.47554825 | BK52: 61.35712861 | BL52: 61.73641486 | BM52: 61.70099207 | BN52: 60.88082907 | BO52: 62.06764961 | BP52: 61.64261285 | BQ52: 60.66247811 | BR52: 62.90545453 | BS52: 62.05786913 | BU52: 65 | BV52: 70 | BW52: 27.50996736 | BX52: 27.57020452 | BY52: 27.47188139 | BZ52: 27.71400421 | CA52: 27.69553392 | CB52: 27.13210836 | CC52: 27.98002944 | CD52: 27.69767636 | CE52: 26.98912764 | CF52: 28.56799289 | CG52: 27.94813768
A53: 1976-01-02 | B53: 1 | C53: 2 | D53: 2018 | E53: 2018-01-02 | F53: 2 | G53: 0 | H53: 1 | I53: 24 | J53: 1.94 | K53: 1.94 | L53: -0.4 | M53: 1.4 | N53: -2.92 | O53: 5 | P53: -0.4 | Q53: 6.08 | R53: 0.14 | S53: 4.64 | T53: 3.92 | V53: 0 | Y53: 0 | Z53: 1 | AA53: 0 | AB53: 0 | AC53: 0 | AD53: 0 | AE53: 1 | AF53: 1 | AG53: 1 | AH53: 0 | AI53: 1 | AJ53: 1 | AK53: 0 | AM53: Monthly/Seasonal Diversity | AS53: 60 | AT53: 65 | AU53: 62.37940426 | AV53: 62.56311656 | AW53: 62.52851367 | AX53: 62.6349658 | AY53: 62.56202439 | AZ53: 62.58531915 | BA53: 62.40264706 | BB53: 62.77568726 | BC53: 62.41747899 | BD53: 62.56213333 | BE53: 62.48428571 | BG53: 60 | BH53: 65 | BI53: 57.8609827 | BJ53: 56.80555273 | BK53: 56.65613311 | BL53: 56.7820254 | BM53: 56.89763739 | BN53: 56.28462079 | BO53: 57.9882677 | BP53: 56.78542618 | BQ53: 57.56883201 | BR53: 57.50765095 | BS53: 57.35311718 | BU53: 60 | BV53: 65 | BW53: 25.05913985 | BX53: 24.42797982 | BY53: 24.32803035 | BZ53: 24.38691056 | CA53: 24.45856747 | CB53: 24.09732821 | CC53: 25.17037121 | CD53: 24.41166689 | CE53: 24.89945003 | CF53: 24.86200047 | CG53: 24.75196387
A54: 1976-01-03 | B54: 1 | C54: 3 | D54: 2018 | E54: 2018-01-03 | F54: 3 | G54: 0 | H54: 01:00:00 | I54: 1 | J54: -2.02 | K54: 1.94 | L54: -2.2 | M54: 1.4 | N54: 3.02 | O54: 3.92 | P54: 3.2 | Q54: 6.08 | R54: 0.32 | S54: 3.92 | T54: 3.92 | V54: 0 | Y54: 0 | Z54: 1 | AA54: 0 | AB54: 0 | AC54: 0 | AD54: 0 | AE54: 1 | AF54: 1 | AG54: 1 | AH54: 0 | AI54: 1 | AJ54: 1 | AK54: 0 | AM54: Seasonal Variation Used? | AO54: =IF('Project Info'!I19='Project Info'!S103,"Yes", "No") -> No | AS54: 55 | AT54: 60 | AU54: 57.05505124 | AV54: 57.07521008 | AW54: 56.98433511 | AX54: 56.81876923 | AY54: 57.07105769 | AZ54: 56.86265912 | BA54: 57.38493902 | BB54: 57.24304348 | BC54: 57.56678261 | BD54: 57.30560626 | BE54: 57.01626113 | BG54: 55 | BH54: 60 | BI54: 53.50915776 | BJ54: 52.2875254 | BK54: 51.73462414 | BL54: 52.03426869 | BM54: 52.1060689 | BN54: 51.45152488 | BO54: 54.14817243 | BP54: 52.21999908 | BQ54: 53.96827535 | BR54: 52.87805359 | BS54: 52.22901252 | BU54: 55 | BV54: 60 | BW54: 22.32981233 | BX54: 21.64515297 | BY54: 21.31248715 | BZ54: 21.47978229 | CA54: 21.52242493 | CB54: 21.15960277 | CC54: 22.74609964 | CD54: 21.60117181 | CE54: 22.62471748 | CF54: 21.98058202 | CG54: 21.59618354
A55: 1976-01-03 | B55: 1 | C55: 3 | D55: 2018 | E55: 2018-01-03 | F55: 3 | G55: 0 | H55: 02:00:00 | I55: 2 | J55: 1.94 | K55: 1.94 | L55: -0.4 | M55: 1.4 | N55: -0.04 | O55: 3.92 | P55: 1.4 | Q55: 5 | R55: 0.32 | S55: 3.2 | T55: 3.02 | V55: 0 | Y55: 0 | Z55: 1 | AA55: 0 | AB55: 0 | AC55: 0 | AD55: 0 | AE55: 1 | AF55: 1 | AG55: 1 | AH55: 0 | AI55: 1 | AJ55: 1 | AK55: 0 | AS55: 50 | AT55: 55 | AU55: 52.28243017 | AV55: 52.15256637 | AW55: 52.28721805 | AX55: 52.23123288 | AY55: 52.08736377 | AZ55: 52.09771523 | BA55: 52.28297262 | BB55: 52.43760933 | BC55: 52.37371758 | BD55: 52.37939808 | BE55: 51.98046332 | BG55: 50 | BH55: 55 | BI55: 48.9139413 | BJ55: 47.98876329 | BK55: 47.55436269 | BL55: 47.36397639 | BM55: 48.01003579 | BN55: 46.68052163 | BO55: 49.85858753 | BP55: 47.16123699 | BQ55: 48.78927845 | BR55: 48.09685821 | BS55: 47.83288673 | BU55: 50 | BV55: 55 | BW55: 19.71776964 | BX55: 19.23021379 | BY55: 19.00377679 | BZ55: 18.88245143 | CA55: 19.23049347 | CB55: 18.53390451 | CC55: 20.2434252 | CD55: 18.79440445 | CE55: 19.65518296 | CF55: 19.28443899 | CG55: 19.1369809
A56: 1976-01-03 | B56: 1 | C56: 3 | D56: 2018 | E56: 2018-01-03 | F56: 3 | G56: 0 | H56: 03:00:00 | I56: 3 | J56: 3.92 | K56: -0.04 | L56: -0.4 | M56: 1.4 | N56: -0.04 | O56: 3.92 | P56: 1.4 | Q56: 4.1 | R56: 0.32 | S56: 2.84 | T56: 3.02 | V56: 0 | Y56: 0 | Z56: 1 | AA56: 0 | AB56: 0 | AC56: 0 | AD56: 0 | AE56: 1 | AF56: 1 | AG56: 1 | AH56: 0 | AI56: 1 | AJ56: 1 | AK56: 0 | AM56: Month | AN56: Usage Div. | AO56: Default | AS56: 45 | AT56: 50 | AU56: 47.51366142 | AV56: 47.50843931 | AW56: 47.49961759 | AX56: 47.18304348 | AY56: 47.45991886 | AZ56: 47.4661215 | BA56: 47.5666559 | BB56: 47.43805825 | BC56: 47.51139896 | BD56: 47.4662931 | BE56: 47.43766447 | BG56: 45 | BH56: 50 | BI56: 44.31819384 | BJ56: 43.34969056 | BK56: 43.43279302 | BL56: 42.44543739 | BM56: 43.15570281 | BN56: 42.54015527 | BO56: 44.82046549 | BP56: 43.00151232 | BQ56: 44.29988872 | BR56: 43.42376728 | BS56: 43.33176086 | BU56: 45 | BV56: 50 | BW56: 17.31457752 | BX56: 16.8378253 | BY56: 16.87375827 | BZ56: 16.38402841 | CA56: 16.74135423 | CB56: 16.43649803 | CC56: 17.57765972 | CD56: 16.67166224 | CE56: 17.30884131 | CF56: 16.86690826 | CG56: 16.82290238
A57: 1976-01-03 | B57: 1 | C57: 3 | D57: 2018 | E57: 2018-01-03 | F57: 3 | G57: 0 | H57: 04:00:00 | I57: 4 | J57: 3.92 | K57: 1.04 | L57: -0.4 | M57: 1.4 | N57: -2.92 | O57: 3.92 | P57: -0.4 | Q57: 4.1 | R57: 0.5 | S57: 2.3 | T57: 1.94 | V57: 0 | Y57: 0 | Z57: 1 | AA57: 0 | AB57: 0 | AC57: 0 | AD57: 0 | AE57: 1 | AF57: 1 | AG57: 1 | AH57: 0 | AI57: 1 | AJ57: 1 | AK57: 0 | AM57: 1 | AN57: =IF($AO$54="Yes",IF('Project Info'!M15="",AO57,'Project Info'!M15),1) -> 1 | AO57: 1 | AS57: 40 | AT57: 45 | AU57: 42.54030769 | AV57: 42.72419411 | AW57: 42.74861486 | AX57: 42.81148218 | AY57: 42.81433898 | AZ57: 42.73694079 | BA57: 42.58942857 | BB57: 42.64181818 | BC57: 42.59054545 | BD57: 42.44541724 | BE57: 42.8042464 | BG57: 40 | BH57: 45 | BI57: 39.07627566 | BJ57: 38.48942633 | BK57: 38.55005811 | BL57: 38.37681043 | BM57: 38.72037337 | BN57: 37.88980281 | BO57: 40.04579981 | BP57: 38.61441762 | BQ57: 39.82425122 | BR57: 38.54745388 | BS57: 38.80332031 | BU57: 40 | BV57: 45 | BW57: 14.80555935 | BX57: 14.54476653 | BY57: 14.56969992 | BZ57: 14.48573977 | CA57: 14.64921281 | CB57: 14.27496026 | CC57: 15.25694754 | CD57: 14.60168178 | CE57: 15.15347163 | CF57: 14.56836237 | CG57: 14.68252018
A58: 1976-01-03 | B58: 1 | C58: 3 | D58: 2018 | E58: 2018-01-03 | F58: 3 | G58: 0 | H58: 05:00:00 | I58: 5 | J58: 3.02 | K58: 1.04 | L58: -0.4 | M58: 3.2 | N58: -4 | O58: 3.92 | P58: 1.4 | Q58: 3.02 | R58: 1.22 | S58: 2.84 | T58: 1.04 | V58: 0 | Y58: 0 | Z58: 1 | AA58: 0 | AB58: 0 | AC58: 0 | AD58: 0 | AE58: 1 | AF58: 1 | AG58: 1 | AH58: 0 | AI58: 1 | AJ58: 1 | AK58: 0 | AM58: 2 | AN58: =IF($AO$54="Yes",IF('Project Info'!M16="",AO58,'Project Info'!M16),1) -> 1 | AO58: 1 | AS58: 35 | AT58: 40 | AU58: 37.13298396 | AV58: 37.3333564 | AW58: 37.43492537 | AX58: 37.45637243 | AY58: 37.09895833 | AZ58: 37.32429185 | BA58: 37.45116279 | BB58: 37.46255466 | BC58: 37.27854033 | BD58: 37.30667351 | BE58: 37.38369487 | BG58: 35 | BH58: 40 | BI58: 34.20664543 | BJ58: 33.57174743 | BK58: 33.74555447 | BL58: 33.78202229 | BM58: 33.60491749 | BN58: 33.12595917 | BO58: 35.23390947 | BP58: 33.78892281 | BQ58: 34.174569 | BR58: 33.86102145 | BS58: 33.8565071 | BU58: 35 | BV58: 40 | BW58: 12.66378709 | BX58: 12.3980785 | BY58: 12.46946139 | BZ58: 12.48370932 | CA58: 12.4105835 | CB58: 12.20970704 | CC58: 13.10626098 | CD58: 12.49072473 | CE58: 12.6532046 | CF58: 12.51956653 | CG58: 12.51749257
A59: 1976-01-03 | B59: 1 | C59: 3 | D59: 2018 | E59: 2018-01-03 | F59: 3 | G59: 0 | H59: 06:00:00 | I59: 6 | J59: -0.04 | K59: -2.92 | L59: -0.4 | M59: 3.2 | N59: -4 | O59: 1.94 | P59: 1.4 | Q59: 3.02 | R59: 1.76 | S59: 2.48 | T59: 1.04 | V59: 0 | Y59: 0 | Z59: 1 | AA59: 0 | AB59: 0 | AC59: 0 | AD59: 0 | AE59: 1 | AF59: 1 | AG59: 1 | AH59: 0 | AI59: 1 | AJ59: 1 | AK59: 0 | AM59: 3 | AN59: =IF($AO$54="Yes",IF('Project Info'!M17="",AO59,'Project Info'!M17),1) -> 1 | AO59: 1 | AS59: 30 | AT59: 35 | AU59: 32.66849711 | AV59: 32.57275862 | AW59: 32.5596929 | AX59: 32.52928765 | AY59: 32.49046763 | AZ59: 32.52411283 | BA59: 33.0113986 | BB59: 32.72935065 | BC59: 32.67130748 | BD59: 32.93942063 | BE59: 32.32368421 | BG59: 30 | BH59: 35 | BI59: 30.05252075 | BJ59: 29.30686784 | BK59: 29.34039995 | BL59: 29.19806108 | BM59: 29.48926129 | BN59: 28.98128816 | BO59: 30.99978878 | BP59: 29.29109284 | BQ59: 29.87031721 | BR59: 29.59006425 | BS59: 28.89921805 | BU59: 30 | BV59: 35 | BW59: 10.93148358 | BX59: 10.6310671 | BY59: 10.64728079 | BZ59: 10.58362612 | CA59: 10.70419285 | CB59: 10.50042775 | CC59: 11.32090854 | CD59: 10.63182809 | CE59: 10.85793477 | CF59: 10.74458625 | CG59: 10.46536515
A60: 1976-01-03 | B60: 1 | C60: 3 | D60: 2018 | E60: 2018-01-03 | F60: 3 | G60: 0 | H60: 07:00:00 | I60: 7 | J60: -5.08 | K60: -4 | L60: -0.4 | M60: 1.4 | N60: -5.98 | O60: 1.94 | P60: 1.4 | Q60: 3.02 | R60: 1.4 | S60: 2.48 | T60: 1.04 | V60: 0 | Y60: 0 | Z60: 1 | AA60: 0 | AB60: 0 | AC60: 0 | AD60: 0 | AE60: 1 | AF60: 1 | AG60: 1 | AH60: 0 | AI60: 1 | AJ60: 1 | AK60: 0 | AM60: 4 | AN60: =IF($AO$54="Yes",IF('Project Info'!M18="",AO60,'Project Info'!M18),1) -> 1 | AO60: 1 | AS60: 25 | AT60: 30 | AU60: 27.42646081 | AV60: 27.56897638 | AW60: 27.53365352 | AX60: 27.7550838 | AY60: 27.51650655 | AZ60: 27.66 | BA60: 27.41682759 | BB60: 27.45824324 | BC60: 27.41 | BD60: 27.57411765 | BE60: 27.50204159 | BG60: 25 | BH60: 30 | BI60: 25.00634843 | BJ60: 24.49408332 | BK60: 24.57079211 | BL60: 25.08440588 | BM60: 24.46673651 | BN60: 24.113491 | BO60: 25.73748126 | BP60: 24.14812853 | BQ60: 24.93251272 | BR60: 24.18554536 | BS60: 24.44036622 | BU60: 25 | BV60: 30 | BW60: 8.93250633 | BX60: 8.745359073 | BY60: 8.772646644 | BZ60: 8.96495555 | CA60: 8.735433228 | CB60: 8.601657043 | CC60: 9.210162029 | CD60: 8.618064942 | CE60: 8.909202739 | CF60: 8.632322758 | CG60: 8.723125695
A61: 1976-01-03 | B61: 1 | C61: 3 | D61: 2018 | E61: 2018-01-03 | F61: 3 | G61: 0 | H61: 08:00:00 | I61: 8 | J61: -7.06 | K61: -4 | L61: -0.4 | M61: 1.4 | N61: -2.02 | O61: 3.92 | P61: -0.4 | Q61: 2.12 | R61: 1.4 | S61: 3.2 | T61: 1.04 | V61: 0 | Y61: 1 | Z61: 0 | AA61: 0 | AB61: 0 | AC61: 0 | AD61: 0 | AE61: 1 | AF61: 1 | AG61: 1 | AH61: 0 | AI61: 1 | AJ61: 1 | AK61: 0 | AM61: 5 | AN61: =IF($AO$54="Yes",IF('Project Info'!M19="",AO61,'Project Info'!M19),1) -> 1 | AO61: 1 | AS61: 20 | AT61: 25 | AU61: 23.11185714 | AV61: 23.20881671 | AW61: 23.0412 | AX61: 23.145 | AY61: 23.03542334 | AZ61: 23.08868035 | BA61: 22.64767213 | BB61: 22.75408994 | BC61: 22.7293494 | BD61: 22.8446 | BE61: 23.37253731 | BG61: 20 | BH61: 25 | BI61: 21.06526069 | BJ61: 20.46301835 | BK61: 20.45325199 | BL61: 20.37837951 | BM61: 20.18469011 | BN61: 19.63089726 | BO61: 21.36890697 | BP61: 19.88419193 | BQ61: 20.28964344 | BR61: 19.82600371 | BS61: 20.67212931 | BU61: 20 | BV61: 25 | BW61: 7.484606628 | BX61: 7.274051642 | BY61: 7.270222342 | BZ61: 7.244262315 | CA61: 7.17487198 | CB61: 6.984895471 | CC61: 7.592698444 | CD61: 7.071615117 | CE61: 7.209766095 | CF61: 7.053047224 | CG61: 7.347772765
A62: 1976-01-03 | B62: 1 | C62: 3 | D62: 2018 | E62: 2018-01-03 | F62: 3 | G62: 0 | H62: 09:00:00 | I62: 9 | J62: -0.04 | K62: 3.02 | L62: -2.2 | M62: 3.2 | N62: 1.04 | O62: 6.98 | P62: 3.2 | Q62: 3.02 | R62: 0.86 | S62: 6.08 | T62: 1.94 | V62: 0 | Y62: 1 | Z62: 0 | AA62: 0 | AB62: 0 | AC62: 0 | AD62: 0 | AE62: 1 | AF62: 1 | AG62: 1 | AH62: 0 | AI62: 1 | AJ62: 1 | AK62: 0 | AM62: 6 | AN62: =IF($AO$54="Yes",IF('Project Info'!M20="",AO62,'Project Info'!M20),1) -> 1 | AO62: 1 | AS62: 15 | AT62: 20 | AU62: 17.84377953 | AV62: 17.93489614 | AW62: 17.93239617 | AX62: 17.87048128 | AY62: 17.8815508 | AZ62: 18.06757812 | BA62: 17.42863309 | BB62: 17.73686636 | BC62: 17.56216561 | BD62: 17.5177665 | BE62: 18.1175 | BG62: 15 | BH62: 20 | BI62: 15.89796814 | BJ62: 15.24501581 | BK62: 15.91125067 | BL62: 15.4937636 | BM62: 15.48874444 | BN62: 14.75782154 | BO62: 16.30486796 | BP62: 15.10890843 | BQ62: 15.62478877 | BR62: 14.35072795 | BS62: 15.44566646 | BU62: 15 | BV62: 20 | BW62: 5.70530681 | BX62: 5.49393788 | BY62: 5.710039117 | BZ62: 5.572063731 | CA62: 5.570132426 | CB62: 5.333985047 | CC62: 5.837218518 | CD62: 5.448321109 | CE62: 5.613012063 | CF62: 5.197237287 | CG62: 5.558278556
A63: 1976-01-03 | B63: 1 | C63: 3 | D63: 2018 | E63: 2018-01-03 | F63: 3 | G63: 0 | H63: 10:00:00 | I63: 10 | J63: 3.02 | K63: 8.06 | L63: -0.4 | M63: 6.8 | N63: 6.98 | O63: 10.94 | P63: 1.4 | Q63: 5 | R63: 3.02 | S63: 8.6 | T63: 3.02 | V63: 0 | Y63: 1 | Z63: 0 | AA63: 0 | AB63: 0 | AC63: 0 | AD63: 0 | AE63: 1 | AF63: 1 | AG63: 1 | AH63: 0 | AI63: 1 | AJ63: 1 | AK63: 0 | AM63: 7 | AN63: =IF($AO$54="Yes",IF('Project Info'!M21="",AO63,'Project Info'!M21),1) -> 1 | AO63: 1 | AS63: 10 | AT63: 15 | AU63: 12.14395604 | AV63: 12.005375 | AW63: 12.35130435 | AX63: 11.82119403 | AY63: 12.19426752 | AZ63: 12.44545455 | BA63: 12.17301708 | BB63: 12.35631579 | BC63: 12.55657143 | BD63: 12.76149254 | BE63: 12.16029412 | BG63: 10 | BH63: 15 | BI63: 10.50531716 | BJ63: 9.873927711 | BK63: 10.77006513 | BL63: 9.773030691 | BM63: 10.23342143 | BN63: 9.958624346 | BO63: 11.04584421 | BP63: 10.10220677 | BQ63: 10.6976391 | BR63: 10.44955562 | BS63: 10.09128187 | BU63: 10 | BV63: 15 | BW63: 3.964369294 | BX63: 3.770730723 | BY63: 4.047704781 | BZ63: 3.737974163 | CA63: 3.881371678 | CB63: 3.798932486 | CC63: 4.132955052 | CD63: 3.842697834 | CE63: 4.026845224 | CF63: 3.950225215 | CG63: 3.837300959
A64: 1976-01-03 | B64: 1 | C64: 3 | D64: 2018 | E64: 2018-01-03 | F64: 3 | G64: 0 | H64: 11:00:00 | I64: 11 | J64: 10.04 | K64: 8.06 | L64: 3.2 | M64: 8.6 | N64: 15.98 | O64: 15.08 | P64: 0.5 | Q64: 7.16 | R64: 6.62 | S64: 12.92 | T64: 5 | V64: 0 | Y64: 1 | Z64: 0 | AA64: 0 | AB64: 0 | AC64: 0 | AD64: 0 | AE64: 1 | AF64: 1 | AG64: 1 | AH64: 0 | AI64: 1 | AJ64: 1 | AK64: 0 | AM64: 8 | AN64: =IF($AO$54="Yes",IF('Project Info'!M22="",AO64,'Project Info'!M22),1) -> 1 | AO64: 1 | AS64: 5 | AT64: 10 | AU64: 7.1232 | AV64: 7.348275862 | AW64: 7.326666667 | AX64: 7.472954545 | AY64: 7.028521739 | AZ64: 7.16 | BA64: 7.163515625 | BB64: 7.212173913 | BC64: 7.912608696 | BD64: 7.476363636 | BE64: 7.227058824 | BG64: 5 | BH64: 10 | BI64: 5.821312687 | BJ64: 5.3994557 | BK64: 5.965783667 | BL64: 5.792533784 | BM64: 5.692061495 | BN64: 4.961359094 | BO64: 6.241071764 | BP64: 5.432007555 | BQ64: 6.457127923 | BR64: 5.484829047 | BS64: 5.510077976 | BU64: 5 | BV64: 10 | BW64: 2.534073227 | BX64: 2.412440178 | BY64: 2.577861763 | BZ64: 2.529287796 | CA64: 2.496368972 | CB64: 2.283901023 | CC64: 2.658745674 | CD64: 2.42096716 | CE64: 2.726021074 | CF64: 2.437827959 | CG64: 2.443865436
A65: 1976-01-03 | B65: 1 | C65: 3 | D65: 2018 | E65: 2018-01-03 | F65: 3 | G65: 0 | H65: 12:00:00 | I65: 12 | J65: 17.06 | K65: 15.08 | L65: 6.8 | M65: 14 | N65: 19.04 | O65: 17.96 | P65: -0.4 | Q65: 9.14 | R65: 9.14 | S65: 16.52 | T65: 8.06 | V65: 0 | Y65: 1 | Z65: 0 | AA65: 0 | AB65: 0 | AC65: 0 | AD65: 0 | AE65: 1 | AF65: 1 | AG65: 1 | AH65: 0 | AI65: 1 | AJ65: 1 | AK65: 0 | AM65: 9 | AN65: =IF($AO$54="Yes",IF('Project Info'!M23="",AO65,'Project Info'!M23),1) -> 1 | AO65: 1 | AS65: 0 | AT65: 5 | AU65: 2.510193548 | AV65: 2.752571429 | AW65: 2.454285714 | AX65: 2.374482759 | AY65: 2.66 | AZ65: 3.02 | BA65: 2.292677966 | BB65: 2.872307692 | BC65: 2.393033708 | BD65: 2.866470588 | BE65: 2.535384615 | BG65: 0 | BH65: 5 | BI65: 1.50119579 | BJ65: 1.294747457 | BK65: 1.632595637 | BL65: 0.8107316472 | BM65: 1.582025795 | BN65: 1.249065057 | BO65: 1.452695683 | BP65: 1.297212219 | BQ65: 1.131545232 | BR65: 1.040171711 | BS65: 0.9777608394 | BU65: 0 | BV65: 5 | BW65: 1.268453467 | BX65: 1.212589031 | BY65: 1.304606706 | BZ65: 1.074285295 | CA65: 1.292366622 | CB65: 1.20158625 | CC65: 1.253681655 | CD65: 1.213574659 | CE65: 1.165127556 | CF65: 1.142576787 | CG65: 1.12227766
A66: 1976-01-03 | B66: 1 | C66: 3 | D66: 2018 | E66: 2018-01-03 | F66: 3 | G66: 0 | H66: 13:00:00 | I66: 13 | J66: 19.94 | K66: 15.98 | L66: 6.8 | M66: 17.6 | N66: 21.92 | O66: 21.02 | P66: -1.3 | Q66: 10.04 | R66: 11.3 | S66: 19.58 | T66: 8.96 | V66: 0 | Y66: 1 | Z66: 0 | AA66: 0 | AB66: 0 | AC66: 0 | AD66: 0 | AE66: 1 | AF66: 1 | AG66: 1 | AH66: 0 | AI66: 1 | AJ66: 1 | AK66: 0 | AM66: 10 | AN66: =IF($AO$54="Yes",IF('Project Info'!M24="",AO66,'Project Info'!M24),1) -> 1 | AO66: 1 | AS66: -5 | AT66: 0 | AU66: -1.76016129 | AV66: -1.7572 | AW66: -1.721714286 | AX66: -1.673090909 | AY66: -1.921 | AZ66: -0.814 | BA66: -2.127862595 | BB66: -1.670588235 | BC66: -2.318421053 | BD66: -0.7825 | BE66: -1.858 | BG66: -5 | BH66: 0 | BI66: -2.614664056 | BJ66: -2.863856497 | BK66: -2.541647389 | BL66: -2.767269842 | BM66: -2.930290419 | BN66: -2.344290917 | BO66: -2.914284046 | BP66: -2.643752027 | BQ66: -3.255884486 | BR66: -2.21778039 | BS66: -2.697930583 | BU66: -5 | BV66: 0 | BW66: 0.1043220805 | BX66: 0.0371252744 | BY66: 0.1247398082 | BZ66: 0.06334155044 | CA66: 0.01750242892 | CB66: 0.1837753337 | CC66: 0.02091767268 | CD66: 0.09665221666 | CE66: -0.07284770465 | CF66: 0.2178838189 | CG66: 0.07989768123
A67: 1976-01-03 | B67: 1 | C67: 3 | D67: 2018 | E67: 2018-01-03 | F67: 3 | G67: 0 | H67: 14:00:00 | I67: 14 | J67: 24.98 | K67: 15.98 | L67: 8.6 | M67: 17.6 | N67: 21.02 | O67: 19.94 | P67: -2.2 | Q67: 11.12 | R67: 12.74 | S67: 21.2 | T67: 10.04 | V67: 0 | Y67: 1 | Z67: 0 | AA67: 0 | AB67: 0 | AC67: 0 | AD67: 0 | AE67: 1 | AF67: 1 | AG67: 1 | AH67: 0 | AI67: 1 | AJ67: 1 | AK67: 0 | AM67: 11 | AN67: =IF($AO$54="Yes",IF('Project Info'!M25="",AO67,'Project Info'!M25),1) -> 1 | AO67: 1 | AS67: -10 | AT67: -5 | AU67: -6.983278689 | AV67: -6.925 | AW67: -7.482307692 | AX67: -5.8 | AY67: -7.010344828 | BA67: -7.333947368 | BB67: -5.83 | BC67: -6.712 | BE67: -5.08 | BG67: -10 | BH67: -5 | BI67: -7.603655044 | BJ67: -7.503908572 | BK67: -7.968583287 | BL67: -6.808661727 | BM67: -7.808042948 | BO67: -7.992747675 | BP67: -6.350562081 | BQ67: -7.434039459 | BS67: -5.749141606 | BU67: -10 | BV67: -5 | BW67: -1.26464166 | BX67: -1.239255762 | BY67: -1.364681171 | BZ67: -1.048297973 | CA67: -1.318963063 | CC67: -1.369784935 | CD67: -0.9276886109 | CE67: -1.21955117 | CG67: -0.7629459438
A68: 1976-01-03 | B68: 1 | C68: 3 | D68: 2018 | E68: 2018-01-03 | F68: 3 | G68: 0 | H68: 15:00:00 | I68: 15 | J68: 26.06 | K68: 17.06 | L68: 8.6 | M68: 17.6 | N68: 19.94 | O68: 19.94 | P68: -4 | Q68: 10.04 | R68: 14.9 | S68: 22.1 | T68: 10.04 | V68: 0 | Y68: 1 | Z68: 0 | AA68: 0 | AB68: 0 | AC68: 0 | AD68: 0 | AE68: 1 | AF68: 1 | AG68: 1 | AH68: 0 | AI68: 1 | AJ68: 1 | AK68: 0 | AM68: 12 | AN68: =IF($AO$54="Yes",IF('Project Info'!M26="",AO68,'Project Info'!M26),1) -> 1 | AO68: 1 | AS68: -30 | AT68: -10 | AU68: -15.22136364 | AY68: -18.01096774 | BA68: -15.93448276 | BC68: -12.136 | BG68: -30 | BH68: -10 | BI68: -15.61587032 | BM68: -18.34662785 | BO68: -16.37353744 | BQ68: -12.49531723 | BU68: -30 | BV68: -10 | BW68: -3.382089052 | CA68: -4.091252424 | CC68: -3.574848057 | CE68: -2.572337729
A69: 1976-01-03 | B69: 1 | C69: 3 | D69: 2018 | E69: 2018-01-03 | F69: 3 | G69: 0 | H69: 16:00:00 | I69: 16 | J69: 26.96 | K69: 17.06 | L69: 8.6 | M69: 17.6 | N69: 19.04 | O69: 19.94 | P69: -5.8 | Q69: 10.04 | R69: 16.16 | S69: 19.4 | T69: 10.04 | V69: 0 | Y69: 1 | Z69: 0 | AA69: 0 | AB69: 0 | AC69: 0 | AD69: 0 | AE69: 1 | AF69: 1 | AG69: 1 | AH69: 0 | AI69: 1 | AJ69: 1 | AK69: 0
A70: 1976-01-03 | B70: 1 | C70: 3 | D70: =$AO$4 -> 2018 | E70: 2018-01-03 | F70: 3 | G70: =COUNTIF($AM$34:$AM$43,E70) -> 0 | H70: 17:00:00 | I70: 17 | J70: 10.04 | K70: 17.06 | L70: 8.6 | M70: 17.6 | N70: 10.04 | O70: 17.06 | P70: -5.8 | Q70: 8.06 | R70: 14.54 | S70: 17.24 | T70: 6.98 | V70: =SUMPRODUCT($J$2:$T$2,J70:T70) -> 0 | Y70: =OR(B70<=$AO$14,B70>=$AN$14)*(F70<6)*(I70>$AN$15)*(I70<=$AO$15)*(G70<>1) -> 1 | Z70: =OR(B70<=$AO$14,B70>=$AN$14)*(Y70=0) -> 0 | AA70: =AND(B70>=$AN$24,B70<=$AO$24)*(F70<6)*(I70>$AN$25)*(I70<=$AO$25)*(G70<>1) -> 0 | AB70: =AND(B70>=$AN$24,B70<=$AO$24)*(AA70=0) -> 0 | AC70: =OR(B70<=$AO$19,B70>=$AN$19)*(F70<6)*(I70>$AN$20)*(I70<=$AO$20) -> 0 | AD70: =AND(B70>=$AN$29,B70<=$AO$29)*(F70<6)*(I70>$AN$30)*(I70<=$AO$30) -> 0 | AE70: =IF(OR(E70=$AM$34,E70=$AM$35,E70=$AM$36,E70=$AM$37,E70=$AM$38,E70=$AM$39,E70=$AM$40,E70=$AM$41,E70=$AM$42,E70=$AM$43),0,1) -> 1 | AF70: 1 | AG70: =IF(OR(AND(E70>=$AM$47,E70<=$AN$47),AND(E70>=$AM$48,E70<=$AN$48),AND(E70>=$AM$49,E70<=$AN$49),AND(E70>=$AM$50,E70<=$AN$50),AND(E70>=$AM$51,E70<=$AN$51)),0,1)*AE70 -> 1 | AH70: =(B70>=5)*(B70<=10) -> 0 | AI70: =1*OR(B70<=4,B70>=11) -> 1 | AJ70: =LOOKUP(B70,$AM$57:$AM$68,$AN$57:$AN$68) -> 1 | AK70: =LOOKUP($AO$10,$AE$5:$AI$5,AE70:AI70)*((F70<6)*(I70>$AO$7)*(I70<=$AP$7)+(F70=6)*(I70>$AO$8)*(I70<=$AP$8)+(F70>=7)*(I70>$AO$9)*(I70<=$AP$9)) -> 0
A71: 1976-01-03 | B71: 1 | C71: 3 | D71: 2018 | E71: =DATE(D71,B71,C71) -> 2018-01-03 | F71: =WEEKDAY(E71,2) -> 3 | G71: 0 | H71: 18:00:00 | I71: 18 | J71: 1.94 | K71: 10.94 | L71: 6.8 | M71: 14 | N71: 8.06 | O71: 14 | P71: -5.8 | Q71: 7.16 | R71: 13.46 | S71: 16.88 | T71: 5 | V71: 0 | Y71: 1 | Z71: 0 | AA71: 0 | AB71: 0 | AC71: 1 | AD71: 0 | AE71: 1 | AF71: 1 | AG71: 1 | AH71: 0 | AI71: 1 | AJ71: 1 | AK71: 0
A72: 1976-01-03 | B72: 1 | C72: 3 | D72: 2018 | E72: 2018-01-03 | F72: 3 | G72: 0 | H72: 19:00:00 | I72: =H72*24 -> 19 | J72: -0.04 | K72: 5 | L72: -0.4 | M72: 10.4 | N72: 8.06 | O72: 14 | P72: -5.8 | Q72: 6.08 | R72: 8.24 | S72: 16.52 | T72: 3.92 | V72: 0 | Y72: 1 | Z72: 0 | AA72: 0 | AB72: 0 | AC72: 1 | AD72: 0 | AE72: 1 | AF72: 1 | AG72: 1 | AH72: 0 | AI72: 1 | AJ72: 1 | AK72: 0
A73: 1976-01-03 | B73: 1 | C73: 3 | D73: 2018 | E73: 2018-01-03 | F73: 3 | G73: 0 | H73: 20:00:00 | I73: 20 | J73: -2.92 | K73: 5 | L73: -0.4 | M73: 10.4 | N73: 5 | O73: 12.92 | P73: 4.1 | Q73: 4.1 | R73: 10.4 | S73: 16.52 | T73: 1.94 | V73: 0 | Y73: 1 | Z73: 0 | AA73: 0 | AB73: 0 | AC73: 0 | AD73: 0 | AE73: 1 | AF73: 1 | AG73: 1 | AH73: 0 | AI73: 1 | AJ73: 1 | AK73: 0
A74: 1976-01-03 | B74: 1 | C74: 3 | D74: 2018 | E74: 2018-01-03 | F74: 3 | G74: 0 | H74: 21:00:00 | I74: 21 | J74: -7.06 | K74: 3.92 | L74: -4 | M74: 8.6 | N74: 1.94 | O74: 12.92 | P74: -5.8 | Q74: -1.84 | R74: 7.52 | S74: 16.52 | T74: -0.94 | V74: 0 | Y74: 1 | Z74: 0 | AA74: 0 | AB74: 0 | AC74: 0 | AD74: 0 | AE74: 1 | AF74: 1 | AG74: 1 | AH74: 0 | AI74: 1 | AJ74: 1 | AK74: 0
A75: 1976-01-03 | B75: 1 | C75: 3 | D75: 2018 | E75: 2018-01-03 | F75: 3 | G75: 0 | H75: 22:00:00 | I75: 22 | J75: -2.92 | K75: 1.04 | L75: -5.8 | M75: 6.8 | N75: 8.06 | O75: 12.92 | P75: -4 | Q75: -0.94 | R75: 5.72 | S75: 14.54 | T75: -2.02 | V75: 0 | Y75: 1 | Z75: 0 | AA75: 0 | AB75: 0 | AC75: 0 | AD75: 0 | AE75: 1 | AF75: 1 | AG75: 1 | AH75: 0 | AI75: 1 | AJ75: 1 | AK75: 0
A76: 1976-01-03 | B76: 1 | C76: 3 | D76: 2018 | E76: 2018-01-03 | F76: 3 | G76: 0 | H76: 23:00:00 | I76: 23 | J76: -4 | K76: 1.04 | L76: -7.6 | M76: 10.4 | N76: 6.98 | O76: 10.94 | P76: -2.2 | Q76: -5.98 | R76: 1.58 | S76: 12.56 | T76: -2.92 | V76: 0 | Y76: 1 | Z76: 0 | AA76: 0 | AB76: 0 | AC76: 0 | AD76: 0 | AE76: 1 | AF76: 1 | AG76: 1 | AH76: 0 | AI76: 1 | AJ76: 1 | AK76: 0
A77: 1976-01-03 | B77: 1 | C77: 3 | D77: 2018 | E77: 2018-01-03 | F77: 3 | G77: 0 | H77: 1 | I77: 24 | J77: -2.92 | K77: -0.04 | L77: -9.4 | M77: 8.6 | N77: 1.04 | O77: 10.04 | P77: -0.4 | Q77: -5.98 | R77: -0.76 | S77: 12.2 | T77: -2.92 | V77: 0 | Y77: 0 | Z77: 1 | AA77: 0 | AB77: 0 | AC77: 0 | AD77: 0 | AE77: 1 | AF77: 1 | AG77: 1 | AH77: 0 | AI77: 1 | AJ77: 1 | AK77: 0
A78: 1976-01-04 | B78: 1 | C78: 4 | D78: 2018 | E78: 2018-01-04 | F78: 4 | G78: 0 | H78: 01:00:00 | I78: 1 | J78: -4 | K78: -2.02 | L78: -9.4 | M78: 8.6 | N78: 1.04 | O78: 8.06 | P78: -0.4 | Q78: -5.98 | R78: -1.3 | S78: 9.5 | T78: -5.08 | V78: 0 | Y78: 0 | Z78: 1 | AA78: 0 | AB78: 0 | AC78: 0 | AD78: 0 | AE78: 1 | AF78: 1 | AG78: 1 | AH78: 0 | AI78: 1 | AJ78: 1 | AK78: 0
A79: 1976-01-04 | B79: 1 | C79: 4 | D79: 2018 | E79: 2018-01-04 | F79: 4 | G79: 0 | H79: 02:00:00 | I79: 2 | J79: -0.94 | K79: -2.02 | L79: -9.4 | M79: 8.6 | N79: 3.02 | O79: 6.98 | P79: -0.4 | Q79: -6.88 | R79: -1.84 | S79: 8.78 | T79: -5.08 | V79: 0 | Y79: 0 | Z79: 1 | AA79: 0 | AB79: 0 | AC79: 0 | AD79: 0 | AE79: 1 | AF79: 1 | AG79: 1 | AH79: 0 | AI79: 1 | AJ79: 1 | AK79: 0
A80: 1976-01-04 | B80: 1 | C80: 4 | D80: 2018 | E80: 2018-01-04 | F80: 4 | G80: 0 | H80: 03:00:00 | I80: 3 | J80: -0.58 | K80: -0.04 | L80: -5.8 | M80: 10.4 | N80: 1.94 | O80: 6.08 | P80: 1.4 | Q80: -0.94 | R80: 1.4 | S80: 11.12 | T80: -2.92 | V80: 0 | Y80: 0 | Z80: 1 | AA80: 0 | AB80: 0 | AC80: 0 | AD80: 0 | AE80: 1 | AF80: 1 | AG80: 1 | AH80: 0 | AI80: 1 | AJ80: 1 | AK80: 0
A81: 1976-01-04 | B81: 1 | C81: 4 | D81: 2018 | E81: 2018-01-04 | F81: 4 | G81: 0 | H81: 04:00:00 | I81: 4 | J81: -0.4 | K81: -0.94 | L81: -5.8 | M81: 8.6 | N81: 6.08 | O81: 6.08 | P81: 1.4 | Q81: -0.94 | R81: 0.68 | S81: 13.82 | T81: -0.94 | V81: 0 | Y81: 0 | Z81: 1 | AA81: 0 | AB81: 0 | AC81: 0 | AD81: 0 | AE81: 1 | AF81: 1 | AG81: 1 | AH81: 0 | AI81: 1 | AJ81: 1 | AK81: 0
A82: 1976-01-04 | B82: 1 | C82: 4 | D82: 2018 | E82: 2018-01-04 | F82: 4 | G82: 0 | H82: 05:00:00 | I82: 5 | J82: -0.04 | K82: -0.94 | L82: -5.8 | M82: 10.4 | N82: 6.98 | O82: 5 | P82: 1.4 | Q82: -1.84 | R82: 1.4 | S82: 13.64 | T82: -2.02 | V82: 0 | Y82: 0 | Z82: 1 | AA82: 0 | AB82: 0 | AC82: 0 | AD82: 0 | AE82: 1 | AF82: 1 | AG82: 1 | AH82: 0 | AI82: 1 | AJ82: 1 | AK82: 0
A83: 1976-01-04 | B83: 1 | C83: 4 | D83: 2018 | E83: 2018-01-04 | F83: 4 | G83: 0 | H83: 06:00:00 | I83: 6 | J83: 1.94 | K83: -0.04 | L83: -5.8 | M83: 10.4 | N83: 8.06 | O83: 5 | P83: 1.4 | Q83: -1.84 | R83: 3.38 | S83: 13.28 | T83: -0.94 | V83: 0 | Y83: 0 | Z83: 1 | AA83: 0 | AB83: 0 | AC83: 0 | AD83: 0 | AE83: 1 | AF83: 1 | AG83: 1 | AH83: 0 | AI83: 1 | AJ83: 1 | AK83: 0
A84: 1976-01-04 | B84: 1 | C84: 4 | D84: 2018 | E84: 2018-01-04 | F84: 4 | G84: 0 | H84: 07:00:00 | I84: 7 | J84: 3.02 | K84: 3.02 | L84: -4 | M84: 12.2 | N84: 8.96 | O84: 6.98 | P84: 3.2 | Q84: 3.02 | R84: 5.36 | S84: 12.74 | T84: -2.02 | V84: 0 | Y84: 0 | Z84: 1 | AA84: 0 | AB84: 0 | AC84: 0 | AD84: 0 | AE84: 1 | AF84: 1 | AG84: 1 | AH84: 0 | AI84: 1 | AJ84: 1 | AK84: 0
A85: 1976-01-04 | B85: 1 | C85: 4 | D85: 2018 | E85: 2018-01-04 | F85: 4 | G85: 0 | H85: 08:00:00 | I85: 8 | J85: 6.8 | K85: 3.02 | L85: -5.8 | M85: 14 | N85: 10.04 | O85: 10.04 | P85: 4.1 | Q85: 3.02 | R85: 5.72 | S85: 16.88 | T85: -0.94 | V85: 0 | Y85: 1 | Z85: 0 | AA85: 0 | AB85: 0 | AC85: 0 | AD85: 0 | AE85: 1 | AF85: 1 | AG85: 1 | AH85: 0 | AI85: 1 | AJ85: 1 | AK85: 0
A86: 1976-01-04 | B86: 1 | C86: 4 | D86: 2018 | E86: 2018-01-04 | F86: 4 | G86: 0 | H86: 09:00:00 | I86: 9 | J86: 6.98 | K86: 8.06 | L86: -5.8 | M86: 15.8 | N86: 10.04 | O86: 19.94 | P86: 5 | Q86: 10.04 | R86: 5.36 | S86: 21.92 | T86: 3.92 | V86: 0 | Y86: 1 | Z86: 0 | AA86: 0 | AB86: 0 | AC86: 0 | AD86: 0 | AE86: 1 | AF86: 1 | AG86: 1 | AH86: 0 | AI86: 1 | AJ86: 1 | AK86: 0
A87: 1976-01-04 | B87: 1 | C87: 4 | D87: 2018 | E87: 2018-01-04 | F87: 4 | G87: 0 | H87: 10:00:00 | I87: 10 | J87: 6.98 | K87: 12.92 | L87: -0.4 | M87: 21.2 | N87: 12.02 | O87: 26.96 | P87: 5 | Q87: 13.1 | R87: 7.52 | S87: 27.14 | T87: 8.96 | V87: 0 | Y87: 1 | Z87: 0 | AA87: 0 | AB87: 0 | AC87: 0 | AD87: 0 | AE87: 1 | AF87: 1 | AG87: 1 | AH87: 0 | AI87: 1 | AJ87: 1 | AK87: 0
A88: 1976-01-04 | B88: 1 | C88: 4 | D88: 2018 | E88: 2018-01-04 | F88: 4 | G88: 0 | H88: 11:00:00 | I88: 11 | J88: 14 | K88: 12.92 | L88: 6.8 | M88: 24.8 | N88: 12.92 | O88: 30.02 | P88: 6.8 | Q88: 22.1 | R88: 10.4 | S88: 30.56 | T88: 14 | V88: 0 | Y88: 1 | Z88: 0 | AA88: 0 | AB88: 0 | AC88: 0 | AD88: 0 | AE88: 1 | AF88: 1 | AG88: 1 | AH88: 0 | AI88: 1 | AJ88: 1 | AK88: 0
A89: 1976-01-04 | B89: 1 | C89: 4 | D89: 2018 | E89: 2018-01-04 | F89: 4 | G89: 0 | H89: 12:00:00 | I89: 12 | J89: 14 | K89: 28.04 | L89: 10.4 | M89: 28.4 | N89: 12.92 | O89: 32.18 | P89: 7.7 | Q89: 26.06 | R89: 14.72 | S89: 32.36 | T89: 19.04 | V89: 0 | Y89: 1 | Z89: 0 | AA89: 0 | AB89: 0 | AC89: 0 | AD89: 0 | AE89: 1 | AF89: 1 | AG89: 1 | AH89: 0 | AI89: 1 | AJ89: 1 | AK89: 0
A90: 1976-01-04 | B90: 1 | C90: 4 | D90: 2018 | E90: 2018-01-04 | F90: 4 | G90: 0 | H90: 13:00:00 | I90: 13 | J90: 14 | K90: 33.08 | L90: 10.4 | M90: 32 | N90: 15.08 | O90: 33.08 | P90: 8.6 | Q90: 25.16 | R90: 20.84 | S90: 33.26 | T90: 23 | V90: 0 | Y90: 1 | Z90: 0 | AA90: 0 | AB90: 0 | AC90: 0 | AD90: 0 | AE90: 1 | AF90: 1 | AG90: 1 | AH90: 0 | AI90: 1 | AJ90: 1 | AK90: 0
A91: 1976-01-04 | B91: 1 | C91: 4 | D91: 2018 | E91: 2018-01-04 | F91: 4 | G91: 0 | H91: 14:00:00 | I91: 14 | J91: 15.98 | K91: 33.08 | L91: 15.8 | M91: 32.18 | N91: 15.98 | O91: 34.16 | P91: 7.7 | Q91: 25.16 | R91: 33.08 | S91: 34.16 | T91: 23 | V91: 0 | Y91: 1 | Z91: 0 | AA91: 0 | AB91: 0 | AC91: 0 | AD91: 0 | AE91: 1 | AF91: 1 | AG91: 1 | AH91: 0 | AI91: 1 | AJ91: 1 | AK91: 0
A92: 1976-01-04 | B92: 1 | C92: 4 | D92: 2018 | E92: 2018-01-04 | F92: 4 | G92: 0 | H92: 15:00:00 | I92: 15 | J92: 17.96 | K92: 34.34 | L92: 17.6 | M92: 32.72 | N92: 19.04 | O92: 35.06 | P92: 6.8 | Q92: 26.06 | R92: 33.62 | S92: 34.88 | T92: 23 | V92: 0 | Y92: 1 | Z92: 0 | AA92: 0 | AB92: 0 | AC92: 0 | AD92: 0 | AE92: 1 | AF92: 1 | AG92: 1 | AH92: 0 | AI92: 1 | AJ92: 1 | AK92: 0
A93: 1976-01-04 | B93: 1 | C93: 4 | D93: 2018 | E93: 2018-01-04 | F93: 4 | G93: 0 | H93: 16:00:00 | I93: 16 | J93: 19.94 | K93: 34.34 | L93: 19.4 | M93: 32.54 | N93: 19.04 | O93: 35.96 | P93: 6.8 | Q93: 26.06 | R93: 33.8 | S93: 35.24 | T93: 24.08 | V93: 0 | Y93: 1 | Z93: 0 | AA93: 0 | AB93: 0 | AC93: 0 | AD93: 0 | AE93: 1 | AF93: 1 | AG93: 1 | AH93: 0 | AI93: 1 | AJ93: 1 | AK93: 0
A94: 1976-01-04 | B94: 1 | C94: 4 | D94: 2018 | E94: 2018-01-04 | F94: 4 | G94: 0 | H94: 17:00:00 | I94: 17 | J94: 30.02 | K94: 33.98 | L94: 15.8 | M94: 33.8 | N94: 21.02 | O94: 35.06 | P94: 6.8 | Q94: 21.02 | R94: 32.36 | S94: 35.42 | T94: 21.02 | V94: 0 | Y94: 1 | Z94: 0 | AA94: 0 | AB94: 0 | AC94: 0 | AD94: 0 | AE94: 1 | AF94: 1 | AG94: 1 | AH94: 0 | AI94: 1 | AJ94: 1 | AK94: 0
A95: 1976-01-04 | B95: 1 | C95: 4 | D95: 2018 | E95: 2018-01-04 | F95: 4 | G95: 0 | H95: 18:00:00 | I95: 18 | J95: 26.06 | K95: 33.44 | L95: 15.8 | M95: 33.8 | N95: 21.92 | O95: 34.34 | P95: 6.8 | Q95: 24.08 | R95: 32.36 | S95: 35.42 | T95: 21.02 | V95: 0 | Y95: 1 | Z95: 0 | AA95: 0 | AB95: 0 | AC95: 1 | AD95: 0 | AE95: 1 | AF95: 1 | AG95: 1 | AH95: 0 | AI95: 1 | AJ95: 1 | AK95: 0
A96: 1976-01-04 | B96: 1 | C96: 4 | D96: 2018 | E96: 2018-01-04 | F96: 4 | G96: 0 | H96: 19:00:00 | I96: 19 | J96: 26.96 | K96: 32.72 | L96: 17.6 | M96: 33.8 | N96: 19.04 | O96: 33.26 | P96: 8.6 | Q96: 24.08 | R96: 32.9 | S96: 34.52 | T96: 19.94 | V96: 0 | Y96: 1 | Z96: 0 | AA96: 0 | AB96: 0 | AC96: 1 | AD96: 0 | AE96: 1 | AF96: 1 | AG96: 1 | AH96: 0 | AI96: 1 | AJ96: 1 | AK96: 0
A97: 1976-01-04 | B97: 1 | C97: 4 | D97: 2018 | E97: 2018-01-04 | F97: 4 | G97: 0 | H97: 20:00:00 | I97: 20 | J97: 26.06 | K97: 32.72 | L97: 19.4 | M97: 33.8 | N97: 19.04 | O97: 32.9 | P97: 8.06 | Q97: 20.12 | R97: 33.62 | S97: 34.16 | T97: 21.02 | V97: 0 | Y97: 1 | Z97: 0 | AA97: 0 | AB97: 0 | AC97: 0 | AD97: 0 | AE97: 1 | AF97: 1 | AG97: 1 | AH97: 0 | AI97: 1 | AJ97: 1 | AK97: 0
A98: 1976-01-04 | B98: 1 | C98: 4 | D98: 2018 | E98: 2018-01-04 | F98: 4 | G98: 0 | H98: 21:00:00 | I98: 21 | J98: 24.98 | K98: 32.54 | L98: 19.4 | M98: 33.8 | N98: 19.04 | O98: 32.54 | P98: 7.34 | Q98: 24.08 | R98: 33.08 | S98: 33.8 | T98: 19.94 | V98: 0 | Y98: 1 | Z98: 0 | AA98: 0 | AB98: 0 | AC98: 0 | AD98: 0 | AE98: 1 | AF98: 1 | AG98: 1 | AH98: 0 | AI98: 1 | AJ98: 1 | AK98: 0
A99: 1976-01-04 | B99: 1 | C99: 4 | D99: 2018 | E99: 2018-01-04 | F99: 4 | G99: 0 | H99: 22:00:00 | I99: 22 | J99: 26.06 | K99: 32.18 | L99: 19.4 | M99: 33.8 | N99: 19.94 | O99: 32.18 | P99: 6.8 | Q99: 25.16 | R99: 33.8 | S99: 33.08 | T99: 21.02 | V99: 0 | Y99: 1 | Z99: 0 | AA99: 0 | AB99: 0 | AC99: 0 | AD99: 0 | AE99: 1 | AF99: 1 | AG99: 1 | AH99: 0 | AI99: 1 | AJ99: 1 | AK99: 0
A100: 1976-01-04 | B100: 1 | C100: 4 | D100: 2018 | E100: 2018-01-04 | F100: 4 | G100: 0 | H100: 23:00:00 | I100: 23 | J100: 26.06 | K100: 33.98 | L100: 19.4 | M100: 33.8 | N100: 19.94 | O100: 35.06 | P100: 6.8 | Q100: 25.16 | R100: 33.8 | S100: 32.36 | T100: 21.02 | V100: 0 | Y100: 1 | Z100: 0 | AA100: 0 | AB100: 0 | AC100: 0 | AD100: 0 | AE100: 1 | AF100: 1 | AG100: 1 | AH100: 0 | AI100: 1 | AJ100: 1 | AK100: 0
A101: 1976-01-04 | B101: 1 | C101: 4 | D101: 2018 | E101: 2018-01-04 | F101: 4 | G101: 0 | H101: 1 | I101: 24 | J101: 28.04 | K101: 32 | L101: 17.6 | M101: 33.8 | N101: 19.94 | O101: 35.06 | P101: 6.8 | Q101: 22.1 | R101: 32.9 | S101: 30.92 | T101: 21.92 | V101: 0 | Y101: 0 | Z101: 1 | AA101: 0 | AB101: 0 | AC101: 0 | AD101: 0 | AE101: 1 | AF101: 1 | AG101: 1 | AH101: 0 | AI101: 1 | AJ101: 1 | AK101: 0
A102: 1976-01-05 | B102: 1 | C102: 5 | D102: 2018 | E102: 2018-01-05 | F102: 5 | G102: 0 | H102: 01:00:00 | I102: 1 | J102: 24.98 | K102: 33.08 | L102: 17.6 | M102: 32 | N102: 19.04 | O102: 33.98 | P102: 6.8 | Q102: 21.02 | R102: 32.72 | S102: 32.72 | T102: 21.02 | V102: 0 | Y102: 0 | Z102: 1 | AA102: 0 | AB102: 0 | AC102: 0 | AD102: 0 | AE102: 1 | AF102: 1 | AG102: 1 | AH102: 0 | AI102: 1 | AJ102: 1 | AK102: 0
A103: 1976-01-05 | B103: 1 | C103: 5 | D103: 2018 | E103: 2018-01-05 | F103: 5 | G103: 0 | H103: 02:00:00 | I103: 2 | J103: 24.08 | K103: 33.08 | L103: 15.8 | M103: 30.2 | N103: 17.96 | O103: 33.98 | P103: 5 | Q103: 20.12 | R103: 32.36 | S103: 33.8 | T103: 21.92 | V103: 0 | Y103: 0 | Z103: 1 | AA103: 0 | AB103: 0 | AC103: 0 | AD103: 0 | AE103: 1 | AF103: 1 | AG103: 1 | AH103: 0 | AI103: 1 | AJ103: 1 | AK103: 0
A104: 1976-01-05 | B104: 1 | C104: 5 | D104: 2018 | E104: 2018-01-05 | F104: 5 | G104: 0 | H104: 03:00:00 | I104: 3 | J104: 24.08 | K104: 30.02 | L104: 15.8 | M104: 32 | N104: 14 | O104: 33.98 | P104: 6.8 | Q104: 21.02 | R104: 32.18 | S104: 33.44 | T104: 19.94 | V104: 0 | Y104: 0 | Z104: 1 | AA104: 0 | AB104: 0 | AC104: 0 | AD104: 0 | AE104: 1 | AF104: 1 | AG104: 1 | AH104: 0 | AI104: 1 | AJ104: 1 | AK104: 0
A105: 1976-01-05 | B105: 1 | C105: 5 | D105: 2018 | E105: 2018-01-05 | F105: 5 | G105: 0 | H105: 04:00:00 | I105: 4 | J105: 19.94 | K105: 30.92 | L105: 14 | M105: 32 | N105: 14 | O105: 33.08 | P105: 6.8 | Q105: 19.04 | R105: 33.08 | S105: 31.64 | T105: 19.94 | V105: 0 | Y105: 0 | Z105: 1 | AA105: 0 | AB105: 0 | AC105: 0 | AD105: 0 | AE105: 1 | AF105: 1 | AG105: 1 | AH105: 0 | AI105: 1 | AJ105: 1 | AK105: 0
A106: 1976-01-05 | B106: 1 | C106: 5 | D106: 2018 | E106: 2018-01-05 | F106: 5 | G106: 0 | H106: 05:00:00 | I106: 5 | J106: 17.96 | K106: 30.92 | L106: 12.2 | M106: 32 | N106: 12.02 | O106: 33.98 | P106: 6.8 | Q106: 15.08 | R106: 32.54 | S106: 30.74 | T106: 23 | V106: 0 | Y106: 0 | Z106: 1 | AA106: 0 | AB106: 0 | AC106: 0 | AD106: 0 | AE106: 1 | AF106: 1 | AG106: 1 | AH106: 0 | AI106: 1 | AJ106: 1 | AK106: 0
A107: 1976-01-05 | B107: 1 | C107: 5 | D107: 2018 | E107: 2018-01-05 | F107: 5 | G107: 0 | H107: 06:00:00 | I107: 6 | J107: 14 | K107: 33.08 | L107: 12.2 | M107: 32 | N107: 10.04 | O107: 32 | P107: 6.8 | Q107: 18.14 | R107: 31.82 | S107: 30.74 | T107: 21.02 | V107: 0 | Y107: 0 | Z107: 1 | AA107: 0 | AB107: 0 | AC107: 0 | AD107: 0 | AE107: 1 | AF107: 1 | AG107: 1 | AH107: 0 | AI107: 1 | AJ107: 1 | AK107: 0
A108: 1976-01-05 | B108: 1 | C108: 5 | D108: 2018 | E108: 2018-01-05 | F108: 5 | G108: 0 | H108: 07:00:00 | I108: 7 | J108: 12.02 | K108: 32 | L108: 10.4 | M108: 32 | N108: 8.06 | O108: 33.08 | P108: 6.8 | Q108: 19.04 | R108: 32.9 | S108: 30.38 | T108: 19.94 | V108: 0 | Y108: 0 | Z108: 1 | AA108: 0 | AB108: 0 | AC108: 0 | AD108: 0 | AE108: 1 | AF108: 1 | AG108: 1 | AH108: 0 | AI108: 1 | AJ108: 1 | AK108: 0
A109: 1976-01-05 | B109: 1 | C109: 5 | D109: 2018 | E109: 2018-01-05 | F109: 5 | G109: 0 | H109: 08:00:00 | I109: 8 | J109: 12.02 | K109: 32 | L109: 10.4 | M109: 32 | N109: 6.98 | O109: 33.08 | P109: 1.4 | Q109: 20.12 | R109: 32 | S109: 32.18 | T109: 19.94 | V109: 0 | Y109: 1 | Z109: 0 | AA109: 0 | AB109: 0 | AC109: 0 | AD109: 0 | AE109: 1 | AF109: 1 | AG109: 1 | AH109: 0 | AI109: 1 | AJ109: 1 | AK109: 0
A110: 1976-01-05 | B110: 1 | C110: 5 | D110: 2018 | E110: 2018-01-05 | F110: 5 | G110: 0 | H110: 09:00:00 | I110: 9 | J110: 10.94 | K110: 33.08 | L110: 10.4 | M110: 33.8 | N110: 6.08 | O110: 35.96 | P110: 1.4 | Q110: 23 | R110: 31.82 | S110: 32.72 | T110: 24.08 | V110: 0 | Y110: 1 | Z110: 0 | AA110: 0 | AB110: 0 | AC110: 0 | AD110: 0 | AE110: 1 | AF110: 1 | AG110: 1 | AH110: 0 | AI110: 1 | AJ110: 1 | AK110: 0
A111: 1976-01-05 | B111: 1 | C111: 5 | D111: 2018 | E111: 2018-01-05 | F111: 5 | G111: 0 | H111: 10:00:00 | I111: 10 | J111: 10.04 | K111: 32.54 | L111: 15.8 | M111: 32 | N111: 5 | O111: 33.98 | P111: 1.4 | Q111: 29.12 | R111: 31.1 | S111: 34.34 | T111: 26.96 | V111: 0 | Y111: 1 | Z111: 0 | AA111: 0 | AB111: 0 | AC111: 0 | AD111: 0 | AE111: 1 | AF111: 1 | AG111: 1 | AH111: 0 | AI111: 1 | AJ111: 1 | AK111: 0
A112: 1976-01-05 | B112: 1 | C112: 5 | D112: 2018 | E112: 2018-01-05 | F112: 5 | G112: 0 | H112: 11:00:00 | I112: 11 | J112: 10.04 | K112: 32 | L112: 19.4 | M112: 32 | N112: 3.92 | O112: 34.7 | P112: 0.5 | Q112: 32.9 | R112: 31.1 | S112: 34.7 | T112: 30.02 | V112: 0 | Y112: 1 | Z112: 0 | AA112: 0 | AB112: 0 | AC112: 0 | AD112: 0 | AE112: 1 | AF112: 1 | AG112: 1 | AH112: 0 | AI112: 1 | AJ112: 1 | AK112: 0
A113: 1976-01-05 | B113: 1 | C113: 5 | D113: 2018 | E113: 2018-01-05 | F113: 5 | G113: 0 | H113: 12:00:00 | I113: 12 | J113: 8.06 | K113: 33.98 | L113: 24.8 | M113: 32 | N113: 5 | O113: 34.7 | P113: -0.4 | Q113: 36.86 | R113: 30.02 | S113: 34.52 | T113: 33.08 | V113: 0 | Y113: 1 | Z113: 0 | AA113: 0 | AB113: 0 | AC113: 0 | AD113: 0 | AE113: 1 | AF113: 1 | AG113: 1 | AH113: 0 | AI113: 1 | AJ113: 1 | AK113: 0
A114: 1976-01-05 | B114: 1 | C114: 5 | D114: 2018 | E114: 2018-01-05 | F114: 5 | G114: 0 | H114: 13:00:00 | I114: 13 | J114: 8.06 | K114: 32.18 | L114: 28.4 | M114: 33.8 | N114: 3.92 | O114: 35.06 | P114: -0.4 | Q114: 33.62 | R114: 29.3 | S114: 34.52 | T114: 33.08 | V114: 0 | Y114: 1 | Z114: 0 | AA114: 0 | AB114: 0 | AC114: 0 | AD114: 0 | AE114: 1 | AF114: 1 | AG114: 1 | AH114: 0 | AI114: 1 | AJ114: 1 | AK114: 0
A115: 1976-01-05 | B115: 1 | C115: 5 | D115: 2018 | E115: 2018-01-05 | F115: 5 | G115: 0 | H115: 14:00:00 | I115: 14 | J115: 6.08 | K115: 32.36 | L115: 32.36 | M115: 30.2 | N115: 3.92 | O115: 35.24 | P115: -2.2 | Q115: 34.7 | R115: 30.74 | S115: 34.7 | T115: 32.18 | V115: 0 | Y115: 1 | Z115: 0 | AA115: 0 | AB115: 0 | AC115: 0 | AD115: 0 | AE115: 1 | AF115: 1 | AG115: 1 | AH115: 0 | AI115: 1 | AJ115: 1 | AK115: 0
A116: 1976-01-05 | B116: 1 | C116: 5 | D116: 2018 | E116: 2018-01-05 | F116: 5 | G116: 0 | H116: 15:00:00 | I116: 15 | J116: 6.08 | K116: 32.54 | L116: 33.8 | M116: 32 | N116: 3.92 | O116: 35.96 | P116: -2.2 | Q116: 35.78 | R116: 30.2 | S116: 35.24 | T116: 32.54 | V116: 0 | Y116: 1 | Z116: 0 | AA116: 0 | AB116: 0 | AC116: 0 | AD116: 0 | AE116: 1 | AF116: 1 | AG116: 1 | AH116: 0 | AI116: 1 | AJ116: 1 | AK116: 0
A117: 1976-01-05 | B117: 1 | C117: 5 | D117: 2018 | E117: 2018-01-05 | F117: 5 | G117: 0 | H117: 16:00:00 | I117: 16 | J117: 3.92 | K117: 32 | L117: 35.06 | M117: 30.2 | N117: 3.92 | O117: 34.16 | P117: -2.2 | Q117: 35.78 | R117: 29.3 | S117: 33.62 | T117: 32 | V117: 0 | Y117: 1 | Z117: 0 | AA117: 0 | AB117: 0 | AC117: 0 | AD117: 0 | AE117: 1 | AF117: 1 | AG117: 1 | AH117: 0 | AI117: 1 | AJ117: 1 | AK117: 0
A118: 1976-01-05 | B118: 1 | C118: 5 | D118: 2018 | E118: 2018-01-05 | F118: 5 | G118: 0 | H118: 17:00:00 | I118: 17 | J118: 1.94 | K118: 32 | L118: 34.7 | M118: 28.4 | N118: 1.94 | O118: 33.08 | P118: -2.2 | Q118: 35.6 | R118: 27.5 | S118: 32.9 | T118: 30.92 | V118: 0 | Y118: 1 | Z118: 0 | AA118: 0 | AB118: 0 | AC118: 0 | AD118: 0 | AE118: 1 | AF118: 1 | AG118: 1 | AH118: 0 | AI118: 1 | AJ118: 1 | AK118: 0
A119: 1976-01-05 | B119: 1 | C119: 5 | D119: 2018 | E119: 2018-01-05 | F119: 5 | G119: 0 | H119: 18:00:00 | I119: 18 | J119: 5 | K119: 26.06 | L119: 33.08 | M119: 26.6 | N119: -0.04 | O119: 26.96 | P119: -0.4 | Q119: 33.62 | R119: 25.52 | S119: 27.5 | T119: 30.02 | V119: 0 | Y119: 1 | Z119: 0 | AA119: 0 | AB119: 0 | AC119: 1 | AD119: 0 | AE119: 1 | AF119: 1 | AG119: 1 | AH119: 0 | AI119: 1 | AJ119: 1 | AK119: 0
A120: 1976-01-05 | B120: 1 | C120: 5 | D120: 2018 | E120: 2018-01-05 | F120: 5 | G120: 0 | H120: 19:00:00 | I120: 19 | J120: 1.4 | K120: 21.92 | L120: 33.26 | M120: 23 | N120: -0.94 | O120: 24.08 | P120: 1.4 | Q120: 33.26 | R120: 22.46 | S120: 26.78 | T120: 30.02 | V120: 0 | Y120: 1 | Z120: 0 | AA120: 0 | AB120: 0 | AC120: 1 | AD120: 0 | AE120: 1 | AF120: 1 | AG120: 1 | AH120: 0 | AI120: 1 | AJ120: 1 | AK120: 0
A121: 1976-01-05 | B121: 1 | C121: 5 | D121: 2018 | E121: 2018-01-05 | F121: 5 | G121: 0 | H121: 20:00:00 | I121: 20 | J121: 3.02 | K121: 21.92 | L121: 33.62 | M121: 19.4 | N121: -2.02 | O121: 24.08 | P121: 3.2 | Q121: 33.62 | R121: 17.42 | S121: 24.8 | T121: 28.94 | V121: 0 | Y121: 1 | Z121: 0 | AA121: 0 | AB121: 0 | AC121: 0 | AD121: 0 | AE121: 1 | AF121: 1 | AG121: 1 | AH121: 0 | AI121: 1 | AJ121: 1 | AK121: 0
A122: 1976-01-05 | B122: 1 | C122: 5 | D122: 2018 | E122: 2018-01-05 | F122: 5 | G122: 0 | H122: 21:00:00 | I122: 21 | J122: 1.4 | K122: 14 | L122: 33.08 | M122: 17.6 | N122: -2.92 | O122: 21.02 | P122: 5 | Q122: 33.44 | R122: 14.54 | S122: 22.28 | T122: 28.94 | V122: 0 | Y122: 1 | Z122: 0 | AA122: 0 | AB122: 0 | AC122: 0 | AD122: 0 | AE122: 1 | AF122: 1 | AG122: 1 | AH122: 0 | AI122: 1 | AJ122: 1 | AK122: 0
A123: 1976-01-05 | B123: 1 | C123: 5 | D123: 2018 | E123: 2018-01-05 | F123: 5 | G123: 0 | H123: 22:00:00 | I123: 22 | J123: 1.94 | K123: 15.98 | L123: 33.26 | M123: 15.8 | N123: -2.92 | O123: 21.02 | P123: 6.8 | Q123: 33.98 | R123: 12.2 | S123: 21.2 | T123: 30.02 | V123: 0 | Y123: 1 | Z123: 0 | AA123: 0 | AB123: 0 | AC123: 0 | AD123: 0 | AE123: 1 | AF123: 1 | AG123: 1 | AH123: 0 | AI123: 1 | AJ123: 1 | AK123: 0
A124: 1976-01-05 | B124: 1 | C124: 5 | D124: 2018 | E124: 2018-01-05 | F124: 5 | G124: 0 | H124: 23:00:00 | I124: 23 | J124: 1.94 | K124: 15.98 | L124: 33.26 | M124: 15.8 | N124: -2.92 | O124: 17.06 | P124: 6.8 | Q124: 34.7 | R124: 11.66 | S124: 18.32 | T124: 28.94 | V124: 0 | Y124: 1 | Z124: 0 | AA124: 0 | AB124: 0 | AC124: 0 | AD124: 0 | AE124: 1 | AF124: 1 | AG124: 1 | AH124: 0 | AI124: 1 | AJ124: 1 | AK124: 0
A125: 1976-01-05 | B125: 1 | C125: 5 | D125: 2018 | E125: 2018-01-05 | F125: 5 | G125: 0 | H125: 1 | I125: 24 | J125: 1.04 | K125: 14 | L125: 32.72 | M125: 15.8 | N125: -2.02 | O125: 17.06 | P125: 10.4 | Q125: 34.88 | R125: 11.3 | S125: 17.6 | T125: 30.02 | V125: 0 | Y125: 0 | Z125: 1 | AA125: 0 | AB125: 0 | AC125: 0 | AD125: 0 | AE125: 1 | AF125: 1 | AG125: 1 | AH125: 0 | AI125: 1 | AJ125: 1 | AK125: 0
A126: 1976-01-06 | B126: 1 | C126: 6 | D126: 2018 | E126: 2018-01-06 | F126: 6 | G126: 0 | H126: 01:00:00 | I126: 1 | J126: -0.04 | K126: 12.92 | L126: 32.18 | M126: 15.8 | N126: -2.02 | O126: 19.04 | P126: 10.4 | Q126: 34.88 | R126: 10.4 | S126: 19.04 | T126: 32.36 | V126: 0 | Y126: 0 | Z126: 1 | AA126: 0 | AB126: 0 | AC126: 0 | AD126: 0 | AE126: 1 | AF126: 1 | AG126: 1 | AH126: 0 | AI126: 1 | AJ126: 1 | AK126: 0
A127: 1976-01-06 | B127: 1 | C127: 6 | D127: 2018 | E127: 2018-01-06 | F127: 6 | G127: 0 | H127: 02:00:00 | I127: 2 | J127: 1.94 | K127: 12.92 | L127: 30.2 | M127: 15.8 | N127: -2.02 | O127: 19.94 | P127: 11.3 | Q127: 34.88 | R127: 9.14 | S127: 19.94 | T127: 28.94 | V127: 0 | Y127: 0 | Z127: 1 | AA127: 0 | AB127: 0 | AC127: 0 | AD127: 0 | AE127: 1 | AF127: 1 | AG127: 1 | AH127: 0 | AI127: 1 | AJ127: 1 | AK127: 0
A128: 1976-01-06 | B128: 1 | C128: 6 | D128: 2018 | E128: 2018-01-06 | F128: 6 | G128: 0 | H128: 03:00:00 | I128: 3 | J128: -0.94 | K128: 17.06 | L128: 32.36 | M128: 17.6 | N128: -2.92 | O128: 21.02 | P128: 12.2 | Q128: 35.06 | R128: 11.3 | S128: 20.84 | T128: 28.94 | V128: 0 | Y128: 0 | Z128: 1 | AA128: 0 | AB128: 0 | AC128: 0 | AD128: 0 | AE128: 1 | AF128: 1 | AG128: 1 | AH128: 0 | AI128: 1 | AJ128: 1 | AK128: 0
A129: 1976-01-06 | B129: 1 | C129: 6 | D129: 2018 | E129: 2018-01-06 | F129: 6 | G129: 0 | H129: 04:00:00 | I129: 4 | J129: -0.04 | K129: 17.06 | L129: 28.4 | M129: 17.6 | N129: -2.92 | O129: 21.02 | P129: 8.6 | Q129: 34.88 | R129: 12.92 | S129: 21.92 | T129: 28.04 | V129: 0 | Y129: 0 | Z129: 1 | AA129: 0 | AB129: 0 | AC129: 0 | AD129: 0 | AE129: 1 | AF129: 1 | AG129: 1 | AH129: 0 | AI129: 1 | AJ129: 1 | AK129: 0
A130: 1976-01-06 | B130: 1 | C130: 6 | D130: 2018 | E130: 2018-01-06 | F130: 6 | G130: 0 | H130: 05:00:00 | I130: 5 | J130: -0.94 | K130: 17.06 | L130: 26.6 | M130: 19.4 | N130: -4 | O130: 21.92 | P130: 6.8 | Q130: 33.62 | R130: 14 | S130: 22.64 | T130: 28.04 | V130: 0 | Y130: 0 | Z130: 1 | AA130: 0 | AB130: 0 | AC130: 0 | AD130: 0 | AE130: 1 | AF130: 1 | AG130: 1 | AH130: 0 | AI130: 1 | AJ130: 1 | AK130: 0
A131: 1976-01-06 | B131: 1 | C131: 6 | D131: 2018 | E131: 2018-01-06 | F131: 6 | G131: 0 | H131: 06:00:00 | I131: 6 | J131: -0.94 | K131: 19.04 | L131: 26.6 | M131: 19.4 | N131: -5.08 | O131: 21.2 | P131: 6.8 | Q131: 32.72 | R131: 15.26 | S131: 23 | T131: 30.92 | V131: 0 | Y131: 0 | Z131: 1 | AA131: 0 | AB131: 0 | AC131: 0 | AD131: 0 | AE131: 1 | AF131: 1 | AG131: 1 | AH131: 0 | AI131: 1 | AJ131: 1 | AK131: 0
A132: 1976-01-06 | B132: 1 | C132: 6 | D132: 2018 | E132: 2018-01-06 | F132: 6 | G132: 0 | H132: 07:00:00 | I132: 7 | J132: -0.94 | K132: 19.94 | L132: 26.6 | M132: 19.4 | N132: -5.98 | O132: 21.92 | P132: 8.6 | Q132: 32.36 | R132: 15.62 | S132: 23 | T132: 28.94 | V132: 0 | Y132: 0 | Z132: 1 | AA132: 0 | AB132: 0 | AC132: 0 | AD132: 0 | AE132: 1 | AF132: 1 | AG132: 1 | AH132: 0 | AI132: 1 | AJ132: 1 | AK132: 0
A133: 1976-01-06 | B133: 1 | C133: 6 | D133: 2018 | E133: 2018-01-06 | F133: 6 | G133: 0 | H133: 08:00:00 | I133: 8 | J133: -2.2 | K133: 19.94 | L133: 26.6 | M133: 19.4 | N133: -7.06 | O133: 24.08 | P133: 8.6 | Q133: 32.72 | R133: 15.8 | S133: 23 | T133: 30.02 | V133: 0 | Y133: 0 | Z133: 1 | AA133: 0 | AB133: 0 | AC133: 0 | AD133: 0 | AE133: 1 | AF133: 1 | AG133: 1 | AH133: 0 | AI133: 1 | AJ133: 1 | AK133: 0
A134: 1976-01-06 | B134: 1 | C134: 6 | D134: =$AO$4 -> 2018 | E134: 2018-01-06 | F134: 6 | G134: =COUNTIF($AM$34:$AM$43,E134) -> 0 | H134: 09:00:00 | I134: 9 | J134: -2.92 | K134: 21.2 | L134: 28.4 | M134: 19.4 | N134: -4 | O134: 24.08 | P134: 6.8 | Q134: 33.8 | R134: 16.7 | S134: 23 | T134: 32 | V134: =SUMPRODUCT($J$2:$T$2,J134:T134) -> 0 | Y134: =OR(B134<=$AO$14,B134>=$AN$14)*(F134<6)*(I134>$AN$15)*(I134<=$AO$15)*(G134<>1) -> 0 | Z134: =OR(B134<=$AO$14,B134>=$AN$14)*(Y134=0) -> 1 | AA134: =AND(B134>=$AN$24,B134<=$AO$24)*(F134<6)*(I134>$AN$25)*(I134<=$AO$25)*(G134<>1) -> 0 | AB134: =AND(B134>=$AN$24,B134<=$AO$24)*(AA134=0) -> 0 | AC134: =OR(B134<=$AO$19,B134>=$AN$19)*(F134<6)*(I134>$AN$20)*(I134<=$AO$20) -> 0 | AD134: =AND(B134>=$AN$29,B134<=$AO$29)*(F134<6)*(I134>$AN$30)*(I134<=$AO$30) -> 0 | AE134: =IF(OR(E134=$AM$34,E134=$AM$35,E134=$AM$36,E134=$AM$37,E134=$AM$38,E134=$AM$39,E134=$AM$40,E134=$AM$41,E134=$AM$42,E134=$AM$43),0,1) -> 1 | AF134: 1 | AG134: =IF(OR(AND(E134>=$AM$47,E134<=$AN$47),AND(E134>=$AM$48,E134<=$AN$48),AND(E134>=$AM$49,E134<=$AN$49),AND(E134>=$AM$50,E134<=$AN$50),AND(E134>=$AM$51,E134<=$AN$51)),0,1)*AE134 -> 1 | AH134: =(B134>=5)*(B134<=10) -> 0 | AI134: =1*OR(B134<=4,B134>=11) -> 1 | AJ134: =LOOKUP(B134,$AM$57:$AM$68,$AN$57:$AN$68) -> 1 | AK134: =LOOKUP($AO$10,$AE$5:$AI$5,AE134:AI134)*((F134<6)*(I134>$AO$7)*(I134<=$AP$7)+(F134=6)*(I134>$AO$8)*(I134<=$AP$8)+(F134>=7)*(I134>$AO$9)*(I134<=$AP$9)) -> 0
A135: 1976-01-06 | B135: 1 | C135: 6 | D135: 2018 | E135: =DATE(D135,B135,C135) -> 2018-01-06 | F135: =WEEKDAY(E135,2) -> 6 | G135: 0 | H135: 10:00:00 | I135: 10 | J135: -0.04 | K135: 24.98 | L135: 32.54 | M135: 23 | N135: -2.02 | O135: 28.04 | P135: 8.6 | Q135: 35.96 | R135: 17.42 | S135: 26.6 | T135: 32.9 | V135: 0 | Y135: 0 | Z135: 1 | AA135: 0 | AB135: 0 | AC135: 0 | AD135: 0 | AE135: 1 | AF135: 1 | AG135: 1 | AH135: 0 | AI135: 1 | AJ135: 1 | AK135: 0
A136: 1976-01-06 | B136: 1 | C136: 6 | D136: 2018 | E136: 2018-01-06 | F136: 6 | G136: 0 | H136: 11:00:00 | I136: =H136*24 -> 11 | J136: 1.04 | K136: 24.98 | L136: 35.6 | M136: 24.8 | N136: -2.02 | O136: 32 | P136: 8.6 | Q136: 37.94 | R136: 19.4 | S136: 32.9 | T136: 34.7 | V136: 0 | Y136: 0 | Z136: 1 | AA136: 0 | AB136: 0 | AC136: 0 | AD136: 0 | AE136: 1 | AF136: 1 | AG136: 1 | AH136: 0 | AI136: 1 | AJ136: 1 | AK136: 0
A137: 1976-01-06 | B137: 1 | C137: 6 | D137: 2018 | E137: 2018-01-06 | F137: 6 | G137: 0 | H137: 12:00:00 | I137: 12 | J137: 1.94 | K137: 32 | L137: 35.78 | M137: 26.6 | N137: 1.04 | O137: 32.36 | P137: 8.6 | Q137: 38.84 | R137: 22.46 | S137: 35.96 | T137: 35.6 | V137: 0 | Y137: 0 | Z137: 1 | AA137: 0 | AB137: 0 | AC137: 0 | AD137: 0 | AE137: 1 | AF137: 1 | AG137: 1 | AH137: 0 | AI137: 1 | AJ137: 1 | AK137: 0
A138: 1976-01-06 | B138: 1 | C138: 6 | D138: 2018 | E138: 2018-01-06 | F138: 6 | G138: 0 | H138: 13:00:00 | I138: 13 | J138: 1.04 | K138: 33.44 | L138: 38.3 | M138: 28.4 | N138: 1.04 | O138: 35.6 | P138: 8.6 | Q138: 39.92 | R138: 24.26 | S138: 35.24 | T138: 37.94 | V138: 0 | Y138: 0 | Z138: 1 | AA138: 0 | AB138: 0 | AC138: 0 | AD138: 0 | AE138: 1 | AF138: 1 | AG138: 1 | AH138: 0 | AI138: 1 | AJ138: 1 | AK138: 0
A139: 1976-01-06 | B139: 1 | C139: 6 | D139: 2018 | E139: 2018-01-06 | F139: 6 | G139: 0 | H139: 14:00:00 | I139: 14 | J139: 3.92 | K139: 35.42 | L139: 39.74 | M139: 32.36 | N139: 1.94 | O139: 37.4 | P139: 8.6 | Q139: 39.92 | R139: 25.7 | S139: 36.68 | T139: 39.02 | V139: 0 | Y139: 0 | Z139: 1 | AA139: 0 | AB139: 0 | AC139: 0 | AD139: 0 | AE139: 1 | AF139: 1 | AG139: 1 | AH139: 0 | AI139: 1 | AJ139: 1 | AK139: 0
A140: 1976-01-06 | B140: 1 | C140: 6 | D140: 2018 | E140: 2018-01-06 | F140: 6 | G140: 0 | H140: 15:00:00 | I140: 15 | J140: 1.94 | K140: 36.68 | L140: 40.1 | M140: 33.98 | N140: 1.94 | O140: 39.02 | P140: 9.5 | Q140: 40.1 | R140: 27.5 | S140: 38.84 | T140: 39.02 | V140: 0 | Y140: 0 | Z140: 1 | AA140: 0 | AB140: 0 | AC140: 0 | AD140: 0 | AE140: 1 | AF140: 1 | AG140: 1 | AH140: 0 | AI140: 1 | AJ140: 1 | AK140: 0
A141: 1976-01-06 | B141: 1 | C141: 6 | D141: 2018 | E141: 2018-01-06 | F141: 6 | G141: 0 | H141: 16:00:00 | I141: 16 | J141: 1.04 | K141: 37.04 | L141: 39.92 | M141: 34.88 | N141: 1.04 | O141: 37.94 | P141: 10.4 | Q141: 38.84 | R141: 32.9 | S141: 38.48 | T141: 38.84 | V141: 0 | Y141: 0 | Z141: 1 | AA141: 0 | AB141: 0 | AC141: 0 | AD141: 0 | AE141: 1 | AF141: 1 | AG141: 1 | AH141: 0 | AI141: 1 | AJ141: 1 | AK141: 0
A142: 1976-01-06 | B142: 1 | C142: 6 | D142: 2018 | E142: 2018-01-06 | F142: 6 | G142: 0 | H142: 17:00:00 | I142: 17 | J142: -0.4 | K142: 37.04 | L142: 39.74 | M142: 34.88 | N142: -0.04 | O142: 37.04 | P142: 10.4 | Q142: 40.28 | R142: 33.98 | S142: 36.68 | T142: 38.84 | V142: 0 | Y142: 0 | Z142: 1 | AA142: 0 | AB142: 0 | AC142: 0 | AD142: 0 | AE142: 1 | AF142: 1 | AG142: 1 | AH142: 0 | AI142: 1 | AJ142: 1 | AK142: 0
A143: 1976-01-06 | B143: 1 | C143: 6 | D143: 2018 | E143: 2018-01-06 | F143: 6 | G143: 0 | H143: 18:00:00 | I143: 18 | J143: -0.04 | K143: 33.44 | L143: 38.84 | M143: 30.2 | N143: -0.94 | O143: 34.16 | P143: 10.4 | Q143: 39.74 | R143: 27.5 | S143: 34.88 | T143: 37.04 | V143: 0 | Y143: 0 | Z143: 1 | AA143: 0 | AB143: 0 | AC143: 0 | AD143: 0 | AE143: 1 | AF143: 1 | AG143: 1 | AH143: 0 | AI143: 1 | AJ143: 1 | AK143: 0
A144: 1976-01-06 | B144: 1 | C144: 6 | D144: 2018 | E144: 2018-01-06 | F144: 6 | G144: 0 | H144: 19:00:00 | I144: 19 | J144: 1.4 | K144: 32.54 | L144: 37.22 | M144: 30.2 | N144: -2.02 | O144: 32.9 | P144: 12.2 | Q144: 37.58 | R144: 26.96 | S144: 34.7 | T144: 35.96 | V144: 0 | Y144: 0 | Z144: 1 | AA144: 0 | AB144: 0 | AC144: 0 | AD144: 0 | AE144: 1 | AF144: 1 | AG144: 1 | AH144: 0 | AI144: 1 | AJ144: 1 | AK144: 0
A145: 1976-01-06 | B145: 1 | C145: 6 | D145: 2018 | E145: 2018-01-06 | F145: 6 | G145: 0 | H145: 20:00:00 | I145: 20 | J145: -0.04 | K145: 32.18 | L145: 37.04 | M145: 30.2 | N145: -4 | O145: 32.36 | P145: 12.2 | Q145: 37.4 | R145: 26.96 | S145: 34.16 | T145: 36.86 | V145: 0 | Y145: 0 | Z145: 1 | AA145: 0 | AB145: 0 | AC145: 0 | AD145: 0 | AE145: 1 | AF145: 1 | AG145: 1 | AH145: 0 | AI145: 1 | AJ145: 1 | AK145: 0
A146: 1976-01-06 | B146: 1 | C146: 6 | D146: 2018 | E146: 2018-01-06 | F146: 6 | G146: 0 | H146: 21:00:00 | I146: 21 | J146: -0.94 | K146: 32 | L146: 36.32 | M146: 30.2 | N146: -4 | O146: 33.98 | P146: 12.2 | Q146: 36.68 | R146: 26.78 | S146: 33.44 | T146: 36.5 | V146: 0 | Y146: 0 | Z146: 1 | AA146: 0 | AB146: 0 | AC146: 0 | AD146: 0 | AE146: 1 | AF146: 1 | AG146: 1 | AH146: 0 | AI146: 1 | AJ146: 1 | AK146: 0
A147: 1976-01-06 | B147: 1 | C147: 6 | D147: 2018 | E147: 2018-01-06 | F147: 6 | G147: 0 | H147: 22:00:00 | I147: 22 | J147: -0.04 | K147: 28.04 | L147: 36.14 | M147: 28.4 | N147: -5.08 | O147: 32 | P147: 12.2 | Q147: 36.14 | R147: 26.06 | S147: 32.9 | T147: 35.96 | V147: 0 | Y147: 0 | Z147: 1 | AA147: 0 | AB147: 0 | AC147: 0 | AD147: 0 | AE147: 1 | AF147: 1 | AG147: 1 | AH147: 0 | AI147: 1 | AJ147: 1 | AK147: 0
A148: 1976-01-06 | B148: 1 | C148: 6 | D148: 2018 | E148: 2018-01-06 | F148: 6 | G148: 0 | H148: 23:00:00 | I148: 23 | J148: -2.02 | K148: 28.04 | L148: 35.6 | M148: 26.6 | N148: -5.08 | O148: 32 | P148: 12.2 | Q148: 35.96 | R148: 25.52 | S148: 32.18 | T148: 34.52 | V148: 0 | Y148: 0 | Z148: 1 | AA148: 0 | AB148: 0 | AC148: 0 | AD148: 0 | AE148: 1 | AF148: 1 | AG148: 1 | AH148: 0 | AI148: 1 | AJ148: 1 | AK148: 0
A149: 1976-01-06 | B149: 1 | C149: 6 | D149: 2018 | E149: 2018-01-06 | F149: 6 | G149: 0 | H149: 1 | I149: 24 | J149: -2.92 | K149: 28.94 | L149: 35.06 | M149: 26.6 | N149: -5.98 | O149: 28.04 | P149: 12.2 | Q149: 35.96 | R149: 25.34 | S149: 31.64 | T149: 33.98 | V149: 0 | Y149: 0 | Z149: 1 | AA149: 0 | AB149: 0 | AC149: 0 | AD149: 0 | AE149: 1 | AF149: 1 | AG149: 1 | AH149: 0 | AI149: 1 | AJ149: 1 | AK149: 0
A150: 1976-01-07 | B150: 1 | C150: 7 | D150: 2018 | E150: 2018-01-07 | F150: 7 | G150: 0 | H150: 01:00:00 | I150: 1 | J150: -2.02 | K150: 24.98 | L150: 34.16 | M150: 26.6 | N150: -7.06 | O150: 28.94 | P150: 12.2 | Q150: 36.14 | R150: 25.34 | S150: 30.2 | T150: 34.16 | V150: 0 | Y150: 0 | Z150: 1 | AA150: 0 | AB150: 0 | AC150: 0 | AD150: 0 | AE150: 1 | AF150: 1 | AG150: 1 | AH150: 0 | AI150: 1 | AJ150: 1 | AK150: 0
A151: 1976-01-07 | B151: 1 | C151: 7 | D151: 2018 | E151: 2018-01-07 | F151: 7 | G151: 0 | H151: 02:00:00 | I151: 2 | J151: -2.02 | K151: 24.98 | L151: 34.16 | M151: 26.6 | N151: -7.96 | O151: 28.04 | P151: 12.2 | Q151: 35.96 | R151: 25.52 | S151: 29.84 | T151: 34.16 | V151: 0 | Y151: 0 | Z151: 1 | AA151: 0 | AB151: 0 | AC151: 0 | AD151: 0 | AE151: 1 | AF151: 1 | AG151: 1 | AH151: 0 | AI151: 1 | AJ151: 1 | AK151: 0
A152: 1976-01-07 | B152: 1 | C152: 7 | D152: 2018 | E152: 2018-01-07 | F152: 7 | G152: 0 | H152: 03:00:00 | I152: 3 | J152: -5.08 | K152: 24.08 | L152: 35.6 | M152: 26.6 | N152: -7.06 | O152: 30.02 | P152: 10.4 | Q152: 36.5 | R152: 25.52 | S152: 32 | T152: 34.16 | V152: 0 | Y152: 0 | Z152: 1 | AA152: 0 | AB152: 0 | AC152: 0 | AD152: 0 | AE152: 1 | AF152: 1 | AG152: 1 | AH152: 0 | AI152: 1 | AJ152: 1 | AK152: 0
A153: 1976-01-07 | B153: 1 | C153: 7 | D153: 2018 | E153: 2018-01-07 | F153: 7 | G153: 0 | H153: 04:00:00 | I153: 4 | J153: -4 | K153: 24.98 | L153: 35.78 | M153: 30.2 | N153: -7.96 | O153: 26.96 | P153: 10.4 | Q153: 36.5 | R153: 26.24 | S153: 29.12 | T153: 33.98 | V153: 0 | Y153: 0 | Z153: 1 | AA153: 0 | AB153: 0 | AC153: 0 | AD153: 0 | AE153: 1 | AF153: 1 | AG153: 1 | AH153: 0 | AI153: 1 | AJ153: 1 | AK153: 0
A154: 1976-01-07 | B154: 1 | C154: 7 | D154: 2018 | E154: 2018-01-07 | F154: 7 | G154: 0 | H154: 05:00:00 | I154: 5 | J154: -0.94 | K154: 24.98 | L154: 35.24 | M154: 28.4 | N154: -14.98 | O154: 26.96 | P154: 8.6 | Q154: 36.14 | R154: 32.72 | S154: 29.12 | T154: 33.08 | V154: 0 | Y154: 0 | Z154: 1 | AA154: 0 | AB154: 0 | AC154: 0 | AD154: 0 | AE154: 1 | AF154: 1 | AG154: 1 | AH154: 0 | AI154: 1 | AJ154: 1 | AK154: 0
A155: 1976-01-07 | B155: 1 | C155: 7 | D155: 2018 | E155: 2018-01-07 | F155: 7 | G155: 0 | H155: 06:00:00 | I155: 6 | J155: -2.02 | K155: 28.4 | L155: 35.24 | M155: 30.2 | N155: -18.04 | O155: 26.06 | P155: 5 | Q155: 36.32 | R155: 32.18 | S155: 30.74 | T155: 33.26 | V155: 0 | Y155: 0 | Z155: 1 | AA155: 0 | AB155: 0 | AC155: 0 | AD155: 0 | AE155: 1 | AF155: 1 | AG155: 1 | AH155: 0 | AI155: 1 | AJ155: 1 | AK155: 0
A156: 1976-01-07 | B156: 1 | C156: 7 | D156: 2018 | E156: 2018-01-07 | F156: 7 | G156: 0 | H156: 07:00:00 | I156: 7 | J156: -9.04 | K156: 32 | L156: 35.42 | M156: 32 | N156: -18.94 | O156: 33.98 | P156: 3.2 | Q156: 36.14 | R156: 30.2 | S156: 25.88 | T156: 33.44 | V156: 0 | Y156: 0 | Z156: 1 | AA156: 0 | AB156: 0 | AC156: 0 | AD156: 0 | AE156: 1 | AF156: 1 | AG156: 1 | AH156: 0 | AI156: 1 | AJ156: 1 | AK156: 0
A157: 1976-01-07 | B157: 1 | C157: 7 | D157: 2018 | E157: 2018-01-07 | F157: 7 | G157: 0 | H157: 08:00:00 | I157: 8 | J157: -5.08 | K157: 32 | L157: 35.78 | M157: 30.2 | N157: -20.92 | O157: 33.08 | P157: 1.4 | Q157: 35.78 | R157: 26.96 | S157: 28.58 | T157: 33.44 | V157: 0 | Y157: 0 | Z157: 1 | AA157: 0 | AB157: 0 | AC157: 0 | AD157: 0 | AE157: 1 | AF157: 1 | AG157: 1 | AH157: 0 | AI157: 1 | AJ157: 1 | AK157: 0
A158: 1976-01-07 | B158: 1 | C158: 7 | D158: 2018 | E158: 2018-01-07 | F158: 7 | G158: 0 | H158: 09:00:00 | I158: 9 | J158: -2.02 | K158: 30.02 | L158: 37.58 | M158: 28.4 | N158: -16.96 | O158: 33.08 | P158: 3.2 | Q158: 37.4 | R158: 24.62 | S158: 28.04 | T158: 33.8 | V158: 0 | Y158: 0 | Z158: 1 | AA158: 0 | AB158: 0 | AC158: 0 | AD158: 0 | AE158: 1 | AF158: 1 | AG158: 1 | AH158: 0 | AI158: 1 | AJ158: 1 | AK158: 0
A159: 1976-01-07 | B159: 1 | C159: 7 | D159: 2018 | E159: 2018-01-07 | F159: 7 | G159: 0 | H159: 10:00:00 | I159: 10 | J159: 6.98 | K159: 28.04 | L159: 39.56 | M159: 28.4 | N159: -9.94 | O159: 32 | P159: 3.2 | Q159: 40.46 | R159: 23.36 | S159: 29.12 | T159: 37.04 | V159: 0 | Y159: 0 | Z159: 1 | AA159: 0 | AB159: 0 | AC159: 0 | AD159: 0 | AE159: 1 | AF159: 1 | AG159: 1 | AH159: 0 | AI159: 1 | AJ159: 1 | AK159: 0
A160: 1976-01-07 | B160: 1 | C160: 7 | D160: 2018 | E160: 2018-01-07 | F160: 7 | G160: 0 | H160: 11:00:00 | I160: 11 | J160: 15.08 | K160: 28.04 | L160: 41.9 | M160: 28.4 | N160: -4 | O160: 32 | P160: 3.2 | Q160: 41 | R160: 24.8 | S160: 31.28 | T160: 39.02 | V160: 0 | Y160: 0 | Z160: 1 | AA160: 0 | AB160: 0 | AC160: 0 | AD160: 0 | AE160: 1 | AF160: 1 | AG160: 1 | AH160: 0 | AI160: 1 | AJ160: 1 | AK160: 0
A161: 1976-01-07 | B161: 1 | C161: 7 | D161: 2018 | E161: 2018-01-07 | F161: 7 | G161: 0 | H161: 12:00:00 | I161: 12 | J161: 12.92 | K161: 28.94 | L161: 44.06 | M161: 28.4 | N161: 1.04 | O161: 32 | P161: 3.2 | Q161: 44.78 | R161: 24.62 | S161: 31.64 | T161: 42.08 | V161: 0 | Y161: 0 | Z161: 1 | AA161: 0 | AB161: 0 | AC161: 0 | AD161: 0 | AE161: 1 | AF161: 1 | AG161: 1 | AH161: 0 | AI161: 1 | AJ161: 1 | AK161: 0
A162: 1976-01-07 | B162: 1 | C162: 7 | D162: 2018 | E162: 2018-01-07 | F162: 7 | G162: 0 | H162: 13:00:00 | I162: 13 | J162: 10.94 | K162: 28.94 | L162: 46.58 | M162: 26.6 | N162: 3.02 | O162: 32.18 | P162: 5 | Q162: 48.74 | R162: 25.16 | S162: 32.54 | T162: 44.96 | V162: 0 | Y162: 0 | Z162: 1 | AA162: 0 | AB162: 0 | AC162: 0 | AD162: 0 | AE162: 1 | AF162: 1 | AG162: 1 | AH162: 0 | AI162: 1 | AJ162: 1 | AK162: 0
A163: 1976-01-07 | B163: 1 | C163: 7 | D163: 2018 | E163: 2018-01-07 | F163: 7 | G163: 0 | H163: 14:00:00 | I163: 14 | J163: 15.98 | K163: 28.94 | L163: 45.68 | M163: 28.4 | N163: 5 | O163: 32.18 | P163: 5.9 | Q163: 45.86 | R163: 26.24 | S163: 32 | T163: 46.94 | V163: 0 | Y163: 0 | Z163: 1 | AA163: 0 | AB163: 0 | AC163: 0 | AD163: 0 | AE163: 1 | AF163: 1 | AG163: 1 | AH163: 0 | AI163: 1 | AJ163: 1 | AK163: 0
A164: 1976-01-07 | B164: 1 | C164: 7 | D164: 2018 | E164: 2018-01-07 | F164: 7 | G164: 0 | H164: 15:00:00 | I164: 15 | J164: 14 | K164: 30.02 | L164: 44.6 | M164: 28.4 | N164: 5 | O164: 32.36 | P164: 6.8 | Q164: 48.92 | R164: 26.96 | S164: 32.36 | T164: 46.94 | V164: 0 | Y164: 0 | Z164: 1 | AA164: 0 | AB164: 0 | AC164: 0 | AD164: 0 | AE164: 1 | AF164: 1 | AG164: 1 | AH164: 0 | AI164: 1 | AJ164: 1 | AK164: 0
A165: 1976-01-07 | B165: 1 | C165: 7 | D165: 2018 | E165: 2018-01-07 | F165: 7 | G165: 0 | H165: 16:00:00 | I165: 16 | J165: 10.04 | K165: 30.02 | L165: 46.22 | M165: 28.4 | N165: 5 | O165: 32.18 | P165: 7.7 | Q165: 49.82 | R165: 27.5 | S165: 32.18 | T165: 46.94 | V165: 0 | Y165: 0 | Z165: 1 | AA165: 0 | AB165: 0 | AC165: 0 | AD165: 0 | AE165: 1 | AF165: 1 | AG165: 1 | AH165: 0 | AI165: 1 | AJ165: 1 | AK165: 0
A166: 1976-01-07 | B166: 1 | C166: 7 | D166: 2018 | E166: 2018-01-07 | F166: 7 | G166: 0 | H166: 17:00:00 | I166: 17 | J166: 3.02 | K166: 30.02 | L166: 45.86 | M166: 28.4 | N166: 1.94 | O166: 28.04 | P166: 8.6 | Q166: 48.74 | R166: 24.62 | S166: 27.86 | T166: 44.96 | V166: 0 | Y166: 0 | Z166: 1 | AA166: 0 | AB166: 0 | AC166: 0 | AD166: 0 | AE166: 1 | AF166: 1 | AG166: 1 | AH166: 0 | AI166: 1 | AJ166: 1 | AK166: 0
A167: 1976-01-07 | B167: 1 | C167: 7 | D167: 2018 | E167: 2018-01-07 | F167: 7 | G167: 0 | H167: 18:00:00 | I167: 18 | J167: -4 | K167: 21.02 | L167: 43.16 | M167: 23 | N167: 3.02 | O167: 24.08 | P167: 8.6 | Q167: 45.32 | R167: 19.4 | S167: 25.88 | T167: 41.72 | V167: 0 | Y167: 0 | Z167: 1 | AA167: 0 | AB167: 0 | AC167: 0 | AD167: 0 | AE167: 1 | AF167: 1 | AG167: 1 | AH167: 0 | AI167: 1 | AJ167: 1 | AK167: 0
A168: 1976-01-07 | B168: 1 | C168: 7 | D168: 2018 | E168: 2018-01-07 | F168: 7 | G168: 0 | H168: 19:00:00 | I168: 19 | J168: -2.92 | K168: 17.06 | L168: 41.36 | M168: 19.4 | N168: 3.92 | O168: 24.08 | P168: 8.6 | Q168: 44.24 | R168: 15.8 | S168: 24.26 | T168: 40.64 | V168: 0 | Y168: 0 | Z168: 1 | AA168: 0 | AB168: 0 | AC168: 0 | AD168: 0 | AE168: 1 | AF168: 1 | AG168: 1 | AH168: 0 | AI168: 1 | AJ168: 1 | AK168: 0
A169: 1976-01-07 | B169: 1 | C169: 7 | D169: 2018 | E169: 2018-01-07 | F169: 7 | G169: 0 | H169: 20:00:00 | I169: 20 | J169: 1.04 | K169: 17.06 | L169: 40.28 | M169: 17.6 | N169: 6.08 | O169: 21.02 | P169: 8.6 | Q169: 43.34 | R169: 13.64 | S169: 21.92 | T169: 41 | V169: 0 | Y169: 0 | Z169: 1 | AA169: 0 | AB169: 0 | AC169: 0 | AD169: 0 | AE169: 1 | AF169: 1 | AG169: 1 | AH169: 0 | AI169: 1 | AJ169: 1 | AK169: 0
A170: 1976-01-07 | B170: 1 | C170: 7 | D170: 2018 | E170: 2018-01-07 | F170: 7 | G170: 0 | H170: 21:00:00 | I170: 21 | J170: -0.04 | K170: 12.92 | L170: 40.64 | M170: 15.8 | N170: 6.98 | O170: 21.02 | P170: 10.4 | Q170: 43.52 | R170: 8.6 | S170: 20.3 | T170: 39.2 | V170: 0 | Y170: 0 | Z170: 1 | AA170: 0 | AB170: 0 | AC170: 0 | AD170: 0 | AE170: 1 | AF170: 1 | AG170: 1 | AH170: 0 | AI170: 1 | AJ170: 1 | AK170: 0
A171: 1976-01-07 | B171: 1 | C171: 7 | D171: 2018 | E171: 2018-01-07 | F171: 7 | G171: 0 | H171: 22:00:00 | I171: 22 | J171: 1.94 | K171: 10.04 | L171: 39.92 | M171: 12.2 | N171: 10.94 | O171: 19.04 | P171: 12.2 | Q171: 42.44 | R171: 7.16 | S171: 24.08 | T171: 41 | V171: 0 | Y171: 0 | Z171: 1 | AA171: 0 | AB171: 0 | AC171: 0 | AD171: 0 | AE171: 1 | AF171: 1 | AG171: 1 | AH171: 0 | AI171: 1 | AJ171: 1 | AK171: 0
A172: 1976-01-07 | B172: 1 | C172: 7 | D172: 2018 | E172: 2018-01-07 | F172: 7 | G172: 0 | H172: 23:00:00 | I172: 23 | J172: 1.94 | K172: 10.04 | L172: 39.02 | M172: 10.4 | N172: 12.92 | O172: 15.08 | P172: 10.4 | Q172: 41.9 | R172: 4.46 | S172: 20.12 | T172: 38.12 | V172: 0 | Y172: 0 | Z172: 1 | AA172: 0 | AB172: 0 | AC172: 0 | AD172: 0 | AE172: 1 | AF172: 1 | AG172: 1 | AH172: 0 | AI172: 1 | AJ172: 1 | AK172: 0
A173: 1976-01-07 | B173: 1 | C173: 7 | D173: 2018 | E173: 2018-01-07 | F173: 7 | G173: 0 | H173: 1 | I173: 24 | J173: 3.92 | K173: 8.96 | L173: 38.3 | M173: 10.4 | N173: 12.02 | O173: 15.98 | P173: 8.6 | Q173: 41.36 | R173: 3.02 | S173: 21.74 | T173: 37.4 | V173: 0 | Y173: 0 | Z173: 1 | AA173: 0 | AB173: 0 | AC173: 0 | AD173: 0 | AE173: 1 | AF173: 1 | AG173: 1 | AH173: 0 | AI173: 1 | AJ173: 1 | AK173: 0
A174: 1976-01-08 | B174: 1 | C174: 8 | D174: 2018 | E174: 2018-01-08 | F174: 1 | G174: 0 | H174: 01:00:00 | I174: 1 | J174: 6.98 | K174: 6.98 | L174: 38.66 | M174: 10.4 | N174: 12.02 | O174: 17.96 | P174: 8.6 | Q174: 41.54 | R174: 1.58 | S174: 24.26 | T174: 37.4 | V174: 0 | Y174: 0 | Z174: 1 | AA174: 0 | AB174: 0 | AC174: 0 | AD174: 0 | AE174: 1 | AF174: 1 | AG174: 1 | AH174: 0 | AI174: 1 | AJ174: 1 | AK174: 0
A175: 1976-01-08 | B175: 1 | C175: 8 | D175: 2018 | E175: 2018-01-08 | F175: 1 | G175: 0 | H175: 02:00:00 | I175: 2 | J175: 6.08 | K175: 6.98 | L175: 38.84 | M175: 8.6 | N175: 12.02 | O175: 17.06 | P175: 14 | Q175: 41.72 | R175: 0.5 | S175: 25.34 | T175: 36.86 | V175: 0 | Y175: 0 | Z175: 1 | AA175: 0 | AB175: 0 | AC175: 0 | AD175: 0 | AE175: 1 | AF175: 1 | AG175: 1 | AH175: 0 | AI175: 1 | AJ175: 1 | AK175: 0
A176: 1976-01-08 | B176: 1 | C176: 8 | D176: 2018 | E176: 2018-01-08 | F176: 1 | G176: 0 | H176: 03:00:00 | I176: 3 | J176: 6.98 | K176: 3.92 | L176: 39.74 | M176: 8.6 | N176: 12.92 | O176: 17.06 | P176: 14 | Q176: 42.08 | R176: -0.58 | S176: 26.6 | T176: 37.22 | V176: 0 | Y176: 0 | Z176: 1 | AA176: 0 | AB176: 0 | AC176: 0 | AD176: 0 | AE176: 1 | AF176: 1 | AG176: 1 | AH176: 0 | AI176: 1 | AJ176: 1 | AK176: 0
A177: 1976-01-08 | B177: 1 | C177: 8 | D177: 2018 | E177: 2018-01-08 | F177: 1 | G177: 0 | H177: 04:00:00 | I177: 4 | J177: 5 | K177: 3.92 | L177: 41.72 | M177: 12.2 | N177: 12.92 | O177: 12.92 | P177: 14 | Q177: 43.52 | R177: -1.3 | S177: 25.16 | T177: 39.2 | V177: 0 | Y177: 0 | Z177: 1 | AA177: 0 | AB177: 0 | AC177: 0 | AD177: 0 | AE177: 1 | AF177: 1 | AG177: 1 | AH177: 0 | AI177: 1 | AJ177: 1 | AK177: 0
A178: 1976-01-08 | B178: 1 | C178: 8 | D178: 2018 | E178: 2018-01-08 | F178: 1 | G178: 0 | H178: 05:00:00 | I178: 5 | J178: 6.98 | K178: 3.92 | L178: 42.26 | M178: 12.2 | N178: 12.92 | O178: 15.98 | P178: 17.6 | Q178: 44.6 | R178: -2.2 | S178: 24.08 | T178: 39.2 | V178: 0 | Y178: 0 | Z178: 1 | AA178: 0 | AB178: 0 | AC178: 0 | AD178: 0 | AE178: 1 | AF178: 1 | AG178: 1 | AH178: 0 | AI178: 1 | AJ178: 1 | AK178: 0
A179: 1976-01-08 | B179: 1 | C179: 8 | D179: 2018 | E179: 2018-01-08 | F179: 1 | G179: 0 | H179: 06:00:00 | I179: 6 | J179: 8.06 | K179: 1.94 | L179: 42.98 | M179: 12.2 | N179: 12.92 | O179: 17.06 | P179: 15.8 | Q179: 45.5 | R179: -2.38 | S179: 25.88 | T179: 39.74 | V179: 0 | Y179: 0 | Z179: 1 | AA179: 0 | AB179: 0 | AC179: 0 | AD179: 0 | AE179: 1 | AF179: 1 | AG179: 1 | AH179: 0 | AI179: 1 | AJ179: 1 | AK179: 0
A180: 1976-01-08 | B180: 1 | C180: 8 | D180: 2018 | E180: 2018-01-08 | F180: 1 | G180: 0 | H180: 07:00:00 | I180: 7 | J180: 10.94 | K180: 3.92 | L180: 41.72 | M180: 12.2 | N180: 14 | O180: 15.08 | P180: 14 | Q180: 45.14 | R180: -2.92 | S180: 25.52 | T180: 39.2 | V180: 0 | Y180: 0 | Z180: 1 | AA180: 0 | AB180: 0 | AC180: 0 | AD180: 0 | AE180: 1 | AF180: 1 | AG180: 1 | AH180: 0 | AI180: 1 | AJ180: 1 | AK180: 0
A181: 1976-01-08 | B181: 1 | C181: 8 | D181: 2018 | E181: 2018-01-08 | F181: 1 | G181: 0 | H181: 08:00:00 | I181: 8 | J181: 10.94 | K181: 3.92 | L181: 42.44 | M181: 12.2 | N181: 15.08 | O181: 17.06 | P181: 14 | Q181: 46.04 | R181: -2.56 | S181: 24.62 | T181: 39.2 | V181: 0 | Y181: 1 | Z181: 0 | AA181: 0 | AB181: 0 | AC181: 0 | AD181: 0 | AE181: 1 | AF181: 1 | AG181: 1 | AH181: 0 | AI181: 1 | AJ181: 1 | AK181: 0
A182: 1976-01-08 | B182: 1 | C182: 8 | D182: 2018 | E182: 2018-01-08 | F182: 1 | G182: 0 | H182: 09:00:00 | I182: 9 | J182: 12.92 | K182: 8.96 | L182: 43.16 | M182: 17.6 | N182: 17.06 | O182: 24.98 | P182: 15.8 | Q182: 46.58 | R182: -1.3 | S182: 28.94 | T182: 41 | V182: 0 | Y182: 1 | Z182: 0 | AA182: 0 | AB182: 0 | AC182: 0 | AD182: 0 | AE182: 1 | AF182: 1 | AG182: 1 | AH182: 0 | AI182: 1 | AJ182: 1 | AK182: 0
A183: 1976-01-08 | B183: 1 | C183: 8 | D183: 2018 | E183: 2018-01-08 | F183: 1 | G183: 0 | H183: 10:00:00 | I183: 10 | J183: 17.06 | K183: 17.96 | L183: 45.86 | M183: 24.8 | N183: 19.94 | O183: 32 | P183: 14.9 | Q183: 48.74 | R183: 1.04 | S183: 34.88 | T183: 46.04 | V183: 0 | Y183: 1 | Z183: 0 | AA183: 0 | AB183: 0 | AC183: 0 | AD183: 0 | AE183: 1 | AF183: 1 | AG183: 1 | AH183: 0 | AI183: 1 | AJ183: 1 | AK183: 0
A184: 1976-01-08 | B184: 1 | C184: 8 | D184: 2018 | E184: 2018-01-08 | F184: 1 | G184: 0 | H184: 11:00:00 | I184: 11 | J184: 21.92 | K184: 17.96 | L184: 50.36 | M184: 28.4 | N184: 21.02 | O184: 34.52 | P184: 14 | Q184: 50 | R184: 6.8 | S184: 34.34 | T184: 51.08 | V184: 0 | Y184: 1 | Z184: 0 | AA184: 0 | AB184: 0 | AC184: 0 | AD184: 0 | AE184: 1 | AF184: 1 | AG184: 1 | AH184: 0 | AI184: 1 | AJ184: 1 | AK184: 0
A185: 1976-01-08 | B185: 1 | C185: 8 | D185: 2018 | E185: 2018-01-08 | F185: 1 | G185: 0 | H185: 12:00:00 | I185: 12 | J185: 19.04 | K185: 36.32 | L185: 53.96 | M185: 32.54 | N185: 21.92 | O185: 37.94 | P185: 15.8 | Q185: 56.12 | R185: 11.66 | S185: 37.76 | T185: 57.02 | V185: 0 | Y185: 1 | Z185: 0 | AA185: 0 | AB185: 0 | AC185: 0 | AD185: 0 | AE185: 1 | AF185: 1 | AG185: 1 | AH185: 0 | AI185: 1 | AJ185: 1 | AK185: 0
A186: 1976-01-08 | B186: 1 | C186: 8 | D186: 2018 | E186: 2018-01-08 | F186: 1 | G186: 0 | H186: 13:00:00 | I186: 13 | J186: 24.08 | K186: 39.92 | L186: 58.1 | M186: 35.6 | N186: 24.98 | O186: 40.28 | P186: 15.8 | Q186: 66.92 | R186: 33.44 | S186: 39.92 | T186: 59 | V186: 0 | Y186: 1 | Z186: 0 | AA186: 0 | AB186: 0 | AC186: 0 | AD186: 0 | AE186: 1 | AF186: 1 | AG186: 1 | AH186: 0 | AI186: 1 | AJ186: 1 | AK186: 0
A187: 1976-01-08 | B187: 1 | C187: 8 | D187: 2018 | E187: 2018-01-08 | F187: 1 | G187: 0 | H187: 14:00:00 | I187: 14 | J187: 24.98 | K187: 39.92 | L187: 59.18 | M187: 37.58 | N187: 28.04 | O187: 42.98 | P187: 15.8 | Q187: 64.94 | R187: 35.24 | S187: 43.52 | T187: 60.08 | V187: 0 | Y187: 1 | Z187: 0 | AA187: 0 | AB187: 0 | AC187: 0 | AD187: 0 | AE187: 1 | AF187: 1 | AG187: 1 | AH187: 0 | AI187: 1 | AJ187: 1 | AK187: 0
A188: 1976-01-08 | B188: 1 | C188: 8 | D188: 2018 | E188: 2018-01-08 | F188: 1 | G188: 0 | H188: 15:00:00 | I188: 15 | J188: 30.02 | K188: 42.08 | L188: 59.72 | M188: 38.66 | N188: 28.04 | O188: 42.98 | P188: 32 | Q188: 62.96 | R188: 36.32 | S188: 44.06 | T188: 59 | V188: 0 | Y188: 1 | Z188: 0 | AA188: 0 | AB188: 0 | AC188: 0 | AD188: 0 | AE188: 1 | AF188: 1 | AG188: 1 | AH188: 0 | AI188: 1 | AJ188: 1 | AK188: 0
A189: 1976-01-08 | B189: 1 | C189: 8 | D189: 2018 | E189: 2018-01-08 | F189: 1 | G189: 0 | H189: 16:00:00 | I189: 16 | J189: 23 | K189: 41 | L189: 59 | M189: 39.02 | N189: 26.96 | O189: 42.08 | P189: 14 | Q189: 62.06 | R189: 36.32 | S189: 42.44 | T189: 50.18 | V189: 0 | Y189: 1 | Z189: 0 | AA189: 0 | AB189: 0 | AC189: 0 | AD189: 0 | AE189: 1 | AF189: 1 | AG189: 1 | AH189: 0 | AI189: 1 | AJ189: 1 | AK189: 0
A190: 1976-01-08 | B190: 1 | C190: 8 | D190: 2018 | E190: 2018-01-08 | F190: 1 | G190: 0 | H190: 17:00:00 | I190: 17 | J190: 30.02 | K190: 41 | L190: 56.48 | M190: 39.2 | N190: 24.98 | O190: 39.92 | P190: 14 | Q190: 58.82 | R190: 35.42 | S190: 39.74 | T190: 53.96 | V190: 0 | Y190: 1 | Z190: 0 | AA190: 0 | AB190: 0 | AC190: 0 | AD190: 0 | AE190: 1 | AF190: 1 | AG190: 1 | AH190: 0 | AI190: 1 | AJ190: 1 | AK190: 0
A191: 1976-01-08 | B191: 1 | C191: 8 | D191: 2018 | E191: 2018-01-08 | F191: 1 | G191: 0 | H191: 18:00:00 | I191: 18 | J191: 24.08 | K191: 33.8 | L191: 51.98 | M191: 32.72 | N191: 24.98 | O191: 35.06 | P191: 14 | Q191: 53.78 | R191: 24.26 | S191: 37.22 | T191: 53.06 | V191: 0 | Y191: 1 | Z191: 0 | AA191: 0 | AB191: 0 | AC191: 1 | AD191: 0 | AE191: 1 | AF191: 1 | AG191: 1 | AH191: 0 | AI191: 1 | AJ191: 1 | AK191: 0
A192: 1976-01-08 | B192: 1 | C192: 8 | D192: 2018 | E192: 2018-01-08 | F192: 1 | G192: 0 | H192: 19:00:00 | I192: 19 | J192: 26.96 | K192: 33.26 | L192: 51.08 | M192: 32.36 | N192: 26.06 | O192: 33.98 | P192: 14 | Q192: 53.96 | R192: 21.02 | S192: 36.5 | T192: 51.98 | V192: 0 | Y192: 1 | Z192: 0 | AA192: 0 | AB192: 0 | AC192: 1 | AD192: 0 | AE192: 1 | AF192: 1 | AG192: 1 | AH192: 0 | AI192: 1 | AJ192: 1 | AK192: 0
A193: 1976-01-08 | B193: 1 | C193: 8 | D193: 2018 | E193: 2018-01-08 | F193: 1 | G193: 0 | H193: 20:00:00 | I193: 20 | J193: 28.04 | K193: 32.36 | L193: 49.46 | M193: 28.4 | N193: 26.96 | O193: 32.72 | P193: 15.8 | Q193: 50.9 | R193: 19.94 | S193: 34.88 | T193: 47.66 | V193: 0 | Y193: 1 | Z193: 0 | AA193: 0 | AB193: 0 | AC193: 0 | AD193: 0 | AE193: 1 | AF193: 1 | AG193: 1 | AH193: 0 | AI193: 1 | AJ193: 1 | AK193: 0
A194: 1976-01-08 | B194: 1 | C194: 8 | D194: 2018 | E194: 2018-01-08 | F194: 1 | G194: 0 | H194: 21:00:00 | I194: 21 | J194: 26.96 | K194: 23 | L194: 48.38 | M194: 28.4 | N194: 26.96 | O194: 30.02 | P194: 17.6 | Q194: 50 | R194: 17.96 | S194: 33.26 | T194: 48.92 | V194: 0 | Y194: 1 | Z194: 0 | AA194: 0 | AB194: 0 | AC194: 0 | AD194: 0 | AE194: 1 | AF194: 1 | AG194: 1 | AH194: 0 | AI194: 1 | AJ194: 1 | AK194: 0
A195: 1976-01-08 | B195: 1 | C195: 8 | D195: 2018 | E195: 2018-01-08 | F195: 1 | G195: 0 | H195: 22:00:00 | I195: 22 | J195: 30.92 | K195: 21.02 | L195: 46.76 | M195: 28.4 | N195: 28.04 | O195: 26.96 | P195: 17.6 | Q195: 47.84 | R195: 16.88 | S195: 33.62 | T195: 46.94 | V195: 0 | Y195: 1 | Z195: 0 | AA195: 0 | AB195: 0 | AC195: 0 | AD195: 0 | AE195: 1 | AF195: 1 | AG195: 1 | AH195: 0 | AI195: 1 | AJ195: 1 | AK195: 0
A196: 1976-01-08 | B196: 1 | C196: 8 | D196: 2018 | E196: 2018-01-08 | F196: 1 | G196: 0 | H196: 23:00:00 | I196: 23 | J196: 37.04 | K196: 21.02 | L196: 46.76 | M196: 24.8 | N196: 28.04 | O196: 26.06 | P196: 17.6 | Q196: 46.94 | R196: 15.62 | S196: 31.46 | T196: 46.04 | V196: 0 | Y196: 1 | Z196: 0 | AA196: 0 | AB196: 0 | AC196: 0 | AD196: 0 | AE196: 1 | AF196: 1 | AG196: 1 | AH196: 0 | AI196: 1 | AJ196: 1 | AK196: 0
A197: 1976-01-08 | B197: 1 | C197: 8 | D197: 2018 | E197: 2018-01-08 | F197: 1 | G197: 0 | H197: 1 | I197: 24 | J197: 33.8 | K197: 21.92 | L197: 46.22 | M197: 24.8 | N197: 28.04 | O197: 24.98 | P197: 19.4 | Q197: 48.74 | R197: 16.16 | S197: 30.02 | T197: 46.04 | V197: 0 | Y197: 0 | Z197: 1 | AA197: 0 | AB197: 0 | AC197: 0 | AD197: 0 | AE197: 1 | AF197: 1 | AG197: 1 | AH197: 0 | AI197: 1 | AJ197: 1 | AK197: 0
A198: 1976-01-09 | B198: 1 | C198: 9 | D198: =$AO$4 -> 2018 | E198: 2018-01-09 | F198: 2 | G198: =COUNTIF($AM$34:$AM$43,E198) -> 0 | H198: 01:00:00 | I198: 1 | J198: 33.98 | K198: 19.94 | L198: 46.58 | M198: 26.6 | N198: 28.04 | O198: 21.92 | P198: 19.4 | Q198: 48.92 | R198: 14.72 | S198: 28.58 | T198: 44.6 | V198: =SUMPRODUCT($J$2:$T$2,J198:T198) -> 0 | Y198: =OR(B198<=$AO$14,B198>=$AN$14)*(F198<6)*(I198>$AN$15)*(I198<=$AO$15)*(G198<>1) -> 0 | Z198: =OR(B198<=$AO$14,B198>=$AN$14)*(Y198=0) -> 1 | AA198: =AND(B198>=$AN$24,B198<=$AO$24)*(F198<6)*(I198>$AN$25)*(I198<=$AO$25)*(G198<>1) -> 0 | AB198: =AND(B198>=$AN$24,B198<=$AO$24)*(AA198=0) -> 0 | AC198: =OR(B198<=$AO$19,B198>=$AN$19)*(F198<6)*(I198>$AN$20)*(I198<=$AO$20) -> 0 | AD198: =AND(B198>=$AN$29,B198<=$AO$29)*(F198<6)*(I198>$AN$30)*(I198<=$AO$30) -> 0 | AE198: =IF(OR(E198=$AM$34,E198=$AM$35,E198=$AM$36,E198=$AM$37,E198=$AM$38,E198=$AM$39,E198=$AM$40,E198=$AM$41,E198=$AM$42,E198=$AM$43),0,1) -> 1 | AF198: 1 | AG198: =IF(OR(AND(E198>=$AM$47,E198<=$AN$47),AND(E198>=$AM$48,E198<=$AN$48),AND(E198>=$AM$49,E198<=$AN$49),AND(E198>=$AM$50,E198<=$AN$50),AND(E198>=$AM$51,E198<=$AN$51)),0,1)*AE198 -> 1 | AH198: =(B198>=5)*(B198<=10) -> 0 | AI198: =1*OR(B198<=4,B198>=11) -> 1 | AJ198: =LOOKUP(B198,$AM$57:$AM$68,$AN$57:$AN$68) -> 1 | AK198: =LOOKUP($AO$10,$AE$5:$AI$5,AE198:AI198)*((F198<6)*(I198>$AO$7)*(I198<=$AP$7)+(F198=6)*(I198>$AO$8)*(I198<=$AP$8)+(F198>=7)*(I198>$AO$9)*(I198<=$AP$9)) -> 0
A199: 1976-01-09 | B199: 1 | C199: 9 | D199: 2018 | E199: =DATE(D199,B199,C199) -> 2018-01-09 | F199: =WEEKDAY(E199,2) -> 2 | G199: 0 | H199: 02:00:00 | I199: 2 | J199: 33.98 | K199: 19.94 | L199: 46.58 | M199: 24.8 | N199: 28.04 | O199: 24.98 | P199: 19.4 | Q199: 49.1 | R199: 15.8 | S199: 27.32 | T199: 42.8 | V199: 0 | Y199: 0 | Z199: 1 | AA199: 0 | AB199: 0 | AC199: 0 | AD199: 0 | AE199: 1 | AF199: 1 | AG199: 1 | AH199: 0 | AI199: 1 | AJ199: 1 | AK199: 0
A200: 1976-01-09 | B200: 1 | C200: 9 | D200: 2018 | E200: 2018-01-09 | F200: 2 | G200: 0 | H200: 03:00:00 | I200: =H200*24 -> 3 | J200: 33.08 | K200: 19.04 | L200: 47.48 | M200: 24.8 | N200: 28.94 | O200: 21.02 | P200: 20.3 | Q200: 50 | R200: 15.62 | S200: 25.88 | T200: 44.6 | V200: 0 | Y200: 0 | Z200: 1 | AA200: 0 | AB200: 0 | AC200: 0 | AD200: 0 | AE200: 1 | AF200: 1 | AG200: 1 | AH200: 0 | AI200: 1 | AJ200: 1 | AK200: 0
... 2050 more rows

Sheet ECMs (hidden)
R1: General Instructions for Use of Mass Save Small Buildings Calculation Tool
I4: <<< Click here to begin
R12: Cell Color Descriptions
S13: Protected cell with formula or generic input; these cells cannot be changed
S14: User Input Cell; these cells require an input by the user and are refernced in calculations
S15: Highlights tables where User Inputs will be required
R17: Workspace Tab | AA17: Project Info Tab
R27: ECM Summary Tab | AA27: Individual ECM Calculation Tabs

Sheet Project Info
A1: Contact Information | M1: Tool Version: | O1: =Instructions!T9 -> v2026.02.19 | Q1: Facility Description
C2: Customer | F2: Electric PA | I2: Gas PA
A3: Company
A4: Contact Name
A5: Contact Email | M5: All Required Project | O5: =IF(OR(ISBLANK(F3),ISBLANK(I3),ISBLANK(C15),ISBLANK(C16),ISBLANK(C17),ISBLANK(C18),ISBLANK(C19),ISBLANK(C20),ISBLANK(C21),ISBLANK(C22),ISBLANK(C23),ISBLANK(I15),ISBLANK(J15),ISBLANK(I16),ISBLANK(J16),ISBLANK(I17),ISBLANK(J17),ISBLANK(I18),ISBLANK(I19)),"NO","Yes") -> NO
A6: Contact Phone | M6: Info Inputs Complete?
A7: Account #(s) | M7: *All required inputs must be complete
A8: Application # | M8: for the tool to calculate as intended.
A9: TA Vendor
A11: Project Information | G11: General Building Hours of Operation | L11: Monthly/Seasonal | N11: Must enter a value for each
A12: Project Name | G12: (Times must be entered in 0 - 24 hr format) | L12: Bldg Hours Diversity | N12: month (0 - 100%). If left blank,
A13: Street Address | L13: (if variable) | N13: default of 100% is assumed.
A14: City | B14: Zip Code | I14: Start | J14: End | L14: Month | M14: Usage Div. | N14: Default
A15: State | C15: NH | G15: Weekdays | L15: Jan | N15: 1 | O15: <<
A16: Weather Data Location (TMYx) | G16: Saturday | L16: Feb | N16: 1 | O16: <<
A17: Building Area, ft² (excluding parking garage) | G17: Sunday | L17: Mar | N17: 1 | O17: <<
A18: Building Type | G18: Holiday Closures? | I18: 1-Standard US Holidays | L18: Apr | N18: 1 | O18: <<
A19: Program Year | G19: Seasonal Bldg Hours? | I19: Constant Year-Round | L19: May | N19: 1 | O19: <<
A20: Permitting Code | C20: 2018 IECC / ASHRAE 90.1-2016 | G20: If building is not used, enter "0" for Start and End | L20: Jun | N20: 1 | O20: <<
A21: Fossil Fuel Type | G21: Entered Annual Operating Hours | J21: =SUM(F44:F67) -> 0 | L21: Jul | N21: 1 | O21: <<
A22: Number of Building Floors | L22: Aug | N22: 1 | O22: <<
A23: Program Path | L23: Sep | N23: 1 | O23: <<
L24: Oct | N24: 1 | O24: <<
A25: Project Design and Construction Schedule | L25: Nov | N25: 1 | O25: <<
A26: Phase | C26: Estimated Completion Date | L26: Dec | N26: 1 | O26: <<
A27: Schematic Design (SD)
A28: Design Development (DD)
A29: Construction Documents (CD)
A30: Construction Start
A31: Construction Completion
A40: Occupied Hours | F40: Bin Hours - Peak Period Breakdown
A41: OA Drybulb | C41: Average Bin Conditions | F41: Total | G41: Winter | H41: Winter | I41: Summer | J41: Summer | K41: Winter | L41: Summer
A42: Bin Range | C42: OA db | D42: OA wb | E42: OA Enth | F42: Bin | G42: On-Peak | H42: Off-Peak | I42: On-Peak | J42: Off-Peak | K42: Demand | L42: Demand
A43: From | B43: To | C43: °F | D43: °F | E43: Btu/lb | F43: Hours | G43: Hours | H43: Hours | I43: Hours | J43: Hours | K43: Hours | L43: Hours
A44: 100 | B44: 105 | C44: =TMYx!BZ15 -> 102 | D44: =TMYx!CA15 -> 76 | E44: =TMYx!CB15 -> 40 | F44: =TMYx!AT15 -> 0 | G44: =TMYx!AU15 -> 0 | H44: =TMYx!AV15 -> 0 | I44: =TMYx!AW15 -> 0 | J44: =TMYx!AX15 -> 0 | K44: =TMYx!AY15 -> 0 | L44: =TMYx!AZ15 -> 0
A45: 95 | B45: 100 | C45: =TMYx!BZ16 -> 95.21927273 | D45: =TMYx!CA16 -> 74.53402527 | E45: =TMYx!CB16 -> 37.92329606 | F45: =TMYx!AT16 -> 0 | G45: =TMYx!AU16 -> 0 | H45: =TMYx!AV16 -> 0 | I45: =TMYx!AW16 -> 0 | J45: =TMYx!AX16 -> 0 | K45: =TMYx!AY16 -> 0 | L45: =TMYx!AZ16 -> 0
A46: 90 | B46: 95 | C46: =TMYx!BZ17 -> 92.01604916 | D46: =TMYx!CA17 -> 72.91156193 | E46: =TMYx!CB17 -> 36.46709544 | F46: =TMYx!AT17 -> 0 | G46: =TMYx!AU17 -> 0 | H46: =TMYx!AV17 -> 0 | I46: =TMYx!AW17 -> 0 | J46: =TMYx!AX17 -> 0 | K46: =TMYx!AY17 -> 0 | L46: =TMYx!AZ17 -> 0
A47: 85 | B47: 90 | C47: =TMYx!BZ18 -> 87.45781136 | D47: =TMYx!CA18 -> 70.80538329 | E47: =TMYx!CB18 -> 34.67941321 | F47: =TMYx!AT18 -> 0 | G47: =TMYx!AU18 -> 0 | H47: =TMYx!AV18 -> 0 | I47: =TMYx!AW18 -> 0 | J47: =TMYx!AX18 -> 0 | K47: =TMYx!AY18 -> 0 | L47: =TMYx!AZ18 -> 0
A48: 80 | B48: 85 | C48: =TMYx!BZ19 -> 82.13678883 | D48: =TMYx!CA19 -> 67.87239362 | E48: =TMYx!CB19 -> 32.29624822 | F48: =TMYx!AT19 -> 0 | G48: =TMYx!AU19 -> 0 | H48: =TMYx!AV19 -> 0 | I48: =TMYx!AW19 -> 0 | J48: =TMYx!AX19 -> 0 | K48: =TMYx!AY19 -> 0 | L48: =TMYx!AZ19 -> 0
A49: 75 | B49: 80 | C49: =TMYx!BZ20 -> 76.98840016 | D49: =TMYx!CA20 -> 65.1292619 | E49: =TMYx!CB20 -> 30.19047681 | F49: =TMYx!AT20 -> 0 | G49: =TMYx!AU20 -> 0 | H49: =TMYx!AV20 -> 0 | I49: =TMYx!AW20 -> 0 | J49: =TMYx!AX20 -> 0 | K49: =TMYx!AY20 -> 0 | L49: =TMYx!AZ20 -> 0
A50: 70 | B50: 75 | C50: =TMYx!BZ21 -> 72.45798205 | D50: =TMYx!CA21 -> 63.60442501 | E50: =TMYx!CB21 -> 29.0886831 | F50: =TMYx!AT21 -> 0 | G50: =TMYx!AU21 -> 0 | H50: =TMYx!AV21 -> 0 | I50: =TMYx!AW21 -> 0 | J50: =TMYx!AX21 -> 0 | K50: =TMYx!AY21 -> 0 | L50: =TMYx!AZ21 -> 0
A51: 65 | B51: 70 | C51: =TMYx!BZ22 -> 67.81583107 | D51: =TMYx!CA22 -> 61.63133137 | E51: =TMYx!CB22 -> 27.66151489 | F51: =TMYx!AT22 -> 0 | G51: =TMYx!AU22 -> 0 | H51: =TMYx!AV22 -> 0 | I51: =TMYx!AW22 -> 0 | J51: =TMYx!AX22 -> 0 | K51: =TMYx!AY22 -> 0 | L51: =TMYx!AZ22 -> 0
A52: 60 | B52: 65 | C52: =TMYx!BZ23 -> 62.53596147 | D52: =TMYx!CA23 -> 57.13547692 | E52: =TMYx!CB23 -> 24.62303716 | F52: =TMYx!AT23 -> 0 | G52: =TMYx!AU23 -> 0 | H52: =TMYx!AV23 -> 0 | I52: =TMYx!AW23 -> 0 | J52: =TMYx!AX23 -> 0 | K52: =TMYx!AY23 -> 0 | L52: =TMYx!AZ23 -> 0
A53: 55 | B53: 60 | C53: =TMYx!BZ24 -> 57.12579227 | D53: =TMYx!CA24 -> 52.59697116 | E53: =TMYx!CB24 -> 21.81800154 | F53: =TMYx!AT24 -> 0 | G53: =TMYx!AU24 -> 0 | H53: =TMYx!AV24 -> 0 | I53: =TMYx!AW24 -> 0 | J53: =TMYx!AX24 -> 0 | K53: =TMYx!AY24 -> 0 | L53: =TMYx!AZ24 -> 0
A54: 50 | B54: 55 | C54: =TMYx!BZ25 -> 52.23569885 | D54: =TMYx!CA25 -> 48.02276809 | E54: =TMYx!CB25 -> 19.24664019 | F54: =TMYx!AT25 -> 0 | G54: =TMYx!AU25 -> 0 | H54: =TMYx!AV25 -> 0 | I54: =TMYx!AW25 -> 0 | J54: =TMYx!AX25 -> 0 | K54: =TMYx!AY25 -> 0 | L54: =TMYx!AZ25 -> 0
A55: 45 | B55: 50 | C55: =TMYx!BZ26 -> 47.45917026 | D55: =TMYx!CA26 -> 43.46539705 | E55: =TMYx!CB26 -> 16.89418324 | F55: =TMYx!AT26 -> 0 | G55: =TMYx!AU26 -> 0 | H55: =TMYx!AV26 -> 0 | I55: =TMYx!AW26 -> 0 | J55: =TMYx!AX26 -> 0 | K55: =TMYx!AY26 -> 0 | L55: =TMYx!AZ26 -> 0
A56: 40 | B56: 45 | C56: =TMYx!BZ27 -> 42.6770304 | D56: =TMYx!CA27 -> 38.8125445 | E56: =TMYx!CB27 -> 14.69026565 | F56: =TMYx!AT27 -> 0 | G56: =TMYx!AU27 -> 0 | H56: =TMYx!AV27 -> 0 | I56: =TMYx!AW27 -> 0 | J56: =TMYx!AX27 -> 0 | K56: =TMYx!AY27 -> 0 | L56: =TMYx!AZ27 -> 0
A57: 35 | B57: 40 | C57: =TMYx!BZ28 -> 37.33304677 | D57: =TMYx!CA28 -> 33.90470692 | E57: =TMYx!CB28 -> 12.53841602 | F57: =TMYx!AT28 -> 0 | G57: =TMYx!AU28 -> 0 | H57: =TMYx!AV28 -> 0 | I57: =TMYx!AW28 -> 0 | J57: =TMYx!AX28 -> 0 | K57: =TMYx!AY28 -> 0 | L57: =TMYx!AZ28 -> 0
A58: 30 | B58: 35 | C58: =TMYx!BZ29 -> 32.63817985 | D58: =TMYx!CA29 -> 29.54717093 | E58: =TMYx!CB29 -> 10.72897282 | F58: =TMYx!AT29 -> 0 | G58: =TMYx!AU29 -> 0 | H58: =TMYx!AV29 -> 0 | I58: =TMYx!AW29 -> 0 | J58: =TMYx!AX29 -> 0 | K58: =TMYx!AY29 -> 0 | L58: =TMYx!AZ29 -> 0
A59: 25 | B59: 30 | C59: =TMYx!BZ30 -> 27.52926465 | D59: =TMYx!CA30 -> 24.65271739 | E59: =TMYx!CB30 -> 8.804130548 | F59: =TMYx!AT30 -> 0 | G59: =TMYx!AU30 -> 0 | H59: =TMYx!AV30 -> 0 | I59: =TMYx!AW30 -> 0 | J59: =TMYx!AX30 -> 0 | K59: =TMYx!AY30 -> 0 | L59: =TMYx!AZ30 -> 0
A60: 20 | B60: 25 | C60: =TMYx!BZ31 -> 22.99811148 | D60: =TMYx!CA31 -> 20.38330666 | E60: =TMYx!CB31 -> 7.246164548 | F60: =TMYx!AT31 -> 0 | G60: =TMYx!AU31 -> 0 | H60: =TMYx!AV31 -> 0 | I60: =TMYx!AW31 -> 0 | J60: =TMYx!AX31 -> 0 | K60: =TMYx!AY31 -> 0 | L60: =TMYx!AZ31 -> 0
A61: 15 | B61: 20 | C61: =TMYx!BZ32 -> 17.80851033 | D61: =TMYx!CA32 -> 15.4208658 | E61: =TMYx!CB32 -> 5.549048413 | F61: =TMYx!AT32 -> 0 | G61: =TMYx!AU32 -> 0 | H61: =TMYx!AV32 -> 0 | I61: =TMYx!AW32 -> 0 | J61: =TMYx!AX32 -> 0 | K61: =TMYx!AY32 -> 0 | L61: =TMYx!AZ32 -> 0
A62: 10 | B62: 15 | C62: =TMYx!BZ33 -> 12.26993113 | D62: =TMYx!CA33 -> 10.31826491 | E62: =TMYx!CB33 -> 3.908282492 | F62: =TMYx!AT33 -> 0 | G62: =TMYx!AU33 -> 0 | H62: =TMYx!AV33 -> 0 | I62: =TMYx!AW33 -> 0 | J62: =TMYx!AX33 -> 0 | K62: =TMYx!AY33 -> 0 | L62: =TMYx!AZ33 -> 0
A63: 5 | B63: 10 | C63: =TMYx!BZ34 -> 7.313758137 | D63: =TMYx!CA34 -> 5.705238245 | E63: =TMYx!CB34 -> 2.501941842 | F63: =TMYx!AT34 -> 0 | G63: =TMYx!AU34 -> 0 | H63: =TMYx!AV34 -> 0 | I63: =TMYx!AW34 -> 0 | J63: =TMYx!AX34 -> 0 | K63: =TMYx!AY34 -> 0 | L63: =TMYx!AZ34 -> 0
A64: 0 | B64: 5 | C64: =TMYx!BZ35 -> 2.611946184 | D64: =TMYx!CA35 -> 1.269977006 | E64: =TMYx!CB35 -> 1.20464779 | F64: =TMYx!AT35 -> 0 | G64: =TMYx!AU35 -> 0 | H64: =TMYx!AV35 -> 0 | I64: =TMYx!AW35 -> 0 | J64: =TMYx!AX35 -> 0 | K64: =TMYx!AY35 -> 0 | L64: =TMYx!AZ35 -> 0
A65: -5 | B65: 0 | C65: =TMYx!BZ36 -> -1.673139852 | D65: =TMYx!CA36 -> -2.708331877 | E65: =TMYx!CB36 -> 0.07939183282 | F65: =TMYx!AT36 -> 0 | G65: =TMYx!AU36 -> 0 | H65: =TMYx!AV36 -> 0 | I65: =TMYx!AW36 -> 0 | J65: =TMYx!AX36 -> 0 | K65: =TMYx!AY36 -> 0 | L65: =TMYx!AZ36 -> 0
A66: -10 | B66: -5 | C66: =TMYx!BZ37 -> -6.572986509 | D66: =TMYx!CA37 -> -7.2465936 | E66: =TMYx!CB37 -> -1.168423365 | F66: =TMYx!AT37 -> 0 | G66: =TMYx!AU37 -> 0 | H66: =TMYx!AV37 -> 0 | I66: =TMYx!AW37 -> 0 | J66: =TMYx!AX37 -> 0 | K66: =TMYx!AY37 -> 0 | L66: =TMYx!AZ37 -> 0
A67: -15 | B67: -10 | C67: =TMYx!BZ38 -> -15.32570353 | D67: =TMYx!CA38 -> -15.70783821 | E67: =TMYx!CB38 -> -3.405131816 | F67: =TMYx!AT38 -> 0 | G67: =TMYx!AU38 -> 0 | H67: =TMYx!AV38 -> 0 | I67: =TMYx!AW38 -> 0 | J67: =TMYx!AX38 -> 0 | K67: =TMYx!AY38 -> 0 | L67: =TMYx!AZ38 -> 0
A70: Unoccupied Hours | F70: Bin Hours - Peak Period Breakdown
A71: OA Drybulb | C71: Average Bin Conditions | F71: Total | G71: Winter | H71: Winter | I71: Summer | J71: Summer | K71: Winter | L71: Summer
A72: Bin Range | C72: OA db | D72: OA wb | E72: OA Enth | F72: Bin | G72: On-Peak | H72: Off-Peak | I72: On-Peak | J72: Off-Peak | K72: Demand | L72: Demand
A73: From | B73: To | C73: °F | D73: °F | E73: Btu/lb | F73: Hours | G73: Hours | H73: Hours | I73: Hours | J73: Hours | K73: Hours | L73: Hours
A74: 100 | B74: 105 | C74: =TMYx!BZ15 -> 102 | D74: =TMYx!CA15 -> 76 | E74: =TMYx!CB15 -> 40 | F74: =TMYx!BD15 -> 0 | G74: =TMYx!BE15 -> 0 | H74: =TMYx!BF15 -> 0 | I74: =TMYx!BG15 -> 0 | J74: =TMYx!BH15 -> 0 | K74: =TMYx!BI15 -> 0 | L74: =TMYx!BJ15 -> 0
A75: 95 | B75: 100 | C75: =TMYx!BZ16 -> 95.21927273 | D75: =TMYx!CA16 -> 74.53402527 | E75: =TMYx!CB16 -> 37.92329606 | F75: =TMYx!BD16 -> 0 | G75: =TMYx!BE16 -> 0 | H75: =TMYx!BF16 -> 0 | I75: =TMYx!BG16 -> 0 | J75: =TMYx!BH16 -> 0 | K75: =TMYx!BI16 -> 0 | L75: =TMYx!BJ16 -> 0
A76: 90 | B76: 95 | C76: =TMYx!BZ17 -> 92.01604916 | D76: =TMYx!CA17 -> 72.91156193 | E76: =TMYx!CB17 -> 36.46709544 | F76: =TMYx!BD17 -> 0 | G76: =TMYx!BE17 -> 0 | H76: =TMYx!BF17 -> 0 | I76: =TMYx!BG17 -> 0 | J76: =TMYx!BH17 -> 0 | K76: =TMYx!BI17 -> 0 | L76: =TMYx!BJ17 -> 0
A77: 85 | B77: 90 | C77: =TMYx!BZ18 -> 87.45781136 | D77: =TMYx!CA18 -> 70.80538329 | E77: =TMYx!CB18 -> 34.67941321 | F77: =TMYx!BD18 -> 0 | G77: =TMYx!BE18 -> 0 | H77: =TMYx!BF18 -> 0 | I77: =TMYx!BG18 -> 0 | J77: =TMYx!BH18 -> 0 | K77: =TMYx!BI18 -> 0 | L77: =TMYx!BJ18 -> 0
A78: 80 | B78: 85 | C78: =TMYx!BZ19 -> 82.13678883 | D78: =TMYx!CA19 -> 67.87239362 | E78: =TMYx!CB19 -> 32.29624822 | F78: =TMYx!BD19 -> 0 | G78: =TMYx!BE19 -> 0 | H78: =TMYx!BF19 -> 0 | I78: =TMYx!BG19 -> 0 | J78: =TMYx!BH19 -> 0 | K78: =TMYx!BI19 -> 0 | L78: =TMYx!BJ19 -> 0
A79: 75 | B79: 80 | C79: =TMYx!BZ20 -> 76.98840016 | D79: =TMYx!CA20 -> 65.1292619 | E79: =TMYx!CB20 -> 30.19047681 | F79: =TMYx!BD20 -> 0 | G79: =TMYx!BE20 -> 0 | H79: =TMYx!BF20 -> 0 | I79: =TMYx!BG20 -> 0 | J79: =TMYx!BH20 -> 0 | K79: =TMYx!BI20 -> 0 | L79: =TMYx!BJ20 -> 0
A80: 70 | B80: 75 | C80: =TMYx!BZ21 -> 72.45798205 | D80: =TMYx!CA21 -> 63.60442501 | E80: =TMYx!CB21 -> 29.0886831 | F80: =TMYx!BD21 -> 0 | G80: =TMYx!BE21 -> 0 | H80: =TMYx!BF21 -> 0 | I80: =TMYx!BG21 -> 0 | J80: =TMYx!BH21 -> 0 | K80: =TMYx!BI21 -> 0 | L80: =TMYx!BJ21 -> 0
A81: 65 | B81: 70 | C81: =TMYx!BZ22 -> 67.81583107 | D81: =TMYx!CA22 -> 61.63133137 | E81: =TMYx!CB22 -> 27.66151489 | F81: =TMYx!BD22 -> 0 | G81: =TMYx!BE22 -> 0 | H81: =TMYx!BF22 -> 0 | I81: =TMYx!BG22 -> 0 | J81: =TMYx!BH22 -> 0 | K81: =TMYx!BI22 -> 0 | L81: =TMYx!BJ22 -> 0
A82: 60 | B82: 65 | C82: =TMYx!BZ23 -> 62.53596147 | D82: =TMYx!CA23 -> 57.13547692 | E82: =TMYx!CB23 -> 24.62303716 | F82: =TMYx!BD23 -> 0 | G82: =TMYx!BE23 -> 0 | H82: =TMYx!BF23 -> 0 | I82: =TMYx!BG23 -> 0 | J82: =TMYx!BH23 -> 0 | K82: =TMYx!BI23 -> 0 | L82: =TMYx!BJ23 -> 0
A83: 55 | B83: 60 | C83: =TMYx!BZ24 -> 57.12579227 | D83: =TMYx!CA24 -> 52.59697116 | E83: =TMYx!CB24 -> 21.81800154 | F83: =TMYx!BD24 -> 0 | G83: =TMYx!BE24 -> 0 | H83: =TMYx!BF24 -> 0 | I83: =TMYx!BG24 -> 0 | J83: =TMYx!BH24 -> 0 | K83: =TMYx!BI24 -> 0 | L83: =TMYx!BJ24 -> 0
A84: 50 | B84: 55 | C84: =TMYx!BZ25 -> 52.23569885 | D84: =TMYx!CA25 -> 48.02276809 | E84: =TMYx!CB25 -> 19.24664019 | F84: =TMYx!BD25 -> 0 | G84: =TMYx!BE25 -> 0 | H84: =TMYx!BF25 -> 0 | I84: =TMYx!BG25 -> 0 | J84: =TMYx!BH25 -> 0 | K84: =TMYx!BI25 -> 0 | L84: =TMYx!BJ25 -> 0
A85: 45 | B85: 50 | C85: =TMYx!BZ26 -> 47.45917026 | D85: =TMYx!CA26 -> 43.46539705 | E85: =TMYx!CB26 -> 16.89418324 | F85: =TMYx!BD26 -> 0 | G85: =TMYx!BE26 -> 0 | H85: =TMYx!BF26 -> 0 | I85: =TMYx!BG26 -> 0 | J85: =TMYx!BH26 -> 0 | K85: =TMYx!BI26 -> 0 | L85: =TMYx!BJ26 -> 0
A86: 40 | B86: 45 | C86: =TMYx!BZ27 -> 42.6770304 | D86: =TMYx!CA27 -> 38.8125445 | E86: =TMYx!CB27 -> 14.69026565 | F86: =TMYx!BD27 -> 0 | G86: =TMYx!BE27 -> 0 | H86: =TMYx!BF27 -> 0 | I86: =TMYx!BG27 -> 0 | J86: =TMYx!BH27 -> 0 | K86: =TMYx!BI27 -> 0 | L86: =TMYx!BJ27 -> 0
A87: 35 | B87: 40 | C87: =TMYx!BZ28 -> 37.33304677 | D87: =TMYx!CA28 -> 33.90470692 | E87: =TMYx!CB28 -> 12.53841602 | F87: =TMYx!BD28 -> 0 | G87: =TMYx!BE28 -> 0 | H87: =TMYx!BF28 -> 0 | I87: =TMYx!BG28 -> 0 | J87: =TMYx!BH28 -> 0 | K87: =TMYx!BI28 -> 0 | L87: =TMYx!BJ28 -> 0
A88: 30 | B88: 35 | C88: =TMYx!BZ29 -> 32.63817985 | D88: =TMYx!CA29 -> 29.54717093 | E88: =TMYx!CB29 -> 10.72897282 | F88: =TMYx!BD29 -> 0 | G88: =TMYx!BE29 -> 0 | H88: =TMYx!BF29 -> 0 | I88: =TMYx!BG29 -> 0 | J88: =TMYx!BH29 -> 0 | K88: =TMYx!BI29 -> 0 | L88: =TMYx!BJ29 -> 0
A89: 25 | B89: 30 | C89: =TMYx!BZ30 -> 27.52926465 | D89: =TMYx!CA30 -> 24.65271739 | E89: =TMYx!CB30 -> 8.804130548 | F89: =TMYx!BD30 -> 0 | G89: =TMYx!BE30 -> 0 | H89: =TMYx!BF30 -> 0 | I89: =TMYx!BG30 -> 0 | J89: =TMYx!BH30 -> 0 | K89: =TMYx!BI30 -> 0 | L89: =TMYx!BJ30 -> 0
A90: 20 | B90: 25 | C90: =TMYx!BZ31 -> 22.99811148 | D90: =TMYx!CA31 -> 20.38330666 | E90: =TMYx!CB31 -> 7.246164548 | F90: =TMYx!BD31 -> 0 | G90: =TMYx!BE31 -> 0 | H90: =TMYx!BF31 -> 0 | I90: =TMYx!BG31 -> 0 | J90: =TMYx!BH31 -> 0 | K90: =TMYx!BI31 -> 0 | L90: =TMYx!BJ31 -> 0
A91: 15 | B91: 20 | C91: =TMYx!BZ32 -> 17.80851033 | D91: =TMYx!CA32 -> 15.4208658 | E91: =TMYx!CB32 -> 5.549048413 | F91: =TMYx!BD32 -> 0 | G91: =TMYx!BE32 -> 0 | H91: =TMYx!BF32 -> 0 | I91: =TMYx!BG32 -> 0 | J91: =TMYx!BH32 -> 0 | K91: =TMYx!BI32 -> 0 | L91: =TMYx!BJ32 -> 0
A92: 10 | B92: 15 | C92: =TMYx!BZ33 -> 12.26993113 | D92: =TMYx!CA33 -> 10.31826491 | E92: =TMYx!CB33 -> 3.908282492 | F92: =TMYx!BD33 -> 0 | G92: =TMYx!BE33 -> 0 | H92: =TMYx!BF33 -> 0 | I92: =TMYx!BG33 -> 0 | J92: =TMYx!BH33 -> 0 | K92: =TMYx!BI33 -> 0 | L92: =TMYx!BJ33 -> 0
A93: 5 | B93: 10 | C93: =TMYx!BZ34 -> 7.313758137 | D93: =TMYx!CA34 -> 5.705238245 | E93: =TMYx!CB34 -> 2.501941842 | F93: =TMYx!BD34 -> 0 | G93: =TMYx!BE34 -> 0 | H93: =TMYx!BF34 -> 0 | I93: =TMYx!BG34 -> 0 | J93: =TMYx!BH34 -> 0 | K93: =TMYx!BI34 -> 0 | L93: =TMYx!BJ34 -> 0
A94: 0 | B94: 5 | C94: =TMYx!BZ35 -> 2.611946184 | D94: =TMYx!CA35 -> 1.269977006 | E94: =TMYx!CB35 -> 1.20464779 | F94: =TMYx!BD35 -> 8760 | G94: =TMYx!BE35 -> 2672 | H94: =TMYx!BF35 -> 3160 | I94: =TMYx!BG35 -> 1344 | J94: =TMYx!BH35 -> 1584 | K94: =TMYx!BI35 -> 88 | L94: =TMYx!BJ35 -> 264
A95: -5 | B95: 0 | C95: =TMYx!BZ36 -> -1.673139852 | D95: =TMYx!CA36 -> -2.708331877 | E95: =TMYx!CB36 -> 0.07939183282 | F95: =TMYx!BD36 -> 0 | G95: =TMYx!BE36 -> 0 | H95: =TMYx!BF36 -> 0 | I95: =TMYx!BG36 -> 0 | J95: =TMYx!BH36 -> 0 | K95: =TMYx!BI36 -> 0 | L95: =TMYx!BJ36 -> 0
A96: -10 | B96: -5 | C96: =TMYx!BZ37 -> -6.572986509 | D96: =TMYx!CA37 -> -7.2465936 | E96: =TMYx!CB37 -> -1.168423365 | F96: =TMYx!BD37 -> 0 | G96: =TMYx!BE37 -> 0 | H96: =TMYx!BF37 -> 0 | I96: =TMYx!BG37 -> 0 | J96: =TMYx!BH37 -> 0 | K96: =TMYx!BI37 -> 0 | L96: =TMYx!BJ37 -> 0
A97: -15 | B97: -10 | C97: =TMYx!BZ38 -> -15.32570353 | D97: =TMYx!CA38 -> -15.70783821 | E97: =TMYx!CB38 -> -3.405131816 | F97: =TMYx!BD38 -> 0 | G97: =TMYx!BE38 -> 0 | H97: =TMYx!BF38 -> 0 | I97: =TMYx!BG38 -> 0 | J97: =TMYx!BH38 -> 0 | K97: =TMYx!BI38 -> 0 | L97: =TMYx!BJ38 -> 0
A99: Bldg | B99: Bldg | U99: Monthly
A100: Start | B100: End | C100: Bldg | E100: Bldg | S100: Monthly/Seasonal | U100: Hours | W100: Program | X100: Fossil Fuel | Z100: Fuel | AA100: Fuel | AB100: Program
A101: Hours | B101: Hours | C101: Location | E101: Type | G101: Electric PA List | J101: Gas PA List | M101: Permitting Codes | P101: Holiday Closures | S101: Bldg Hours | U101: Diversity | V101: State | W101: Year | X101: Types | Z101: Conversion | AA101: Unit | AB101: Path
A102: 0 | B102: 24 | C102: Berlin | E102: Automotive facility | G102: Eversource | J102: Eversource Gas | M102: 2015 IECC / ASHRAE 90.1-2013 | P102: 1-Standard US Holidays | S102: Constant Year-Round | U102: 1 | V102: MA | W102: 2025 | X102: Natural Gas | Z102: 10 | AA102: therms | AB102: High Performance Buildings
A103: 1 | B103: 23 | C103: Concord | E103: Convention center | G103: Unitil Electric | J103: Unitil Gas | M103: 2018 IECC / ASHRAE 90.1-2016 | P103: 2-No Holidays | S103: Vary by Month/Season | U103: 0.9 | V103: RI | W103: 2026 | X103: Oil | Z103: 1 | AA103: MMBtu | AB103: Systems Pathway
A104: 2 | B104: 22 | C104: Keene | E104: Courthouse | G104: Liberty Electric - NH | J104: Liberty Gas | U104: 0.8 | V104: NH | W104: 2027 | X104: Propane | Z104: 1 | AA104: MMBtu | AB104: Other/NA
A105: 3 | B105: 21 | C105: Laconia | E105: Daycare | G105: NH Electric Co-Op | J105: None/Other | U105: 0.7 | X105: None/All-Electric | Z105: NA | AA105: NA
A106: 4 | B106: 20 | C106: Lebanon | E106: Dining: bar/lounge/leisure | G106: None/Default/Muni | U106: 0.6
A107: 5 | B107: 19 | C107: Manchester | E107: Dining: Cafeteria/Fast Food | U107: 0.5
A108: 6 | B108: 18 | C108: Mt. Washington | E108: Dining: Family | U108: 0.4
A109: 7 | B109: 17 | C109: Nashua | E109: Dormitory | U109: 0.3
A110: 8 | B110: 16 | C110: Plymouth | E110: Education - College/University | U110: 0.2
A111: 9 | B111: 15 | C111: Portsmouth | E111: Education - Community College | U111: 0.1
A112: 10 | B112: 14 | C112: Rochester | E112: Education - K-12 School | U112: 0
A113: 11 | B113: 13 | E113: Exercise center
A114: 12 | B114: 12 | E114: Fire station
A115: 13 | B115: 11 | E115: Grocery
A116: 14 | B116: 10 | E116: Gymnasium
A117: 15 | B117: 9 | E117: Health/Medical - Clinic
A118: 16 | B118: 8 | E118: Hospital
A119: 17 | B119: 7 | E119: Hotel/Motel/Lodging
A120: 18 | B120: 6 | E120: Industrial/Manufacturing - 1 Shift
A121: 19 | B121: 5 | E121: Industrial/Manufacturing - 2 Shifts
A122: 20 | B122: 4 | E122: Industrial/Manufacturing - 3 Shifts
A123: 21 | B123: 3 | E123: Library
A124: 22 | B124: 2 | E124: Motion picture theater
A125: 23 | B125: 1 | E125: Multifamily
B126: 0 | E126: Museum
E127: Nursing Home
E128: Office - Medium/Large ( > 20,000 ft²)
E129: Office - Small ( < 20,000 ft²)
E130: Parking garage
E131: Penitentiary
E132: Performing arts theater
E133: Police station
E134: Post office
E135: Religious Worship/Church
E136: Retail
E137: Sports arena
E138: Storage Facility
E139: Town hall
E140: Transportation
E141: Warehouse - Distribution Center
E142: Warehouse - Inactive Storage
E143: Workshop

Sheet ECM Summary
A1: Tool Version: | C1: =Instructions!T9 -> v2026.02.19
J5: =IF('Project Info'!O5<>"Yes","WARNING: All required Project Info inputs have not been entered. This could cause unintended results (See Project Info sheet).","") -> WARNING: All required Project Info inputs have not been entered. This could cause unintended results (See Project Info sheet).
D6: SUMMARY OF ENERGY CONSERVATION MEASURES | AA6: (OPTIONAL)
I7: Calculate | J7: Annual Savings | M7: Electric Peak Savings | U7: Increm. | V7: Payback | W7: Payback | X7: Total | Y7: Incentive Breakdown | AA7: Included in | AC7: Program | AD7: Fuel | AE7: Measure | AF7: Measure | AG7: Total
D8: ECM | E8: Description | I8: ECM | J8: Electric | K8: =C32 -> 0 | L8: Energy Cost | M8: Winter | N8: Winter | O8: Summer | P8: Summer | Q8: Overall | R8: Max | S8: Avg. kW | T8: Avg. kW | U8: Cost | V8: w/o Incentive | W8: with Incentive | X8: Incentive | Y8: Electric | Z8: Fossil Fuel | AA8: Current | AC8: Type | AD8: Savings | AE8: Code | AF8: Life | AG8: Savings
I9: ? | J9: kWh | K9: =F32 ->  | L9: $ | M9: On Peak % | N9: Off Peak % | O9: On Peak % | P9: Off Peak % | Q9: %OnPeak | R9: kW | S9: Summer | T9: Winter | U9: $ | V9: years | W9: years | X9: $ | Y9: $ | Z9: $ | AA9: Design? | AB9: 1/0 | AD9: Type | AE9: (BCR) | AF9: years | AG9: MMBTU
C10: Standard Tool Measures | D10: =IF(I10="Yes",MAX(D$9:D9)+1,"") ->  | E10: Bldg Envelope | I10: No | J10: =IF($I10<>"Yes","",INDIRECT(CONCATENATE("'",$E10,"'!H3"))) ->  | K10: =IF($I10<>"Yes","",INDIRECT(CONCATENATE("'",$E10,"'!H4"))) ->  | L10: =IF($I10<>"Yes","",J10*$E$31+K10*$E$32) ->  | M10: =IF($I10<>"Yes","",INDIRECT(CONCATENATE("'",$E10,"'!A15"))) ->  | N10: =IF($I10<>"Yes","",INDIRECT(CONCATENATE("'",$E10,"'!B15"))) ->  | O10: =IF($I10<>"Yes","",INDIRECT(CONCATENATE("'",$E10,"'!C15"))) ->  | P10: =IF($I10<>"Yes","",INDIRECT(CONCATENATE("'",$E10,"'!D15"))) ->  | Q10: =IF(I10<>"Yes","",M10+O10) ->  | R10: =IF($I10<>"Yes","",INDIRECT(CONCATENATE("'",$E10,"'!D4"))) ->  | S10: =IF($I10<>"Yes","",INDIRECT(CONCATENATE("'",$E10,"'!D5"))) ->  | T10: =IF($I10<>"Yes","",INDIRECT(CONCATENATE("'",$E10,"'!D6"))) ->  | U10: =IF($I10<>"Yes","",INDIRECT(CONCATENATE("'",$E10,"'!D9"))) ->  | V10: =IF($I10<>"Yes","",IF(U10="NA","NA",U10/L10)) ->  | W10: =IF($I10<>"Yes","",IF(U10="NA","NA",(U10-X10)/L10)) ->  | X10: =IF($I10<>"Yes","",INDIRECT(CONCATENATE("'",$E10,"'!H7"))) ->  | Y10: =IF($I10<>"Yes","",$J$31*INDIRECT(CONCATENATE("'",$E10,"'!H3"))) ->  | Z10: =IF($I10<>"Yes","",$J$32*INDIRECT(CONCATENATE("'",$E10,"'!H4"))) ->  | AB10: =1*(AA10=$A$55) -> 0 | AC10: Custom | AD10: =IF(AND(J10>0,K10>0),"Dual",IF(J10>0,"Electric",IF(K10>0,"Gas",""))) -> Dual | AE10: Building Shell | AF10: 25 | AG10: =IF(I10<>$A$55,"",(J10*3.412+K10*100)/1000) -> 
D11: =IF(I11="Yes",MAX(D$9:D10)+1,"") ->  | E11: Interior Lighting | I11: No | M11: =IF($I11<>"Yes","",INDIRECT(CONCATENATE("'",$E11,"'!A15"))) ->  | N11: =IF($I11<>"Yes","",INDIRECT(CONCATENATE("'",$E11,"'!B15"))) ->  | O11: =IF($I11<>"Yes","",INDIRECT(CONCATENATE("'",$E11,"'!C15"))) ->  | P11: =IF($I11<>"Yes","",INDIRECT(CONCATENATE("'",$E11,"'!D15"))) ->  | Q11: =IF(I11<>"Yes","",M11+O11) ->  | R11: =IF($I11<>"Yes","",INDIRECT(CONCATENATE("'",$E11,"'!D4"))) ->  | S11: =IF($I11<>"Yes","",INDIRECT(CONCATENATE("'",$E11,"'!D5"))) ->  | T11: =IF($I11<>"Yes","",INDIRECT(CONCATENATE("'",$E11,"'!D6"))) ->  | V11: =IF($I11<>"Yes","",IF(U11="NA","NA",U11/L11)) ->  | W11: =IF($I11<>"Yes","",IF(U11="NA","NA",(U11-X11)/L11)) ->  | Y11: =IF($I11<>"Yes","",X11) ->  | Z11: =IF($I11<>"Yes","",0) ->  | AB11: =1*(AA11=$A$55) -> 0 | AC11: Prescriptive | AD11: Electric | AE11: Lighting - Interior | AF11: 15
D12: =IF(I12="Yes",MAX(D$9:D11)+1,"") ->  | E12: Exterior Lighting | I12: No | Y12: =IF($I12<>"Yes","",X12) ->  | Z12: =IF($I12<>"Yes","",0) ->  | AB12: =1*(AA12=$A$55) -> 0 | AC12: Prescriptive | AD12: Electric | AE12: Lighting - Exterior | AF12: 15
D13: =IF(I13="Yes",MAX(D$9:D12)+1,"") ->  | E13: Unitary HVAC (RTU, AC, HP, VRF) | I13: No | Y13: =IF($I13<>"Yes","",$J$31*INDIRECT(CONCATENATE("'",$E13,"'!H3"))) ->  | Z13: =IF($I13<>"Yes","",$J$32*INDIRECT(CONCATENATE("'",$E13,"'!H4"))) ->  | AB13: 0 | AC13: Custom | AD13: Electric | AE13: HVAC Equipment and Systems | AF13: 15
D14: =IF(I14="Yes",MAX(D$9:D13)+1,"") ->  | E14: High Efficiency Chillers | I14: No | Y14: =IF($I14<>"Yes","",$J$31*INDIRECT(CONCATENATE("'",$E14,"'!H3"))) ->  | Z14: =IF($I14<>"Yes","",$J$32*INDIRECT(CONCATENATE("'",$E14,"'!H4"))) ->  | AB14: 0 | AC14: Custom | AD14: Electric | AE14: Chillers | AF14: 20
D15: =IF(I15="Yes",MAX(D$9:D14)+1,"") ->  | E15: Variable Frequency Drives | I15: No | Y15: =IF($I15<>"Yes","",X15) ->  | Z15: =IF($I15<>"Yes","",0) ->  | AB15: 0 | AC15: Prescriptive | AD15: Electric | AE15: VFD on HVAC Equipment | AF15: 15
D16: =IF(I16="Yes",MAX(D$9:D15)+1,"") ->  | E16: Energy Recovery | I16: No | Y16: =IF($I16<>"Yes","",$J$31*INDIRECT(CONCATENATE("'",$E16,"'!H3"))) ->  | Z16: =IF($I16<>"Yes","",$J$32*INDIRECT(CONCATENATE("'",$E16,"'!H4"))) ->  | AB16: 0 | AC16: Custom | AD16: =IF(AND(J16>0,K16>0),"Dual",IF(J16>0,"Electric",IF(K16>0,"Gas",""))) -> Dual | AE16: =IF(AD16="Electric","HVAC Equipment and Systems", "Heat recovery, HVAC") -> Heat recovery, HVAC | AF16: 15
D17: =IF(I17="Yes",MAX(D$9:D16)+1,"") ->  | E17: Demand Control Ventilation | I17: No | AB17: 0 | AC17: Custom | AD17: =IF(AND(J17>0,K17>0),"Dual",IF(J17>0,"Electric",IF(K17>0,"Gas",""))) -> Dual | AE17: EMS / controls, HVAC | AF17: 10
D18: =IF(I18="Yes",MAX(D$9:D17)+1,"") ->  | E18: Variable Flow Kitchen Hood | I18: No | AB18: 0 | AC18: Custom | AD18: =IF(AND(J18>0,K18>0),"Dual",IF(J18>0,"Electric",IF(K18>0,"Gas",""))) -> Dual | AE18: EMS / controls, HVAC | AF18: 10
D19: =IF(I19="Yes",MAX(D$9:D18)+1,"") ->  | E19: Condensing Boilers | I19: No | Y19: =IF($I19<>"Yes","",0) ->  | Z19: =IF($I19<>"Yes","",X19) ->  | AB19: 0 | AC19: Custom | AD19: Gas | AE19: Boiler, HVAC | AF19: 20
D20: =IF(I20="Yes",MAX(D$9:D19)+1,"") ->  | E20: DHW Heaters | I20: No | AB20: 0 | AC20: Custom | AD20: =IF(AND(J20>0,K20>0),"Dual",IF(J20>0,"Electric",IF(K20>0,"Gas",""))) -> Dual | AE20: =IF(AD20="Gas","Water heating, DHW","Other") -> Other | AF20: 15
D21: =IF(I21="Yes",MAX(D$9:D20)+1,"") ->  | E21: Low Flow DHW Fixtures | I21: No | J21: =IF($I21<>"Yes","",INDIRECT(CONCATENATE("'",$E21,"'!H3"))) ->  | AB21: 0 | AC21: Custom | AD21: =IF(AND(J21>0,K21>0),"Dual",IF(J21>0,"Electric",IF(K21>0,"Gas",""))) -> Dual | AE21: =IF(AD21="Gas","Water heating, DHW","Other") -> Other | AF21: 10
C22: User-Defined Measures | D22: =IF(I22="Yes",MAX(D$9:D21)+1,"") ->  | J22: =IF($I22<>"Yes","",'User Defined 1'!$H$3) ->  | K22: =IF($I22<>"Yes","",'User Defined 1'!$H$4) ->  | M22: =IF($I22<>"Yes","",'User Defined 1'!$A$15) ->  | N22: =IF($I22<>"Yes","",'User Defined 1'!$B$15) ->  | O22: =IF($I22<>"Yes","",'User Defined 1'!$C$15) ->  | P22: =IF($I22<>"Yes","",'User Defined 1'!$D$15) ->  | Q22: =IF(I22<>"Yes","",M22+O22) ->  | R22: =IF($I22<>"Yes","",'User Defined 1'!$D$4) ->  | S22: =IF($I22<>"Yes","",'User Defined 1'!$D$5) ->  | T22: =IF($I22<>"Yes","",'User Defined 1'!$D$6) ->  | U22: =IF($I22<>"Yes","",'User Defined 1'!$H$5) ->  | V22: =IF($I22<>"Yes","",IF(U22="NA","NA",U22/L22)) ->  | X22: =IF($I22<>"Yes","",IF('User Defined 1'!$H$7>0,'User Defined 1'!$H$7,'User Defined 1'!$H$6)) ->  | Y22: =IF($I22<>"Yes","",$J$31*'User Defined 1'!$H$3) ->  | Z22: =IF($I22<>"Yes","",$J$32*'User Defined 1'!$H$4) ->  | AB22: 0 | AC22: =IF($I22<>"Yes","",'User Defined 1'!$H$17) ->  | AD22: =IF($I22<>"Yes","",'User Defined 1'!$H$18) ->  | AE22: =IF($I22<>"Yes","",'User Defined 1'!$H$19) ->  | AF22: =IF($I22<>"Yes","",'User Defined 1'!$H$20) -> 
D23: =IF(I23="Yes",MAX(D$9:D22)+1,"") ->  | J23: =IF($I23<>"Yes","",'User Defined 2'!$H$3) ->  | K23: =IF($I23<>"Yes","",'User Defined 2'!$H$4) ->  | M23: =IF($I23<>"Yes","",'User Defined 2'!$A$15) ->  | N23: =IF($I23<>"Yes","",'User Defined 2'!$B$15) ->  | O23: =IF($I23<>"Yes","",'User Defined 2'!$C$15) ->  | P23: =IF($I23<>"Yes","",'User Defined 2'!$D$15) ->  | Q23: =IF(I23<>"Yes","",M23+O23) ->  | R23: =IF($I23<>"Yes","",'User Defined 2'!$D$4) ->  | S23: =IF($I23<>"Yes","",'User Defined 2'!$D$5) ->  | T23: =IF($I23<>"Yes","",'User Defined 2'!$D$6) ->  | U23: =IF($I23<>"Yes","",'User Defined 2'!$H$5) ->  | V23: =IF($I23<>"Yes","",IF(U23="NA","NA",U23/L23)) ->  | X23: =IF($I23<>"Yes","",IF('User Defined 2'!$H$7>0,'User Defined 2'!$H$7,'User Defined 2'!$H$6)) ->  | Y23: =IF($I23<>"Yes","",$J$31*'User Defined 2'!$H$3) ->  | Z23: =IF($I23<>"Yes","",$J$32*'User Defined 2'!$H$4) ->  | AB23: 0 | AC23: =IF($I23<>"Yes","",'User Defined 2'!$H$17) ->  | AD23: =IF($I23<>"Yes","",'User Defined 2'!$H$18) ->  | AE23: =IF($I23<>"Yes","",'User Defined 2'!$H$19) ->  | AF23: =IF($I23<>"Yes","",'User Defined 2'!$H$20) -> 
D24: =IF(I24="Yes",MAX(D$9:D23)+1,"") ->  | J24: =IF($I24<>"Yes","",'User Defined 3'!$H$3) ->  | K24: =IF($I24<>"Yes","",'User Defined 3'!$H$4) ->  | M24: =IF($I24<>"Yes","",'User Defined 3'!$A$15) ->  | N24: =IF($I24<>"Yes","",'User Defined 3'!$B$15) ->  | O24: =IF($I24<>"Yes","",'User Defined 3'!$C$15) ->  | P24: =IF($I24<>"Yes","",'User Defined 3'!$D$15) ->  | Q24: =IF(I24<>"Yes","",M24+O24) ->  | R24: =IF($I24<>"Yes","",'User Defined 3'!$D$4) ->  | S24: =IF($I24<>"Yes","",'User Defined 3'!$D$5) ->  | T24: =IF($I24<>"Yes","",'User Defined 3'!$D$6) ->  | U24: =IF($I24<>"Yes","",'User Defined 3'!$H$5) ->  | V24: =IF($I24<>"Yes","",IF(U24="NA","NA",U24/L24)) ->  | X24: =IF($I24<>"Yes","",IF('User Defined 3'!$H$7>0,'User Defined 3'!$H$7,'User Defined 3'!$H$6)) ->  | Y24: =IF($I24<>"Yes","",$J$31*'User Defined 3'!$H$3) ->  | Z24: =IF($I24<>"Yes","",$J$32*'User Defined 3'!$H$4) ->  | AB24: 0 | AC24: =IF($I24<>"Yes","",'User Defined 3'!$H$17) ->  | AD24: =IF($I24<>"Yes","",'User Defined 3'!$H$18) ->  | AE24: =IF($I24<>"Yes","",'User Defined 3'!$H$19) ->  | AF24: =IF($I24<>"Yes","",'User Defined 3'!$H$20) -> 
D25: =IF(I25="Yes",MAX(D$9:D24)+1,"") ->  | J25: =IF($I25<>"Yes","",'User Defined 4'!$H$3) ->  | K25: =IF($I25<>"Yes","",'User Defined 4'!$H$4) ->  | M25: =IF($I25<>"Yes","",'User Defined 3'!$A$15) ->  | N25: =IF($I25<>"Yes","",'User Defined 3'!$B$15) ->  | O25: =IF($I25<>"Yes","",'User Defined 3'!$C$15) ->  | P25: =IF($I25<>"Yes","",'User Defined 3'!$D$15) ->  | Q25: =IF(I25<>"Yes","",M25+O25) ->  | R25: =IF($I25<>"Yes","",'User Defined 3'!$D$4) ->  | S25: =IF($I25<>"Yes","",'User Defined 3'!$D$5) ->  | T25: =IF($I25<>"Yes","",'User Defined 3'!$D$6) ->  | U25: =IF($I25<>"Yes","",'User Defined 4'!$H$5) ->  | V25: =IF($I25<>"Yes","",IF(U25="NA","NA",U25/L25)) ->  | X25: =IF($I25<>"Yes","",IF('User Defined 4'!$H$7>0,'User Defined 4'!$H$7,'User Defined 4'!$H$6)) ->  | Y25: =IF($I25<>"Yes","",$J$31*'User Defined 4'!$H$3) ->  | Z25: =IF($I25<>"Yes","",$J$32*'User Defined 4'!$H$4) ->  | AB25: 0 | AC25: =IF($I25<>"Yes","",'User Defined 4'!$H$17) ->  | AD25: =IF($I25<>"Yes","",'User Defined 4'!$H$18) ->  | AE25: =IF($I25<>"Yes","",'User Defined 4'!$H$19) ->  | AF25: =IF($I25<>"Yes","",'User Defined 4'!$H$20) -> 
D26: TOTAL | E26: Total Potential Project Savings | J26: =SUMIFS(J10:J25,$I$10:$I$25,"Yes") -> 0 | K26: =SUMIFS(K10:K25,$I$10:$I$25,"Yes") -> 0 | L26: =SUMIFS(L10:L25,$I$10:$I$25,"Yes") -> 0 | M26: =SUMPRODUCT(M10:M25,J10:J25)/J26 ->  | R26: =SUMIFS(R10:R25,$I$10:$I$25,"Yes") -> 0 | S26: =SUMIFS(S10:S25,$I$10:$I$25,"Yes") -> 0 | T26: =SUMIFS(T10:T25,$I$10:$I$25,"Yes") -> 0 | U26: =SUMIFS(U10:U25,$I$10:$I$25,"Yes") -> 0 | V26: =U26/L26 ->  | W26: =(U26-X26)/L26 ->  | X26: =SUM(X10:X25) -> 0 | Y26: =SUM(Y10:Y25) -> 0 | Z26: 0 | AF26: =IFERROR(SUMPRODUCT(AF10:AF25,AG10:AG25)/AG26,0) -> 0 | AG26: =SUM(AG10:AG25) -> 0
E27: Savings from ECMs Included in Current Design | J27: =SUMPRODUCT(J10:J25,$AB$10:$AB$25) -> 0 | K27: =SUMPRODUCT(K10:K25,$AB$10:$AB$25) -> 0 | L27: 0 | R27: 0 | S27: 0 | T27: 0 | U27: 0 | V27: =U27/L27 ->  | W27: =(U27-X27)/L27 ->  | X27: =SUMPRODUCT(X10:X25,$AB$10:$AB$25) -> 0 | Y27: 0 | Z27: 0
C29: Utility Energy Rates (Price) | H29: PA Custom Incentive Rates
E30: Rate | F30: Unit | J30: Rate | K30: Unit
C31: Electric | E31: =IF(E36>0,E36,'PA Impacts'!$Y$3) -> 0.1593 | F31: kWh | H31: Electric | J31: =IF(J36>0, J36, 'PA Impacts'!F4) -> 0.28 | K31: kWh
C32: ='Project Info'!$C$21 -> 0 | E32: =IF(E37>0,E37,LOOKUP(C32,'PA Impacts'!$U$3:$U$6,'PA Impacts'!$Y$3:$Y$6)) ->  | F32: =LOOKUP(C32,'Project Info'!$X$102:$X$105,'Project Info'!$AA$102:$AA$105) ->  | H32: ='Project Info'!$C$21 -> 0 | J32: =IF(J37>0,J37,'PA Impacts'!F7) -> 0 | K32: =LOOKUP(H32,'Project Info'!$X$102:$X$105,'Project Info'!$AA$102:$AA$105) -> 
C33: Optional: Override Default Values | H33: Optional: Override Default Values
C34: Utility Energy Rates (Price) Override | H34: PA Custom Incentive Rates Override
E35: Rate | F35: Unit | J35: Rate | K35: Unit
C36: Electric | F36: kWh | H36: Electric | K36: kWh
C37: ='Project Info'!$C$21 -> 0 | F37: =LOOKUP(C37,'Project Info'!$X$102:$X$105,'Project Info'!$AA$102:$AA$105) ->  | H37: ='Project Info'!$C$21 -> 0 | K37: =LOOKUP(C37,'Project Info'!$X$102:$X$105,'Project Info'!$AA$102:$AA$105) -> 
A55: Yes
A56: No
A58: Measures
A59: 1 | B59: Interior Lighting
A60: 2 | B60: Exterior Lighting
A61: 3 | B61: Energy Recovery
A62: 4 | B62: Condensing Boilers
A63: 5 | B63: High Efficiency Chillers
A64: 6 | B64: Condensing DHW Heaters
A65: 7 | B65: High Efficiency VRF Systems
A66: 8 | B66: Demand Control Ventilation
A67: 9 | B67: Variable Speed Kitchen Exhaust
A68: 10 | B68: VFDs (Pumps/Fans)
A69: 11 | B69: High Performance Split AC Units
A70: 12 | B70: High Efficiency Rooftop Units
A71: 13 | B71: Occupancy Based HVAC Controls
A72: 14 | B72: Static Pressure Reduction
A73: 15 | B73: Envelope Insulation
A74: 16 | B74: Enhanced Garage Door Insulation

Sheet PA Impacts (hidden)
B1: Project State: | C1: ='Project Info'!C15 -> NH | D1: Program: | E1: ='Project Info'!$C$23 -> 0 | I1: Overall Energy Impacts/Savings | P1: Mass Save HEAT PUMP Metrics | U1: Default Utility Rates
A2: PA Custom Incentive Rates | L2: Electric | M2: =I6 -> 0 | N2: Total | O2: Fossil Fuel | P2: Quantity of HPs (#) | S2: ='Unitary HVAC (RTU, AC, HP, VRF)'!AN3 -> 0 | V2: MA | W2: NH | X2: RI | Y2: This Project | Z2: Unit
A3: PA | D3: Unit | F3: Default | L3: Impacts | M3: Impacts | N3: Energy | O3: Equivalent | P3: HP Annual Savings (kWh) | S3: ='Unitary HVAC (RTU, AC, HP, VRF)'!AN4 ->  | U3: Electric | V3: 0.197 | W3: 0.1593 | X3: 0.18 | Y3: =LOOKUP('Project Info'!$C$15,$V$2:$X$2,V3:X3) -> 0.1593 | Z3: kWh
A4: ='Project Info'!F3 -> 0 | D4: Electric $/kWh Saved | F4: =IFERROR(VLOOKUP($E$1,$G$68:$J$70,2,FALSE),$H$70) -> 0.28 | I4: Fuel | J4: Program Administrator | L4: (kWh) | M4: =IF(I6='Project Info'!X102,"(therms)","(MMBtu)") -> (MMBtu) | N4: MMBtu | O4: kWh | P4: HP Incremental Cost ($) | S4: ='Unitary HVAC (RTU, AC, HP, VRF)'!AN5 ->  | U4: ='Project Info'!X102 -> Natural Gas | V4: 0.977 | W4: 0.975 | X4: 0.888 | Y4: =LOOKUP('Project Info'!$C$15,$V$2:$X$2,V4:X4) -> 0.975 | Z4: therms
A5: ='Project Info'!I3 -> 0 | D5: Gas $/therm Saved | F5: =IFERROR(VLOOKUP($E$1,$G$68:$J$70,3,FALSE),$I$70) -> 1.5 | I5: Electric | J5: =IF('Project Info'!$F$3="","Select PA in Project Info tab", 'Project Info'!$F$3) -> Select PA in Project Info tab | L5: =SUMIF('ECM Summary'!$J$10:$J$25,">=0") -> 0 | M5: =SUMIF('ECM Summary'!$K$10:$K$25,"<0") -> 0 | N5: =(L5*3.412+M5*IF($I$6='Project Info'!$X$102,100,1000))/1000 -> 0 | P5: HP Incentive ($) | S5: ='Unitary HVAC (RTU, AC, HP, VRF)'!AN6 ->  | U5: ='Project Info'!X103 -> Oil | V5: 20 | W5: 17.5 | X5: 20 | Y5: =LOOKUP('Project Info'!$C$15,$V$2:$X$2,V5:X5) -> 17.5 | Z5: MMBtu
A6: Purchased Fuels (Non-gas fossil fuel) | D6: Fuel $/MMBtu Saved | F6: =IFERROR(VLOOKUP($E$1,$G$68:$J$70,4,FALSE),$J$70) -> 0 | I6: ='Project Info'!C21 -> 0 | J6: =IF('Project Info'!C21<>'Project Info'!X102,'PA Impacts'!J5,IF('Project Info'!$I$3="","Select PA in Project Info tab", 'Project Info'!I$3)) -> Select PA in Project Info tab | L6: =SUMIF('ECM Summary'!$J$10:$J$25,"<0") -> 0 | M6: =SUMIF('ECM Summary'!$K$10:$K$25,">=0") -> 0 | N6: =(L6*3.412+M6*IF($I$6='Project Info'!$X$102,100,1000))/1000 -> 0 | O6: =N6*1000000/3412 -> 0 | P6: HP Summer kW Saved (kW) | S6: ='Unitary HVAC (RTU, AC, HP, VRF)'!AN7 ->  | U6: ='Project Info'!X104 -> Propane | V6: 30 | W6: 32.5 | X6: 30 | Y6: =LOOKUP('Project Info'!$C$15,$V$2:$X$2,V6:X6) -> 32.5 | Z6: MMBtu
E7: Fossil Fuel Rate for this Project | F7: =IF('Project Info'!C21='Project Info'!X105,0,IF('Project Info'!C21='Project Info'!X102,F5,F6)) -> 0 | J7: Total Project Impact | L7: =SUM(L5:L6) -> 0 | M7: =SUM(M5:M6) -> 0 | N7: =SUM(N5:N6) -> 0 | P7: HP Winter kW Saved (kW) | S7: ='Unitary HVAC (RTU, AC, HP, VRF)'!AN8 -> 
U8: Quantity of ECMs Included | W8: =MAX('ECM Summary'!$D$10:$D$25) -> 0
A9: SCREENING TOOL INPUTS BY MEASURE | U9: TOTAL
E10: 1 | F10: 2 | G10: 3 | H10: 4 | I10: 5 | J10: 6 | K10: 7 | L10: 8 | M10: 9 | N10: 10 | O10: 11 | P10: 12 | Q10: 13 | R10: 14 | S10: 15 | T10: 16 | U10: PROJECT
C11: Measure Label | E11: =OFFSET('ECM Summary'!$D$9,MATCH('PA Impacts'!E10,'ECM Summary'!$D$10:$D$25,0),1) ->  | F11: =OFFSET('ECM Summary'!$D$9,MATCH('PA Impacts'!F10,'ECM Summary'!$D$10:$D$25,0),1) ->  | G11: =OFFSET('ECM Summary'!$D$9,MATCH('PA Impacts'!G10,'ECM Summary'!$D$10:$D$25,0),1) ->  | H11: =OFFSET('ECM Summary'!$D$9,MATCH('PA Impacts'!H10,'ECM Summary'!$D$10:$D$25,0),1) ->  | I11: =OFFSET('ECM Summary'!$D$9,MATCH('PA Impacts'!I10,'ECM Summary'!$D$10:$D$25,0),1) ->  | J11: =OFFSET('ECM Summary'!$D$9,MATCH('PA Impacts'!J10,'ECM Summary'!$D$10:$D$25,0),1) ->  | K11: =OFFSET('ECM Summary'!$D$9,MATCH('PA Impacts'!K10,'ECM Summary'!$D$10:$D$25,0),1) ->  | L11: =OFFSET('ECM Summary'!$D$9,MATCH('PA Impacts'!L10,'ECM Summary'!$D$10:$D$25,0),1) ->  | M11: =OFFSET('ECM Summary'!$D$9,MATCH('PA Impacts'!M10,'ECM Summary'!$D$10:$D$25,0),1) ->  | N11: =OFFSET('ECM Summary'!$D$9,MATCH('PA Impacts'!N10,'ECM Summary'!$D$10:$D$25,0),1) ->  | O11: =OFFSET('ECM Summary'!$D$9,MATCH('PA Impacts'!O10,'ECM Summary'!$D$10:$D$25,0),1) ->  | P11: =OFFSET('ECM Summary'!$D$9,MATCH('PA Impacts'!P10,'ECM Summary'!$D$10:$D$25,0),1) ->  | Q11: =OFFSET('ECM Summary'!$D$9,MATCH('PA Impacts'!Q10,'ECM Summary'!$D$10:$D$25,0),1) ->  | R11: =OFFSET('ECM Summary'!$D$9,MATCH('PA Impacts'!R10,'ECM Summary'!$D$10:$D$25,0),1) ->  | S11: =OFFSET('ECM Summary'!$D$9,MATCH('PA Impacts'!S10,'ECM Summary'!$D$10:$D$25,0),1) ->  | T11: =OFFSET('ECM Summary'!$D$9,MATCH('PA Impacts'!T10,'ECM Summary'!$D$10:$D$25,0),1) -> 
A12: Measure Information | C12: Include in project | E12: =1*(E$10<=$W$8)*(LOOKUP(E$10,'ECM Summary'!$D$10:$D$25,'ECM Summary'!$I$10:$I$25)="Yes") ->  | F12: =1*(F$10<=$W$8)*(LOOKUP(F$10,'ECM Summary'!$D$10:$D$25,'ECM Summary'!$I$10:$I$25)="Yes") ->  | G12: =1*(G$10<=$W$8)*(LOOKUP(G$10,'ECM Summary'!$D$10:$D$25,'ECM Summary'!$I$10:$I$25)="Yes") ->  | H12: =1*(H$10<=$W$8)*(LOOKUP(H$10,'ECM Summary'!$D$10:$D$25,'ECM Summary'!$I$10:$I$25)="Yes") ->  | I12: =1*(I$10<=$W$8)*(LOOKUP(I$10,'ECM Summary'!$D$10:$D$25,'ECM Summary'!$I$10:$I$25)="Yes") ->  | J12: =1*(J$10<=$W$8)*(LOOKUP(J$10,'ECM Summary'!$D$10:$D$25,'ECM Summary'!$I$10:$I$25)="Yes") ->  | K12: =1*(K$10<=$W$8)*(LOOKUP(K$10,'ECM Summary'!$D$10:$D$25,'ECM Summary'!$I$10:$I$25)="Yes") ->  | L12: =1*(L$10<=$W$8)*(LOOKUP(L$10,'ECM Summary'!$D$10:$D$25,'ECM Summary'!$I$10:$I$25)="Yes") ->  | M12: =1*(M$10<=$W$8)*(LOOKUP(M$10,'ECM Summary'!$D$10:$D$25,'ECM Summary'!$I$10:$I$25)="Yes") ->  | N12: =1*(N$10<=$W$8)*(LOOKUP(N$10,'ECM Summary'!$D$10:$D$25,'ECM Summary'!$I$10:$I$25)="Yes") ->  | O12: =1*(O$10<=$W$8)*(LOOKUP(O$10,'ECM Summary'!$D$10:$D$25,'ECM Summary'!$I$10:$I$25)="Yes") ->  | P12: =1*(P$10<=$W$8)*(LOOKUP(P$10,'ECM Summary'!$D$10:$D$25,'ECM Summary'!$I$10:$I$25)="Yes") ->  | Q12: =1*(Q$10<=$W$8)*(LOOKUP(Q$10,'ECM Summary'!$D$10:$D$25,'ECM Summary'!$I$10:$I$25)="Yes") ->  | R12: =1*(R$10<=$W$8)*(LOOKUP(R$10,'ECM Summary'!$D$10:$D$25,'ECM Summary'!$I$10:$I$25)="Yes") ->  | S12: =1*(S$10<=$W$8)*(LOOKUP(S$10,'ECM Summary'!$D$10:$D$25,'ECM Summary'!$I$10:$I$25)="Yes") ->  | T12: =1*(T$10<=$W$8)*(LOOKUP(T$10,'ECM Summary'!$D$10:$D$25,'ECM Summary'!$I$10:$I$25)="Yes") -> 
C13: Initiative | E13: New Buildings & Major Renovation | F13: New Buildings & Major Renovation | G13: New Buildings & Major Renovation | H13: New Buildings & Major Renovation | I13: New Buildings & Major Renovation | J13: New Buildings & Major Renovation | K13: New Buildings & Major Renovation | L13: New Buildings & Major Renovation | M13: New Buildings & Major Renovation | N13: New Buildings & Major Renovation | O13: New Buildings & Major Renovation | P13: New Buildings & Major Renovation | Q13: New Buildings & Major Renovation | R13: New Buildings & Major Renovation | S13: New Buildings & Major Renovation | T13: New Buildings & Major Renovation
C14: Fuel Savings Type | E14: =IF(E$10<=$W$8,LOOKUP(E$10,'ECM Summary'!$D$10:$D$25,'ECM Summary'!$AD$10:$AD$25),"") ->  | F14: =IF(F$10<=$W$8,LOOKUP(F$10,'ECM Summary'!$D$10:$D$25,'ECM Summary'!$AD$10:$AD$25),"") ->  | G14: =IF(G$10<=$W$8,LOOKUP(G$10,'ECM Summary'!$D$10:$D$25,'ECM Summary'!$AD$10:$AD$25),"") ->  | H14: =IF(H$10<=$W$8,LOOKUP(H$10,'ECM Summary'!$D$10:$D$25,'ECM Summary'!$AD$10:$AD$25),"") ->  | I14: =IF(I$10<=$W$8,LOOKUP(I$10,'ECM Summary'!$D$10:$D$25,'ECM Summary'!$AD$10:$AD$25),"") ->  | J14: =IF(J$10<=$W$8,LOOKUP(J$10,'ECM Summary'!$D$10:$D$25,'ECM Summary'!$AD$10:$AD$25),"") ->  | K14: =IF(K$10<=$W$8,LOOKUP(K$10,'ECM Summary'!$D$10:$D$25,'ECM Summary'!$AD$10:$AD$25),"") ->  | L14: =IF(L$10<=$W$8,LOOKUP(L$10,'ECM Summary'!$D$10:$D$25,'ECM Summary'!$AD$10:$AD$25),"") ->  | M14: =IF(M$10<=$W$8,LOOKUP(M$10,'ECM Summary'!$D$10:$D$25,'ECM Summary'!$AD$10:$AD$25),"") ->  | N14: =IF(N$10<=$W$8,LOOKUP(N$10,'ECM Summary'!$D$10:$D$25,'ECM Summary'!$AD$10:$AD$25),"") ->  | O14: =IF(O$10<=$W$8,LOOKUP(O$10,'ECM Summary'!$D$10:$D$25,'ECM Summary'!$AD$10:$AD$25),"") ->  | P14: =IF(P$10<=$W$8,LOOKUP(P$10,'ECM Summary'!$D$10:$D$25,'ECM Summary'!$AD$10:$AD$25),"") ->  | Q14: =IF(Q$10<=$W$8,LOOKUP(Q$10,'ECM Summary'!$D$10:$D$25,'ECM Summary'!$AD$10:$AD$25),"") ->  | R14: =IF(R$10<=$W$8,LOOKUP(R$10,'ECM Summary'!$D$10:$D$25,'ECM Summary'!$AD$10:$AD$25),"") ->  | S14: =IF(S$10<=$W$8,LOOKUP(S$10,'ECM Summary'!$D$10:$D$25,'ECM Summary'!$AD$10:$AD$25),"") ->  | T14: =IF(T$10<=$W$8,LOOKUP(T$10,'ECM Summary'!$D$10:$D$25,'ECM Summary'!$AD$10:$AD$25),"") -> 
C15: Measure | E15: =IF(E$10<=$W$8,LOOKUP(E$10,'ECM Summary'!$D$10:$D$25,'ECM Summary'!$AE$10:$AE$25),"") ->  | F15: =IF(F$10<=$W$8,LOOKUP(F$10,'ECM Summary'!$D$10:$D$25,'ECM Summary'!$AE$10:$AE$25),"") ->  | G15: =IF(G$10<=$W$8,LOOKUP(G$10,'ECM Summary'!$D$10:$D$25,'ECM Summary'!$AE$10:$AE$25),"") ->  | H15: =IF(H$10<=$W$8,LOOKUP(H$10,'ECM Summary'!$D$10:$D$25,'ECM Summary'!$AE$10:$AE$25),"") ->  | I15: =IF(I$10<=$W$8,LOOKUP(I$10,'ECM Summary'!$D$10:$D$25,'ECM Summary'!$AE$10:$AE$25),"") ->  | J15: =IF(J$10<=$W$8,LOOKUP(J$10,'ECM Summary'!$D$10:$D$25,'ECM Summary'!$AE$10:$AE$25),"") ->  | K15: =IF(K$10<=$W$8,LOOKUP(K$10,'ECM Summary'!$D$10:$D$25,'ECM Summary'!$AE$10:$AE$25),"") ->  | L15: =IF(L$10<=$W$8,LOOKUP(L$10,'ECM Summary'!$D$10:$D$25,'ECM Summary'!$AE$10:$AE$25),"") ->  | M15: =IF(M$10<=$W$8,LOOKUP(M$10,'ECM Summary'!$D$10:$D$25,'ECM Summary'!$AE$10:$AE$25),"") ->  | N15: =IF(N$10<=$W$8,LOOKUP(N$10,'ECM Summary'!$D$10:$D$25,'ECM Summary'!$AE$10:$AE$25),"") ->  | O15: =IF(O$10<=$W$8,LOOKUP(O$10,'ECM Summary'!$D$10:$D$25,'ECM Summary'!$AE$10:$AE$25),"") ->  | P15: =IF(P$10<=$W$8,LOOKUP(P$10,'ECM Summary'!$D$10:$D$25,'ECM Summary'!$AE$10:$AE$25),"") ->  | Q15: =IF(Q$10<=$W$8,LOOKUP(Q$10,'ECM Summary'!$D$10:$D$25,'ECM Summary'!$AE$10:$AE$25),"") ->  | R15: =IF(R$10<=$W$8,LOOKUP(R$10,'ECM Summary'!$D$10:$D$25,'ECM Summary'!$AE$10:$AE$25),"") ->  | S15: =IF(S$10<=$W$8,LOOKUP(S$10,'ECM Summary'!$D$10:$D$25,'ECM Summary'!$AE$10:$AE$25),"") ->  | T15: =IF(T$10<=$W$8,LOOKUP(T$10,'ECM Summary'!$D$10:$D$25,'ECM Summary'!$AE$10:$AE$25),"") -> 
C16: Estimated Useful Life (Years) | E16: =IF(E$10<=$W$8,LOOKUP(E$10,'ECM Summary'!$D$10:$D$25,'ECM Summary'!$AF$10:$AF$25),"") ->  | F16: =IF(F$10<=$W$8,LOOKUP(F$10,'ECM Summary'!$D$10:$D$25,'ECM Summary'!$AF$10:$AF$25),"") ->  | G16: =IF(G$10<=$W$8,LOOKUP(G$10,'ECM Summary'!$D$10:$D$25,'ECM Summary'!$AF$10:$AF$25),"") ->  | H16: =IF(H$10<=$W$8,LOOKUP(H$10,'ECM Summary'!$D$10:$D$25,'ECM Summary'!$AF$10:$AF$25),"") ->  | I16: =IF(I$10<=$W$8,LOOKUP(I$10,'ECM Summary'!$D$10:$D$25,'ECM Summary'!$AF$10:$AF$25),"") ->  | J16: =IF(J$10<=$W$8,LOOKUP(J$10,'ECM Summary'!$D$10:$D$25,'ECM Summary'!$AF$10:$AF$25),"") ->  | K16: =IF(K$10<=$W$8,LOOKUP(K$10,'ECM Summary'!$D$10:$D$25,'ECM Summary'!$AF$10:$AF$25),"") ->  | L16: =IF(L$10<=$W$8,LOOKUP(L$10,'ECM Summary'!$D$10:$D$25,'ECM Summary'!$AF$10:$AF$25),"") ->  | M16: =IF(M$10<=$W$8,LOOKUP(M$10,'ECM Summary'!$D$10:$D$25,'ECM Summary'!$AF$10:$AF$25),"") ->  | N16: =IF(N$10<=$W$8,LOOKUP(N$10,'ECM Summary'!$D$10:$D$25,'ECM Summary'!$AF$10:$AF$25),"") ->  | O16: =IF(O$10<=$W$8,LOOKUP(O$10,'ECM Summary'!$D$10:$D$25,'ECM Summary'!$AF$10:$AF$25),"") ->  | P16: =IF(P$10<=$W$8,LOOKUP(P$10,'ECM Summary'!$D$10:$D$25,'ECM Summary'!$AF$10:$AF$25),"") ->  | Q16: =IF(Q$10<=$W$8,LOOKUP(Q$10,'ECM Summary'!$D$10:$D$25,'ECM Summary'!$AF$10:$AF$25),"") ->  | R16: =IF(R$10<=$W$8,LOOKUP(R$10,'ECM Summary'!$D$10:$D$25,'ECM Summary'!$AF$10:$AF$25),"") ->  | S16: =IF(S$10<=$W$8,LOOKUP(S$10,'ECM Summary'!$D$10:$D$25,'ECM Summary'!$AF$10:$AF$25),"") ->  | T16: =IF(T$10<=$W$8,LOOKUP(T$10,'ECM Summary'!$D$10:$D$25,'ECM Summary'!$AF$10:$AF$25),"") ->  | U16: =IFERROR(SUMPRODUCT(E16:T16,$E$36:$T$36)/$U$36,0) -> 0
C17: Override Life (Optional) | E17: =IF(E$10<=$W$8,LOOKUP(E$10,'ECM Summary'!$D$10:$D$25,'ECM Summary'!$AF$10:$AF$25),"") ->  | F17: =IF(F$10<=$W$8,LOOKUP(F$10,'ECM Summary'!$D$10:$D$25,'ECM Summary'!$AF$10:$AF$25),"") ->  | G17: =IF(G$10<=$W$8,LOOKUP(G$10,'ECM Summary'!$D$10:$D$25,'ECM Summary'!$AF$10:$AF$25),"") ->  | H17: =IF(H$10<=$W$8,LOOKUP(H$10,'ECM Summary'!$D$10:$D$25,'ECM Summary'!$AF$10:$AF$25),"") ->  | I17: =IF(I$10<=$W$8,LOOKUP(I$10,'ECM Summary'!$D$10:$D$25,'ECM Summary'!$AF$10:$AF$25),"") ->  | J17: =IF(J$10<=$W$8,LOOKUP(J$10,'ECM Summary'!$D$10:$D$25,'ECM Summary'!$AF$10:$AF$25),"") ->  | K17: =IF(K$10<=$W$8,LOOKUP(K$10,'ECM Summary'!$D$10:$D$25,'ECM Summary'!$AF$10:$AF$25),"") ->  | L17: =IF(L$10<=$W$8,LOOKUP(L$10,'ECM Summary'!$D$10:$D$25,'ECM Summary'!$AF$10:$AF$25),"") ->  | M17: =IF(M$10<=$W$8,LOOKUP(M$10,'ECM Summary'!$D$10:$D$25,'ECM Summary'!$AF$10:$AF$25),"") ->  | N17: =IF(N$10<=$W$8,LOOKUP(N$10,'ECM Summary'!$D$10:$D$25,'ECM Summary'!$AF$10:$AF$25),"") ->  | O17: =IF(O$10<=$W$8,LOOKUP(O$10,'ECM Summary'!$D$10:$D$25,'ECM Summary'!$AF$10:$AF$25),"") ->  | P17: =IF(P$10<=$W$8,LOOKUP(P$10,'ECM Summary'!$D$10:$D$25,'ECM Summary'!$AF$10:$AF$25),"") ->  | Q17: =IF(Q$10<=$W$8,LOOKUP(Q$10,'ECM Summary'!$D$10:$D$25,'ECM Summary'!$AF$10:$AF$25),"") ->  | R17: =IF(R$10<=$W$8,LOOKUP(R$10,'ECM Summary'!$D$10:$D$25,'ECM Summary'!$AF$10:$AF$25),"") ->  | S17: =IF(S$10<=$W$8,LOOKUP(S$10,'ECM Summary'!$D$10:$D$25,'ECM Summary'!$AF$10:$AF$25),"") ->  | T17: =IF(T$10<=$W$8,LOOKUP(T$10,'ECM Summary'!$D$10:$D$25,'ECM Summary'!$AF$10:$AF$25),"") ->  | U17: =IFERROR(SUMPRODUCT(E17:T17,$E$36:$T$36)/$U$36,0) -> 0
A18: Measure Costs | C18: Proposed Cost ($) | E18: =IF(E$10<=$W$8,LOOKUP(E$10,'ECM Summary'!$D$10:$D$25,'ECM Summary'!$U$10:$U$25),"") ->  | F18: =IF(F$10<=$W$8,LOOKUP(F$10,'ECM Summary'!$D$10:$D$25,'ECM Summary'!$U$10:$U$25),"") ->  | G18: =IF(G$10<=$W$8,LOOKUP(G$10,'ECM Summary'!$D$10:$D$25,'ECM Summary'!$U$10:$U$25),"") ->  | H18: =IF(H$10<=$W$8,LOOKUP(H$10,'ECM Summary'!$D$10:$D$25,'ECM Summary'!$U$10:$U$25),"") ->  | I18: =IF(I$10<=$W$8,LOOKUP(I$10,'ECM Summary'!$D$10:$D$25,'ECM Summary'!$U$10:$U$25),"") ->  | J18: =IF(J$10<=$W$8,LOOKUP(J$10,'ECM Summary'!$D$10:$D$25,'ECM Summary'!$U$10:$U$25),"") ->  | K18: =IF(K$10<=$W$8,LOOKUP(K$10,'ECM Summary'!$D$10:$D$25,'ECM Summary'!$U$10:$U$25),"") ->  | L18: =IF(L$10<=$W$8,LOOKUP(L$10,'ECM Summary'!$D$10:$D$25,'ECM Summary'!$U$10:$U$25),"") ->  | M18: =IF(M$10<=$W$8,LOOKUP(M$10,'ECM Summary'!$D$10:$D$25,'ECM Summary'!$U$10:$U$25),"") ->  | N18: =IF(N$10<=$W$8,LOOKUP(N$10,'ECM Summary'!$D$10:$D$25,'ECM Summary'!$U$10:$U$25),"") ->  | O18: =IF(O$10<=$W$8,LOOKUP(O$10,'ECM Summary'!$D$10:$D$25,'ECM Summary'!$U$10:$U$25),"") ->  | P18: =IF(P$10<=$W$8,LOOKUP(P$10,'ECM Summary'!$D$10:$D$25,'ECM Summary'!$U$10:$U$25),"") ->  | Q18: =IF(Q$10<=$W$8,LOOKUP(Q$10,'ECM Summary'!$D$10:$D$25,'ECM Summary'!$U$10:$U$25),"") ->  | R18: =IF(R$10<=$W$8,LOOKUP(R$10,'ECM Summary'!$D$10:$D$25,'ECM Summary'!$U$10:$U$25),"") ->  | S18: =IF(S$10<=$W$8,LOOKUP(S$10,'ECM Summary'!$D$10:$D$25,'ECM Summary'!$U$10:$U$25),"") ->  | T18: =IF(T$10<=$W$8,LOOKUP(T$10,'ECM Summary'!$D$10:$D$25,'ECM Summary'!$U$10:$U$25),"") ->  | U18: =SUM(E18:T18) -> 0
C19: Baseline Cost ($) | E19: 0 | F19: 0 | G19: 0 | H19: 0 | I19: 0 | J19: 0 | K19: 0 | L19: 0 | M19: 0 | N19: 0 | O19: 0 | P19: 0 | Q19: 0 | R19: 0 | S19: 0 | T19: 0 | U19: =SUM(E19:T19) -> 0
A20: Gross Electric Energy | C20: Energy (kWh) | E20: =IF(E$10<=$W$8,LOOKUP(E$10,'ECM Summary'!$D$10:$D$25,'ECM Summary'!$J$10:$J$25),"") ->  | F20: =IF(F$10<=$W$8,LOOKUP(F$10,'ECM Summary'!$D$10:$D$25,'ECM Summary'!$J$10:$J$25),"") ->  | G20: =IF(G$10<=$W$8,LOOKUP(G$10,'ECM Summary'!$D$10:$D$25,'ECM Summary'!$J$10:$J$25),"") ->  | H20: =IF(H$10<=$W$8,LOOKUP(H$10,'ECM Summary'!$D$10:$D$25,'ECM Summary'!$J$10:$J$25),"") ->  | I20: =IF(I$10<=$W$8,LOOKUP(I$10,'ECM Summary'!$D$10:$D$25,'ECM Summary'!$J$10:$J$25),"") ->  | J20: =IF(J$10<=$W$8,LOOKUP(J$10,'ECM Summary'!$D$10:$D$25,'ECM Summary'!$J$10:$J$25),"") ->  | K20: =IF(K$10<=$W$8,LOOKUP(K$10,'ECM Summary'!$D$10:$D$25,'ECM Summary'!$J$10:$J$25),"") ->  | L20: =IF(L$10<=$W$8,LOOKUP(L$10,'ECM Summary'!$D$10:$D$25,'ECM Summary'!$J$10:$J$25),"") ->  | M20: =IF(M$10<=$W$8,LOOKUP(M$10,'ECM Summary'!$D$10:$D$25,'ECM Summary'!$J$10:$J$25),"") ->  | N20: =IF(N$10<=$W$8,LOOKUP(N$10,'ECM Summary'!$D$10:$D$25,'ECM Summary'!$J$10:$J$25),"") ->  | O20: =IF(O$10<=$W$8,LOOKUP(O$10,'ECM Summary'!$D$10:$D$25,'ECM Summary'!$J$10:$J$25),"") ->  | P20: =IF(P$10<=$W$8,LOOKUP(P$10,'ECM Summary'!$D$10:$D$25,'ECM Summary'!$J$10:$J$25),"") ->  | Q20: =IF(Q$10<=$W$8,LOOKUP(Q$10,'ECM Summary'!$D$10:$D$25,'ECM Summary'!$J$10:$J$25),"") ->  | R20: =IF(R$10<=$W$8,LOOKUP(R$10,'ECM Summary'!$D$10:$D$25,'ECM Summary'!$J$10:$J$25),"") ->  | S20: =IF(S$10<=$W$8,LOOKUP(S$10,'ECM Summary'!$D$10:$D$25,'ECM Summary'!$J$10:$J$25),"") ->  | T20: =IF(T$10<=$W$8,LOOKUP(T$10,'ECM Summary'!$D$10:$D$25,'ECM Summary'!$J$10:$J$25),"") ->  | U20: 0
A21: (Savings and Penalties) | C21: % Summer On Peak | E21: =IF(E$10<=$W$8,LOOKUP(E$10,'ECM Summary'!$D$10:$D$25,'ECM Summary'!$O$10:$O$25),"") ->  | F21: =IF(F$10<=$W$8,LOOKUP(F$10,'ECM Summary'!$D$10:$D$25,'ECM Summary'!$O$10:$O$25),"") ->  | G21: =IF(G$10<=$W$8,LOOKUP(G$10,'ECM Summary'!$D$10:$D$25,'ECM Summary'!$O$10:$O$25),"") ->  | H21: =IF(H$10<=$W$8,LOOKUP(H$10,'ECM Summary'!$D$10:$D$25,'ECM Summary'!$O$10:$O$25),"") ->  | I21: =IF(I$10<=$W$8,LOOKUP(I$10,'ECM Summary'!$D$10:$D$25,'ECM Summary'!$O$10:$O$25),"") ->  | J21: =IF(J$10<=$W$8,LOOKUP(J$10,'ECM Summary'!$D$10:$D$25,'ECM Summary'!$O$10:$O$25),"") ->  | K21: =IF(K$10<=$W$8,LOOKUP(K$10,'ECM Summary'!$D$10:$D$25,'ECM Summary'!$O$10:$O$25),"") ->  | L21: =IF(L$10<=$W$8,LOOKUP(L$10,'ECM Summary'!$D$10:$D$25,'ECM Summary'!$O$10:$O$25),"") ->  | M21: =IF(M$10<=$W$8,LOOKUP(M$10,'ECM Summary'!$D$10:$D$25,'ECM Summary'!$O$10:$O$25),"") ->  | N21: =IF(N$10<=$W$8,LOOKUP(N$10,'ECM Summary'!$D$10:$D$25,'ECM Summary'!$O$10:$O$25),"") ->  | O21: =IF(O$10<=$W$8,LOOKUP(O$10,'ECM Summary'!$D$10:$D$25,'ECM Summary'!$O$10:$O$25),"") ->  | P21: =IF(P$10<=$W$8,LOOKUP(P$10,'ECM Summary'!$D$10:$D$25,'ECM Summary'!$O$10:$O$25),"") ->  | Q21: =IF(Q$10<=$W$8,LOOKUP(Q$10,'ECM Summary'!$D$10:$D$25,'ECM Summary'!$O$10:$O$25),"") ->  | R21: =IF(R$10<=$W$8,LOOKUP(R$10,'ECM Summary'!$D$10:$D$25,'ECM Summary'!$O$10:$O$25),"") ->  | S21: =IF(S$10<=$W$8,LOOKUP(S$10,'ECM Summary'!$D$10:$D$25,'ECM Summary'!$O$10:$O$25),"") ->  | T21: =IF(T$10<=$W$8,LOOKUP(T$10,'ECM Summary'!$D$10:$D$25,'ECM Summary'!$O$10:$O$25),"") ->  | U21: =IFERROR(SUMPRODUCT(E21:T21,$E$20:$T$20)/$U$20,0) -> 0
C22: % Summer Off Peak | E22: =IF(E$10<=$W$8,LOOKUP(E$10,'ECM Summary'!$D$10:$D$25,'ECM Summary'!$P$10:$P$25),"") ->  | F22: =IF(F$10<=$W$8,LOOKUP(F$10,'ECM Summary'!$D$10:$D$25,'ECM Summary'!$P$10:$P$25),"") ->  | G22: =IF(G$10<=$W$8,LOOKUP(G$10,'ECM Summary'!$D$10:$D$25,'ECM Summary'!$P$10:$P$25),"") ->  | H22: =IF(H$10<=$W$8,LOOKUP(H$10,'ECM Summary'!$D$10:$D$25,'ECM Summary'!$P$10:$P$25),"") ->  | I22: =IF(I$10<=$W$8,LOOKUP(I$10,'ECM Summary'!$D$10:$D$25,'ECM Summary'!$P$10:$P$25),"") ->  | J22: =IF(J$10<=$W$8,LOOKUP(J$10,'ECM Summary'!$D$10:$D$25,'ECM Summary'!$P$10:$P$25),"") ->  | K22: =IF(K$10<=$W$8,LOOKUP(K$10,'ECM Summary'!$D$10:$D$25,'ECM Summary'!$P$10:$P$25),"") ->  | L22: =IF(L$10<=$W$8,LOOKUP(L$10,'ECM Summary'!$D$10:$D$25,'ECM Summary'!$P$10:$P$25),"") ->  | M22: =IF(M$10<=$W$8,LOOKUP(M$10,'ECM Summary'!$D$10:$D$25,'ECM Summary'!$P$10:$P$25),"") ->  | N22: =IF(N$10<=$W$8,LOOKUP(N$10,'ECM Summary'!$D$10:$D$25,'ECM Summary'!$P$10:$P$25),"") ->  | O22: =IF(O$10<=$W$8,LOOKUP(O$10,'ECM Summary'!$D$10:$D$25,'ECM Summary'!$P$10:$P$25),"") ->  | P22: =IF(P$10<=$W$8,LOOKUP(P$10,'ECM Summary'!$D$10:$D$25,'ECM Summary'!$P$10:$P$25),"") ->  | Q22: =IF(Q$10<=$W$8,LOOKUP(Q$10,'ECM Summary'!$D$10:$D$25,'ECM Summary'!$P$10:$P$25),"") ->  | R22: =IF(R$10<=$W$8,LOOKUP(R$10,'ECM Summary'!$D$10:$D$25,'ECM Summary'!$P$10:$P$25),"") ->  | S22: =IF(S$10<=$W$8,LOOKUP(S$10,'ECM Summary'!$D$10:$D$25,'ECM Summary'!$P$10:$P$25),"") ->  | T22: =IF(T$10<=$W$8,LOOKUP(T$10,'ECM Summary'!$D$10:$D$25,'ECM Summary'!$P$10:$P$25),"") ->  | U22: =IFERROR(SUMPRODUCT(E22:T22,$E$20:$T$20)/$U$20,0) -> 0
C23: % Winter On Peak | E23: =IF(E$10<=$W$8,LOOKUP(E$10,'ECM Summary'!$D$10:$D$25,'ECM Summary'!$M$10:$M$25),"") ->  | F23: =IF(F$10<=$W$8,LOOKUP(F$10,'ECM Summary'!$D$10:$D$25,'ECM Summary'!$M$10:$M$25),"") ->  | G23: =IF(G$10<=$W$8,LOOKUP(G$10,'ECM Summary'!$D$10:$D$25,'ECM Summary'!$M$10:$M$25),"") ->  | H23: =IF(H$10<=$W$8,LOOKUP(H$10,'ECM Summary'!$D$10:$D$25,'ECM Summary'!$M$10:$M$25),"") ->  | I23: =IF(I$10<=$W$8,LOOKUP(I$10,'ECM Summary'!$D$10:$D$25,'ECM Summary'!$M$10:$M$25),"") ->  | J23: =IF(J$10<=$W$8,LOOKUP(J$10,'ECM Summary'!$D$10:$D$25,'ECM Summary'!$M$10:$M$25),"") ->  | K23: =IF(K$10<=$W$8,LOOKUP(K$10,'ECM Summary'!$D$10:$D$25,'ECM Summary'!$M$10:$M$25),"") ->  | L23: =IF(L$10<=$W$8,LOOKUP(L$10,'ECM Summary'!$D$10:$D$25,'ECM Summary'!$M$10:$M$25),"") ->  | M23: =IF(M$10<=$W$8,LOOKUP(M$10,'ECM Summary'!$D$10:$D$25,'ECM Summary'!$M$10:$M$25),"") ->  | N23: =IF(N$10<=$W$8,LOOKUP(N$10,'ECM Summary'!$D$10:$D$25,'ECM Summary'!$M$10:$M$25),"") ->  | O23: =IF(O$10<=$W$8,LOOKUP(O$10,'ECM Summary'!$D$10:$D$25,'ECM Summary'!$M$10:$M$25),"") ->  | P23: =IF(P$10<=$W$8,LOOKUP(P$10,'ECM Summary'!$D$10:$D$25,'ECM Summary'!$M$10:$M$25),"") ->  | Q23: =IF(Q$10<=$W$8,LOOKUP(Q$10,'ECM Summary'!$D$10:$D$25,'ECM Summary'!$M$10:$M$25),"") ->  | R23: =IF(R$10<=$W$8,LOOKUP(R$10,'ECM Summary'!$D$10:$D$25,'ECM Summary'!$M$10:$M$25),"") ->  | S23: =IF(S$10<=$W$8,LOOKUP(S$10,'ECM Summary'!$D$10:$D$25,'ECM Summary'!$M$10:$M$25),"") ->  | T23: =IF(T$10<=$W$8,LOOKUP(T$10,'ECM Summary'!$D$10:$D$25,'ECM Summary'!$M$10:$M$25),"") ->  | U23: 0
C24: % Winter Off Peak | E24: =IF(E$10<=$W$8,LOOKUP(E$10,'ECM Summary'!$D$10:$D$25,'ECM Summary'!$N$10:$N$25),"") ->  | F24: =IF(F$10<=$W$8,LOOKUP(F$10,'ECM Summary'!$D$10:$D$25,'ECM Summary'!$N$10:$N$25),"") ->  | G24: =IF(G$10<=$W$8,LOOKUP(G$10,'ECM Summary'!$D$10:$D$25,'ECM Summary'!$N$10:$N$25),"") ->  | H24: =IF(H$10<=$W$8,LOOKUP(H$10,'ECM Summary'!$D$10:$D$25,'ECM Summary'!$N$10:$N$25),"") ->  | I24: =IF(I$10<=$W$8,LOOKUP(I$10,'ECM Summary'!$D$10:$D$25,'ECM Summary'!$N$10:$N$25),"") ->  | J24: =IF(J$10<=$W$8,LOOKUP(J$10,'ECM Summary'!$D$10:$D$25,'ECM Summary'!$N$10:$N$25),"") ->  | K24: =IF(K$10<=$W$8,LOOKUP(K$10,'ECM Summary'!$D$10:$D$25,'ECM Summary'!$N$10:$N$25),"") ->  | L24: =IF(L$10<=$W$8,LOOKUP(L$10,'ECM Summary'!$D$10:$D$25,'ECM Summary'!$N$10:$N$25),"") ->  | M24: =IF(M$10<=$W$8,LOOKUP(M$10,'ECM Summary'!$D$10:$D$25,'ECM Summary'!$N$10:$N$25),"") ->  | N24: =IF(N$10<=$W$8,LOOKUP(N$10,'ECM Summary'!$D$10:$D$25,'ECM Summary'!$N$10:$N$25),"") ->  | O24: =IF(O$10<=$W$8,LOOKUP(O$10,'ECM Summary'!$D$10:$D$25,'ECM Summary'!$N$10:$N$25),"") ->  | P24: =IF(P$10<=$W$8,LOOKUP(P$10,'ECM Summary'!$D$10:$D$25,'ECM Summary'!$N$10:$N$25),"") ->  | Q24: =IF(Q$10<=$W$8,LOOKUP(Q$10,'ECM Summary'!$D$10:$D$25,'ECM Summary'!$N$10:$N$25),"") ->  | R24: =IF(R$10<=$W$8,LOOKUP(R$10,'ECM Summary'!$D$10:$D$25,'ECM Summary'!$N$10:$N$25),"") ->  | S24: =IF(S$10<=$W$8,LOOKUP(S$10,'ECM Summary'!$D$10:$D$25,'ECM Summary'!$N$10:$N$25),"") ->  | T24: =IF(T$10<=$W$8,LOOKUP(T$10,'ECM Summary'!$D$10:$D$25,'ECM Summary'!$N$10:$N$25),"") ->  | U24: 0
A25: Gross Electric Capacity (Savings and Penalties) | C25: Summer Peak kW | E25: =IF(E$10<=$W$8,LOOKUP(E$10,'ECM Summary'!$D$10:$D$25,'ECM Summary'!$S$10:$S$25),"") ->  | F25: =IF(F$10<=$W$8,LOOKUP(F$10,'ECM Summary'!$D$10:$D$25,'ECM Summary'!$S$10:$S$25),"") ->  | G25: =IF(G$10<=$W$8,LOOKUP(G$10,'ECM Summary'!$D$10:$D$25,'ECM Summary'!$S$10:$S$25),"") ->  | H25: =IF(H$10<=$W$8,LOOKUP(H$10,'ECM Summary'!$D$10:$D$25,'ECM Summary'!$S$10:$S$25),"") ->  | I25: =IF(I$10<=$W$8,LOOKUP(I$10,'ECM Summary'!$D$10:$D$25,'ECM Summary'!$S$10:$S$25),"") ->  | J25: =IF(J$10<=$W$8,LOOKUP(J$10,'ECM Summary'!$D$10:$D$25,'ECM Summary'!$S$10:$S$25),"") ->  | K25: =IF(K$10<=$W$8,LOOKUP(K$10,'ECM Summary'!$D$10:$D$25,'ECM Summary'!$S$10:$S$25),"") ->  | L25: =IF(L$10<=$W$8,LOOKUP(L$10,'ECM Summary'!$D$10:$D$25,'ECM Summary'!$S$10:$S$25),"") ->  | M25: =IF(M$10<=$W$8,LOOKUP(M$10,'ECM Summary'!$D$10:$D$25,'ECM Summary'!$S$10:$S$25),"") ->  | N25: =IF(N$10<=$W$8,LOOKUP(N$10,'ECM Summary'!$D$10:$D$25,'ECM Summary'!$S$10:$S$25),"") ->  | O25: =IF(O$10<=$W$8,LOOKUP(O$10,'ECM Summary'!$D$10:$D$25,'ECM Summary'!$S$10:$S$25),"") ->  | P25: =IF(P$10<=$W$8,LOOKUP(P$10,'ECM Summary'!$D$10:$D$25,'ECM Summary'!$S$10:$S$25),"") ->  | Q25: =IF(Q$10<=$W$8,LOOKUP(Q$10,'ECM Summary'!$D$10:$D$25,'ECM Summary'!$S$10:$S$25),"") ->  | R25: =IF(R$10<=$W$8,LOOKUP(R$10,'ECM Summary'!$D$10:$D$25,'ECM Summary'!$S$10:$S$25),"") ->  | S25: =IF(S$10<=$W$8,LOOKUP(S$10,'ECM Summary'!$D$10:$D$25,'ECM Summary'!$S$10:$S$25),"") ->  | T25: =IF(T$10<=$W$8,LOOKUP(T$10,'ECM Summary'!$D$10:$D$25,'ECM Summary'!$S$10:$S$25),"") ->  | U25: =SUM(E25:T25) -> 0
C26: Winter Peak kW | E26: =IF(E$10<=$W$8,LOOKUP(E$10,'ECM Summary'!$D$10:$D$25,'ECM Summary'!$T$10:$T$25),"") ->  | F26: =IF(F$10<=$W$8,LOOKUP(F$10,'ECM Summary'!$D$10:$D$25,'ECM Summary'!$T$10:$T$25),"") ->  | G26: =IF(G$10<=$W$8,LOOKUP(G$10,'ECM Summary'!$D$10:$D$25,'ECM Summary'!$T$10:$T$25),"") ->  | H26: =IF(H$10<=$W$8,LOOKUP(H$10,'ECM Summary'!$D$10:$D$25,'ECM Summary'!$T$10:$T$25),"") ->  | I26: =IF(I$10<=$W$8,LOOKUP(I$10,'ECM Summary'!$D$10:$D$25,'ECM Summary'!$T$10:$T$25),"") ->  | J26: =IF(J$10<=$W$8,LOOKUP(J$10,'ECM Summary'!$D$10:$D$25,'ECM Summary'!$T$10:$T$25),"") ->  | K26: =IF(K$10<=$W$8,LOOKUP(K$10,'ECM Summary'!$D$10:$D$25,'ECM Summary'!$T$10:$T$25),"") ->  | L26: =IF(L$10<=$W$8,LOOKUP(L$10,'ECM Summary'!$D$10:$D$25,'ECM Summary'!$T$10:$T$25),"") ->  | M26: =IF(M$10<=$W$8,LOOKUP(M$10,'ECM Summary'!$D$10:$D$25,'ECM Summary'!$T$10:$T$25),"") ->  | N26: =IF(N$10<=$W$8,LOOKUP(N$10,'ECM Summary'!$D$10:$D$25,'ECM Summary'!$T$10:$T$25),"") ->  | O26: =IF(O$10<=$W$8,LOOKUP(O$10,'ECM Summary'!$D$10:$D$25,'ECM Summary'!$T$10:$T$25),"") ->  | P26: =IF(P$10<=$W$8,LOOKUP(P$10,'ECM Summary'!$D$10:$D$25,'ECM Summary'!$T$10:$T$25),"") ->  | Q26: =IF(Q$10<=$W$8,LOOKUP(Q$10,'ECM Summary'!$D$10:$D$25,'ECM Summary'!$T$10:$T$25),"") ->  | R26: =IF(R$10<=$W$8,LOOKUP(R$10,'ECM Summary'!$D$10:$D$25,'ECM Summary'!$T$10:$T$25),"") ->  | S26: =IF(S$10<=$W$8,LOOKUP(S$10,'ECM Summary'!$D$10:$D$25,'ECM Summary'!$T$10:$T$25),"") ->  | T26: =IF(T$10<=$W$8,LOOKUP(T$10,'ECM Summary'!$D$10:$D$25,'ECM Summary'!$T$10:$T$25),"") ->  | U26: =SUM(E26:T26) -> 0
A27: Gross Natural Gas | C27: Heating Season (Therms) | E27: 0 | F27: 0 | G27: 0 | H27: 0 | I27: 0 | J27: 0 | K27: 0 | L27: 0 | M27: 0 | N27: 0 | O27: 0 | P27: 0 | Q27: 0 | R27: 0 | S27: 0 | U27: =SUM(E27:T27) -> 0
C28: Year Round (Therms) | E28: =IF(E$10<=$W$8,LOOKUP(E$10,'ECM Summary'!$D$10:$D$25,'ECM Summary'!$K$10:$K$25)*($I$6="Natural Gas"),"") ->  | F28: =IF(F$10<=$W$8,LOOKUP(F$10,'ECM Summary'!$D$10:$D$25,'ECM Summary'!$K$10:$K$25)*($I$6="Natural Gas"),"") ->  | G28: =IF(G$10<=$W$8,LOOKUP(G$10,'ECM Summary'!$D$10:$D$25,'ECM Summary'!$K$10:$K$25)*($I$6="Natural Gas"),"") ->  | H28: =IF(H$10<=$W$8,LOOKUP(H$10,'ECM Summary'!$D$10:$D$25,'ECM Summary'!$K$10:$K$25)*($I$6="Natural Gas"),"") ->  | I28: =IF(I$10<=$W$8,LOOKUP(I$10,'ECM Summary'!$D$10:$D$25,'ECM Summary'!$K$10:$K$25)*($I$6="Natural Gas"),"") ->  | J28: =IF(J$10<=$W$8,LOOKUP(J$10,'ECM Summary'!$D$10:$D$25,'ECM Summary'!$K$10:$K$25)*($I$6="Natural Gas"),"") ->  | K28: =IF(K$10<=$W$8,LOOKUP(K$10,'ECM Summary'!$D$10:$D$25,'ECM Summary'!$K$10:$K$25)*($I$6="Natural Gas"),"") ->  | L28: =IF(L$10<=$W$8,LOOKUP(L$10,'ECM Summary'!$D$10:$D$25,'ECM Summary'!$K$10:$K$25)*($I$6="Natural Gas"),"") ->  | M28: =IF(M$10<=$W$8,LOOKUP(M$10,'ECM Summary'!$D$10:$D$25,'ECM Summary'!$K$10:$K$25)*($I$6="Natural Gas"),"") ->  | N28: =IF(N$10<=$W$8,LOOKUP(N$10,'ECM Summary'!$D$10:$D$25,'ECM Summary'!$K$10:$K$25)*($I$6="Natural Gas"),"") ->  | O28: =IF(O$10<=$W$8,LOOKUP(O$10,'ECM Summary'!$D$10:$D$25,'ECM Summary'!$K$10:$K$25)*($I$6="Natural Gas"),"") ->  | P28: =IF(P$10<=$W$8,LOOKUP(P$10,'ECM Summary'!$D$10:$D$25,'ECM Summary'!$K$10:$K$25)*($I$6="Natural Gas"),"") ->  | Q28: =IF(Q$10<=$W$8,LOOKUP(Q$10,'ECM Summary'!$D$10:$D$25,'ECM Summary'!$K$10:$K$25)*($I$6="Natural Gas"),"") ->  | R28: =IF(R$10<=$W$8,LOOKUP(R$10,'ECM Summary'!$D$10:$D$25,'ECM Summary'!$K$10:$K$25)*($I$6="Natural Gas"),"") ->  | S28: =IF(S$10<=$W$8,LOOKUP(S$10,'ECM Summary'!$D$10:$D$25,'ECM Summary'!$K$10:$K$25)*($I$6="Natural Gas"),"") ->  | T28: =IF(T$10<=$W$8,LOOKUP(T$10,'ECM Summary'!$D$10:$D$25,'ECM Summary'!$K$10:$K$25)*($I$6="Natural Gas"),"") ->  | U28: 0
C29: Other (Therms) | E29: 0 | F29: 0 | G29: 0 | H29: 0 | I29: 0 | J29: 0 | K29: 0 | L29: 0 | M29: 0 | N29: 0 | O29: 0 | P29: 0 | Q29: 0 | R29: 0 | S29: 0 | U29: 0
A30: Gross Non-Electric Non-Gas | C30: #2 Oil (MMbtu) | E30: =IF(E$10<=$W$8,LOOKUP(E$10,'ECM Summary'!$D$10:$D$25,'ECM Summary'!$K$10:$K$25)*($I$6="Oil"),"") ->  | F30: =IF(F$10<=$W$8,LOOKUP(F$10,'ECM Summary'!$D$10:$D$25,'ECM Summary'!$K$10:$K$25)*($I$6="Oil"),"") ->  | G30: =IF(G$10<=$W$8,LOOKUP(G$10,'ECM Summary'!$D$10:$D$25,'ECM Summary'!$K$10:$K$25)*($I$6="Oil"),"") ->  | H30: =IF(H$10<=$W$8,LOOKUP(H$10,'ECM Summary'!$D$10:$D$25,'ECM Summary'!$K$10:$K$25)*($I$6="Oil"),"") ->  | I30: =IF(I$10<=$W$8,LOOKUP(I$10,'ECM Summary'!$D$10:$D$25,'ECM Summary'!$K$10:$K$25)*($I$6="Oil"),"") ->  | J30: =IF(J$10<=$W$8,LOOKUP(J$10,'ECM Summary'!$D$10:$D$25,'ECM Summary'!$K$10:$K$25)*($I$6="Oil"),"") ->  | K30: =IF(K$10<=$W$8,LOOKUP(K$10,'ECM Summary'!$D$10:$D$25,'ECM Summary'!$K$10:$K$25)*($I$6="Oil"),"") ->  | L30: =IF(L$10<=$W$8,LOOKUP(L$10,'ECM Summary'!$D$10:$D$25,'ECM Summary'!$K$10:$K$25)*($I$6="Oil"),"") ->  | M30: =IF(M$10<=$W$8,LOOKUP(M$10,'ECM Summary'!$D$10:$D$25,'ECM Summary'!$K$10:$K$25)*($I$6="Oil"),"") ->  | N30: =IF(N$10<=$W$8,LOOKUP(N$10,'ECM Summary'!$D$10:$D$25,'ECM Summary'!$K$10:$K$25)*($I$6="Oil"),"") ->  | O30: =IF(O$10<=$W$8,LOOKUP(O$10,'ECM Summary'!$D$10:$D$25,'ECM Summary'!$K$10:$K$25)*($I$6="Oil"),"") ->  | P30: =IF(P$10<=$W$8,LOOKUP(P$10,'ECM Summary'!$D$10:$D$25,'ECM Summary'!$K$10:$K$25)*($I$6="Oil"),"") ->  | Q30: =IF(Q$10<=$W$8,LOOKUP(Q$10,'ECM Summary'!$D$10:$D$25,'ECM Summary'!$K$10:$K$25)*($I$6="Oil"),"") ->  | R30: =IF(R$10<=$W$8,LOOKUP(R$10,'ECM Summary'!$D$10:$D$25,'ECM Summary'!$K$10:$K$25)*($I$6="Oil"),"") ->  | S30: =IF(S$10<=$W$8,LOOKUP(S$10,'ECM Summary'!$D$10:$D$25,'ECM Summary'!$K$10:$K$25)*($I$6="Oil"),"") ->  | T30: =IF(T$10<=$W$8,LOOKUP(T$10,'ECM Summary'!$D$10:$D$25,'ECM Summary'!$K$10:$K$25)*($I$6="Oil"),"") ->  | U30: 0
C31: Propane (MMbtu) | E31: =IF(E$10<=$W$8,LOOKUP(E$10,'ECM Summary'!$D$10:$D$25,'ECM Summary'!$K$10:$K$25)*($I$6="Propane"),"") ->  | F31: =IF(F$10<=$W$8,LOOKUP(F$10,'ECM Summary'!$D$10:$D$25,'ECM Summary'!$K$10:$K$25)*($I$6="Propane"),"") ->  | G31: =IF(G$10<=$W$8,LOOKUP(G$10,'ECM Summary'!$D$10:$D$25,'ECM Summary'!$K$10:$K$25)*($I$6="Propane"),"") ->  | H31: =IF(H$10<=$W$8,LOOKUP(H$10,'ECM Summary'!$D$10:$D$25,'ECM Summary'!$K$10:$K$25)*($I$6="Propane"),"") ->  | I31: =IF(I$10<=$W$8,LOOKUP(I$10,'ECM Summary'!$D$10:$D$25,'ECM Summary'!$K$10:$K$25)*($I$6="Propane"),"") ->  | J31: =IF(J$10<=$W$8,LOOKUP(J$10,'ECM Summary'!$D$10:$D$25,'ECM Summary'!$K$10:$K$25)*($I$6="Propane"),"") ->  | K31: =IF(K$10<=$W$8,LOOKUP(K$10,'ECM Summary'!$D$10:$D$25,'ECM Summary'!$K$10:$K$25)*($I$6="Propane"),"") ->  | L31: =IF(L$10<=$W$8,LOOKUP(L$10,'ECM Summary'!$D$10:$D$25,'ECM Summary'!$K$10:$K$25)*($I$6="Propane"),"") ->  | M31: =IF(M$10<=$W$8,LOOKUP(M$10,'ECM Summary'!$D$10:$D$25,'ECM Summary'!$K$10:$K$25)*($I$6="Propane"),"") ->  | N31: =IF(N$10<=$W$8,LOOKUP(N$10,'ECM Summary'!$D$10:$D$25,'ECM Summary'!$K$10:$K$25)*($I$6="Propane"),"") ->  | O31: =IF(O$10<=$W$8,LOOKUP(O$10,'ECM Summary'!$D$10:$D$25,'ECM Summary'!$K$10:$K$25)*($I$6="Propane"),"") ->  | P31: =IF(P$10<=$W$8,LOOKUP(P$10,'ECM Summary'!$D$10:$D$25,'ECM Summary'!$K$10:$K$25)*($I$6="Propane"),"") ->  | Q31: =IF(Q$10<=$W$8,LOOKUP(Q$10,'ECM Summary'!$D$10:$D$25,'ECM Summary'!$K$10:$K$25)*($I$6="Propane"),"") ->  | R31: =IF(R$10<=$W$8,LOOKUP(R$10,'ECM Summary'!$D$10:$D$25,'ECM Summary'!$K$10:$K$25)*($I$6="Propane"),"") ->  | S31: =IF(S$10<=$W$8,LOOKUP(S$10,'ECM Summary'!$D$10:$D$25,'ECM Summary'!$K$10:$K$25)*($I$6="Propane"),"") ->  | T31: =IF(T$10<=$W$8,LOOKUP(T$10,'ECM Summary'!$D$10:$D$25,'ECM Summary'!$K$10:$K$25)*($I$6="Propane"),"") ->  | U31: 0
C32: Water (Gallons)
C33: Sewer (Gallons)
C34: Annual $
C35: One Time $
A36: TOTAL MMBTU Savings | E36: =IF(E$10<=$W$8,(E20*3.412+SUM(E27:E29)*100)/1000+E30+E31,0) -> 0 | F36: 0 | G36: 0 | H36: 0 | I36: 0 | J36: 0 | K36: 0 | L36: 0 | M36: 0 | N36: 0 | O36: 0 | P36: 0 | Q36: 0 | R36: 0 | S36: 0 | T36: 0 | U36: =SUM(E36:T36) -> 0
A38: SUMMARY OF ENERGY CONSERVATION MEASURES
F39: Include | G39: Annual Savings | J39: Electric Peak Savings | Q39: Increm. | R39: Simple | S39: Estimated
A40: ECM | B40: Description | F40: ECM | G40: Elec | H40: Gas | I40: Energy Cost | J40: Winter | K40: Winter | L40: Summer | M40: Summer | N40: Max | O40: Avg. kW | P40: Avg. kW | Q40: Cost | R40: Payback | S40: Incentive
F41: ? | G41: kWh | H41: therms | I41: $ | J41: On Peak % | K41: Off Peak % | L41: On Peak % | M41: Off Peak % | N41: kW | O41: Summer | P41: Winter | Q41: $ | R41: years | S41: $
A42: ='ECM Summary'!D10 ->  | B42: ='ECM Summary'!E10 -> Bldg Envelope | F42: =IF('ECM Summary'!I10="","",'ECM Summary'!I10) -> No | G42: ='ECM Summary'!J10 ->  | H42: ='ECM Summary'!K10 ->  | I42: ='ECM Summary'!L10 ->  | J42: ='ECM Summary'!M10 ->  | K42: ='ECM Summary'!N10 ->  | L42: ='ECM Summary'!O10 ->  | M42: ='ECM Summary'!P10 ->  | N42: ='ECM Summary'!R10 ->  | O42: ='ECM Summary'!S10 ->  | P42: ='ECM Summary'!T10 ->  | Q42: ='ECM Summary'!U10 ->  | R42: ='ECM Summary'!V10 ->  | S42: ='ECM Summary'!X10 -> 
A43: ='ECM Summary'!D11 ->  | B43: ='ECM Summary'!E11 -> Interior Lighting | F43: =IF('ECM Summary'!I11="","",'ECM Summary'!I11) -> No | G43: ='ECM Summary'!J11 ->  | H43: ='ECM Summary'!K11 ->  | I43: ='ECM Summary'!L11 ->  | J43: ='ECM Summary'!M11 ->  | K43: ='ECM Summary'!N11 ->  | L43: ='ECM Summary'!O11 ->  | M43: ='ECM Summary'!P11 ->  | N43: ='ECM Summary'!R11 ->  | O43: ='ECM Summary'!S11 ->  | P43: ='ECM Summary'!T11 ->  | Q43: ='ECM Summary'!U11 ->  | R43: ='ECM Summary'!V11 ->  | S43: ='ECM Summary'!X11 -> 
A44: ='ECM Summary'!D12 ->  | B44: ='ECM Summary'!E12 -> Exterior Lighting | F44: =IF('ECM Summary'!I12="","",'ECM Summary'!I12) -> No | G44: ='ECM Summary'!J12 ->  | H44: ='ECM Summary'!K12 ->  | I44: ='ECM Summary'!L12 ->  | J44: ='ECM Summary'!M12 ->  | K44: ='ECM Summary'!N12 ->  | L44: ='ECM Summary'!O12 ->  | M44: ='ECM Summary'!P12 ->  | N44: ='ECM Summary'!R12 ->  | O44: ='ECM Summary'!S12 ->  | P44: ='ECM Summary'!T12 ->  | Q44: ='ECM Summary'!U12 ->  | R44: ='ECM Summary'!V12 ->  | S44: ='ECM Summary'!X12 -> 
A45: ='ECM Summary'!D13 ->  | B45: ='ECM Summary'!E13 -> Unitary HVAC (RTU, AC, HP, VRF) | F45: =IF('ECM Summary'!I13="","",'ECM Summary'!I13) -> No | G45: ='ECM Summary'!J13 ->  | H45: ='ECM Summary'!K13 ->  | I45: ='ECM Summary'!L13 ->  | J45: ='ECM Summary'!M13 ->  | K45: ='ECM Summary'!N13 ->  | L45: ='ECM Summary'!O13 ->  | M45: ='ECM Summary'!P13 ->  | N45: ='ECM Summary'!R13 ->  | O45: ='ECM Summary'!S13 ->  | P45: ='ECM Summary'!T13 ->  | Q45: ='ECM Summary'!U13 ->  | R45: ='ECM Summary'!V13 ->  | S45: ='ECM Summary'!X13 -> 
A46: ='ECM Summary'!D14 ->  | B46: ='ECM Summary'!E14 -> High Efficiency Chillers | F46: =IF('ECM Summary'!I14="","",'ECM Summary'!I14) -> No | G46: ='ECM Summary'!J14 ->  | H46: ='ECM Summary'!K14 ->  | I46: ='ECM Summary'!L14 ->  | J46: ='ECM Summary'!M14 ->  | K46: ='ECM Summary'!N14 ->  | L46: ='ECM Summary'!O14 ->  | M46: ='ECM Summary'!P14 ->  | N46: ='ECM Summary'!R14 ->  | O46: ='ECM Summary'!S14 ->  | P46: ='ECM Summary'!T14 ->  | Q46: ='ECM Summary'!U14 ->  | R46: ='ECM Summary'!V14 ->  | S46: ='ECM Summary'!X14 -> 
A47: ='ECM Summary'!D15 ->  | B47: ='ECM Summary'!E15 -> Variable Frequency Drives | F47: =IF('ECM Summary'!I15="","",'ECM Summary'!I15) -> No | G47: ='ECM Summary'!J15 ->  | H47: ='ECM Summary'!K15 ->  | I47: ='ECM Summary'!L15 ->  | J47: ='ECM Summary'!M15 ->  | K47: ='ECM Summary'!N15 ->  | L47: ='ECM Summary'!O15 ->  | M47: ='ECM Summary'!P15 ->  | N47: ='ECM Summary'!R15 ->  | O47: ='ECM Summary'!S15 ->  | P47: ='ECM Summary'!T15 ->  | Q47: ='ECM Summary'!U15 ->  | R47: ='ECM Summary'!V15 ->  | S47: ='ECM Summary'!X15 -> 
A48: ='ECM Summary'!D16 ->  | B48: ='ECM Summary'!E16 -> Energy Recovery | F48: =IF('ECM Summary'!I16="","",'ECM Summary'!I16) -> No | G48: ='ECM Summary'!J16 ->  | H48: ='ECM Summary'!K16 ->  | I48: ='ECM Summary'!L16 ->  | J48: ='ECM Summary'!M16 ->  | K48: ='ECM Summary'!N16 ->  | L48: ='ECM Summary'!O16 ->  | M48: ='ECM Summary'!P16 ->  | N48: ='ECM Summary'!R16 ->  | O48: ='ECM Summary'!S16 ->  | P48: ='ECM Summary'!T16 ->  | Q48: ='ECM Summary'!U16 ->  | R48: ='ECM Summary'!V16 ->  | S48: ='ECM Summary'!X16 -> 
A49: ='ECM Summary'!D17 ->  | B49: ='ECM Summary'!E17 -> Demand Control Ventilation | F49: =IF('ECM Summary'!I17="","",'ECM Summary'!I17) -> No | G49: ='ECM Summary'!J17 ->  | H49: ='ECM Summary'!K17 ->  | I49: ='ECM Summary'!L17 ->  | J49: ='ECM Summary'!M17 ->  | K49: ='ECM Summary'!N17 ->  | L49: ='ECM Summary'!O17 ->  | M49: ='ECM Summary'!P17 ->  | N49: ='ECM Summary'!R17 ->  | O49: ='ECM Summary'!S17 ->  | P49: ='ECM Summary'!T17 ->  | Q49: ='ECM Summary'!U17 ->  | R49: ='ECM Summary'!V17 ->  | S49: ='ECM Summary'!X17 -> 
A50: ='ECM Summary'!D18 ->  | B50: ='ECM Summary'!E18 -> Variable Flow Kitchen Hood | F50: =IF('ECM Summary'!I18="","",'ECM Summary'!I18) -> No | G50: ='ECM Summary'!J18 ->  | H50: ='ECM Summary'!K18 ->  | I50: ='ECM Summary'!L18 ->  | J50: ='ECM Summary'!M18 ->  | K50: ='ECM Summary'!N18 ->  | L50: ='ECM Summary'!O18 ->  | M50: ='ECM Summary'!P18 ->  | N50: ='ECM Summary'!R18 ->  | O50: ='ECM Summary'!S18 ->  | P50: ='ECM Summary'!T18 ->  | Q50: ='ECM Summary'!U18 ->  | R50: ='ECM Summary'!V18 ->  | S50: ='ECM Summary'!X18 -> 
A51: ='ECM Summary'!D19 ->  | B51: ='ECM Summary'!E19 -> Condensing Boilers | F51: =IF('ECM Summary'!I19="","",'ECM Summary'!I19) -> No | G51: ='ECM Summary'!J19 ->  | H51: ='ECM Summary'!K19 ->  | I51: ='ECM Summary'!L19 ->  | J51: ='ECM Summary'!M19 ->  | K51: ='ECM Summary'!N19 ->  | L51: ='ECM Summary'!O19 ->  | M51: ='ECM Summary'!P19 ->  | N51: ='ECM Summary'!R19 ->  | O51: ='ECM Summary'!S19 ->  | P51: ='ECM Summary'!T19 ->  | Q51: ='ECM Summary'!U19 ->  | R51: ='ECM Summary'!V19 ->  | S51: ='ECM Summary'!X19 -> 
A52: ='ECM Summary'!#REF! ->  | B52: ='ECM Summary'!#REF! ->  | F52: =IF('ECM Summary'!#REF!="","",'ECM Summary'!#REF!) ->  | G52: ='ECM Summary'!#REF! ->  | H52: ='ECM Summary'!#REF! ->  | I52: ='ECM Summary'!#REF! ->  | J52: ='ECM Summary'!#REF! ->  | K52: ='ECM Summary'!#REF! ->  | L52: ='ECM Summary'!#REF! ->  | M52: ='ECM Summary'!#REF! ->  | N52: ='ECM Summary'!#REF! ->  | O52: ='ECM Summary'!#REF! ->  | P52: ='ECM Summary'!#REF! ->  | Q52: ='ECM Summary'!#REF! ->  | R52: ='ECM Summary'!#REF! ->  | S52: ='ECM Summary'!#REF! -> 
A53: ='ECM Summary'!#REF! ->  | B53: ='ECM Summary'!#REF! ->  | F53: =IF('ECM Summary'!#REF!="","",'ECM Summary'!#REF!) ->  | G53: ='ECM Summary'!#REF! ->  | H53: ='ECM Summary'!#REF! ->  | I53: ='ECM Summary'!#REF! ->  | J53: ='ECM Summary'!#REF! ->  | K53: ='ECM Summary'!#REF! ->  | L53: ='ECM Summary'!#REF! ->  | M53: ='ECM Summary'!#REF! ->  | N53: ='ECM Summary'!#REF! ->  | O53: ='ECM Summary'!#REF! ->  | P53: ='ECM Summary'!#REF! ->  | Q53: ='ECM Summary'!#REF! ->  | R53: ='ECM Summary'!#REF! ->  | S53: ='ECM Summary'!#REF! -> 
A54: ='ECM Summary'!#REF! ->  | B54: ='ECM Summary'!#REF! ->  | F54: =IF('ECM Summary'!#REF!="","",'ECM Summary'!#REF!) ->  | G54: ='ECM Summary'!#REF! ->  | H54: ='ECM Summary'!#REF! ->  | I54: ='ECM Summary'!#REF! ->  | J54: ='ECM Summary'!#REF! ->  | K54: ='ECM Summary'!#REF! ->  | L54: ='ECM Summary'!#REF! ->  | M54: ='ECM Summary'!#REF! ->  | N54: ='ECM Summary'!#REF! ->  | O54: ='ECM Summary'!#REF! ->  | P54: ='ECM Summary'!#REF! ->  | Q54: ='ECM Summary'!#REF! ->  | R54: ='ECM Summary'!#REF! ->  | S54: ='ECM Summary'!#REF! -> 
A55: ='ECM Summary'!D20 ->  | B55: ='ECM Summary'!E20 -> DHW Heaters | F55: =IF('ECM Summary'!I20="","",'ECM Summary'!I20) -> No | G55: ='ECM Summary'!J20 ->  | H55: ='ECM Summary'!K20 ->  | I55: ='ECM Summary'!L20 ->  | J55: ='ECM Summary'!M20 ->  | K55: ='ECM Summary'!N20 ->  | L55: ='ECM Summary'!O20 ->  | M55: ='ECM Summary'!P20 ->  | N55: ='ECM Summary'!R20 ->  | O55: ='ECM Summary'!S20 ->  | P55: ='ECM Summary'!T20 ->  | Q55: ='ECM Summary'!U20 ->  | R55: ='ECM Summary'!V20 ->  | S55: ='ECM Summary'!X20 -> 
A56: ='ECM Summary'!D21 ->  | B56: ='ECM Summary'!E21 -> Low Flow DHW Fixtures | F56: =IF('ECM Summary'!I21="","",'ECM Summary'!I21) -> No | G56: ='ECM Summary'!J21 ->  | H56: ='ECM Summary'!K21 ->  | I56: ='ECM Summary'!L21 ->  | J56: ='ECM Summary'!M21 ->  | K56: ='ECM Summary'!N21 ->  | L56: ='ECM Summary'!O21 ->  | M56: ='ECM Summary'!P21 ->  | N56: ='ECM Summary'!R21 ->  | O56: ='ECM Summary'!S21 ->  | P56: ='ECM Summary'!T21 ->  | Q56: ='ECM Summary'!U21 ->  | R56: ='ECM Summary'!V21 ->  | S56: ='ECM Summary'!X21 -> 
A57: ='ECM Summary'!#REF! ->  | B57: ='ECM Summary'!#REF! ->  | F57: =IF('ECM Summary'!#REF!="","",'ECM Summary'!#REF!) ->  | G57: ='ECM Summary'!#REF! ->  | H57: ='ECM Summary'!#REF! ->  | I57: ='ECM Summary'!#REF! ->  | J57: ='ECM Summary'!#REF! ->  | K57: ='ECM Summary'!#REF! ->  | L57: ='ECM Summary'!#REF! ->  | M57: ='ECM Summary'!#REF! ->  | N57: ='ECM Summary'!#REF! ->  | O57: ='ECM Summary'!#REF! ->  | P57: ='ECM Summary'!#REF! ->  | Q57: ='ECM Summary'!#REF! ->  | R57: ='ECM Summary'!#REF! ->  | S57: ='ECM Summary'!#REF! -> 
A58: ='ECM Summary'!D22 ->  | B58: ='ECM Summary'!E22 -> 0 | F58: =IF('ECM Summary'!I22="","",'ECM Summary'!I22) ->  | G58: ='ECM Summary'!J22 ->  | H58: ='ECM Summary'!K22 ->  | I58: ='ECM Summary'!L22 ->  | J58: ='ECM Summary'!M22 ->  | K58: ='ECM Summary'!N22 ->  | L58: ='ECM Summary'!O22 ->  | M58: ='ECM Summary'!P22 ->  | N58: ='ECM Summary'!R22 ->  | O58: ='ECM Summary'!S22 ->  | P58: ='ECM Summary'!T22 ->  | Q58: ='ECM Summary'!U22 ->  | R58: ='ECM Summary'!V22 ->  | S58: ='ECM Summary'!X22 -> 
A59: ='ECM Summary'!D23 ->  | B59: ='ECM Summary'!E23 -> 0 | F59: =IF('ECM Summary'!I23="","",'ECM Summary'!I23) ->  | G59: ='ECM Summary'!J23 ->  | H59: ='ECM Summary'!K23 ->  | I59: ='ECM Summary'!L23 ->  | J59: ='ECM Summary'!M23 ->  | K59: ='ECM Summary'!N23 ->  | L59: ='ECM Summary'!O23 ->  | M59: ='ECM Summary'!P23 ->  | N59: ='ECM Summary'!R23 ->  | O59: ='ECM Summary'!S23 ->  | P59: ='ECM Summary'!T23 ->  | Q59: ='ECM Summary'!U23 ->  | R59: ='ECM Summary'!V23 ->  | S59: ='ECM Summary'!X23 -> 
A60: ='ECM Summary'!D24 ->  | B60: ='ECM Summary'!E24 -> 0 | F60: =IF('ECM Summary'!I24="","",'ECM Summary'!I24) ->  | G60: ='ECM Summary'!J24 ->  | H60: ='ECM Summary'!K24 ->  | I60: ='ECM Summary'!L24 ->  | J60: ='ECM Summary'!M24 ->  | K60: ='ECM Summary'!N24 ->  | L60: ='ECM Summary'!O24 ->  | M60: ='ECM Summary'!P24 ->  | N60: ='ECM Summary'!R24 ->  | O60: ='ECM Summary'!S24 ->  | P60: ='ECM Summary'!T24 ->  | Q60: ='ECM Summary'!U24 ->  | R60: ='ECM Summary'!V24 ->  | S60: ='ECM Summary'!X24 -> 
A61: ='ECM Summary'!D25 ->  | B61: ='ECM Summary'!E25 -> 0 | F61: =IF('ECM Summary'!I25="","",'ECM Summary'!I25) ->  | G61: ='ECM Summary'!J25 ->  | H61: ='ECM Summary'!K25 ->  | I61: ='ECM Summary'!L25 ->  | J61: ='ECM Summary'!M25 ->  | K61: ='ECM Summary'!N25 ->  | L61: ='ECM Summary'!O25 ->  | M61: ='ECM Summary'!P25 ->  | N61: ='ECM Summary'!R25 ->  | O61: ='ECM Summary'!S25 ->  | P61: ='ECM Summary'!T25 ->  | Q61: ='ECM Summary'!U25 ->  | R61: ='ECM Summary'!V25 ->  | S61: ='ECM Summary'!X25 -> 
A62: ='ECM Summary'!D26 -> TOTAL | F62: =IF('ECM Summary'!I26="","",'ECM Summary'!I26) ->  | G62: ='ECM Summary'!J26 -> 0 | H62: ='ECM Summary'!K26 -> 0 | I62: ='ECM Summary'!L26 -> 0 | J62: ='ECM Summary'!M26 ->  | K62: ='ECM Summary'!N26 -> 0 | L62: ='ECM Summary'!O26 -> 0 | M62: ='ECM Summary'!P26 -> 0 | N62: ='ECM Summary'!R26 -> 0 | O62: ='ECM Summary'!S26 -> 0 | P62: ='ECM Summary'!T26 -> 0 | Q62: ='ECM Summary'!U26 -> 0 | R62: ='ECM Summary'!V26 ->  | S62: ='ECM Summary'!X26 -> 0
H65: Custom Incentive Rates
H66: Elec | I66: Gas | J66: Purch Fuel
G67: Program | H67: $/kWh | I67: $/Therm | J67: $/MMBTU
G68: ='Project Info'!AB102 -> High Performance Buildings | H68: 0.4 | I68: 2 | J68: 0
G69: ='Project Info'!AB103 -> Systems Pathway | H69: 0.28 | I69: 1.5 | J69: 0
G70: ='Project Info'!AB104 -> Other/NA | H70: 0.28 | I70: 1.5 | J70: 0
B82: Measure Types by Fuel Savings Type
A83: Program | B83: Dual | C83: Electric | D83: Gas | G83: Measure | H83: MeasureLife
A84: Custom | B84: Building Shell | C84: Building Shell | D84: Boiler, HVAC | G84: Boiler, HVAC | H84: 20
A85: Prescriptive | B85: HVAC Equipment and Systems | C85: Chillers | D85: Boiler, non-HVAC | G85: Boiler, non-HVAC | H85: 20
B86: EMS / controls, HVAC | C86: Combined Heat & Power | D86: Building Shell | G86: Building Shell | H86: 25
B87: EMS / controls, non-HVAC | C87: Compressed Air Equipment and Systems | D87: EMS / controls, HVAC | G87: Chillers | H87: 20
B88: Equipment Insulation, HVAC | C88: HVAC Equipment and Systems | D88: EMS / controls, non-HVAC | G88: Combined Heat & Power | H88: 20
B89: Equipment Insulation, non-HVAC | C89: Cooling Equipment | D89: Equipment Insulation, HVAC | G89: Compressed Air Equipment and Systems | H89: 15
B90: Food Service | C90: EMS / controls, HVAC | D90: Equipment Insulation, non-HVAC | G90: Cooling Equipment | H90: 15
B91: Heat recovery, HVAC | C91: Food Service | D91: Food Service | G91: EMS / controls, HVAC | H91: 10
B92: Heat recovery, non-HVAC | C92: Fuel switching, HVAC | D92: Fuel switching, HVAC | G92: EMS / controls, non-HVAC | H92: 10
B93: Other | C93: Fuel switching, non-HVAC | D93: Fuel switching, non-HVAC | G93: Equipment Insulation, HVAC | H93: 15
B94: Process Equipment | C94: Lighting - Exterior | D94: Furnace, HVAC | G94: Equipment Insulation, non-HVAC | H94: 15
B95: Process Equipment and Controls | C95: Lighting - Exterior Controls | D95: Furnace, non-HVAC | G95: Food Service | H95: 15
C96: Lighting - Exterior with Controls | D96: Heat recovery, HVAC | G96: Fuel switching, HVAC | H96: 15
C97: Lighting - Interior | D97: Heat recovery, non-HVAC | G97: Fuel switching, non-HVAC | H97: 15
C98: Lighting - Interior Controls | D98: Other, HVAC | G98: Furnace, HVAC | H98: 15
C99: Lighting - Interior with Controls | D99: Other, non-HVAC | G99: Furnace, non-HVAC | H99: 15
C100: Other | D100: Process Equipment | G100: Heat recovery, HVAC | H100: 15
C101: Process Equipment | D101: Process Equipment and Controls | G101: Heat recovery, non-HVAC | H101: 15
C102: Process Equipment and Controls | D102: Water heating, DHW | G102: HVAC Equipment and Systems | H102: 15
C103: Refrigeration, Commercial | G103: Lighting - Exterior | H103: 15
C104: Refrigeration, Industrial | G104: Lighting - Exterior Controls | H104: 10
C105: VFD on HVAC Equipment | G105: Lighting - Exterior with Controls | H105: 15
C106: VFD on non-HVAC Equipment | G106: Lighting - Interior | H106: 15
G107: Lighting - Interior Controls | H107: 10
G108: Lighting - Interior with Controls | H108: 15
G109: Other | H109: 15
G110: Other, HVAC | H110: 15
G111: Other, non-HVAC | H111: 15
G112: Process Equipment | H112: 15
G113: Process Equipment and Controls | H113: 15
G114: Refrigeration, Commercial | H114: 15
G115: Refrigeration, Industrial | H115: 20
G116: VFD on HVAC Equipment | H116: 15
G117: VFD on non-HVAC Equipment | H117: 15
G118: Water heating, DHW | H118: 15

Sheet Workspace

Sheet Bldg Envelope (hidden)
A1: Savings Summary | F1: Measure Summary | K1: Measure Description | T1: Notes (Optional)
A2: Annual kWh Savings | D2: =SUM(A14:D14) ->  | H2: Value | I2: Unit | K2: This measure considers savings from improved thermal performance of building envelope assemblies beyond the minimum requirements of the energy code. Assemblies that could be considered in this measure include exterior walls, roofs, windows, and garage doors. NOTE: Table 3, 4, and 5 should be completed with all design information, even if the design does not exceed code (to account for any tradeoffs between assemblies).
A3: % On Peak | D3: =IF(D2<=0,0,MIN(1,A15+C15)) ->  | F3: Annual Electric Savings | H3: =D2 ->  | I3: kWh
A4: Max kW | D4: =MAX(AD52:AD75,AD82:AD105) ->  | F4: Annual Fuel Savings | H4: =D7*C28 ->  | I4: =D20 -> 
A5: Summer kW | D5: =(SUMPRODUCT(AD52:AD75,R52:R75)+SUMPRODUCT(AD82:AD105,R82:R105))/SUM(R52:R75,R82:R105) ->  | F5: Incremental | G5: Default Calc | H5: =$K$165 -> 0 | I5: $
A6: Winter kW | D6: =(SUMPRODUCT(AD52:AD75,Q52:Q75)+SUMPRODUCT(AD82:AD105,Q82:Q105))/SUM(Q52:Q75,Q82:Q105) ->  | F6: Cost | G6: Project Specific | I6: $ (Optional)
A7: Annual Fuel Savings (MMBtu) | D7: =(SUMPRODUCT($L$52:$L$75,AE52:AE75)+SUMPRODUCT($L$82:$L$105,AE82:AE105))/1000 ->  | F7: Estimated Incentive | H7: =IF(AND($C$24>=0,$C$25>=0),MAX(0,H3)*C24+MAX(0,H4)*C25,"TBD") ->  | I7: $
A8: Incremental Cost (Default Calc) | D8: =$K$165 -> 0
A9: Incremental Cost (for Summary) | D9: =IF(H6>0,H6,D8) -> 0 | F9: Project Information Summary
A10: kWh Savings by Peak Period | G10: STATE | H10: ='Project Info'!C15 -> NH
A11: Winter | B11: Winter | C11: Summer | D11: Summer | G11: Program Year | H11: ='Project Info'!C19 -> 0
A12: On-Peak | B12: Off-Peak | C12: On-Peak | D12: Off-Peak | G12: Code IECC Version | H12: =MID('Project Info'!C20,1,4) -> 2018 | L12: **Climate Zone 6A only applies to certain NH locations.
A13: kWh | B13: kWh | C13: kWh | D13: kWh | G13: Electric PA | H13: ='Project Info'!F3 -> 0 | L13: The default zone for NH is 5A.
A14: =SUMPRODUCT($AD$52:$AD$75,M52:M75)+SUMPRODUCT($AD$82:$AD$105,M82:M105) ->  | B14: =SUMPRODUCT($AD$52:$AD$75,N52:N75)+SUMPRODUCT($AD$82:$AD$105,N82:N105) ->  | C14: =SUMPRODUCT($AD$52:$AD$75,O52:O75)+SUMPRODUCT($AD$82:$AD$105,O82:O105) ->  | D14: =SUMPRODUCT($AD$52:$AD$75,P52:P75)+SUMPRODUCT($AD$82:$AD$105,P82:P105) ->  | G14: Gas PA | H14: ='Project Info'!I3 -> 0 | M14: Set Climate Zone to 6A? (NH only, select "Yes" here to use Zone 6A.)
A15: =ROUND(IF(A14<=0,0,A14/SUMIF($A$14:$D$14,">0")),2) ->  | B15: =ROUND(IF(B14<=0,0,B14/SUMIF($A$14:$D$14,">0")),2) ->  | C15: =ROUND(IF(C14<=0,0,C14/SUMIF($A$14:$D$14,">0")),2) ->  | D15: =IF(SUM(A14:D14)=0,0,1-SUM(A15:C15)) ->  | F15: *NOTE: Baseline values are automated and cannot be changed.
A17: Utility Rates | P17: Climate Zone
C18: Rate | D18: Unit | G18: Table 3: Above Grade Opaque Wall Insulation | O18: (Optional) | P18: 5A | Q18: 6A* | S18: Table 1: Heat & Cool Performance | W18: Base vs Design Envelope Performance Summary
A19: Electric | C19: ='ECM Summary'!$E$31 -> 0.1593 | D19: kWh | G19: Assembly | H19: Assembly | K19: Area | L19: Infill | M19: c.i. | N19: U-Value | O19: Design | P19: Baseline | Q19: Baseline | S19: Heating Fuel | Y19: Total | Z19: Baseline | AA19: Proposed
A20: ='ECM Summary'!$C$32 -> 0 | C20: ='ECM Summary'!$E$32 ->  | D20: ='ECM Summary'!$F$32 ->  | G20: No. | H20: Type | K20: ft² | L20: R-Value | M20: R-Value | N20: Btu/h·ft²·°F | O20: U-Value | P20: U-Value | Q20: U-Value | S20: Fossil Fuel Baseline Eff (%) | W20: Assembly | Y20: Area | Z20: Average | AA20: Average
G21: 1 | N21: =IF(OR(H21="",L21+M21=0),0,R140) -> 0 | P21: =IF(OR(H21="",AND(N21=0,O21=0)),0,LOOKUP(H21,$G$124:$G$127,IF($H$12="2015",$I$124:$I$127,$J$124:$J$127))) -> 0 | Q21: =IF(OR(H21="",AND(N21=0,O21=0)),0,LOOKUP(H21,$R$124:$R$127,IF($H$12="2015",$T$124:$T$127,$U$124:$U$127))) -> 0 | S21: Elec Heat Baseline COP | W21: Type | Y21: ft² | Z21: U-Value | AA21: U-Value
A22: Custom Incentive Rates | G22: 2 | N22: =IF(OR(H22="",L22+M22=0),0,R141) -> 0 | P22: =IF(OR(H22="",AND(N22=0,O22=0)),0,LOOKUP(H22,$G$124:$G$127,IF($H$12="2015",$I$124:$I$127,$J$124:$J$127))) -> 0 | Q22: =IF(OR(H22="",AND(N22=0,O22=0)),0,LOOKUP(H22,$R$124:$R$127,IF($H$12="2015",$T$124:$T$127,$U$124:$U$127))) -> 0 | S22: Cooling Included? | W22: Opaque Walls | Y22: =K24 -> 0 | Z22: =IF(AND($H$10="NH",$L$14=$G$108),Q24,P24) -> 0 | AA22: =N24 -> 0
C23: Rate | D23: Unit | G23: 3 | N23: =IF(OR(H23="",L23+M23=0),0,R142) -> 0 | P23: =IF(OR(H23="",AND(N23=0,O23=0)),0,LOOKUP(H23,$G$124:$G$127,IF($H$12="2015",$I$124:$I$127,$J$124:$J$127))) -> 0 | Q23: 0 | S23: Cooling Baseline IEER or IPLV | W23: Roofs | Y23: =K32 -> 0 | Z23: =IF(AND($H$10="NH",$L$14=$G$108),Q32,P32) -> 0 | AA23: =N32 -> 0
A24: Electric | C24: ='ECM Summary'!$J$31 -> 0.28 | D24: kWh | G24: Overall | H24: Overall Performance | K24: =(H21<>"")*K21+(H22<>"")*K22+(H23<>"")*K23 -> 0 | N24: =IF(K24=0,0,((H21<>"")*K21*IF(O21="",N21,O21)+(H22<>"")*K22*IF(O22="",N22,O22)+(H23<>"")*K23*IF(O23="",N23,O23))/K24) -> 0 | P24: =IF(K24=0,0,((H21<>"")*K21*P21+(H22<>"")*K22*P22+(H23<>"")*K23*P23)/K24) -> 0 | Q24: =IF(K24=0,0,((H21<>"")*K21*Q21+(H22<>"")*K22*Q22+(H23<>"")*K23*Q23)/K24) -> 0 | W24: Windows | Y24: =K40 -> 0 | Z24: =IF(AND($H$10="NH",$L$14=$G$108),V40,T40) -> 0 | AA24: =P40 -> 0
A25: ='ECM Summary'!$H$32 -> 0 | C25: ='ECM Summary'!$J$32 -> 0 | D25: ='ECM Summary'!$K$32 ->  | S25: Table 2: Space Temp Setpoints | W25: Garage Doors | Y25: =G45 -> 0 | Z25: =IF(AND($H$10="NH",$L$14=$G$108),J45,I45) -> 0 | AA25: =H45 -> 0
G26: Table 4: Exterior Roof Insulation | O26: (Optional) | P26: 5A | Q26: 6A* | T26: Occ | U26: Unocc | W26: "UA" Value (BTU/h·°F) | Z26: =SUMPRODUCT($Y$22:$Y$25,Z22:Z25) -> 0 | AA26: =SUMPRODUCT($Y$22:$Y$25,AA22:AA25) -> 0
A27: Fossil Fuel | C27: ='Project Info'!C21 -> 0 | G27: Assembly | H27: Assembly | K27: Area | L27: Infill | M27: c.i. | N27: U-Value | O27: Design | P27: Baseline | Q27: Baseline | S27: Cooling
A28: Fuel Conversion | C28: =LOOKUP(C27,'Project Info'!X102:X104,'Project Info'!Z102:Z104) ->  | G28: No. | H28: Type | K28: ft² | L28: R-Value | M28: R-Value | N28: Btu/h·ft²·°F | O28: U-Value | P28: U-Value | Q28: U-Value | S28: Heating
G29: 1 | N29: =IF(OR(H29="",L29+M29=0),0,R147) -> 0 | P29: =IF(OR(H29="",AND(N29=0,O29=0)),0,LOOKUP(H29,$G$117:$G$119,IF($H$12="2015",$I$117:$I$119,$J$117:$J$119))) -> 0 | Q29: =IF(OR(H29="",AND(N29=0,O29=0)),0,LOOKUP(H29,$R$117:$R$119,IF($H$12="2015",$T$117:$T$119,$U$117:$U$119))) -> 0
G30: 2 | N30: =IF(OR(H30="",L30+M30=0),0,R148) -> 0 | P30: =IF(OR(H30="",AND(N30=0,O30=0)),0,LOOKUP(H30,$G$117:$G$119,IF($H$12="2015",$I$117:$I$119,$J$117:$J$119))) -> 0 | Q30: =IF(OR(H30="",AND(N30=0,O30=0)),0,LOOKUP(H30,$R$117:$R$119,IF($H$12="2015",$T$117:$T$119,$U$117:$U$119))) -> 0
G31: 3 | N31: =IF(OR(H31="",L31+M31=0),0,R149) -> 0 | P31: =IF(OR(H31="",AND(N31=0,O31=0)),0,LOOKUP(H31,$G$117:$G$119,IF($H$12="2015",$I$117:$I$119,$J$117:$J$119))) -> 0 | Q31: 0
G32: Overall | H32: Overall Performance | K32: =(H29<>"")*K29+(H30<>"")*K30+(H31<>"")*K31 -> 0 | N32: =IF(K32=0,0,((H29<>"")*K29*IF(O29="",N29,O29)+(H30<>"")*K30*IF(O30="",N30,O30)+(H31<>"")*K31*IF(O31="",N31,O31))/K32) -> 0 | P32: =IF(K32=0,0,((H29<>"")*K29*P29+(H30<>"")*K30*P30+(H31<>"")*K31*P31)/K32) -> 0 | Q32: =IF(K32=0,0,((H29<>"")*K29*Q29+(H30<>"")*K30*Q30+(H31<>"")*K31*Q31)/K32) -> 0
T33: Climate Zone
G34: Table 5: Exterior Windows | R34: (Optional) Override | T34: 5A | V34: 6A*
G35: Assembly | H35: Frame | K35: Area | L35: % Area | M35: % Area | N35: Center-of Glass | P35: Glass + Frame | R35: Glass + Frame | T35: Baseline Glass+Frame | V35: Baseline Glass+Frame
G36: No. | H36: Material | K36: ft² | L36: Operable | M36: Fixed | N36: U-Value | O36: SHGC | P36: U-Value | Q36: SHGC | R36: U-Value | S36: SHGC | T36: U-Value | U36: SHGC | V36: U-Value | W36: SHGC
G37: 1 | M37: =IF(L37="",$Q$108,1-L37) -> 0.85 | P37: =IF(OR($H37="",N37=0),0,IF(N37="",T37,X154)) -> 0 | Q37: =IF($H37="",0,IF(O37="",U37,Y154)) -> 0 | T37: =IF(OR(H37="",AND(N37=0,R37=0)),0,$O$124*M37+$O$125*(1-M37)) -> 0 | U37: =IF(H37="",0,IF($H$12="2015",$O$129,$P$129)) -> 0 | V37: =IF(OR(H37="",AND(N37=0,R37=0)),0,$Z$124*M37+$Z$125*(1-M37)) -> 0 | W37: =IF(H37="",0,IF($H$12="2015",$Z$129,$AA$129)) -> 0
G38: 2 | M38: =IF(L38="",$Q$108,1-L38) -> 0.85 | P38: =IF(OR($H38="",N38=0),0,IF(N38="",T38,X155)) -> 0 | Q38: =IF($H38="",0,IF(O38="",U38,Y155)) -> 0 | T38: =IF(OR(H38="",AND(N38=0,R38=0)),0,$O$124*M38+$O$125*(1-M38)) -> 0 | U38: =IF(H38="",0,IF($H$12="2015",$O$129,$P$129)) -> 0 | V38: =IF(OR(H38="",AND(N38=0,R38=0)),0,$Z$124*M38+$Z$125*(1-M38)) -> 0 | W38: =IF(H38="",0,IF($H$12="2015",$Z$129,$AA$129)) -> 0
G39: 3 | M39: =IF(L39="",$Q$108,1-L39) -> 0.85 | P39: =IF(OR($H39="",N39=0),0,IF(N39="",T39,X156)) -> 0 | Q39: =IF($H39="",0,IF(O39="",U39,Y156)) -> 0 | T39: =IF(OR(H39="",AND(N39=0,R39=0)),0,$O$124*M39+$O$125*(1-M39)) -> 0 | U39: =IF(H39="",0,IF($H$12="2015",$O$129,$P$129)) -> 0 | V39: 0 | W39: 0
G40: Overall | H40: Overall Performance | K40: =(H37<>"")*K37+(H38<>"")*K38+(H39<>"")*K39 -> 0 | L40: =(1-M40)*(K40>0) -> 0 | M40: =IF(K40=0,0,((H37<>"")*K37*M37+(H38<>"")*K38*M38+(H39<>"")*K39*M39)/K40) -> 0 | P40: =IF(K40=0,0,(($H37<>"")*$K37*IF(R37="",P37,R37)+($H38<>"")*$K38*IF(R38="",P38,R38)+($H39<>"")*$K39*IF(R39="",P39,R39))/$K40) -> 0 | Q40: =IF(K40=0,0,(($H37<>"")*$K37*IF(S37="",Q37,S37)+($H38<>"")*$K38*IF(S38="",Q38,S38)+($H39<>"")*$K39*IF(S39="",Q39,S39))/$K40) -> 0 | T40: =IF(K40=0,0,(($H37<>"")*$K37*T37+($H38<>"")*$K38*T38+($H39<>"")*$K39*T39)/$K40) -> 0 | U40: =IF(K40=0,0,(($H37<>"")*$K37*U37+($H38<>"")*$K38*U38+($H39<>"")*$K39*U39)/$K40) -> 0 | V40: =IF(K40=0,0,(($H37<>"")*$K37*V37+($H38<>"")*$K38*V38+($H39<>"")*$K39*V39)/$K40) -> 0 | W40: =IF(K40=0,0,(($H37<>"")*$K37*W37+($H38<>"")*$K38*W38+($H39<>"")*$K39*W39)/$K40) -> 0
G42: Table 6: Garage Doors | I42: 5A | J42: 6A*
G43: Door Area | H43: Overall | I43: Baseline | J43: Baseline
G44: ft² | H44: U-Value | I44: U-Value | J44: U-Value
I45: =0.31*(G45>0)*(H45>0) -> 0 | J45: =0.31*(G45>0)*(H45>0) -> 0
G48: Occupied Hours | L48: Bin Hours - Peak Period Breakdown | AA48: End Use | AD48: Total
G49: OA Drybulb | I49: Average Bin Conditions | L49: Total | M49: Winter | N49: Winter | O49: Summer | P49: Summer | Q49: Winter | R49: Summer | S49: Perimeter | T49: Perimeter | U49: Cooling | V49: Heating | W49: Ext. Wall Heat Gain | Y49: Load Reduction | AA49: Demand Reduction | AD49: Demand Reduction
G50: Bin Range | I50: OA db | J50: OA wb | K50: OA Enth | L50: Bin | M50: On-Peak | N50: Off-Peak | O50: On-Peak | P50: Off-Peak | Q50: Demand | R50: Demand | S50: Cooling | T50: Heating | U50: Perf | V50: Perf | W50: Base | X50: Design | Y50: Cooling | Z50: Heating | AA50: Cooling | AB50: Heating | AC50: Heating | AD50: Elec | AE50: Gas
G51: From | H51: To | I51: °F | J51: °F | K51: Btu/lb | L51: Hours | M51: Hours | N51: Hours | O51: Hours | P51: Hours | Q51: Hours | R51: Hours | S51: Load? | T51: Load? | U51: EER | V51: COP | W51: MBH | X51: MBH | Y51: MBH | Z51: MBH | AA51: kW | AB51: MBH | AC51: kW | AD51: kW | AE51: MBH
G52: ='Project Info'!A44 -> 100 | H52: ='Project Info'!B44 -> 105 | I52: ='Project Info'!C44 -> 102 | J52: ='Project Info'!D44 -> 76 | K52: ='Project Info'!E44 -> 40 | L52: ='Project Info'!F44 -> 0 | M52: ='Project Info'!G44 -> 0 | N52: ='Project Info'!H44 -> 0 | O52: ='Project Info'!I44 -> 0 | P52: ='Project Info'!J44 -> 0 | Q52: ='Project Info'!K44 -> 0 | R52: ='Project Info'!L44 -> 0 | S52: =1*($I52>$L$110)*(T52=0)*($U$22=$G$108) -> 0 | T52: =1*($I52<$L$111) -> 0 | U52: =IF($U$22=$G$108,$U$23,1) -> 1 | V52: =IF($U$19=$H$109,$U$21,$U$20) -> 0 | W52: =($Z$22*$Y$22+$Z$23*$Y$23+$Z$24*$Y$24+$Z$25*$Y$25)*(($S52>0)*($I52-$T$27)+($T52>0)*($I52-$T$28))/1000 -> 0 | X52: =($N$24*$K$24+$N$32*$K$32+$P$40*$K$40+$H$45*$G$45)*(($S52>0)*($I52-$T$27)+($T52>0)*($I52-$T$28))/1000 -> 0 | Y52: =(W52-X52)*(S52>0) -> 0 | Z52: =-1*(W52-X52)*(T52>0) -> 0 | AA52: =Y52/U52 -> 0 | AB52: =Z52/V52*($U$19<>"Electric") ->  | AC52: =Z52/V52/3.412*($U$19="Electric") ->  | AD52: =AA52+AC52 ->  | AE52: =AB52 -> 
G53: ='Project Info'!A45 -> 95 | H53: ='Project Info'!B45 -> 100 | I53: ='Project Info'!C45 -> 95.21927273 | J53: ='Project Info'!D45 -> 74.53402527 | K53: ='Project Info'!E45 -> 37.92329606 | L53: ='Project Info'!F45 -> 0 | M53: ='Project Info'!G45 -> 0 | N53: ='Project Info'!H45 -> 0 | O53: ='Project Info'!I45 -> 0 | P53: ='Project Info'!J45 -> 0 | Q53: ='Project Info'!K45 -> 0 | R53: ='Project Info'!L45 -> 0 | S53: 0 | T53: 0 | U53: 1 | V53: 0 | W53: =($Z$22*$Y$22+$Z$23*$Y$23+$Z$24*$Y$24+$Z$25*$Y$25)*(($S53>0)*($I53-$T$27)+($T53>0)*($I53-$T$28))/1000 -> 0 | X53: 0 | Y53: 0 | Z53: =-1*(W53-X53)*(T53>0) -> 0 | AA53: =Y53/U53 -> 0 | AB53: =Z53/V53*($U$19<>"Electric") ->  | AD53: =AA53+AC53 -> 
G54: ='Project Info'!A46 -> 90 | H54: ='Project Info'!B46 -> 95 | I54: ='Project Info'!C46 -> 92.01604916 | J54: ='Project Info'!D46 -> 72.91156193 | K54: ='Project Info'!E46 -> 36.46709544 | L54: ='Project Info'!F46 -> 0 | M54: ='Project Info'!G46 -> 0 | N54: ='Project Info'!H46 -> 0 | O54: ='Project Info'!I46 -> 0 | P54: ='Project Info'!J46 -> 0 | Q54: ='Project Info'!K46 -> 0 | R54: ='Project Info'!L46 -> 0 | S54: 0 | T54: 0 | U54: 1 | V54: 0 | W54: 0 | X54: 0 | Y54: 0 | Z54: 0 | AA54: 0
G55: ='Project Info'!A47 -> 85 | H55: ='Project Info'!B47 -> 90 | I55: ='Project Info'!C47 -> 87.45781136 | J55: ='Project Info'!D47 -> 70.80538329 | K55: ='Project Info'!E47 -> 34.67941321 | L55: ='Project Info'!F47 -> 0 | M55: ='Project Info'!G47 -> 0 | N55: ='Project Info'!H47 -> 0 | O55: ='Project Info'!I47 -> 0 | P55: ='Project Info'!J47 -> 0 | Q55: ='Project Info'!K47 -> 0 | R55: ='Project Info'!L47 -> 0 | S55: 0 | T55: 0 | U55: 1 | V55: 0 | W55: 0 | X55: 0 | Y55: 0 | Z55: 0 | AA55: 0
G56: ='Project Info'!A48 -> 80 | H56: ='Project Info'!B48 -> 85 | I56: ='Project Info'!C48 -> 82.13678883 | J56: ='Project Info'!D48 -> 67.87239362 | K56: ='Project Info'!E48 -> 32.29624822 | L56: ='Project Info'!F48 -> 0 | M56: ='Project Info'!G48 -> 0 | N56: ='Project Info'!H48 -> 0 | O56: ='Project Info'!I48 -> 0 | P56: ='Project Info'!J48 -> 0 | Q56: ='Project Info'!K48 -> 0 | R56: ='Project Info'!L48 -> 0 | S56: 0 | T56: 0 | U56: 1 | V56: 0 | W56: 0 | X56: 0 | Y56: 0 | Z56: 0 | AA56: 0
G57: ='Project Info'!A49 -> 75 | H57: ='Project Info'!B49 -> 80 | I57: ='Project Info'!C49 -> 76.98840016 | J57: ='Project Info'!D49 -> 65.1292619 | K57: ='Project Info'!E49 -> 30.19047681 | L57: ='Project Info'!F49 -> 0 | M57: ='Project Info'!G49 -> 0 | N57: ='Project Info'!H49 -> 0 | O57: ='Project Info'!I49 -> 0 | P57: ='Project Info'!J49 -> 0 | Q57: ='Project Info'!K49 -> 0 | R57: ='Project Info'!L49 -> 0 | S57: 0 | T57: 0 | U57: 1 | V57: 0 | W57: 0 | X57: 0 | Y57: 0 | Z57: 0 | AA57: 0
G58: ='Project Info'!A50 -> 70 | H58: ='Project Info'!B50 -> 75 | I58: ='Project Info'!C50 -> 72.45798205 | J58: ='Project Info'!D50 -> 63.60442501 | K58: ='Project Info'!E50 -> 29.0886831 | L58: ='Project Info'!F50 -> 0 | M58: ='Project Info'!G50 -> 0 | N58: ='Project Info'!H50 -> 0 | O58: ='Project Info'!I50 -> 0 | P58: ='Project Info'!J50 -> 0 | Q58: ='Project Info'!K50 -> 0 | R58: ='Project Info'!L50 -> 0 | S58: 0 | T58: 0 | U58: 1 | V58: 0 | W58: 0 | X58: 0 | Y58: 0 | Z58: 0 | AA58: 0
G59: ='Project Info'!A51 -> 65 | H59: ='Project Info'!B51 -> 70 | I59: ='Project Info'!C51 -> 67.81583107 | J59: ='Project Info'!D51 -> 61.63133137 | K59: ='Project Info'!E51 -> 27.66151489 | L59: ='Project Info'!F51 -> 0 | M59: ='Project Info'!G51 -> 0 | N59: ='Project Info'!H51 -> 0 | O59: ='Project Info'!I51 -> 0 | P59: ='Project Info'!J51 -> 0 | Q59: ='Project Info'!K51 -> 0 | R59: ='Project Info'!L51 -> 0 | S59: 0 | T59: 0 | U59: 1 | V59: 0 | W59: 0 | X59: 0 | Y59: =(W59-X59)*(S59>0) -> 0 | Z59: =-1*(W59-X59)*(T59>0) -> 0 | AA59: 0
G60: ='Project Info'!A52 -> 60 | H60: ='Project Info'!B52 -> 65 | I60: ='Project Info'!C52 -> 62.53596147 | J60: ='Project Info'!D52 -> 57.13547692 | K60: ='Project Info'!E52 -> 24.62303716 | L60: ='Project Info'!F52 -> 0 | M60: ='Project Info'!G52 -> 0 | N60: ='Project Info'!H52 -> 0 | O60: ='Project Info'!I52 -> 0 | P60: ='Project Info'!J52 -> 0 | Q60: ='Project Info'!K52 -> 0 | R60: ='Project Info'!L52 -> 0 | S60: 0 | T60: 0 | U60: 1 | V60: 0 | W60: 0 | X60: 0 | Y60: =(W60-X60)*(S60>0) -> 0 | Z60: =-1*(W60-X60)*(T60>0) -> 0 | AA60: 0
G61: ='Project Info'!A53 -> 55 | H61: ='Project Info'!B53 -> 60 | I61: ='Project Info'!C53 -> 57.12579227 | J61: ='Project Info'!D53 -> 52.59697116 | K61: ='Project Info'!E53 -> 21.81800154 | L61: ='Project Info'!F53 -> 0 | M61: ='Project Info'!G53 -> 0 | N61: ='Project Info'!H53 -> 0 | O61: ='Project Info'!I53 -> 0 | P61: ='Project Info'!J53 -> 0 | Q61: ='Project Info'!K53 -> 0 | R61: ='Project Info'!L53 -> 0 | S61: 0 | T61: 0 | U61: 1 | V61: 0 | W61: 0 | X61: 0 | Y61: =(W61-X61)*(S61>0) -> 0 | Z61: =-1*(W61-X61)*(T61>0) -> 0 | AA61: 0
G62: ='Project Info'!A54 -> 50 | H62: ='Project Info'!B54 -> 55 | I62: ='Project Info'!C54 -> 52.23569885 | J62: ='Project Info'!D54 -> 48.02276809 | K62: ='Project Info'!E54 -> 19.24664019 | L62: ='Project Info'!F54 -> 0 | M62: ='Project Info'!G54 -> 0 | N62: ='Project Info'!H54 -> 0 | O62: ='Project Info'!I54 -> 0 | P62: ='Project Info'!J54 -> 0 | Q62: ='Project Info'!K54 -> 0 | R62: ='Project Info'!L54 -> 0 | S62: 0 | T62: 0 | U62: 1 | V62: 0 | W62: 0 | X62: 0 | Y62: 0 | Z62: 0 | AA62: 0
G63: ='Project Info'!A55 -> 45 | H63: ='Project Info'!B55 -> 50 | I63: ='Project Info'!C55 -> 47.45917026 | J63: ='Project Info'!D55 -> 43.46539705 | K63: ='Project Info'!E55 -> 16.89418324 | L63: ='Project Info'!F55 -> 0 | M63: ='Project Info'!G55 -> 0 | N63: ='Project Info'!H55 -> 0 | O63: ='Project Info'!I55 -> 0 | P63: ='Project Info'!J55 -> 0 | Q63: ='Project Info'!K55 -> 0 | R63: ='Project Info'!L55 -> 0 | S63: 0 | T63: 0 | U63: 1 | V63: 0 | W63: 0 | X63: 0 | Y63: 0 | Z63: 0 | AA63: 0
G64: ='Project Info'!A56 -> 40 | H64: ='Project Info'!B56 -> 45 | I64: ='Project Info'!C56 -> 42.6770304 | J64: ='Project Info'!D56 -> 38.8125445 | K64: ='Project Info'!E56 -> 14.69026565 | L64: ='Project Info'!F56 -> 0 | M64: ='Project Info'!G56 -> 0 | N64: ='Project Info'!H56 -> 0 | O64: ='Project Info'!I56 -> 0 | P64: ='Project Info'!J56 -> 0 | Q64: ='Project Info'!K56 -> 0 | R64: ='Project Info'!L56 -> 0 | S64: 0 | T64: 0 | U64: 1 | V64: 0 | W64: 0 | X64: 0 | Y64: 0 | Z64: 0 | AA64: 0
G65: ='Project Info'!A57 -> 35 | H65: ='Project Info'!B57 -> 40 | I65: ='Project Info'!C57 -> 37.33304677 | J65: ='Project Info'!D57 -> 33.90470692 | K65: ='Project Info'!E57 -> 12.53841602 | L65: ='Project Info'!F57 -> 0 | M65: ='Project Info'!G57 -> 0 | N65: ='Project Info'!H57 -> 0 | O65: ='Project Info'!I57 -> 0 | P65: ='Project Info'!J57 -> 0 | Q65: ='Project Info'!K57 -> 0 | R65: ='Project Info'!L57 -> 0 | S65: 0 | T65: 0 | U65: 1 | V65: 0 | W65: 0 | X65: 0 | Y65: 0 | Z65: 0 | AA65: 0
G66: ='Project Info'!A58 -> 30 | H66: ='Project Info'!B58 -> 35 | I66: ='Project Info'!C58 -> 32.63817985 | J66: ='Project Info'!D58 -> 29.54717093 | K66: ='Project Info'!E58 -> 10.72897282 | L66: ='Project Info'!F58 -> 0 | M66: ='Project Info'!G58 -> 0 | N66: ='Project Info'!H58 -> 0 | O66: ='Project Info'!I58 -> 0 | P66: ='Project Info'!J58 -> 0 | Q66: ='Project Info'!K58 -> 0 | R66: ='Project Info'!L58 -> 0 | S66: 0 | T66: 0 | U66: 1 | V66: 0 | W66: 0 | X66: 0 | Y66: 0 | Z66: 0 | AA66: 0
G67: ='Project Info'!A59 -> 25 | H67: ='Project Info'!B59 -> 30 | I67: ='Project Info'!C59 -> 27.52926465 | J67: ='Project Info'!D59 -> 24.65271739 | K67: ='Project Info'!E59 -> 8.804130548 | L67: ='Project Info'!F59 -> 0 | M67: ='Project Info'!G59 -> 0 | N67: ='Project Info'!H59 -> 0 | O67: ='Project Info'!I59 -> 0 | P67: ='Project Info'!J59 -> 0 | Q67: ='Project Info'!K59 -> 0 | R67: ='Project Info'!L59 -> 0 | S67: 0 | T67: 0 | U67: 1 | V67: 0 | W67: 0 | X67: 0 | Y67: 0 | Z67: 0 | AA67: 0
G68: ='Project Info'!A60 -> 20 | H68: ='Project Info'!B60 -> 25 | I68: ='Project Info'!C60 -> 22.99811148 | J68: ='Project Info'!D60 -> 20.38330666 | K68: ='Project Info'!E60 -> 7.246164548 | L68: ='Project Info'!F60 -> 0 | M68: ='Project Info'!G60 -> 0 | N68: ='Project Info'!H60 -> 0 | O68: ='Project Info'!I60 -> 0 | P68: ='Project Info'!J60 -> 0 | Q68: ='Project Info'!K60 -> 0 | R68: ='Project Info'!L60 -> 0 | S68: 0 | T68: 0 | U68: 1 | V68: 0 | W68: 0 | X68: 0 | Y68: 0 | Z68: 0 | AA68: 0
G69: ='Project Info'!A61 -> 15 | H69: ='Project Info'!B61 -> 20 | I69: ='Project Info'!C61 -> 17.80851033 | J69: ='Project Info'!D61 -> 15.4208658 | K69: ='Project Info'!E61 -> 5.549048413 | L69: ='Project Info'!F61 -> 0 | M69: ='Project Info'!G61 -> 0 | N69: ='Project Info'!H61 -> 0 | O69: ='Project Info'!I61 -> 0 | P69: ='Project Info'!J61 -> 0 | Q69: ='Project Info'!K61 -> 0 | R69: ='Project Info'!L61 -> 0 | S69: 0 | T69: 0 | U69: 1 | V69: 0 | W69: 0 | X69: 0 | Y69: 0 | Z69: 0 | AA69: 0
G70: ='Project Info'!A62 -> 10 | H70: ='Project Info'!B62 -> 15 | I70: ='Project Info'!C62 -> 12.26993113 | J70: ='Project Info'!D62 -> 10.31826491 | K70: ='Project Info'!E62 -> 3.908282492 | L70: ='Project Info'!F62 -> 0 | M70: ='Project Info'!G62 -> 0 | N70: ='Project Info'!H62 -> 0 | O70: ='Project Info'!I62 -> 0 | P70: ='Project Info'!J62 -> 0 | Q70: ='Project Info'!K62 -> 0 | R70: ='Project Info'!L62 -> 0 | S70: 0 | T70: 0 | U70: 1 | V70: 0 | W70: 0 | X70: 0 | Y70: 0 | Z70: 0 | AA70: 0
G71: ='Project Info'!A63 -> 5 | H71: ='Project Info'!B63 -> 10 | I71: ='Project Info'!C63 -> 7.313758137 | J71: ='Project Info'!D63 -> 5.705238245 | K71: ='Project Info'!E63 -> 2.501941842 | L71: ='Project Info'!F63 -> 0 | M71: ='Project Info'!G63 -> 0 | N71: ='Project Info'!H63 -> 0 | O71: ='Project Info'!I63 -> 0 | P71: ='Project Info'!J63 -> 0 | Q71: ='Project Info'!K63 -> 0 | R71: ='Project Info'!L63 -> 0 | S71: 0 | T71: 0 | U71: 1 | V71: 0 | W71: 0 | X71: 0 | Y71: 0 | Z71: 0 | AA71: 0
G72: ='Project Info'!A64 -> 0 | H72: ='Project Info'!B64 -> 5 | I72: ='Project Info'!C64 -> 2.611946184 | J72: ='Project Info'!D64 -> 1.269977006 | K72: ='Project Info'!E64 -> 1.20464779 | L72: ='Project Info'!F64 -> 0 | M72: ='Project Info'!G64 -> 0 | N72: ='Project Info'!H64 -> 0 | O72: ='Project Info'!I64 -> 0 | P72: ='Project Info'!J64 -> 0 | Q72: ='Project Info'!K64 -> 0 | R72: ='Project Info'!L64 -> 0 | S72: 0 | T72: 0 | U72: 1 | V72: 0 | W72: 0 | X72: 0 | Y72: 0 | Z72: 0 | AA72: 0
G73: ='Project Info'!A65 -> -5 | H73: ='Project Info'!B65 -> 0 | I73: ='Project Info'!C65 -> -1.673139852 | J73: ='Project Info'!D65 -> -2.708331877 | K73: ='Project Info'!E65 -> 0.07939183282 | L73: ='Project Info'!F65 -> 0 | M73: ='Project Info'!G65 -> 0 | N73: ='Project Info'!H65 -> 0 | O73: ='Project Info'!I65 -> 0 | P73: ='Project Info'!J65 -> 0 | Q73: ='Project Info'!K65 -> 0 | R73: ='Project Info'!L65 -> 0 | S73: 0 | T73: 0 | U73: 1 | V73: 0 | W73: 0 | X73: 0 | Y73: 0 | Z73: 0 | AA73: 0
G74: ='Project Info'!A66 -> -10 | H74: ='Project Info'!B66 -> -5 | I74: ='Project Info'!C66 -> -6.572986509 | J74: ='Project Info'!D66 -> -7.2465936 | K74: ='Project Info'!E66 -> -1.168423365 | L74: ='Project Info'!F66 -> 0 | M74: ='Project Info'!G66 -> 0 | N74: ='Project Info'!H66 -> 0 | O74: ='Project Info'!I66 -> 0 | P74: ='Project Info'!J66 -> 0 | Q74: ='Project Info'!K66 -> 0 | R74: ='Project Info'!L66 -> 0 | S74: 0 | T74: 1 | U74: 1 | V74: 0 | W74: 0 | X74: 0 | Y74: 0 | Z74: 0 | AA74: 0
G75: ='Project Info'!A67 -> -15 | H75: ='Project Info'!B67 -> -10 | I75: ='Project Info'!C67 -> -15.32570353 | J75: ='Project Info'!D67 -> -15.70783821 | K75: ='Project Info'!E67 -> -3.405131816 | L75: ='Project Info'!F67 -> 0 | M75: ='Project Info'!G67 -> 0 | N75: ='Project Info'!H67 -> 0 | O75: ='Project Info'!I67 -> 0 | P75: ='Project Info'!J67 -> 0 | Q75: ='Project Info'!K67 -> 0 | R75: ='Project Info'!L67 -> 0 | S75: 0 | T75: 1 | U75: 1 | V75: 0 | W75: 0 | X75: 0 | Y75: 0 | Z75: 0 | AA75: 0
G78: Unoccupied Hours | L78: Bin Hours - Peak Period Breakdown | AA78: End Use | AD78: Total
G79: OA Drybulb | I79: Average Bin Conditions | L79: Total | M79: Winter | N79: Winter | O79: Summer | P79: Summer | Q79: Winter | R79: Summer | S79: Perimeter | T79: Perimeter | U79: Cooling | V79: Heating | W79: Ext. Wall Heat Gain | Y79: Load Reduction | AA79: Demand Reduction | AD79: Demand Reduction
G80: Bin Range | I80: OA db | J80: OA wb | K80: OA Enth | L80: Bin | M80: On-Peak | N80: Off-Peak | O80: On-Peak | P80: Off-Peak | Q80: Demand | R80: Demand | S80: Cooling | T80: Heating | U80: Perf | V80: Perf | W80: Base | X80: Design | Y80: Cooling | Z80: Heating | AA80: Cooling | AB80: Heating | AC80: Heating | AD80: Elec | AE80: Gas
G81: From | H81: To | I81: °F | J81: °F | K81: Btu/lb | L81: Hours | M81: Hours | N81: Hours | O81: Hours | P81: Hours | Q81: Hours | R81: Hours | S81: Load? | T81: Load? | U81: EER | V81: COP | W81: MBH | X81: MBH | Y81: MBH | Z81: MBH | AA81: kW | AB81: MBH | AC81: kW | AD81: kW | AE81: MBH
G82: ='Project Info'!A74 -> 100 | H82: ='Project Info'!B74 -> 105 | I82: ='Project Info'!C74 -> 102 | J82: ='Project Info'!D74 -> 76 | K82: ='Project Info'!E74 -> 40 | L82: ='Project Info'!F74 -> 0 | M82: ='Project Info'!G74 -> 0 | N82: ='Project Info'!H74 -> 0 | O82: ='Project Info'!I74 -> 0 | P82: ='Project Info'!J74 -> 0 | Q82: ='Project Info'!K74 -> 0 | R82: ='Project Info'!L74 -> 0 | S82: =1*($I82>$M$110)*(T82=0)*($U$22=$G$108) -> 0 | T82: =1*($I82<$M$111) -> 0 | U82: =IF($U$22=$G$108,$U$23,1) -> 1 | V82: =IF($U$19=$H$109,$U$21,$U$20) -> 0 | W82: =($P$24*$K$24+$P$32*$K$32+$T$40*$K$40+$I$45*$G$45)*(($S82>0)*($I82-$U$27)+($T82>0)*($I82-$U$28))/1000 -> 0 | X82: =($N$24*$K$24+$N$32*$K$32+$P$40*$K$40+$H$45*$G$45)*(($S82>0)*($I82-$U$27)+($T82>0)*($I82-$U$28))/1000 -> 0 | Y82: =(W82-X82)*(S82>0) -> 0 | Z82: =-1*(W82-X82)*(T82>0) -> 0 | AA82: =Y82/U82 -> 0 | AB82: =Z82/V82*($U$19<>"Electric") ->  | AC82: =Z82/V82/3.412*($U$19="Electric") ->  | AD82: =AA82+AC82 ->  | AE82: =AB82 -> 
G83: ='Project Info'!A75 -> 95 | H83: ='Project Info'!B75 -> 100 | I83: ='Project Info'!C75 -> 95.21927273 | J83: ='Project Info'!D75 -> 74.53402527 | K83: ='Project Info'!E75 -> 37.92329606 | L83: ='Project Info'!F75 -> 0 | M83: ='Project Info'!G75 -> 0 | N83: ='Project Info'!H75 -> 0 | O83: ='Project Info'!I75 -> 0 | P83: ='Project Info'!J75 -> 0 | Q83: ='Project Info'!K75 -> 0 | R83: ='Project Info'!L75 -> 0 | S83: 0 | T83: 0 | U83: 1 | V83: 0 | W83: =($P$24*$K$24+$P$32*$K$32+$T$40*$K$40+$I$45*$G$45)*(($S83>0)*($I83-$U$27)+($T83>0)*($I83-$U$28))/1000 -> 0 | X83: =($N$24*$K$24+$N$32*$K$32+$P$40*$K$40+$H$45*$G$45)*(($S83>0)*($I83-$U$27)+($T83>0)*($I83-$U$28))/1000 -> 0 | Y83: =(W83-X83)*(S83>0) -> 0 | Z83: =-1*(W83-X83)*(T83>0) -> 0 | AA83: =Y83/U83 -> 0 | AD83: =AA83+AC83 -> 
G84: ='Project Info'!A76 -> 90 | H84: ='Project Info'!B76 -> 95 | I84: ='Project Info'!C76 -> 92.01604916 | J84: ='Project Info'!D76 -> 72.91156193 | K84: ='Project Info'!E76 -> 36.46709544 | L84: ='Project Info'!F76 -> 0 | M84: ='Project Info'!G76 -> 0 | N84: ='Project Info'!H76 -> 0 | O84: ='Project Info'!I76 -> 0 | P84: ='Project Info'!J76 -> 0 | Q84: ='Project Info'!K76 -> 0 | R84: ='Project Info'!L76 -> 0 | S84: 0 | T84: 0 | U84: 1 | V84: 0 | W84: 0 | X84: 0 | Y84: 0 | Z84: 0 | AA84: 0
G85: ='Project Info'!A77 -> 85 | H85: ='Project Info'!B77 -> 90 | I85: ='Project Info'!C77 -> 87.45781136 | J85: ='Project Info'!D77 -> 70.80538329 | K85: ='Project Info'!E77 -> 34.67941321 | L85: ='Project Info'!F77 -> 0 | M85: ='Project Info'!G77 -> 0 | N85: ='Project Info'!H77 -> 0 | O85: ='Project Info'!I77 -> 0 | P85: ='Project Info'!J77 -> 0 | Q85: ='Project Info'!K77 -> 0 | R85: ='Project Info'!L77 -> 0 | S85: 0 | T85: 0 | U85: 1 | V85: 0 | W85: 0 | X85: 0 | Y85: 0 | Z85: 0 | AA85: 0
G86: ='Project Info'!A78 -> 80 | H86: ='Project Info'!B78 -> 85 | I86: ='Project Info'!C78 -> 82.13678883 | J86: ='Project Info'!D78 -> 67.87239362 | K86: ='Project Info'!E78 -> 32.29624822 | L86: ='Project Info'!F78 -> 0 | M86: ='Project Info'!G78 -> 0 | N86: ='Project Info'!H78 -> 0 | O86: ='Project Info'!I78 -> 0 | P86: ='Project Info'!J78 -> 0 | Q86: ='Project Info'!K78 -> 0 | R86: ='Project Info'!L78 -> 0 | S86: 0 | T86: 0 | U86: 1 | V86: 0 | W86: 0 | X86: 0 | Y86: 0 | Z86: 0 | AA86: 0
G87: ='Project Info'!A79 -> 75 | H87: ='Project Info'!B79 -> 80 | I87: ='Project Info'!C79 -> 76.98840016 | J87: ='Project Info'!D79 -> 65.1292619 | K87: ='Project Info'!E79 -> 30.19047681 | L87: ='Project Info'!F79 -> 0 | M87: ='Project Info'!G79 -> 0 | N87: ='Project Info'!H79 -> 0 | O87: ='Project Info'!I79 -> 0 | P87: ='Project Info'!J79 -> 0 | Q87: ='Project Info'!K79 -> 0 | R87: ='Project Info'!L79 -> 0 | S87: 0 | T87: 0 | U87: 1 | V87: 0 | W87: 0 | X87: 0 | Y87: 0 | Z87: 0 | AA87: 0
G88: ='Project Info'!A80 -> 70 | H88: ='Project Info'!B80 -> 75 | I88: ='Project Info'!C80 -> 72.45798205 | J88: ='Project Info'!D80 -> 63.60442501 | K88: ='Project Info'!E80 -> 29.0886831 | L88: ='Project Info'!F80 -> 0 | M88: ='Project Info'!G80 -> 0 | N88: ='Project Info'!H80 -> 0 | O88: ='Project Info'!I80 -> 0 | P88: ='Project Info'!J80 -> 0 | Q88: ='Project Info'!K80 -> 0 | R88: ='Project Info'!L80 -> 0 | S88: 0 | T88: 0 | U88: 1 | V88: 0 | W88: 0 | X88: 0 | Y88: =(W88-X88)*(S88>0) -> 0 | Z88: =-1*(W88-X88)*(T88>0) -> 0 | AA88: 0
G89: ='Project Info'!A81 -> 65 | H89: ='Project Info'!B81 -> 70 | I89: ='Project Info'!C81 -> 67.81583107 | J89: ='Project Info'!D81 -> 61.63133137 | K89: ='Project Info'!E81 -> 27.66151489 | L89: ='Project Info'!F81 -> 0 | M89: ='Project Info'!G81 -> 0 | N89: ='Project Info'!H81 -> 0 | O89: ='Project Info'!I81 -> 0 | P89: ='Project Info'!J81 -> 0 | Q89: ='Project Info'!K81 -> 0 | R89: ='Project Info'!L81 -> 0 | S89: 0 | T89: 0 | U89: 1 | V89: 0 | W89: 0 | X89: 0 | Y89: =(W89-X89)*(S89>0) -> 0 | Z89: =-1*(W89-X89)*(T89>0) -> 0 | AA89: 0
G90: ='Project Info'!A82 -> 60 | H90: ='Project Info'!B82 -> 65 | I90: ='Project Info'!C82 -> 62.53596147 | J90: ='Project Info'!D82 -> 57.13547692 | K90: ='Project Info'!E82 -> 24.62303716 | L90: ='Project Info'!F82 -> 0 | M90: ='Project Info'!G82 -> 0 | N90: ='Project Info'!H82 -> 0 | O90: ='Project Info'!I82 -> 0 | P90: ='Project Info'!J82 -> 0 | Q90: ='Project Info'!K82 -> 0 | R90: ='Project Info'!L82 -> 0 | S90: 0 | T90: 0 | U90: 1 | V90: 0 | W90: 0 | X90: 0 | Y90: =(W90-X90)*(S90>0) -> 0 | Z90: =-1*(W90-X90)*(T90>0) -> 0 | AA90: 0
G91: ='Project Info'!A83 -> 55 | H91: ='Project Info'!B83 -> 60 | I91: ='Project Info'!C83 -> 57.12579227 | J91: ='Project Info'!D83 -> 52.59697116 | K91: ='Project Info'!E83 -> 21.81800154 | L91: ='Project Info'!F83 -> 0 | M91: ='Project Info'!G83 -> 0 | N91: ='Project Info'!H83 -> 0 | O91: ='Project Info'!I83 -> 0 | P91: ='Project Info'!J83 -> 0 | Q91: ='Project Info'!K83 -> 0 | R91: ='Project Info'!L83 -> 0 | S91: 0 | T91: 0 | U91: 1 | V91: 0 | W91: 0 | X91: 0 | Y91: 0 | Z91: 0 | AA91: 0
G92: ='Project Info'!A84 -> 50 | H92: ='Project Info'!B84 -> 55 | I92: ='Project Info'!C84 -> 52.23569885 | J92: ='Project Info'!D84 -> 48.02276809 | K92: ='Project Info'!E84 -> 19.24664019 | L92: ='Project Info'!F84 -> 0 | M92: ='Project Info'!G84 -> 0 | N92: ='Project Info'!H84 -> 0 | O92: ='Project Info'!I84 -> 0 | P92: ='Project Info'!J84 -> 0 | Q92: ='Project Info'!K84 -> 0 | R92: ='Project Info'!L84 -> 0 | S92: 0 | T92: 0 | U92: 1 | V92: 0 | W92: 0 | X92: 0 | Y92: 0 | Z92: 0 | AA92: 0
G93: ='Project Info'!A85 -> 45 | H93: ='Project Info'!B85 -> 50 | I93: ='Project Info'!C85 -> 47.45917026 | J93: ='Project Info'!D85 -> 43.46539705 | K93: ='Project Info'!E85 -> 16.89418324 | L93: ='Project Info'!F85 -> 0 | M93: ='Project Info'!G85 -> 0 | N93: ='Project Info'!H85 -> 0 | O93: ='Project Info'!I85 -> 0 | P93: ='Project Info'!J85 -> 0 | Q93: ='Project Info'!K85 -> 0 | R93: ='Project Info'!L85 -> 0 | S93: 0 | T93: 0 | U93: 1 | V93: 0 | W93: 0 | X93: 0 | Y93: 0 | Z93: 0 | AA93: 0
G94: ='Project Info'!A86 -> 40 | H94: ='Project Info'!B86 -> 45 | I94: ='Project Info'!C86 -> 42.6770304 | J94: ='Project Info'!D86 -> 38.8125445 | K94: ='Project Info'!E86 -> 14.69026565 | L94: ='Project Info'!F86 -> 0 | M94: ='Project Info'!G86 -> 0 | N94: ='Project Info'!H86 -> 0 | O94: ='Project Info'!I86 -> 0 | P94: ='Project Info'!J86 -> 0 | Q94: ='Project Info'!K86 -> 0 | R94: ='Project Info'!L86 -> 0 | S94: 0 | T94: 0 | U94: 1 | V94: 0 | W94: 0 | X94: 0 | Y94: 0 | Z94: 0 | AA94: 0
G95: ='Project Info'!A87 -> 35 | H95: ='Project Info'!B87 -> 40 | I95: ='Project Info'!C87 -> 37.33304677 | J95: ='Project Info'!D87 -> 33.90470692 | K95: ='Project Info'!E87 -> 12.53841602 | L95: ='Project Info'!F87 -> 0 | M95: ='Project Info'!G87 -> 0 | N95: ='Project Info'!H87 -> 0 | O95: ='Project Info'!I87 -> 0 | P95: ='Project Info'!J87 -> 0 | Q95: ='Project Info'!K87 -> 0 | R95: ='Project Info'!L87 -> 0 | S95: 0 | T95: 0 | U95: 1 | V95: 0 | W95: 0 | X95: 0 | Y95: 0 | Z95: 0 | AA95: 0
G96: ='Project Info'!A88 -> 30 | H96: ='Project Info'!B88 -> 35 | I96: ='Project Info'!C88 -> 32.63817985 | J96: ='Project Info'!D88 -> 29.54717093 | K96: ='Project Info'!E88 -> 10.72897282 | L96: ='Project Info'!F88 -> 0 | M96: ='Project Info'!G88 -> 0 | N96: ='Project Info'!H88 -> 0 | O96: ='Project Info'!I88 -> 0 | P96: ='Project Info'!J88 -> 0 | Q96: ='Project Info'!K88 -> 0 | R96: ='Project Info'!L88 -> 0 | S96: 0 | T96: 0 | U96: 1 | V96: 0 | W96: 0 | X96: 0 | Y96: 0 | Z96: 0 | AA96: 0
G97: ='Project Info'!A89 -> 25 | H97: ='Project Info'!B89 -> 30 | I97: ='Project Info'!C89 -> 27.52926465 | J97: ='Project Info'!D89 -> 24.65271739 | K97: ='Project Info'!E89 -> 8.804130548 | L97: ='Project Info'!F89 -> 0 | M97: ='Project Info'!G89 -> 0 | N97: ='Project Info'!H89 -> 0 | O97: ='Project Info'!I89 -> 0 | P97: ='Project Info'!J89 -> 0 | Q97: ='Project Info'!K89 -> 0 | R97: ='Project Info'!L89 -> 0 | S97: 0 | T97: 0 | U97: 1 | V97: 0 | W97: 0 | X97: 0 | Y97: 0 | Z97: 0 | AA97: 0
G98: ='Project Info'!A90 -> 20 | H98: ='Project Info'!B90 -> 25 | I98: ='Project Info'!C90 -> 22.99811148 | J98: ='Project Info'!D90 -> 20.38330666 | K98: ='Project Info'!E90 -> 7.246164548 | L98: ='Project Info'!F90 -> 0 | M98: ='Project Info'!G90 -> 0 | N98: ='Project Info'!H90 -> 0 | O98: ='Project Info'!I90 -> 0 | P98: ='Project Info'!J90 -> 0 | Q98: ='Project Info'!K90 -> 0 | R98: ='Project Info'!L90 -> 0 | S98: 0 | T98: 0 | U98: 1 | V98: 0 | W98: 0 | X98: 0 | Y98: 0 | Z98: 0 | AA98: 0
G99: ='Project Info'!A91 -> 15 | H99: ='Project Info'!B91 -> 20 | I99: ='Project Info'!C91 -> 17.80851033 | J99: ='Project Info'!D91 -> 15.4208658 | K99: ='Project Info'!E91 -> 5.549048413 | L99: ='Project Info'!F91 -> 0 | M99: ='Project Info'!G91 -> 0 | N99: ='Project Info'!H91 -> 0 | O99: ='Project Info'!I91 -> 0 | P99: ='Project Info'!J91 -> 0 | Q99: ='Project Info'!K91 -> 0 | R99: ='Project Info'!L91 -> 0 | S99: 0 | T99: 0 | U99: 1 | V99: 0 | W99: 0 | X99: 0 | Y99: 0 | Z99: 0 | AA99: 0
G100: ='Project Info'!A92 -> 10 | H100: ='Project Info'!B92 -> 15 | I100: ='Project Info'!C92 -> 12.26993113 | J100: ='Project Info'!D92 -> 10.31826491 | K100: ='Project Info'!E92 -> 3.908282492 | L100: ='Project Info'!F92 -> 0 | M100: ='Project Info'!G92 -> 0 | N100: ='Project Info'!H92 -> 0 | O100: ='Project Info'!I92 -> 0 | P100: ='Project Info'!J92 -> 0 | Q100: ='Project Info'!K92 -> 0 | R100: ='Project Info'!L92 -> 0 | S100: 0 | T100: 0 | U100: 1 | V100: 0 | W100: 0 | X100: 0 | Y100: 0 | Z100: 0 | AA100: 0
G101: ='Project Info'!A93 -> 5 | H101: ='Project Info'!B93 -> 10 | I101: ='Project Info'!C93 -> 7.313758137 | J101: ='Project Info'!D93 -> 5.705238245 | K101: ='Project Info'!E93 -> 2.501941842 | L101: ='Project Info'!F93 -> 0 | M101: ='Project Info'!G93 -> 0 | N101: ='Project Info'!H93 -> 0 | O101: ='Project Info'!I93 -> 0 | P101: ='Project Info'!J93 -> 0 | Q101: ='Project Info'!K93 -> 0 | R101: ='Project Info'!L93 -> 0 | S101: 0 | T101: 0 | U101: 1 | V101: 0 | W101: 0 | X101: 0 | Y101: 0 | Z101: 0 | AA101: 0
G102: ='Project Info'!A94 -> 0 | H102: ='Project Info'!B94 -> 5 | I102: ='Project Info'!C94 -> 2.611946184 | J102: ='Project Info'!D94 -> 1.269977006 | K102: ='Project Info'!E94 -> 1.20464779 | L102: ='Project Info'!F94 -> 8760 | M102: ='Project Info'!G94 -> 2672 | N102: ='Project Info'!H94 -> 3160 | O102: ='Project Info'!I94 -> 1344 | P102: ='Project Info'!J94 -> 1584 | Q102: ='Project Info'!K94 -> 88 | R102: ='Project Info'!L94 -> 264 | S102: 0 | T102: 0 | U102: 1 | V102: 0 | W102: 0 | X102: 0 | Y102: 0 | Z102: 0 | AA102: 0
G103: ='Project Info'!A95 -> -5 | H103: ='Project Info'!B95 -> 0 | I103: ='Project Info'!C95 -> -1.673139852 | J103: ='Project Info'!D95 -> -2.708331877 | K103: ='Project Info'!E95 -> 0.07939183282 | L103: ='Project Info'!F95 -> 0 | M103: ='Project Info'!G95 -> 0 | N103: ='Project Info'!H95 -> 0 | O103: ='Project Info'!I95 -> 0 | P103: ='Project Info'!J95 -> 0 | Q103: ='Project Info'!K95 -> 0 | R103: ='Project Info'!L95 -> 0 | S103: 0 | T103: 1 | U103: 1 | V103: 0 | W103: 0 | X103: 0 | Y103: 0 | Z103: 0 | AA103: 0
G104: ='Project Info'!A96 -> -10 | H104: ='Project Info'!B96 -> -5 | I104: ='Project Info'!C96 -> -6.572986509 | J104: ='Project Info'!D96 -> -7.2465936 | K104: ='Project Info'!E96 -> -1.168423365 | L104: ='Project Info'!F96 -> 0 | M104: ='Project Info'!G96 -> 0 | N104: ='Project Info'!H96 -> 0 | O104: ='Project Info'!I96 -> 0 | P104: ='Project Info'!J96 -> 0 | Q104: ='Project Info'!K96 -> 0 | R104: ='Project Info'!L96 -> 0 | S104: 0 | T104: 1 | U104: 1 | V104: 0 | W104: 0 | X104: 0 | Y104: 0 | Z104: 0 | AA104: 0
G105: ='Project Info'!A97 -> -15 | H105: ='Project Info'!B97 -> -10 | I105: ='Project Info'!C97 -> -15.32570353 | J105: ='Project Info'!D97 -> -15.70783821 | K105: ='Project Info'!E97 -> -3.405131816 | L105: ='Project Info'!F97 -> 0 | M105: ='Project Info'!G97 -> 0 | N105: ='Project Info'!H97 -> 0 | O105: ='Project Info'!I97 -> 0 | P105: ='Project Info'!J97 -> 0 | Q105: ='Project Info'!K97 -> 0 | R105: ='Project Info'!L97 -> 0 | S105: 0 | T105: 1 | U105: 1 | V105: 0 | W105: 0 | X105: 0 | Y105: 0 | Z105: 0 | AA105: 0
G107: Yes/No | H107: Heating Fuel | J107: Threshold OA Temperatures
G108: Yes | H108: Fossil Fuel | J108: for Cool/Heat Loads | O108: Default % Fixed Windows | Q108: 0.85
G109: No | H109: Electric | L109: Occ | M109: Unocc | O109: Econo High Limit | Q109: 70 | R109: °F
J110: Cooling | L110: =T27-5 -> -5 | M110: =U27 -> 0 | AU110: Mass wall Effective c.i. R-values
J111: Heating | L111: =T28-5 -> -5 | M111: =U28 -> 0 | AD111: Metal-Framed Wall Effective Infill R-Values | AL111: Metal Bldg Wall Effective Infill R-Values | AU111: Rated | AV111: Effective
AD112: Rated | AE112: Effective | AL112: Rated | AM112: Effective | AN112: Test w/ R-9.8 c.i. | AU112: 0 | AV112: 0
G113: Baseline Envelope Performance - Climate Zone 5A | R113: Baseline Envelope Performance - Climate Zone 6A | AD113: 0 | AE113: 0 | AL113: 0 | AM113: 0 | AU113: 11.4 | AV113: =1/0.09 -> 11.11111111
G114: Roof | I114: U-Value | M114: Window Frame | O114: Frame | P114: Frame | R114: Roof | T114: U-Value | X114: Window Frame | Z114: Frame | AA114: Frame | AD114: 11 | AE114: 5.5 | AL114: 10 | AM114: 5.26 | AN114: =1/(AM114+9.8) -> 0.06640106242 | AU114: 15 | AV114: =1/0.076 -> 13.15789474
I115: IECC | J115: IECC | K115: Assembly | M115: Material | O115: U-Value | P115: SHGC | T115: IECC | U115: IECC | V115: Assembly | X115: Material | Z115: U-Value | AA115: SHGC | AD115: 13 | AE115: 6 | AL115: 11 | AM115: 5.43 | AN115: =1/(AM115+9.8) -> 0.06565988181 | AU115: 16.8 | AV115: =1/0.071 -> 14.08450704
G116: Type | I116: 2015 | J116: 2018 | K116: R-Adder | M116: Aluminum/Metal | O116: 1 | P116: 0.2 | R116: Type | T116: 2015 | U116: 2018 | V116: R-Adder | X116: Aluminum/Metal | Z116: 1 | AA116: 0.2 | AD116: 15 | AE116: 6.4 | AL116: 13 | AM116: 6 | AN116: =1/(AM116+9.8) -> 0.06329113924 | AU116: 26 | AV116: =TREND(AV114:AV115,AU114:AU115,AU116) -> 18.82052549
G117: Attic and Other | I117: 0.027 | J117: 0.027 | M117: Fiberglass | O117: 0.3 | P117: 0.1 | R117: Attic and Other | T117: 0.021 | U117: 0.021 | X117: Fiberglass | Z117: 0.3 | AA117: 0.1 | AD117: 19 | AE117: 7.1 | AL117: 16 | AM117: 6.4 | AN117: =1/(AM117+9.8) -> 0.06172839506
G118: Insulation Entirely Above Deck | I118: 0.032 | J118: 0.032 | K118: 0.777 | M118: Vinyl | O118: 0.3 | P118: 0.1 | R118: Insulation Entirely Above Deck | T118: 0.032 | U118: 0.032 | V118: 0.777 | X118: Vinyl | Z118: 0.3 | AA118: 0.1 | AD118: 21 | AE118: 7.4 | AL118: 19 | AM118: 6.8 | AN118: =1/(AM118+9.8) -> 0.06024096386
G119: Metal Buildings | I119: 0.035 | J119: 0.035 | M119: Wood | O119: 0.4 | P119: 0.05 | R119: Metal Buildings | T119: 0.031 | U119: 0.031 | X119: Wood | Z119: 0.4 | AA119: 0.05 | AD119: 31 | AE119: =TREND(AE117:AE118,AD117:AD118,AD119) -> 8.9 | AL119: 29 | AM119: =TREND(AM117:AM118,AL117:AL118,AL119) -> 8.133333333
M120: Z-Other | O120: 1 | P120: 0.2 | X120: Z-Other | Z120: 1 | AA120: 0.2
G121: Walls | I121: U-Value | R121: Walls | T121: U-Value | AD121: Wood-Framed Wall Effective Infill R-Values | AL121: Wood-Framed Wall Effective Infill R-Values
I122: IECC | J122: IECC | K122: Assembly | M122: Window Baseline | O122: IECC | P122: IECC | T122: IECC | U122: IECC | V122: Assembly | X122: Window Baseline | Z122: IECC | AA122: IECC | AD122: Rated | AE122: Effective | AF122: Test w/ R-10 c.i. | AL122: Rated | AM122: Effective | AN122: Code U-Value
G123: Type | I123: 2015 | J123: 2018 | K123: R-Adder | M123: U-Values | O123: 2015 | P123: 2018 | R123: Type | T123: 2015 | U123: 2018 | V123: R-Adder | X123: U-Values | Z123: 2015 | AA123: 2018 | AD123: 0 | AE123: 0 | AL123: 0 | AM123: 0
G124: Mass | I124: 0.09 | J124: 0.09 | K124: -0.2888 | M124: Fixed Assembly | O124: 0.38 | P124: 0.38 | R124: Mass | T124: 0.08 | U124: 0.08 | V124: -0.2888 | X124: Fixed Assembly | Z124: 0.36 | AA124: 0.36 | AD124: 11 | AE124: =1/0.096 -> 10.41666667 | AF124: =1/(AE124+10) -> 0.04897959184 | AL124: 11 | AM124: 10.5 | AN124: =1/AM124 -> 0.09523809524
G125: Metal Building | I125: 0.052 | J125: 0.052 | K125: 0 | M125: Operables Assembly | O125: 0.45 | P125: 0.45 | R125: Metal Building | T125: 0.052 | U125: 0.052 | V125: 0 | X125: Operables Assembly | Z125: 0.43 | AA125: 0.43 | AD125: 13 | AE125: =1/0.086215 -> 11.5989097 | AF125: =1/(AE125+10) -> 0.0462986333 | AL125: 13 | AM125: 12.2 | AN125: =1/AM125 -> 0.08196721311
G126: Metal Framed | I126: 0.064 | J126: 0.064 | K126: 2.2 | R126: Metal Framed | T126: 0.064 | U126: 0.064 | V126: 2.2 | AD126: 15 | AE126: =1/0.083 -> 12.04819277 | AF126: =1/(AE126+10) -> 0.04535519126 | AL126: 15 | AM126: 13.2 | AN126: =1/AM126 -> 0.07575757576
G127: Wood Framed and Other | I127: 0.064 | J127: 0.064 | K127: 0.226 | M127: Window Baseline SHGC | O127: IECC | P127: IECC | R127: Wood Framed and Other | T127: 0.051 | U127: 0.051 | V127: 0 | X127: Window Baseline SHGC | Z127: IECC | AA127: IECC | AD127: 19 | AE127: =1/0.067 -> 14.92537313 | AF127: =1/(AE127+10) -> 0.04011976048 | AL127: 19 | AM127: 16.3 | AN127: =1/AM127 -> 0.06134969325
O128: 2015 | P128: 2018 | Z128: 2015 | AA128: 2018 | AD128: 21 | AE128: =1/0.063 -> 15.87301587 | AF128: =1/(AE128+10) -> 0.03865030675 | AL128: 21 | AM128: 17.7 | AN128: =1/AM128 -> 0.05649717514
G129: Garage Doors | I129: U-Value | M129: SHGC | O129: 0.4 | P129: 0.38 | R129: Garage Doors | T129: U-Value | X129: SHGC | Z129: 0.4 | AA129: 0.4 | AD129: 31 | AE129: =TREND(AE127:AE128,AD127:AD128,AD129) -> 20.61122957
I130: IECC | J130: IECC | T130: IECC | U130: IECC
I131: 2015 | J131: 2018 | T131: 2015 | U131: 2018 | AE131: Metal Bldg ROOF Effective Infill R-Values | AM131: Wood-Framed Attic Effective Insulation R-Values
G132: < 14% Glazing | I132: 0.31 | J132: 0.31 | R132: < 14% Glazing | T132: 0.31 | U132: 0.31 | AE132: Rated | AF132: Effective | AG132: Test w/ no c.i. | AM132: Rated | AN132: Eff R-value | AO132: Eff U-Value
AE133: 0 | AF133: 0 | AM133: 0 | AN133: 0
AE134: 10 | AF134: =1/AG134 -> 8.695652174 | AG134: 0.115 | AM134: 11 | AN134: =1/AO134 -> 10.98901099 | AO134: 0.091
AE135: 11 | AF135: =1/AG135 -> 9.345794393 | AG135: 0.107 | AM135: 13 | AN135: 12.34567901 | AO135: 0.081
AE136: 13 | AF136: =1/AG136 -> 9.900990099 | AG136: 0.101 | AM136: 19 | AN136: 18.86792453 | AO136: 0.053
G137: Exterior Wall Assemblies - Design Case Overall U-value Calculation | AE137: 16 | AF137: =1/AG137 -> 10.41666667 | AG137: 0.096 | AM137: 30 | AN137: 29.41176471 | AO137: 0.034
G138: Assembly | H138: Assembly | K138: Area | L138: Infill | M138: c.i. | N138: U-Value Based on Wall Type | R138: U-Value | AE138: 19 | AF138: =1/AG138 -> 12.19512195 | AG138: 0.082 | AM138: 38 | AN138: 37.03703704 | AO138: 0.027
G139: No. | H139: Type | K139: ft² | L139: R-Value | M139: R-Value | N139: =G124 -> Mass | O139: =G125 -> Metal Building | P139: =G126 -> Metal Framed | Q139: =G127 -> Wood Framed and Other | R139: Btu/h·ft²·°F | AE139: 29 | AF139: =TREND(AF137:AF138,AE137:AE138,AE139) -> 18.12330623 | AM139: 49 | AN139: 47.61904762 | AO139: 0.021
G140: 1 | H140: =H21 -> 0 | K140: =K21 -> 0 | L140: =L21 -> 0 | M140: =M21 -> 0 | N140: =1/(TREND(OFFSET($AD$112,MATCH(L140,$AD$113:$AD$118,1),1,2,1),OFFSET($AD$112,MATCH(L140,$AD$113:$AD$118,1),0,2,1),L140)+M140+$K$124) -> -3.462603878 | O140: =1/(TREND(OFFSET($AL$112,MATCH(L140,$AL$113:$AL$118,1),1,2,1),OFFSET($AL$112,MATCH(L140,$AL$113:$AL$118,1),0,2,1),L140)+M140+$K$125) -> 2251799813685248 | P140: =1/(TREND(OFFSET($AD$112,MATCH(L140,$AD$113:$AD$118,1),1,2,1),OFFSET($AD$112,MATCH(L140,$AD$113:$AD$118,1),0,2,1),L140)+M140+$K$126) -> 0.4545454545 | Q140: =1/(TREND(OFFSET($AD$122,MATCH(L140,$AD$123:$AD$128,1),1,2,1),OFFSET($AD$122,MATCH(L140,$AD$123:$AD$128,1),0,2,1),L140)+M140+$K$127) -> 4.424778761 | R140: =LOOKUP(H140,$N$139:$Q$139,N140:Q140) ->  | AM140: 60 | AN140: 58.82352941 | AO140: 0.017
G141: 2 | H141: =H22 -> 0 | K141: =K22 -> 0 | L141: 0 | M141: 0 | N141: =1/(TREND(OFFSET($AD$112,MATCH(L141,$AD$113:$AD$118,1),1,2,1),OFFSET($AD$112,MATCH(L141,$AD$113:$AD$118,1),0,2,1),L141)+M141+$K$124) -> -3.462603878 | O141: =1/(TREND(OFFSET($AL$112,MATCH(L141,$AL$113:$AL$118,1),1,2,1),OFFSET($AL$112,MATCH(L141,$AL$113:$AL$118,1),0,2,1),L141)+M141+$K$125) -> 2251799813685248 | P141: =1/(TREND(OFFSET($AD$112,MATCH(L141,$AD$113:$AD$118,1),1,2,1),OFFSET($AD$112,MATCH(L141,$AD$113:$AD$118,1),0,2,1),L141)+M141+$K$126) -> 0.4545454545 | Q141: =1/(TREND(OFFSET($AD$122,MATCH(L141,$AD$123:$AD$128,1),1,2,1),OFFSET($AD$122,MATCH(L141,$AD$123:$AD$128,1),0,2,1),L141)+M141+$K$127) -> 4.424778761 | R141: =LOOKUP(H141,$N$139:$Q$139,N141:Q141) -> 
G142: 3 | H142: =H23 -> 0 | K142: 0 | L142: 0 | M142: 0 | N142: =1/(TREND(OFFSET($AD$112,MATCH(L142,$AD$113:$AD$118,1),1,2,1),OFFSET($AD$112,MATCH(L142,$AD$113:$AD$118,1),0,2,1),L142)+M142+$K$124) -> -3.462603878 | O142: =1/(TREND(OFFSET($AL$112,MATCH(L142,$AL$113:$AL$118,1),1,2,1),OFFSET($AL$112,MATCH(L142,$AL$113:$AL$118,1),0,2,1),L142)+M142+$K$125) -> 2251799813685248 | P142: =1/(TREND(OFFSET($AD$112,MATCH(L142,$AD$113:$AD$118,1),1,2,1),OFFSET($AD$112,MATCH(L142,$AD$113:$AD$118,1),0,2,1),L142)+M142+$K$126) -> 0.4545454545 | Q142: =1/(TREND(OFFSET($AD$122,MATCH(L142,$AD$123:$AD$128,1),1,2,1),OFFSET($AD$122,MATCH(L142,$AD$123:$AD$128,1),0,2,1),L142)+M142+$K$127) -> 4.424778761 | R142: =LOOKUP(H142,$N$139:$Q$139,N142:Q142) -> 
G144: Exterior ROOF Assemblies - Design Case Overall U-value Calculation
G145: Assembly | H145: Assembly | K145: Area | L145: Infill | M145: c.i. | N145: U-Value Based on Wall Type | R145: U-Value
G146: No. | H146: Type | K146: ft² | L146: R-Value | M146: R-Value | N146: =G117 -> Attic and Other | O146: =G118 -> Insulation Entirely Above Deck | P146: =G119 -> Metal Buildings | R146: Btu/h·ft²·°F
G147: 1 | H147: =H29 -> 0 | K147: =K29 -> 0 | L147: 0 | M147: 0 | N147: =1/(TREND(OFFSET($AM$132,MATCH(L147,$AM$133:$AM$139,1),1,2,1),OFFSET($AM$132,MATCH(L147,$AM$133:$AM$139,1),0,2,1),L147)+M147) ->  | O147: =1/(M147+$K$118) -> 1.287001287 | P147: =1/(TREND(OFFSET($AE$132,MATCH(L147,$AE$133:$AE$138,1),1,2,1),OFFSET($AE$132,MATCH(L147,$AE$133:$AE$138,1),0,2,1),L147)+M147) -> 562949953421312 | R147: =LOOKUP(H147,$N$146:$P$146,N147:P147) -> 
G148: 2 | H148: =H30 -> 0 | K148: 0 | L148: 0 | M148: 0 | N148: =1/(TREND(OFFSET($AM$132,MATCH(L148,$AM$133:$AM$139,1),1,2,1),OFFSET($AM$132,MATCH(L148,$AM$133:$AM$139,1),0,2,1),L148)+M148) ->  | O148: =1/(M148+$K$118) -> 1.287001287 | P148: =1/(TREND(OFFSET($AE$132,MATCH(L148,$AE$133:$AE$138,1),1,2,1),OFFSET($AE$132,MATCH(L148,$AE$133:$AE$138,1),0,2,1),L148)+M148) -> 562949953421312 | R148: =LOOKUP(H148,$N$146:$P$146,N148:P148) -> 
G149: 3 | H149: =H31 -> 0 | K149: 0 | L149: 0 | M149: 0 | N149: =1/(TREND(OFFSET($AM$132,MATCH(L149,$AM$133:$AM$139,1),1,2,1),OFFSET($AM$132,MATCH(L149,$AM$133:$AM$139,1),0,2,1),L149)+M149) ->  | O149: 1.287001287 | P149: =1/(TREND(OFFSET($AE$132,MATCH(L149,$AE$133:$AE$138,1),1,2,1),OFFSET($AE$132,MATCH(L149,$AE$133:$AE$138,1),0,2,1),L149)+M149) -> 562949953421312 | R149: =LOOKUP(H149,$N$146:$P$146,N149:P149) -> 
G151: Exterior ROOF Assemblies - Design Case Overall U-value Calculation
G152: Assembly | H152: Assembly | K152: Area | L152: % | M152: % | N152: Center-of Glass | P152: Fixed | Q152: Oper. | R152: Frame | S152: Frame | T152: Fixed Window | V152: Operable Window | X152: Average All Windows
G153: No. | H153: Type | K153: ft² | L153: Operable | M153: Fixed | N153: U-Value | O153: SHGC | P153: %Glass | Q153: % Glass | R153: U-Value | S153: SHGC | T153: U-Value | U153: SHGC | V153: U-Value | W153: SHGC | X153: U-Value | Y153: SHGC
G154: 1 | H154: =H37 -> 0 | K154: =K37 -> 0 | L154: =1-M154 -> 0.15 | M154: =M37 -> 0.85 | N154: 0 | O154: 0 | P154: 0.8857 | Q154: 0.7857 | R154: =IF(H154=0,0,LOOKUP(H154,$M$116:$M$120,$O$116:$O$120)) -> 0 | S154: =IF(H154=0,0,LOOKUP(H154,$M$116:$M$120,$P$116:$P$120)) -> 0 | T154: =IF(H154=0,0,P154*N154+(1-P154)*R154) -> 0 | U154: =IF(H154=0,0,P154*O154+(1-P154)*S154) -> 0 | V154: =IF(H154=0,0,Q154*N154+(1-Q154)*R154) -> 0 | W154: =IF(H154=0,0,Q154*O154+(1-Q154)*S154) -> 0 | X154: =IF(H154=0,T37,T154*M154+V154*(1-M154)) -> 0 | Y154: =IF(H154=0,U37,U154*M154+W154*(1-M154)) -> 0
G155: 2 | H155: =H38 -> 0 | K155: =K38 -> 0 | L155: =1-M155 -> 0.15 | M155: 0.85 | N155: 0 | O155: 0 | P155: 0.8857 | Q155: 0.7857 | R155: =IF(H155=0,0,LOOKUP(H155,$M$116:$M$120,$O$116:$O$120)) -> 0 | S155: =IF(H155=0,0,LOOKUP(H155,$M$116:$M$120,$P$116:$P$120)) -> 0 | T155: =IF(H155=0,0,P155*N155+(1-P155)*R155) -> 0 | U155: =IF(H155=0,0,P155*O155+(1-P155)*S155) -> 0 | V155: =IF(H155=0,0,Q155*N155+(1-Q155)*R155) -> 0 | W155: =IF(H155=0,0,Q155*O155+(1-Q155)*S155) -> 0 | X155: =IF(H155=0,T38,T155*M155+V155*(1-M155)) -> 0 | Y155: =IF(H155=0,U38,U155*M155+W155*(1-M155)) -> 0
G156: 3 | H156: =H39 -> 0 | K156: =K39 -> 0 | L156: =1-M156 -> 0.15 | M156: 0.85 | N156: 0 | O156: 0 | P156: 0.8857 | Q156: 0.7857 | R156: =IF(H156=0,0,LOOKUP(H156,$M$116:$M$120,$O$116:$O$120)) -> 0 | S156: =IF(H156=0,0,LOOKUP(H156,$M$116:$M$120,$P$116:$P$120)) -> 0 | T156: =IF(H156=0,0,P156*N156+(1-P156)*R156) -> 0 | U156: =IF(H156=0,0,P156*O156+(1-P156)*S156) -> 0 | V156: =IF(H156=0,0,Q156*N156+(1-Q156)*R156) -> 0 | W156: =IF(H156=0,0,Q156*O156+(1-Q156)*S156) -> 0 | X156: =IF(H156=0,T39,T156*M156+V156*(1-M156)) -> 0 | Y156: =IF(H156=0,U39,U156*M156+W156*(1-M156)) -> 0
G158: Incremental Cost Estimate
H159: Area | I159: U-Value | J159: Cost | K159: Incr.
G160: Assembly | H160: ft² | I160: Reduction | J160: $/dU/ft² | K160: Cost
G161: Ext Walls | H161: =$K$24 -> 0 | I161: =$P$24-$N$24 -> 0 | J161: =0.6/0.024 -> 25 | K161: =MAX(0,J161*I161*H161) -> 0
G162: Roofs | H162: =$K$32 -> 0 | I162: =$P$32-$N$32 -> 0 | J162: =0.6/0.004 -> 150 | K162: =MAX(0,J162*I162*H162) -> 0
G163: Windows | H163: =$K$40 -> 0 | I163: =$T$40-$P$40 -> 0 | J163: =1.5/0.04 -> 37.5 | K163: 0
G164: Garage Doors | H164: =$G$45 -> 0 | I164: =IF($H$45="",0,$I$45-$H$45) -> 0 | J164: =J161 -> 25 | K164: 0
G165: Total Incremental Cost | K165: =SUM(K161:K164) -> 0

Sheet Interior Lighting (hidden)
A1: Complete Savings Summary | F1: Measure Summary | K1: Measure Description | T1: Table 2: Baseline, Savings, and Incentive Calc Summary | Z1: Table 2a: PARKING GARAGE Baseline, Savings, and Incentive Calc Summary
A2: Annual kWh Savings | D2: =H3 -> 0 | H2: Value | I2: Unit | K2: This measure considers savings from a high performance interior lighting system design with reduced lighting power density below the baseline maximum allowable value. Control-related savings are also considered for projects that meet the Tier 2 or Tier 3 Performance Lighting requirements. | U2: Bldg Area (ft² | V2: ='Project Info'!$C$17 -> 0 | AA2: Parking Garage Area (ft²) | AC2: <User Input
A3: % On Peak | D3: =MIN(1,A15+C15) -> 0 | F3: Annual Electric Savings | H3: =V13+1*($K$23=$G$107)*AB13 -> 0 | I3: kWh | U3: Bldg Type | V3: ='Project Info'!$C$18 -> 0 | AA3: Bldg Type | AB3: =$I$138 -> Parking garage
A4: Max kW | D4: =MAX(AP111:AP134,AP141:AP164) -> 0 | F4: Annual Fuel Savings | H4: =D7*C29 ->  | I4: =D20 ->  | U4: Baseline Bldg LPD (W/ft²) | V4: =IFERROR(LOOKUP(V3,$I$110:$I$151,$K$110:$K$151),0) -> 0 | X4: Optional Override | AA4: Baseline LPD (W/ft²) | AB4: =IFERROR(LOOKUP(AB3,$I$110:$I$151,$K$110:$K$151),0) -> 0.13 | AD4: Optional Override
A5: Summer kW | D5: =(SUMPRODUCT(AP111:AP134,AM111:AM134)+SUMPRODUCT(AP141:AP164,AM141:AM164))/SUM(AM111:AM134,AM141:AM164) -> 0 | F5: Incremental | G5: Default Calc | H5: NA | I5: $ | U5: Total Baseline Watts | V5: =V2*IF(W4>0,W4,V4) -> 0 | AA5: Total Baseline Watts | AB5: =AB2*IF(AC4>0,AC4,AB4) -> 0
A6: Winter kW | D6: =(SUMPRODUCT(AP111:AP134,AL111:AL134)+SUMPRODUCT(AP141:AP164,AL141:AL164))/SUM(AL111:AL134,AL141:AL164) -> 0 | F6: Cost | G6: Project Specific | I6: $ (Optional) | K6: Notes (Optional) | U6: Total Proposed Watts | V6: =SUM(T30:T99) -> 0 | X6: Optional Override | AA6: Total Proposed Watts | AB6: =SUM(AM30:AM99) -> 0 | AD6: Optional Override
A7: Annual Fuel Savings (MMBtu) | D7: 0 | F7: Estimated Incentive | H7: =IF(V10=0,0,V16)+1*($K$23=$G$107)*IF(AB11=0,0,AB16) -> 0 | I7: $ | U7: Base Lighting Hours (EFLH) | V7: =LOOKUP($V$3,$I$110:$I$151,$L$110:$L$151) ->  | X7: Optional Override | AA7: Base Lighting Hours (EFLH) | AB7: =LOOKUP($AB$3,$I$110:$I$151,$L$110:$L$151) -> 6552 | AD7: Optional Override
A8: Incremental Cost (Default Calc) | D8: NA | T8: Values Used in Calculations | Z8: Values Used in Calculations
A9: Incremental Cost (for Summary) | D9: =IF(H6>0,H6,D8) -> NA | F9: Project Information Summary | U9: Total Baseline Watts | V9: =V5 -> 0 | AA9: Total Baseline Watts | AB9: =AB5 -> 0
A10: kWh Savings by Peak Period | G10: STATE | H10: ='Project Info'!C15 -> NH | U10: Total Proposed Watts | V10: =IF(W6="",V6,W6) -> 0 | AA10: Total Proposed Watts | AB10: =IF(AC6="",AB6,AC6) -> 0
A11: Winter | B11: Winter | C11: Summer | D11: Summer | G11: Program Year | H11: ='Project Info'!C19 -> 0 | U11: Total Watts Saved vs. Baseline | V11: =MAX(0,V9-V10) -> 0 | AA11: Total Watts Saved vs. Baseline | AB11: =MAX(0,AB9-AB10) -> 0
A12: On-Peak | B12: Off-Peak | C12: On-Peak | D12: Off-Peak | G12: Code IECC Version | H12: =MID('Project Info'!C20,1,4) -> 2018 | U12: Base Lighting Hours (EFLH) | V12: =IF(W7="",V7,W7) ->  | AA12: Base Lighting Hours (EFLH) | AB12: =IF(AC7="",AB7,AC7) -> 6552
A13: kWh | B13: kWh | C13: kWh | D13: kWh | G13: Electric PA | H13: ='Project Info'!F3 -> 0 | U13: Annual Electric Savings (kWh) | V13: =IF(V10=0,0,V12*(V9-V10*(1-Y15))/1000) -> 0 | AA13: Annual Electric Savings (kWh) | AB13: =IF(AB10=0,0,AB12*(AB9-AB10*(1-AE16))/1000) -> 0
A14: =SUMPRODUCT(AH111:AH134,$AP$111:$AP$134)+SUMPRODUCT(AH141:AH164,$AP$141:$AP$164) -> 0 | B14: =SUMPRODUCT(AI111:AI134,$AP$111:$AP$134)+SUMPRODUCT(AI141:AI164,$AP$141:$AP$164) -> 0 | C14: =SUMPRODUCT(AJ111:AJ134,$AP$111:$AP$134)+SUMPRODUCT(AJ141:AJ164,$AP$141:$AP$164) -> 0 | D14: =SUMPRODUCT(AK111:AK134,$AP$111:$AP$134)+SUMPRODUCT(AK141:AK164,$AP$141:$AP$164) -> 0 | F14: *NOTE: Baseline values are automated and cannot be changed. | U14: % DLC/ES Certified | V14: =IFERROR((SUMIFS($T$30:$T$99,$Q$30:$Q$99,$Q$100)+SUMIFS($T$30:$T$99,$Q$30:$Q$99,$Q$101))/$T$25,0) -> 0 | AA14: % DLC/ES Certified | AB14: =IFERROR((SUMIFS($AM$30:$AM$99,$AJ$30:$AJ$99,$Q$100)+SUMIFS($AM$30:$AM$99,$AJ$30:$AJ$99,$Q$101))/$AM$25,0) -> 0
A15: =ROUND(IF(A14<=0,0,A14/SUMIF($A$14:$D$14,">0")),2) -> 0 | B15: =ROUND(IF(B14<=0,0,B14/SUMIF($A$14:$D$14,">0")),2) -> 0 | C15: =ROUND(IF(C14<=0,0,C14/SUMIF($A$14:$D$14,">0")),2) -> 0 | D15: =IF(SUM(A14:D14)=0,0,1-SUM(A15:C15)) -> 0 | U15: Certified Designer/DLC Exemption? | AA15: Certified Designer/DLC Exemption?
U16: Total Incentive $ | V16: =IFERROR(MAX(0,V13*IF(OR(V15=$G$107,V14>=50%),$C$25,0)),0) -> 0 | AA16: Total Incentive $ | AB16: =IFERROR(MAX(0,AB13*IF(OR(AB15=$G$107,AB14>=50%),$C$25,0)),0) -> 0
A17: Utility Rates
C18: Rate | D18: Unit | T18: Scroll Right for Parking Garage Fixture Inputs >>>>>>>>>>> | AF18: <<Performance Lighting Incentive Rate has been overridden
A19: Electric | C19: ='ECM Summary'!$E$31 -> 0.1593 | D19: kWh
A20: ='ECM Summary'!$C$32 -> 0 | C20: ='ECM Summary'!$E$32 ->  | D20: ='ECM Summary'!$F$32 ->  | K20: **PARKING GARAGE area and lighting fixtures should NOT be included in the table below.
K21: A separate Parking Garage section is included to the right in this sheet.
A22: Custom Incentive Rates | K22: Select "Yes" below to include garage fixtures and use the separate input table.
C23: Rate | D23: Unit | L23: Include Enclosed Parking Garage Lighting in Analysis? Scroll right for Parking Garage Input Tables >>
A25: Electric | C25: ='ECM Summary'!$J$31 -> 0.28 | D25: kWh | G25: Table 1: Interior Lighting Fixtures (Excluding Parking Garage) | S25: Total Design Watts: | T25: =SUM(T30:T99) -> 0 | Z25: Table 1a: PARKING GARAGE Lighting Fixtures | AL25: Total Design Watts: | AM25: =SUM(AM30:AM99) -> 0
A26: ='ECM Summary'!$H$32 -> 0 | C26: ='ECM Summary'!$J$32 -> 0 | D26: ='ECM Summary'!$K$32 ->  | G26: 1 | H26: 2 | I26: 3 | M26: 4 | Q26: 5 | R26: 6 | S26: 7 | T26: 8 | U26: 9 | Z26: 1 | AA26: 2 | AB26: 3 | AF26: 4 | AJ26: 5 | AK26: 6 | AL26: 7 | AM26: 8 | AN26: 9
Q27: Tier 1 | R27: Qty | S27: Wattage | U27: DLC/ES | AJ27: Tier 1 | AK27: Qty | AL27: Wattage | AN27: DLC/ES
A28: Fossil Fuel | C28: ='Project Info'!C21 -> 0 | G28: Fixture | Q28: ·DLC/ES· | R28: Total Fixture | S28: Fixture Power | T28: Total Design | U28: Certified | Z28: Fixture | AJ28: ·DLC/ES· | AK28: Total Fixture | AL28: Fixture Power | AM28: Total Design | AN28: Certified
A29: Fuel Conversion | C29: =LOOKUP(C28,'Project Info'!X102:X104,'Project Info'!Z102:Z104) ->  | G29: ID | H29: Manufacturer | I29: Model Number | M29: Fixture Type (Optional) | Q29: Certified? | R29: Qty | S29: W/Fixture | T29: Watts | U29: ? | Z29: ID | AA29: Manufacturer | AB29: Model Number | AF29: Fixture Type (Optional) | AJ29: Certified? | AK29: Qty | AL29: W/Fixture | AM29: Watts | AN29: ?
T30: =R30*S30 -> 0 | U30: =IF(OR(Q30=$Q$100,Q30=$Q$101),1,0) -> 0 | AM30: =AK30*AL30 -> 0 | AN30: =IF(OR(AJ30=$Q$100,AJ30=$Q$101),1,0) -> 0
T31: 0 | U31: 0 | AM31: 0 | AN31: 0
T32: 0 | U32: 0 | AM32: 0 | AN32: 0
T33: 0 | U33: 0 | AM33: 0 | AN33: 0
T34: 0 | U34: 0 | AM34: 0 | AN34: 0
T35: 0 | U35: 0 | AM35: 0 | AN35: 0
T36: 0 | U36: 0 | AM36: 0 | AN36: 0
T37: 0 | U37: 0 | AM37: 0 | AN37: 0
T38: 0 | U38: 0 | AM38: 0 | AN38: 0
T39: 0 | U39: 0 | AM39: 0 | AN39: 0
T40: 0 | U40: 0 | AM40: 0 | AN40: 0
T41: 0 | U41: 0 | AM41: 0 | AN41: 0
T42: 0 | U42: 0 | AM42: 0 | AN42: 0
T43: 0 | U43: 0 | AM43: 0 | AN43: 0
T44: 0 | U44: 0 | AM44: 0 | AN44: 0
T45: 0 | U45: 0 | AM45: 0 | AN45: 0
T46: 0 | U46: 0 | AM46: 0 | AN46: 0
T47: 0 | U47: 0 | AM47: 0 | AN47: 0
T48: 0 | U48: 0 | AM48: 0 | AN48: 0
T49: 0 | U49: 0 | AM49: 0 | AN49: 0
T50: 0 | U50: 0 | AM50: 0 | AN50: 0
T51: 0 | U51: 0 | AM51: 0 | AN51: 0
T52: 0 | U52: 0 | AM52: 0 | AN52: 0
T53: 0 | U53: 0 | AM53: 0 | AN53: 0
T54: 0 | U54: 0 | AM54: 0 | AN54: 0
T55: 0 | U55: 0 | AM55: 0 | AN55: 0
T56: 0 | U56: 0 | AM56: 0 | AN56: 0
T57: 0 | U57: 0 | AM57: 0 | AN57: 0
T58: 0 | U58: 0 | AM58: 0 | AN58: 0
T59: 0 | U59: 0 | AM59: 0 | AN59: 0
T60: 0 | U60: 0 | AM60: 0 | AN60: 0
T61: 0 | U61: 0 | AM61: 0 | AN61: 0
T62: =R62*S62 -> 0 | U62: =IF(OR(Q62=$Q$100,Q62=$Q$101),1,0) -> 0 | AM62: =AK62*AL62 -> 0 | AN62: =IF(OR(AJ62=$Q$100,AJ62=$Q$101),1,0) -> 0
T63: 0 | U63: 0 | AM63: 0 | AN63: 0
T64: 0 | U64: 0 | AM64: 0 | AN64: 0
T65: 0 | U65: 0 | AM65: 0 | AN65: 0
T66: 0 | U66: 0 | AM66: 0 | AN66: 0
T67: 0 | U67: 0 | AM67: 0 | AN67: 0
T68: 0 | U68: 0 | AM68: 0 | AN68: 0
T69: 0 | U69: 0 | AM69: 0 | AN69: 0
T70: 0 | U70: 0 | AM70: 0 | AN70: 0
T71: 0 | U71: 0 | AM71: 0 | AN71: 0
T72: 0 | U72: 0 | AM72: 0 | AN72: 0
T73: 0 | U73: 0 | AM73: 0 | AN73: 0
T74: 0 | U74: 0 | AM74: 0 | AN74: 0
T75: 0 | U75: 0 | AM75: 0 | AN75: 0
T76: 0 | U76: 0 | AM76: 0 | AN76: 0
T77: 0 | U77: 0 | AM77: 0 | AN77: 0
T78: 0 | U78: 0 | AM78: 0 | AN78: 0
T79: 0 | U79: 0 | AM79: 0 | AN79: 0
T80: 0 | U80: 0 | AM80: 0 | AN80: 0
T81: 0 | U81: 0 | AM81: 0 | AN81: 0
T82: 0 | U82: 0 | AM82: 0 | AN82: 0
T83: 0 | U83: 0 | AM83: 0 | AN83: 0
T84: 0 | U84: 0 | AM84: 0 | AN84: 0
T85: 0 | U85: 0 | AM85: 0 | AN85: 0
T86: 0 | U86: 0 | AM86: 0 | AN86: 0
T87: 0 | U87: 0 | AM87: 0 | AN87: 0
T88: 0 | U88: 0 | AM88: 0 | AN88: 0
T89: 0 | U89: 0 | AM89: 0 | AN89: 0
T90: 0 | U90: 0 | AM90: 0 | AN90: 0
T91: 0 | U91: 0 | AM91: 0 | AN91: 0
T92: 0 | U92: 0 | AM92: 0 | AN92: 0
T93: 0 | U93: 0 | AM93: 0 | AN93: 0
T94: =R94*S94 -> 0 | U94: =IF(OR(Q94=$Q$100,Q94=$Q$101),1,0) -> 0 | AM94: =AK94*AL94 -> 0 | AN94: =IF(OR(AJ94=$Q$100,AJ94=$Q$101),1,0) -> 0
T95: 0 | U95: 0 | AM95: 0 | AN95: 0
T96: 0 | U96: 0 | AM96: 0 | AN96: 0
T97: 0 | U97: 0 | AM97: 0 | AN97: 0
T98: 0 | U98: 0 | AM98: 0 | AN98: 0
T99: 0 | U99: 0 | AM99: 0 | AN99: 0
Q100: DLC | AJ100: DLC
Q101: EnergyStar | AJ101: EnergyStar
Q102: No | AJ102: No
G106: Yes/No | I106: LOOKUP TABLES
G107: Yes | K107: Baseline LPD | AB107: Occupied Hours | AG107: Bin Hours - Peak Period Breakdown | AP107: Demand
G108: No | K108: Based on NH ISP | L108: Annual | AB108: OA Drybulb | AD108: Average Bin Conditions | AG108: Total | AH108: Winter | AI108: Winter | AJ108: Summer | AK108: Summer | AL108: Winter | AM108: Summer | AP108: Reduction
G109: DNQ | I109: Building Type | K109: (60% of 2015 IECC) | L109: EFLH | M109: Source of Hrs | N109: Note | AB109: Bin Range | AD109: OA db | AE109: OA wb | AF109: OA Enth | AG109: Bin | AH109: On-Peak | AI109: Off-Peak | AJ109: On-Peak | AK109: Off-Peak | AL109: Demand | AM109: Demand | AN109: Base | AO109: Design | AP109: Elec
I110: ='Project Info'!E102 -> Automotive facility | K110: 0.48 | L110: 4939 | M110: 2025 App | AB110: From | AC110: To | AD110: °F | AE110: °F | AF110: Btu/lb | AG110: Hours | AH110: Hours | AI110: Hours | AJ110: Hours | AK110: Hours | AL110: Hours | AM110: Hours | AN110: kW | AO110: kW | AP110: kW
I111: ='Project Info'!E103 -> Convention center | K111: 0.61 | L111: 5220 | M111: 2025 App | N111: Double the Eval hours for Public Assembly (1 shift) | AB111: ='Project Info'!A44 -> 100 | AC111: ='Project Info'!B44 -> 105 | AD111: ='Project Info'!C44 -> 102 | AE111: ='Project Info'!D44 -> 76 | AF111: ='Project Info'!E44 -> 40 | AG111: ='Project Info'!F44 -> 0 | AH111: ='Project Info'!G44 -> 0 | AI111: ='Project Info'!H44 -> 0 | AJ111: ='Project Info'!I44 -> 0 | AK111: ='Project Info'!J44 -> 0 | AL111: ='Project Info'!K44 -> 0 | AM111: ='Project Info'!L44 -> 0 | AN111: =$V$9/1000 -> 0 | AO111: =$V$10/1000 -> 0 | AP111: =AN111-AO111 -> 0
I112: ='Project Info'!E104 -> Courthouse | K112: 0.61 | L112: 3425 | M112: 2025 App | N112: Public Services (non food) | AB112: ='Project Info'!A45 -> 95 | AC112: ='Project Info'!B45 -> 100 | AD112: ='Project Info'!C45 -> 95.21927273 | AE112: ='Project Info'!D45 -> 74.53402527 | AF112: ='Project Info'!E45 -> 37.92329606 | AG112: ='Project Info'!F45 -> 0 | AH112: ='Project Info'!G45 -> 0 | AI112: ='Project Info'!H45 -> 0 | AJ112: ='Project Info'!I45 -> 0 | AK112: ='Project Info'!J45 -> 0 | AL112: ='Project Info'!K45 -> 0 | AM112: ='Project Info'!L45 -> 0 | AN112: 0 | AO112: 0 | AP112: =AN112-AO112 -> 0
I113: ='Project Info'!E105 -> Daycare | K113: =K120 -> 0.52 | L113: 2590 | M113: 2025 App | AB113: ='Project Info'!A46 -> 90 | AC113: ='Project Info'!B46 -> 95 | AD113: ='Project Info'!C46 -> 92.01604916 | AE113: ='Project Info'!D46 -> 72.91156193 | AF113: ='Project Info'!E46 -> 36.46709544 | AG113: ='Project Info'!F46 -> 0 | AH113: ='Project Info'!G46 -> 0 | AI113: ='Project Info'!H46 -> 0 | AJ113: ='Project Info'!I46 -> 0 | AK113: ='Project Info'!J46 -> 0 | AL113: ='Project Info'!K46 -> 0 | AM113: ='Project Info'!L46 -> 0 | AN113: 0 | AO113: 0 | AP113: 0
I114: ='Project Info'!E106 -> Dining: bar/lounge/leisure | K114: 0.61 | L114: 3613 | M114: 2025 App | N114: Restaurant | AB114: ='Project Info'!A47 -> 85 | AC114: ='Project Info'!B47 -> 90 | AD114: ='Project Info'!C47 -> 87.45781136 | AE114: ='Project Info'!D47 -> 70.80538329 | AF114: ='Project Info'!E47 -> 34.67941321 | AG114: ='Project Info'!F47 -> 0 | AH114: ='Project Info'!G47 -> 0 | AI114: ='Project Info'!H47 -> 0 | AJ114: ='Project Info'!I47 -> 0 | AK114: ='Project Info'!J47 -> 0 | AL114: ='Project Info'!K47 -> 0 | AM114: ='Project Info'!L47 -> 0 | AN114: 0 | AO114: 0 | AP114: 0
I115: ='Project Info'!E107 -> Dining: Cafeteria/Fast Food | K115: 0.54 | L115: 5018 | M115: 2025 App | N115: Restaurant 3 meals | AB115: ='Project Info'!A48 -> 80 | AC115: ='Project Info'!B48 -> 85 | AD115: ='Project Info'!C48 -> 82.13678883 | AE115: ='Project Info'!D48 -> 67.87239362 | AF115: ='Project Info'!E48 -> 32.29624822 | AG115: ='Project Info'!F48 -> 0 | AH115: ='Project Info'!G48 -> 0 | AI115: ='Project Info'!H48 -> 0 | AJ115: ='Project Info'!I48 -> 0 | AK115: ='Project Info'!J48 -> 0 | AL115: ='Project Info'!K48 -> 0 | AM115: ='Project Info'!L48 -> 0 | AN115: 0 | AO115: 0 | AP115: 0
I116: ='Project Info'!E108 -> Dining: Family | K116: 0.57 | L116: 4315.5 | M116: 2025 App | AB116: ='Project Info'!A49 -> 75 | AC116: ='Project Info'!B49 -> 80 | AD116: ='Project Info'!C49 -> 76.98840016 | AE116: ='Project Info'!D49 -> 65.1292619 | AF116: ='Project Info'!E49 -> 30.19047681 | AG116: ='Project Info'!F49 -> 0 | AH116: ='Project Info'!G49 -> 0 | AI116: ='Project Info'!H49 -> 0 | AJ116: ='Project Info'!I49 -> 0 | AK116: ='Project Info'!J49 -> 0 | AL116: ='Project Info'!K49 -> 0 | AM116: ='Project Info'!L49 -> 0 | AN116: 0 | AO116: 0 | AP116: 0
I117: ='Project Info'!E109 -> Dormitory | K117: 0.34 | L117: 3056 | M117: 2025 App | AB117: ='Project Info'!A50 -> 70 | AC117: ='Project Info'!B50 -> 75 | AD117: ='Project Info'!C50 -> 72.45798205 | AE117: ='Project Info'!D50 -> 63.60442501 | AF117: ='Project Info'!E50 -> 29.0886831 | AG117: ='Project Info'!F50 -> 0 | AH117: ='Project Info'!G50 -> 0 | AI117: ='Project Info'!H50 -> 0 | AJ117: ='Project Info'!I50 -> 0 | AK117: ='Project Info'!J50 -> 0 | AL117: ='Project Info'!K50 -> 0 | AM117: ='Project Info'!L50 -> 0 | AN117: 0 | AO117: 0 | AP117: 0
I118: ='Project Info'!E110 -> Education - College/University | K118: 0.52 | L118: 4839 | M118: 2025 App | N118: College/University | AB118: ='Project Info'!A51 -> 65 | AC118: ='Project Info'!B51 -> 70 | AD118: ='Project Info'!C51 -> 67.81583107 | AE118: ='Project Info'!D51 -> 61.63133137 | AF118: ='Project Info'!E51 -> 27.66151489 | AG118: ='Project Info'!F51 -> 0 | AH118: ='Project Info'!G51 -> 0 | AI118: ='Project Info'!H51 -> 0 | AJ118: ='Project Info'!I51 -> 0 | AK118: ='Project Info'!J51 -> 0 | AL118: ='Project Info'!K51 -> 0 | AM118: ='Project Info'!L51 -> 0 | AN118: 0 | AO118: 0 | AP118: 0
I119: ='Project Info'!E111 -> Education - Community College | K119: 0.52 | L119: 3255 | M119: 2025 App | AB119: ='Project Info'!A52 -> 60 | AC119: ='Project Info'!B52 -> 65 | AD119: ='Project Info'!C52 -> 62.53596147 | AE119: ='Project Info'!D52 -> 57.13547692 | AF119: ='Project Info'!E52 -> 24.62303716 | AG119: ='Project Info'!F52 -> 0 | AH119: ='Project Info'!G52 -> 0 | AI119: ='Project Info'!H52 -> 0 | AJ119: ='Project Info'!I52 -> 0 | AK119: ='Project Info'!J52 -> 0 | AL119: ='Project Info'!K52 -> 0 | AM119: ='Project Info'!L52 -> 0 | AN119: 0 | AO119: 0 | AP119: 0
I120: ='Project Info'!E112 -> Education - K-12 School | K120: 0.52 | L120: 2788 | M120: 2025 App | N120: School | AB120: ='Project Info'!A53 -> 55 | AC120: ='Project Info'!B53 -> 60 | AD120: ='Project Info'!C53 -> 57.12579227 | AE120: ='Project Info'!D53 -> 52.59697116 | AF120: ='Project Info'!E53 -> 21.81800154 | AG120: ='Project Info'!F53 -> 0 | AH120: ='Project Info'!G53 -> 0 | AI120: ='Project Info'!H53 -> 0 | AJ120: ='Project Info'!I53 -> 0 | AK120: ='Project Info'!J53 -> 0 | AL120: ='Project Info'!K53 -> 0 | AM120: ='Project Info'!L53 -> 0 | AN120: 0 | AO120: 0 | AP120: 0
I121: ='Project Info'!E113 -> Exercise center | K121: 0.5 | L121: 5468 | M121: 2025 App | N121: From Eval - Grocery (assume similar hours) | AB121: ='Project Info'!A54 -> 50 | AC121: ='Project Info'!B54 -> 55 | AD121: ='Project Info'!C54 -> 52.23569885 | AE121: ='Project Info'!D54 -> 48.02276809 | AF121: ='Project Info'!E54 -> 19.24664019 | AG121: ='Project Info'!F54 -> 0 | AH121: ='Project Info'!G54 -> 0 | AI121: ='Project Info'!H54 -> 0 | AJ121: ='Project Info'!I54 -> 0 | AK121: ='Project Info'!J54 -> 0 | AL121: ='Project Info'!K54 -> 0 | AM121: ='Project Info'!L54 -> 0 | AN121: 0 | AO121: 0 | AP121: 0
I122: ='Project Info'!E114 -> Fire station | K122: 0.4 | L122: 5366 | M122: 2025 App | N122: Public Order and Safety | AB122: ='Project Info'!A55 -> 45 | AC122: ='Project Info'!B55 -> 50 | AD122: ='Project Info'!C55 -> 47.45917026 | AE122: ='Project Info'!D55 -> 43.46539705 | AF122: ='Project Info'!E55 -> 16.89418324 | AG122: ='Project Info'!F55 -> 0 | AH122: ='Project Info'!G55 -> 0 | AI122: ='Project Info'!H55 -> 0 | AJ122: ='Project Info'!I55 -> 0 | AK122: ='Project Info'!J55 -> 0 | AL122: ='Project Info'!K55 -> 0 | AM122: ='Project Info'!L55 -> 0 | AN122: 0 | AO122: 0 | AP122: 0
I123: ='Project Info'!E115 -> Grocery | K123: =K144 -> 0.76 | L123: 5468 | M123: 2025 App | AB123: ='Project Info'!A56 -> 40 | AC123: ='Project Info'!B56 -> 45 | AD123: ='Project Info'!C56 -> 42.6770304 | AE123: ='Project Info'!D56 -> 38.8125445 | AF123: ='Project Info'!E56 -> 14.69026565 | AG123: ='Project Info'!F56 -> 0 | AH123: ='Project Info'!G56 -> 0 | AI123: ='Project Info'!H56 -> 0 | AJ123: ='Project Info'!I56 -> 0 | AK123: ='Project Info'!J56 -> 0 | AL123: ='Project Info'!K56 -> 0 | AM123: ='Project Info'!L56 -> 0 | AN123: 0 | AO123: 0 | AP123: 0
